Workbook

Sheet START
F11: =INDIRECT("START!I25") -> START | I11: =INDIRECT("START!K25") -> Описание методологии финмодели
I13: лист | K13: описание листа/столбца/строки/ячейки/блока ячеек
D14: =INDIRECT("Cntrl!M17") -> 0 | E14: =SUM($F14:$PL14) -> 0 | F14: =IFERROR(_xlfn.SHEET($A$1)-SUMIFS(Cntrl!O$15:O$100000,Cntrl!I$15:I$100000,$F$11),1) -> 0
A15: =ROW() -> 15 | I15: разработка финмоделей: https://mngmnt.ru/
A16: =ROW() -> 16 | H16: ФИНАНСОВАЯ МОДЕЛЬ
A17: =ROW() -> 17
A18: =ROW() -> 18
A19: =ROW() -> 19 | H19: ИНВЕСТПРОЕКТ СОЗДАНИЯ ТЕРРИТОРИИ ТУРИЗМА
A20: =ROW() -> 20
A21: =ROW() -> 21
A22: =ROW() -> 22
A23: =ROW() -> 23 | H23: Методология. Список и предназначение листов настоящей финансовой модели
A24: =ROW() -> 24
A25: =ROW() -> 25 | I25: START | K25: Описание методологии финмодели
A26: =ROW() -> 26 | I26: Cntrl | K26: Общий контроль финансовой модели
A27: =ROW() -> 27 | I27: Periods | K27: Периоды и горизонты моделирования фактических и прогнозных данных
A28: =ROW() -> 28 | I28: Lists | K28: Выпадающие списки финансовой модели
A29: =ROW() -> 29 | I29: Macro | K29: Макропоказатели внешней среды
A30: =ROW() -> 30 | I30: Items | K30: Справочники статей доходов и расходов и т.д.
A31: =ROW() -> 31 | I31: KPI | K31: Справочники ключевых показателей эффективности
A32: =ROW() -> 32 | I32: Mrkting | K32: Маркетинг. Параметры рынков сбыта и каналов привлечения клиентов
A33: =ROW() -> 33 | I33: CapEx | K33: Календарный план-график капитальных затрат
A34: =ROW() -> 34 | I34: Sales | K34: Параметры бюджета продаж
A35: =ROW() -> 35 | I35: Prdction | K35: Технологическая карта производственного процесса
A36: =ROW() -> 36 | I36: HR | K36: Штатное расписание
A37: =ROW() -> 37 | I37: Exp | K37: Прочие расходы бизнес-проекта
A38: =ROW() -> 38 | I38: Credits | K38: Источники финансирования и их условия
A39: =ROW() -> 39 | I39: PL | K39: Итоговый отчет о прибылях и убытках
A40: =ROW() -> 40 | I40: CF | K40: Итоговый отчет о движении денежных средств
A41: =ROW() -> 41 | I41: BS | K41: Итоговый баланс
A42: =ROW() -> 42 | I42: MAIN | K42: Ключевые параметры управления и результаты финансовой модели
A43: =ROW() -> 43 | I43: PLd | K43: Детализированный отчет о прибылях и убытках
A44: =ROW() -> 44 | I44: CFd | K44: Детализированный отчет о движении денежных средств
A45: =ROW() -> 45 | I45: BSd | K45: Детализированный баланс
A46: =ROW() -> 46 | I46: Sens | K46: Анализ чувствительности финмодели
A47: =ROW() -> 47 | I47: UnitEc | K47: Расчет юнит-экономики бизнес-проекта
A48: =ROW() -> 48 | I48: CFind | K48: Анализ финансового потока косвенным методом
A49: =ROW() -> 49 | I49: FinEcAn | K49: Финансово-экономический анализ проекта
A50: =ROW() -> 50 | I50: InvAn | K50: Инвестиционный анализ проекта
A51: =ROW() -> 51 | I51: EBITDA | K51: Анализ собственной операционной деят-сти. Точки безубыточности
A52: =ROW() -> 52 | I52: Rep | K52: Укрупненное формирование всей отчетности финмодели
A53: =ROW() -> 53 | I53: Repd | K53: Детализированное формирование всей отчетности финмодели
A54: =ROW() -> 54 | I54: Calc | K54: Функционал финансовой модели. Все расчеты
A55: =ROW() -> 55 | I55: Fact | K55: Учет фактических операций
A56: =ROW() -> 56 | I56: 1S | K56: Выгрузки из 1С карточек с оборотами по счетам бухучета
A57: =ROW() -> 57 | I57: Rules | K57: Правила сопоставления статей для выгрузок из 1С
A58: =ROW() -> 58 | I58: Res1 | K58: Резервная вкладка 1
A59: =ROW() -> 59 | I59: Res2 | K59: Резервная вкладка 2
A60: =ROW() -> 60 | I60: Res3 | K60: Резервная вкладка 3
A61: =ROW() -> 61 | I61: Res4 | K61: Резервная вкладка 4
A62: =ROW() -> 62 | I62: Res5 | K62: Резервная вкладка 5
A63: =ROW() -> 63
A64: =ROW() -> 64 | H64: Обозначение ячеек для задания исходных данных
A65: =ROW() -> 65
A66: =ROW() -> 66 | H66: * | K66: Ячейки для задания исходных данных финмодели вручную
A67: =ROW() -> 67
A68: =ROW() -> 68 | H68: * | J68: ^ | K68: Ячейки для задания исходных данных финмодели из выпадающих списков вкладки "Lists"
A69: =ROW() -> 69
A70: =ROW() -> 70 | H70: Ячейка F11 | K70: Для каждого листа в этой ячейке отображается название (ярлычка) листа
A71: =ROW() -> 71
A72: =ROW() -> 72 | H72: Ячейка I11 | K72: Для каждого листа в этой ячейке отображается заголовок листа
A73: =ROW() -> 73
A74: =ROW() -> 74 | H74: Ячейка E14 | K74: Для каждого листа в этой ячейке суммируются все контроли листа по 14-той строке
A75: =ROW() -> 75
A76: =ROW() -> 76 | H76: Ячейка D14 | K76: Для каждого листа в этой ячейке отображается общий контроль финмодели из листа "Cntrl"
A77: =ROW() -> 77
A78: =ROW() -> 78 | H78: Ячейка F14 | K78: Для каждого листа в этой ячейке проверяется соответствие названия листа их списку из "START"
A79: =ROW() -> 79
A80: =ROW() -> 80 | H80: Строка 13 | K80: Для каждого листа в этой строке отображаются заголовки столбцов
A81: =ROW() -> 81
A82: =ROW() -> 82 | I82: =$I$26 -> Cntrl | K82: =$K$26 -> Общий контроль финансовой модели
A83: =ROW() -> 83
A84: =ROW() -> 84 | I84: столбец M | K84: Со строки 19 здесь подтягиваются контроли всех листов из ячеек E14
A85: =ROW() -> 85
A86: =ROW() -> 86 | I86: M17 | K86: Общий контроль финмодели - сумма всех контрлей листов в столбце M
A87: =ROW() -> 87
A88: =ROW() -> 88 | I88: столбец O | K88: Со строки 19 здесь рассчитываются порядковые номера ярлычков листов в нижней панели
A89: =ROW() -> 89
A90: =ROW() -> 90 | I90: столбец Q | K90: Со строки 19 здесь из выпадающего списка пользователь выбирает тип листов
A91: =ROW() -> 91
A92: =ROW() -> 92 | I92: столбец S | K92: Со строки 19 здесь проверяется наличие значений из столбца Q в списке столбца U листа "Lists"
A93: =ROW() -> 93
A94: =ROW() -> 94 | I94: столбец G | K94: Со строки 19 здесь проверяется наличие названия из столбца H в заголовках списков листа "Lists"
A95: =ROW() -> 95
A96: =ROW() -> 96 | I96: =$I$27 -> Periods | K96: =$K$27 -> Периоды и горизонты моделирования фактических и прогнозных данных
A97: =ROW() -> 97
A98: =ROW() -> 98 | I98: Q16 | K98: Пользователь задает, выбирая из выпадающего списка, минимальный период шкалы времени
A99: =ROW() -> 99
A100: =ROW() -> 100 | I100: Q17 | K100: Пользователь задает вручную дату, с которой начинаются расчеты моделирования - старт
A101: =ROW() -> 101
A102: =ROW() -> 102 | I102: Q18 | K102: Пользователь задает вручную (от 1 до 400) количество периодов в шкале расчетов - горизонт
A103: =ROW() -> 103
A104: =ROW() -> 104 | I104: строки 20,21 | K104: По данным из ячеек Q16,Q17,Q18 рассчитываются даты начала и окончания периодов шкалы расчетов
A105: =ROW() -> 105
A106: =ROW() -> 106 | I106: строка 22 | K106: Формируются названия периодов шкалы расчетов
A107: =ROW() -> 107
A108: =ROW() -> 108 | I108: Q25 | K108: Пользователь указывает на необходимость отражения фактически проведенных операций
A109: =ROW() -> 109
A110: =ROW() -> 110 | I110: Q26 | K110: В случае выбора "да" в ячейке Q25, пользователь выбирает вариант задания фактического периода
A111: =ROW() -> 111
A112: =ROW() -> 112 | I112: Q30 | K112: Если в ячейках Q25 и Q26 "да", то здесь отображается текущая дата - окончание фактического периода
A113: =ROW() -> 113
A114: =ROW() -> 114 | I114: Q31 | K114: Если в ячейке Q25 "да" и в Q26 "нет", то здесь вручную задаем дату окончания фактического периода
A115: =ROW() -> 115
A116: =ROW() -> 116 | I116: строки 28,29 | K116: По данным из ячеек Q25,Q26,Q30,Q31 рассчитываются даты начала и окончания фактических периодов
A117: =ROW() -> 117
A118: =ROW() -> 118 | I118: Q33 | K118: Пользователь задает, выбирая из выпадающего списка, период шкалы времени для отчетности
A119: =ROW() -> 119
A120: =ROW() -> 120 | I120: строки 35,36 | K120: Рассчитываются даты начала и окончания периодов шкалы отчетности
A121: =ROW() -> 121
A122: =ROW() -> 122 | I122: строка 37 | K122: Формируются названия периодов шкалы отчетности
A123: =ROW() -> 123
A124: =ROW() -> 124 | I124: Q12 | K124: Отображается тип листа
A125: =ROW() -> 125
A126: =ROW() -> 126 | I126: строки 11,12 | K126: В зависимости от типа листа отображаются соответствующие даты начала и окончания периодов
A127: =ROW() -> 127
A128: =ROW() -> 128 | I128: строки 1-10 | K128: Строки носят технический характер, в них рассчитываются следующие параметры:
A129: =ROW() -> 129
A130: =ROW() -> 130 | K130: номер столбца:
A131: =ROW() -> 131 | K131: номер периода модели:
A132: =ROW() -> 132 | K132: номер факт-периода:
A133: =ROW() -> 133 | K133: номер план-периода:
A134: =ROW() -> 134 | K134: число даты начала:
A135: =ROW() -> 135 | K135: номер месяца даты начала:
A136: =ROW() -> 136 | K136: год даты начала:
A137: =ROW() -> 137 | K137: число даты окончания:
A138: =ROW() -> 138 | K138: номер месяца даты окончания:
A139: =ROW() -> 139 | K139: год даты окончания:
A140: =ROW() -> 140
A141: =ROW() -> 141 | I141: столбцы G,S | K141: Производится контроль за корректностью работы выпадающих списков
A142: =ROW() -> 142
A143: =ROW() -> 143 | I143: Lists | K143: Выпадающие списки финансовой модели
A144: =ROW() -> 144
A145: =ROW() -> 145 | I145: строка 1 | K145: Для технических нужд отображаются номера столбцов, в которых находятся выпадающие списки
A146: =ROW() -> 146
A147: =ROW() -> 147 | I147: строка 2 | K147: Для технических нужд отображаются названия столбцов, в которых находятся выпадающие списки
A148: =ROW() -> 148
A149: =ROW() -> 149 | I149: строка 15 | K149: Для технических нужд рассчитываются адреса блоков ячеек с выпадающими списками
A150: =ROW() -> 150
A151: =ROW() -> 151 | I151: столбец Q | K151: Значения выпадающего списка зависят от значения ячейки Q16 листа "Periods" и столбца I
A152: =ROW() -> 152
A153: =ROW() -> 153 | I153: справа от списков | K153: В 1-ом столбце справа от вып.списков производится нумерация актуальных значений вып.списков
A154: =ROW() -> 154
A155: =ROW() -> 155 | I155: справа от списков | K155: Во 2-ом столбце справа от вып.списков производится контроль за неповторяемостью значений
A156: =ROW() -> 156
A157: =ROW() -> 157
A158: =ROW() -> 158
A159: =ROW() -> 159
A160: =ROW() -> 160
A161: =ROW() -> 161
A162: =ROW() -> 162
A163: =ROW() -> 163
A164: =ROW() -> 164
A165: =ROW() -> 165
A166: =ROW() -> 166
A167: =ROW() -> 167
A168: =ROW() -> 168
A169: =ROW() -> 169
A170: =ROW() -> 170
A171: =ROW() -> 171
A172: =ROW() -> 172
A173: =ROW() -> 173
A174: =ROW() -> 174
A175: =ROW() -> 175
A176: =ROW() -> 176

Sheet Cntrl
F11: Cntrl | I11: Общий контроль финансовой модели
I13: лист | K13: ячейка с контролем | M13: контроль | O13: номер листа | Q13: тип листа | V13: точность
D14: 0 | E14: 0 | F14: 0 | G14: 0 | S14: 0
A15: 15 | I15: разработка финмоделей: https://mngmnt.ru/
A16: 16
A17: 17 | G17: 0 | H17: Общий контроль | M17: 0
A18: 18
A19: 19 | G19: 0 | H19: тип листа | I19: START | K19: E14 | M19: 0 | O19: 1 | P19: * | Q19: технический | R19: ^ | S19: 0 | U19: * | V19: 0
A20: 20 | G20: 0 | H20: тип листа | I20: Cntrl | K20: E14 | M20: 0 | O20: 2 | P20: * | Q20: технический | R20: ^ | S20: 0 | U20: * | V20: 0
A21: 21 | G21: 0 | H21: тип листа | I21: Periods | K21: E14 | M21: 0 | O21: 3 | P21: * | Q21: расчетный | R21: ^ | S21: 0 | U21: * | V21: 0
A22: 22 | G22: 0 | H22: тип листа | I22: Lists | K22: E14 | M22: 0 | O22: 4 | P22: * | Q22: технический | R22: ^ | S22: 0 | U22: * | V22: 0
A23: 23 | G23: 0 | H23: тип листа | I23: Macro | K23: E14 | M23: 0 | O23: 5 | P23: * | Q23: расчетный | R23: ^ | S23: 0 | U23: * | V23: 0
A24: 24 | G24: 0 | H24: тип листа | I24: Items | K24: E14 | M24: 0 | O24: 6 | P24: * | Q24: технический | R24: ^ | S24: 0 | U24: * | V24: 0
A25: 25 | G25: 0 | H25: тип листа | I25: KPI | K25: E14 | M25: 0 | O25: 7 | P25: * | Q25: технический | R25: ^ | S25: 0 | U25: * | V25: 0
A26: 26 | G26: 0 | H26: тип листа | I26: Mrkting | K26: E14 | M26: 0 | O26: 8 | P26: * | Q26: расчетный | R26: ^ | S26: 0 | U26: * | V26: 0.001
A27: 27 | G27: 0 | H27: тип листа | I27: CapEx | K27: E14 | M27: 0 | O27: 9 | P27: * | Q27: расчетный | R27: ^ | S27: 0 | U27: * | V27: 1e-05
A28: 28 | G28: 0 | H28: тип листа | I28: Sales | K28: E14 | M28: 0 | O28: 10 | P28: * | Q28: расчетный | R28: ^ | S28: 0 | U28: * | V28: 1e-05
A29: 29 | G29: 0 | H29: тип листа | I29: Prdction | K29: E14 | M29: 0 | O29: 11 | P29: * | Q29: расчетный | R29: ^ | S29: 0 | U29: * | V29: 1e-05
A30: 30 | G30: 0 | H30: тип листа | I30: HR | K30: E14 | M30: 0 | O30: 12 | P30: * | Q30: расчетный | R30: ^ | S30: 0 | U30: * | V30: 1e-05
A31: 31 | G31: 0 | H31: тип листа | I31: Exp | K31: E14 | M31: 0 | O31: 13 | P31: * | Q31: расчетный | R31: ^ | S31: 0 | U31: * | V31: 1e-05
A32: 32 | G32: 0 | H32: тип листа | I32: Credits | K32: E14 | M32: 0 | O32: 14 | P32: * | Q32: расчетный | R32: ^ | S32: 0 | U32: * | V32: 1e-05
A33: 33 | G33: 0 | H33: тип листа | I33: PL | K33: E14 | M33: 0 | O33: 15 | P33: * | Q33: отчетный | R33: ^ | S33: 0 | U33: * | V33: 1e-05
A34: 34 | G34: 0 | H34: тип листа | I34: CF | K34: E14 | M34: 0 | O34: 16 | P34: * | Q34: отчетный | R34: ^ | S34: 0 | U34: * | V34: 1e-05
A35: 35 | G35: 0 | H35: тип листа | I35: BS | K35: E14 | M35: 0 | O35: 17 | P35: * | Q35: отчетный | R35: ^ | S35: 0 | U35: * | V35: 1e-05
A36: 36 | G36: 0 | H36: тип листа | I36: MAIN | K36: E14 | M36: 0 | O36: 18 | P36: * | Q36: отчетный | R36: ^ | S36: 0 | U36: * | V36: 1e-05
A37: 37 | G37: 0 | H37: тип листа | I37: PLd | K37: E14 | M37: 0 | O37: 19 | P37: * | Q37: расчетный | R37: ^ | S37: 0 | U37: * | V37: 1e-05
A38: 38 | G38: 0 | H38: тип листа | I38: CFd | K38: E14 | M38: 0 | O38: 20 | P38: * | Q38: расчетный | R38: ^ | S38: 0 | U38: * | V38: 1e-05
A39: 39 | G39: 0 | H39: тип листа | I39: BSd | K39: E14 | M39: 0 | O39: 21 | P39: * | Q39: расчетный | R39: ^ | S39: 0 | U39: * | V39: 0.001
A40: 40 | G40: 0 | H40: тип листа | I40: Sens | K40: E14 | M40: 0 | O40: 22 | P40: * | Q40: отчетный | R40: ^ | S40: 0 | U40: * | V40: 1e-05
A41: 41 | G41: 0 | H41: тип листа | I41: UnitEc | K41: E14 | M41: 0 | O41: 23 | P41: * | Q41: отчетный | R41: ^ | S41: 0 | U41: * | V41: 1e-05
A42: 42 | G42: 0 | H42: тип листа | I42: CFind | K42: E14 | M42: 0 | O42: 24 | P42: * | Q42: отчетный | R42: ^ | S42: 0 | U42: * | V42: 1e-05
A43: 43 | G43: 0 | H43: тип листа | I43: FinEcAn | K43: E14 | M43: 0 | O43: 25 | P43: * | Q43: отчетный | R43: ^ | S43: 0 | U43: * | V43: 1e-05
A44: 44 | G44: 0 | H44: тип листа | I44: InvAn | K44: E14 | M44: 0 | O44: 26 | P44: * | Q44: отчетный | R44: ^ | S44: 0 | U44: * | V44: 1e-05
A45: 45 | G45: 0 | H45: тип листа | I45: EBITDA | K45: E14 | M45: 0 | O45: 27 | P45: * | Q45: отчетный | R45: ^ | S45: 0 | U45: * | V45: 1e-05
A46: 46 | G46: 0 | H46: тип листа | I46: Rep | K46: E14 | M46: 0 | O46: 28 | P46: * | Q46: отчетный | R46: ^ | S46: 0 | U46: * | V46: 1e-05
A47: 47 | G47: 0 | H47: тип листа | I47: Repd | K47: E14 | M47: 0 | O47: 29 | P47: * | Q47: расчетный | R47: ^ | S47: 0 | U47: * | V47: 0.001
A48: 48 | G48: 0 | H48: тип листа | I48: Calc | K48: E14 | M48: 0 | O48: 30 | P48: * | Q48: расчетный | R48: ^ | S48: 0 | U48: * | V48: 0.001
A49: 49 | G49: 0 | H49: тип листа | I49: Fact | K49: E14 | P49: * | Q49: расчетный | R49: ^ | S49: 0 | U49: * | V49: 0
A50: 50 | G50: 0 | H50: тип листа | I50: 1S | K50: E14 | P50: * | Q50: расчетный | R50: ^ | S50: 0 | U50: * | V50: 0
A51: 51 | G51: 0 | H51: тип листа | I51: Rules | K51: E14 | P51: * | Q51: расчетный | R51: ^ | S51: 0 | U51: * | V51: 0
A52: 52 | G52: 0 | H52: тип листа | I52: Res1 | K52: E14 | P52: * | Q52: расчетный | R52: ^ | S52: 0 | U52: * | V52: 0
A53: 53 | G53: 0 | H53: тип листа | I53: Res2 | K53: E14 | P53: * | Q53: расчетный | R53: ^ | S53: 0 | U53: * | V53: 0
A54: 54 | G54: 0 | H54: тип листа | I54: Res3 | K54: E14 | P54: * | Q54: расчетный | R54: ^ | S54: 0 | U54: * | V54: 0
A55: 55 | G55: 0 | H55: тип листа | I55: Res4 | K55: E14 | P55: * | Q55: расчетный | R55: ^ | S55: 0 | U55: * | V55: 0
A56: 56 | G56: 0 | H56: тип листа | I56: Res5 | K56: E14 | P56: * | Q56: расчетный | R56: ^ | S56: 0 | U56: * | V56: 0
A57: 57
A58: 58
A59: 59
A60: 60
A61: 61
A62: 62
A63: 63
A64: 64
A65: 65
A66: 66
A67: 67
A68: 68
A69: 69
A70: 70

Sheet Periods
Y1: номер столбца: | AA1: 27 | AB1: 28 | AC1: 29 | AD1: 30 | AE1: 31 | AF1: 32 | AG1: 33 | AH1: 34 | AI1: 35 | AJ1: 36 | AK1: 37 | AL1: 38 | AM1: 39 | AN1: 40 | AO1: 41 | AP1: 42 | AQ1: 43 | AR1: 44 | AS1: 45 | AT1: 46 | AU1: 47 | AV1: 48 | AW1: 49 | AX1: 50 | AY1: 51 | AZ1: 52 | BA1: 53 | BB1: 54 | BC1: 55 | BD1: 56 | BE1: 57 | BF1: 58 | BG1: 59 | BH1: 60 | BI1: 61 | BJ1: 62 | BK1: 63 | BL1: 64 | BM1: 65 | BN1: 66 | BO1: 67 | BP1: 68 | BQ1: 69 | BR1: 70 | BS1: 71 | BT1: 72 | BU1: 73 | BV1: 74 | BW1: 75 | BX1: 76 | BY1: 77 | BZ1: 78 | CA1: 79 | CB1: 80 | CC1: 81 | CD1: 82 | CE1: 83 | CF1: 84 | CG1: 85 | CH1: 86 | CI1: 87 | CJ1: 88 | CK1: 89 | CL1: 90 | CM1: 91 | CN1: 92 | CO1: 93 | CP1: 94 | CQ1: 95 | CR1: 96 | CS1: 97 | CT1: 98 | CU1: 99
Y2: номер периода модели: | AA2: 1 | AB2: 2 | AC2: 3 | AD2: 4 | AE2: 5 | AF2: 6 | AG2: 7 | AH2: 8 | AI2: 9 | AJ2: 10 | AK2: 11 | AL2: 12 | AM2: 13 | AN2: 14 | AO2: 15 | AP2: 16 | AQ2: 17 | AR2: 18 | AS2: 19 | AT2: 20 | AU2: 21 | AV2: 22 | AW2: 23 | AX2: 24 | AY2: 25 | AZ2: 26 | BA2: 27 | BB2: 28 | BC2: 29 | BD2: 30 | BE2: 31 | BF2: 32 | BG2: 33 | BH2: 34 | BI2: 35 | BJ2: 36 | BK2: 37 | BL2: 38 | BM2: 39 | BN2: 40 | BO2: 41 | BP2: 42 | BQ2: 43 | BR2: 44 | BS2: 45 | BT2: 46 | BU2: 47 | BV2: 48 | BW2: 49 | BX2: 50 | BY2: 51 | BZ2: 52 | CA2: 53 | CB2: 54 | CC2: 55 | CD2: 56 | CE2: 57 | CF2: 58 | CG2: 59 | CH2: 60 | CI2: 61 | CJ2: 62 | CK2: 63 | CL2: 64 | CM2: 65 | CN2: 66 | CO2: 67 | CP2: 68 | CQ2: 69 | CR2: 70 | CS2: 71 | CT2: 72 | CU2: 73
Y3: номер факт-периода:
Y4: номер план-периода: | AA4: 1 | AB4: 2 | AC4: 3 | AD4: 4 | AE4: 5 | AF4: 6 | AG4: 7 | AH4: 8 | AI4: 9 | AJ4: 10 | AK4: 11 | AL4: 12 | AM4: 13 | AN4: 14 | AO4: 15 | AP4: 16 | AQ4: 17 | AR4: 18 | AS4: 19 | AT4: 20 | AU4: 21 | AV4: 22 | AW4: 23 | AX4: 24 | AY4: 25 | AZ4: 26 | BA4: 27 | BB4: 28 | BC4: 29 | BD4: 30 | BE4: 31 | BF4: 32 | BG4: 33 | BH4: 34 | BI4: 35 | BJ4: 36 | BK4: 37 | BL4: 38 | BM4: 39 | BN4: 40 | BO4: 41 | BP4: 42 | BQ4: 43 | BR4: 44 | BS4: 45 | BT4: 46 | BU4: 47 | BV4: 48 | BW4: 49 | BX4: 50 | BY4: 51 | BZ4: 52 | CA4: 53 | CB4: 54 | CC4: 55 | CD4: 56 | CE4: 57 | CF4: 58 | CG4: 59 | CH4: 60
Y5: число даты начала: | AA5: 1 | AB5: 1 | AC5: 1 | AD5: 1 | AE5: 1 | AF5: 1 | AG5: 1 | AH5: 1 | AI5: 1 | AJ5: 1 | AK5: 1 | AL5: 1 | AM5: 1 | AN5: 1 | AO5: 1 | AP5: 1 | AQ5: 1 | AR5: 1 | AS5: 1 | AT5: 1 | AU5: 1 | AV5: 1 | AW5: 1 | AX5: 1 | AY5: 1 | AZ5: 1 | BA5: 1 | BB5: 1 | BC5: 1 | BD5: 1 | BE5: 1 | BF5: 1 | BG5: 1 | BH5: 1 | BI5: 1 | BJ5: 1 | BK5: 1 | BL5: 1 | BM5: 1 | BN5: 1 | BO5: 1 | BP5: 1 | BQ5: 1 | BR5: 1 | BS5: 1 | BT5: 1 | BU5: 1 | BV5: 1 | BW5: 1 | BX5: 1 | BY5: 1 | BZ5: 1 | CA5: 1 | CB5: 1 | CC5: 1 | CD5: 1 | CE5: 1 | CF5: 1 | CG5: 1 | CH5: 1
Y6: номер месяца даты начала: | AA6: 7 | AB6: 10 | AC6: 1 | AD6: 4 | AE6: 7 | AF6: 10 | AG6: 1 | AH6: 4 | AI6: 7 | AJ6: 10 | AK6: 1 | AL6: 4 | AM6: 7 | AN6: 10 | AO6: 1 | AP6: 4 | AQ6: 7 | AR6: 10 | AS6: 1 | AT6: 4 | AU6: 7 | AV6: 10 | AW6: 1 | AX6: 4 | AY6: 7 | AZ6: 10 | BA6: 1 | BB6: 4 | BC6: 7 | BD6: 10 | BE6: 1 | BF6: 4 | BG6: 7 | BH6: 10 | BI6: 1 | BJ6: 4 | BK6: 7 | BL6: 10 | BM6: 1 | BN6: 4 | BO6: 7 | BP6: 10 | BQ6: 1 | BR6: 4 | BS6: 7 | BT6: 10 | BU6: 1 | BV6: 4 | BW6: 7 | BX6: 10 | BY6: 1 | BZ6: 4 | CA6: 7 | CB6: 10 | CC6: 1 | CD6: 4 | CE6: 7 | CF6: 10 | CG6: 1 | CH6: 4
Y7: год даты начала: | AA7: 21 | AB7: 21 | AC7: 22 | AD7: 22 | AE7: 22 | AF7: 22 | AG7: 23 | AH7: 23 | AI7: 23 | AJ7: 23 | AK7: 24 | AL7: 24 | AM7: 24 | AN7: 24 | AO7: 25 | AP7: 25 | AQ7: 25 | AR7: 25 | AS7: 26 | AT7: 26 | AU7: 26 | AV7: 26 | AW7: 27 | AX7: 27 | AY7: 27 | AZ7: 27 | BA7: 28 | BB7: 28 | BC7: 28 | BD7: 28 | BE7: 29 | BF7: 29 | BG7: 29 | BH7: 29 | BI7: 30 | BJ7: 30 | BK7: 30 | BL7: 30 | BM7: 31 | BN7: 31 | BO7: 31 | BP7: 31 | BQ7: 32 | BR7: 32 | BS7: 32 | BT7: 32 | BU7: 33 | BV7: 33 | BW7: 33 | BX7: 33 | BY7: 34 | BZ7: 34 | CA7: 34 | CB7: 34 | CC7: 35 | CD7: 35 | CE7: 35 | CF7: 35 | CG7: 36 | CH7: 36
Y8: число даты окончания: | AA8: 30 | AB8: 31 | AC8: 31 | AD8: 30 | AE8: 30 | AF8: 31 | AG8: 31 | AH8: 30 | AI8: 30 | AJ8: 31 | AK8: 31 | AL8: 30 | AM8: 30 | AN8: 31 | AO8: 31 | AP8: 30 | AQ8: 30 | AR8: 31 | AS8: 31 | AT8: 30 | AU8: 30 | AV8: 31 | AW8: 31 | AX8: 30 | AY8: 30 | AZ8: 31 | BA8: 31 | BB8: 30 | BC8: 30 | BD8: 31 | BE8: 31 | BF8: 30 | BG8: 30 | BH8: 31 | BI8: 31 | BJ8: 30 | BK8: 30 | BL8: 31 | BM8: 31 | BN8: 30 | BO8: 30 | BP8: 31 | BQ8: 31 | BR8: 30 | BS8: 30 | BT8: 31 | BU8: 31 | BV8: 30 | BW8: 30 | BX8: 31 | BY8: 31 | BZ8: 30 | CA8: 30 | CB8: 31 | CC8: 31 | CD8: 30 | CE8: 30 | CF8: 31 | CG8: 31 | CH8: 30
Y9: номер месяца даты окончания: | AA9: 9 | AB9: 12 | AC9: 3 | AD9: 6 | AE9: 9 | AF9: 12 | AG9: 3 | AH9: 6 | AI9: 9 | AJ9: 12 | AK9: 3 | AL9: 6 | AM9: 9 | AN9: 12 | AO9: 3 | AP9: 6 | AQ9: 9 | AR9: 12 | AS9: 3 | AT9: 6 | AU9: 9 | AV9: 12 | AW9: 3 | AX9: 6 | AY9: 9 | AZ9: 12 | BA9: 3 | BB9: 6 | BC9: 9 | BD9: 12 | BE9: 3 | BF9: 6 | BG9: 9 | BH9: 12 | BI9: 3 | BJ9: 6 | BK9: 9 | BL9: 12 | BM9: 3 | BN9: 6 | BO9: 9 | BP9: 12 | BQ9: 3 | BR9: 6 | BS9: 9 | BT9: 12 | BU9: 3 | BV9: 6 | BW9: 9 | BX9: 12 | BY9: 3 | BZ9: 6 | CA9: 9 | CB9: 12 | CC9: 3 | CD9: 6 | CE9: 9 | CF9: 12 | CG9: 3 | CH9: 6
Y10: год даты окончания: | AA10: 21 | AB10: 21 | AC10: 22 | AD10: 22 | AE10: 22 | AF10: 22 | AG10: 23 | AH10: 23 | AI10: 23 | AJ10: 23 | AK10: 24 | AL10: 24 | AM10: 24 | AN10: 24 | AO10: 25 | AP10: 25 | AQ10: 25 | AR10: 25 | AS10: 26 | AT10: 26 | AU10: 26 | AV10: 26 | AW10: 27 | AX10: 27 | AY10: 27 | AZ10: 27 | BA10: 28 | BB10: 28 | BC10: 28 | BD10: 28 | BE10: 29 | BF10: 29 | BG10: 29 | BH10: 29 | BI10: 30 | BJ10: 30 | BK10: 30 | BL10: 30 | BM10: 31 | BN10: 31 | BO10: 31 | BP10: 31 | BQ10: 32 | BR10: 32 | BS10: 32 | BT10: 32 | BU10: 33 | BV10: 33 | BW10: 33 | BX10: 33 | BY10: 34 | BZ10: 34 | CA10: 34 | CB10: 34 | CC10: 35 | CD10: 35 | CE10: 35 | CF10: 35 | CG10: 36 | CH10: 36
F11: Periods | I11: Периоды и горизонты моделирования фактических и прогнозных данных | X11: 2021-07-01 | AA11: 2021-07-01 | AB11: 2021-10-01 | AC11: 2022-01-01 | AD11: 2022-04-01 | AE11: 2022-07-01 | AF11: 2022-10-01 | AG11: 2023-01-01 | AH11: 2023-04-01 | AI11: 2023-07-01 | AJ11: 2023-10-01 | AK11: 2024-01-01 | AL11: 2024-04-01 | AM11: 2024-07-01 | AN11: 2024-10-01 | AO11: 2025-01-01 | AP11: 2025-04-01 | AQ11: 2025-07-01 | AR11: 2025-10-01 | AS11: 2026-01-01 | AT11: 2026-04-01 | AU11: 2026-07-01 | AV11: 2026-10-01 | AW11: 2027-01-01 | AX11: 2027-04-01 | AY11: 2027-07-01 | AZ11: 2027-10-01 | BA11: 2028-01-01 | BB11: 2028-04-01 | BC11: 2028-07-01 | BD11: 2028-10-01 | BE11: 2029-01-01 | BF11: 2029-04-01 | BG11: 2029-07-01 | BH11: 2029-10-01 | BI11: 2030-01-01 | BJ11: 2030-04-01 | BK11: 2030-07-01 | BL11: 2030-10-01 | BM11: 2031-01-01 | BN11: 2031-04-01 | BO11: 2031-07-01 | BP11: 2031-10-01 | BQ11: 2032-01-01 | BR11: 2032-04-01 | BS11: 2032-07-01 | BT11: 2032-10-01 | BU11: 2033-01-01 | BV11: 2033-04-01 | BW11: 2033-07-01 | BX11: 2033-10-01 | BY11: 2034-01-01 | BZ11: 2034-04-01 | CA11: 2034-07-01 | CB11: 2034-10-01 | CC11: 2035-01-01 | CD11: 2035-04-01 | CE11: 2035-07-01 | CF11: 2035-10-01 | CG11: 2036-01-01 | CH11: 2036-04-01
H12: тип листа | Q12: расчетный | X12: 2036-06-30 | AA12: 2021-09-30 | AB12: 2021-12-31 | AC12: 2022-03-31 | AD12: 2022-06-30 | AE12: 2022-09-30 | AF12: 2022-12-31 | AG12: 2023-03-31 | AH12: 2023-06-30 | AI12: 2023-09-30 | AJ12: 2023-12-31 | AK12: 2024-03-31 | AL12: 2024-06-30 | AM12: 2024-09-30 | AN12: 2024-12-31 | AO12: 2025-03-31 | AP12: 2025-06-30 | AQ12: 2025-09-30 | AR12: 2025-12-31 | AS12: 2026-03-31 | AT12: 2026-06-30 | AU12: 2026-09-30 | AV12: 2026-12-31 | AW12: 2027-03-31 | AX12: 2027-06-30 | AY12: 2027-09-30 | AZ12: 2027-12-31 | BA12: 2028-03-31 | BB12: 2028-06-30 | BC12: 2028-09-30 | BD12: 2028-12-31 | BE12: 2029-03-31 | BF12: 2029-06-30 | BG12: 2029-09-30 | BH12: 2029-12-31 | BI12: 2030-03-31 | BJ12: 2030-06-30 | BK12: 2030-09-30 | BL12: 2030-12-31 | BM12: 2031-03-31 | BN12: 2031-06-30 | BO12: 2031-09-30 | BP12: 2031-12-31 | BQ12: 2032-03-31 | BR12: 2032-06-30 | BS12: 2032-09-30 | BT12: 2032-12-31 | BU12: 2033-03-31 | BV12: 2033-06-30 | BW12: 2033-09-30 | BX12: 2033-12-31 | BY12: 2034-03-31 | BZ12: 2034-06-30 | CA12: 2034-09-30 | CB12: 2034-12-31 | CC12: 2035-03-31 | CD12: 2035-06-30 | CE12: 2035-09-30 | CF12: 2035-12-31 | CG12: 2036-03-31 | CH12: 2036-06-30
H13: показатель | Q13: значение | X13: итого | AA13: 3кв21г | AB13: 4кв21г | AC13: 1кв22г | AD13: 2кв22г | AE13: 3кв22г | AF13: 4кв22г | AG13: 1кв23г | AH13: 2кв23г | AI13: 3кв23г | AJ13: 4кв23г | AK13: 1кв24г | AL13: 2кв24г | AM13: 3кв24г | AN13: 4кв24г | AO13: 1кв25г | AP13: 2кв25г | AQ13: 3кв25г | AR13: 4кв25г | AS13: 1кв26г | AT13: 2кв26г | AU13: 3кв26г | AV13: 4кв26г | AW13: 1кв27г | AX13: 2кв27г | AY13: 3кв27г | AZ13: 4кв27г | BA13: 1кв28г | BB13: 2кв28г | BC13: 3кв28г | BD13: 4кв28г | BE13: 1кв29г | BF13: 2кв29г | BG13: 3кв29г | BH13: 4кв29г | BI13: 1кв30г | BJ13: 2кв30г | BK13: 3кв30г | BL13: 4кв30г | BM13: 1кв31г | BN13: 2кв31г | BO13: 3кв31г | BP13: 4кв31г | BQ13: 1кв32г | BR13: 2кв32г | BS13: 3кв32г | BT13: 4кв32г | BU13: 1кв33г | BV13: 2кв33г | BW13: 3кв33г | BX13: 4кв33г | BY13: 1кв34г | BZ13: 2кв34г | CA13: 3кв34г | CB13: 4кв34г | CC13: 1кв35г | CD13: 2кв35г | CE13: 3кв35г | CF13: 4кв35г | CG13: 1кв36г | CH13: 2кв36г
D14: 0 | E14: 0 | F14: 0 | G14: 0 | S14: 0
A15: 15 | H15: разработка финмоделей: https://mngmnt.ru/
A16: 16 | G16: 0 | H16: минимальный период расчетов | P16: * | Q16: квартал | R16: ^ | S16: 0 | Y16: номер периода модели: | AA16: 1 | AB16: 2 | AC16: 3 | AD16: 4 | AE16: 5 | AF16: 6 | AG16: 7 | AH16: 8 | AI16: 9 | AJ16: 10 | AK16: 11 | AL16: 12 | AM16: 13 | AN16: 14 | AO16: 15 | AP16: 16 | AQ16: 17 | AR16: 18 | AS16: 19 | AT16: 20 | AU16: 21 | AV16: 22 | AW16: 23 | AX16: 24 | AY16: 25 | AZ16: 26 | BA16: 27 | BB16: 28 | BC16: 29 | BD16: 30 | BE16: 31 | BF16: 32 | BG16: 33 | BH16: 34 | BI16: 35 | BJ16: 36 | BK16: 37 | BL16: 38 | BM16: 39 | BN16: 40 | BO16: 41 | BP16: 42 | BQ16: 43 | BR16: 44 | BS16: 45 | BT16: 46 | BU16: 47 | BV16: 48 | BW16: 49 | BX16: 50 | BY16: 51 | BZ16: 52 | CA16: 53 | CB16: 54 | CC16: 55 | CD16: 56 | CE16: 57 | CF16: 58 | CG16: 59 | CH16: 60 | CI16: 61 | CJ16: 62 | CK16: 63 | CL16: 64 | CM16: 65 | CN16: 66 | CO16: 67 | CP16: 68 | CQ16: 69 | CR16: 70 | CS16: 71 | CT16: 72 | CU16: 73
A17: 17 | G17: 0 | H17: дата старта проекта | P17: * | Q17: 2021-07-01 | S17: 0 | Y17: номер месяца даты начала: | AA17: 7 | AB17: 10 | AC17: 1 | AD17: 4 | AE17: 7 | AF17: 10 | AG17: 1 | AH17: 4 | AI17: 7 | AJ17: 10 | AK17: 1 | AL17: 4 | AM17: 7 | AN17: 10 | AO17: 1 | AP17: 4 | AQ17: 7 | AR17: 10 | AS17: 1 | AT17: 4 | AU17: 7 | AV17: 10 | AW17: 1 | AX17: 4 | AY17: 7 | AZ17: 10 | BA17: 1 | BB17: 4 | BC17: 7 | BD17: 10 | BE17: 1 | BF17: 4 | BG17: 7 | BH17: 10 | BI17: 1 | BJ17: 4 | BK17: 7 | BL17: 10 | BM17: 1 | BN17: 4 | BO17: 7 | BP17: 10 | BQ17: 1 | BR17: 4 | BS17: 7 | BT17: 10 | BU17: 1 | BV17: 4 | BW17: 7 | BX17: 10 | BY17: 1 | BZ17: 4 | CA17: 7 | CB17: 10 | CC17: 1 | CD17: 4 | CE17: 7 | CF17: 10 | CG17: 1 | CH17: 4
A18: 18 | G18: 0 | H18: горизонт моделирования в кол-ве периодов | P18: * | Q18: 60 | S18: 0 | Y18: год даты начала: | AA18: 21 | AB18: 21 | AC18: 22 | AD18: 22 | AE18: 22 | AF18: 22 | AG18: 23 | AH18: 23 | AI18: 23 | AJ18: 23 | AK18: 24 | AL18: 24 | AM18: 24 | AN18: 24 | AO18: 25 | AP18: 25 | AQ18: 25 | AR18: 25 | AS18: 26 | AT18: 26 | AU18: 26 | AV18: 26 | AW18: 27 | AX18: 27 | AY18: 27 | AZ18: 27 | BA18: 28 | BB18: 28 | BC18: 28 | BD18: 28 | BE18: 29 | BF18: 29 | BG18: 29 | BH18: 29 | BI18: 30 | BJ18: 30 | BK18: 30 | BL18: 30 | BM18: 31 | BN18: 31 | BO18: 31 | BP18: 31 | BQ18: 32 | BR18: 32 | BS18: 32 | BT18: 32 | BU18: 33 | BV18: 33 | BW18: 33 | BX18: 33 | BY18: 34 | BZ18: 34 | CA18: 34 | CB18: 34 | CC18: 35 | CD18: 35 | CE18: 35 | CF18: 35 | CG18: 36 | CH18: 36
A19: 19
A20: 20 | G20: 0 | H20: дата старта периода расчетов модели | X20: 2021-07-01 | AA20: 2021-07-01 | AB20: 2021-10-01 | AC20: 2022-01-01 | AD20: 2022-04-01 | AE20: 2022-07-01 | AF20: 2022-10-01 | AG20: 2023-01-01 | AH20: 2023-04-01 | AI20: 2023-07-01 | AJ20: 2023-10-01 | AK20: 2024-01-01 | AL20: 2024-04-01 | AM20: 2024-07-01 | AN20: 2024-10-01 | AO20: 2025-01-01 | AP20: 2025-04-01 | AQ20: 2025-07-01 | AR20: 2025-10-01 | AS20: 2026-01-01 | AT20: 2026-04-01 | AU20: 2026-07-01 | AV20: 2026-10-01 | AW20: 2027-01-01 | AX20: 2027-04-01 | AY20: 2027-07-01 | AZ20: 2027-10-01 | BA20: 2028-01-01 | BB20: 2028-04-01 | BC20: 2028-07-01 | BD20: 2028-10-01 | BE20: 2029-01-01 | BF20: 2029-04-01 | BG20: 2029-07-01 | BH20: 2029-10-01 | BI20: 2030-01-01 | BJ20: 2030-04-01 | BK20: 2030-07-01 | BL20: 2030-10-01 | BM20: 2031-01-01 | BN20: 2031-04-01 | BO20: 2031-07-01 | BP20: 2031-10-01 | BQ20: 2032-01-01 | BR20: 2032-04-01 | BS20: 2032-07-01 | BT20: 2032-10-01 | BU20: 2033-01-01 | BV20: 2033-04-01 | BW20: 2033-07-01 | BX20: 2033-10-01 | BY20: 2034-01-01 | BZ20: 2034-04-01 | CA20: 2034-07-01 | CB20: 2034-10-01 | CC20: 2035-01-01 | CD20: 2035-04-01 | CE20: 2035-07-01 | CF20: 2035-10-01 | CG20: 2036-01-01 | CH20: 2036-04-01
A21: 21 | G21: 0 | H21: дата завершения периода расчетов модели | X21: 2036-06-30 | AA21: 2021-09-30 | AB21: 2021-12-31 | AC21: 2022-03-31 | AD21: 2022-06-30 | AE21: 2022-09-30 | AF21: 2022-12-31 | AG21: 2023-03-31 | AH21: 2023-06-30 | AI21: 2023-09-30 | AJ21: 2023-12-31 | AK21: 2024-03-31 | AL21: 2024-06-30 | AM21: 2024-09-30 | AN21: 2024-12-31 | AO21: 2025-03-31 | AP21: 2025-06-30 | AQ21: 2025-09-30 | AR21: 2025-12-31 | AS21: 2026-03-31 | AT21: 2026-06-30 | AU21: 2026-09-30 | AV21: 2026-12-31 | AW21: 2027-03-31 | AX21: 2027-06-30 | AY21: 2027-09-30 | AZ21: 2027-12-31 | BA21: 2028-03-31 | BB21: 2028-06-30 | BC21: 2028-09-30 | BD21: 2028-12-31 | BE21: 2029-03-31 | BF21: 2029-06-30 | BG21: 2029-09-30 | BH21: 2029-12-31 | BI21: 2030-03-31 | BJ21: 2030-06-30 | BK21: 2030-09-30 | BL21: 2030-12-31 | BM21: 2031-03-31 | BN21: 2031-06-30 | BO21: 2031-09-30 | BP21: 2031-12-31 | BQ21: 2032-03-31 | BR21: 2032-06-30 | BS21: 2032-09-30 | BT21: 2032-12-31 | BU21: 2033-03-31 | BV21: 2033-06-30 | BW21: 2033-09-30 | BX21: 2033-12-31 | BY21: 2034-03-31 | BZ21: 2034-06-30 | CA21: 2034-09-30 | CB21: 2034-12-31 | CC21: 2035-03-31 | CD21: 2035-06-30 | CE21: 2035-09-30 | CF21: 2035-12-31 | CG21: 2036-03-31 | CH21: 2036-06-30
A22: 22 | G22: 0 | H22: названия периодов расчета | AA22: 3кв21г | AB22: 4кв21г | AC22: 1кв22г | AD22: 2кв22г | AE22: 3кв22г | AF22: 4кв22г | AG22: 1кв23г | AH22: 2кв23г | AI22: 3кв23г | AJ22: 4кв23г | AK22: 1кв24г | AL22: 2кв24г | AM22: 3кв24г | AN22: 4кв24г | AO22: 1кв25г | AP22: 2кв25г | AQ22: 3кв25г | AR22: 4кв25г | AS22: 1кв26г | AT22: 2кв26г | AU22: 3кв26г | AV22: 4кв26г | AW22: 1кв27г | AX22: 2кв27г | AY22: 3кв27г | AZ22: 4кв27г | BA22: 1кв28г | BB22: 2кв28г | BC22: 3кв28г | BD22: 4кв28г | BE22: 1кв29г | BF22: 2кв29г | BG22: 3кв29г | BH22: 4кв29г | BI22: 1кв30г | BJ22: 2кв30г | BK22: 3кв30г | BL22: 4кв30г | BM22: 1кв31г | BN22: 2кв31г | BO22: 3кв31г | BP22: 4кв31г | BQ22: 1кв32г | BR22: 2кв32г | BS22: 3кв32г | BT22: 4кв32г | BU22: 1кв33г | BV22: 2кв33г | BW22: 3кв33г | BX22: 4кв33г | BY22: 1кв34г | BZ22: 2кв34г | CA22: 3кв34г | CB22: 4кв34г | CC22: 1кв35г | CD22: 2кв35г | CE22: 3кв35г | CF22: 4кв35г | CG22: 1кв36г | CH22: 2кв36г
A23: 23
A24: 24 | G24: 0 | H24: ответ "да/нет"
A25: 25 | G25: 0 | H25: ответ "да/нет" | I25: учесть фактические данные? | P25: * | Q25: нет | R25: ^ | S25: 0
A26: 26 | G26: 0 | H26: ответ "да/нет" | I26: фактический период выбрать по умолчанию? | Q26: да | R26: ^ | S26: 0
A27: 27
A28: 28 | G28: 0 | H28: дата начала фактического периода
A29: 29 | G29: 0 | H29: дата окончания фактического периода
A30: 30 | G30: 0 | H30: дата окончания фактического периода | I30: по умолчанию - сегодняшний день | Q30: 2022-02-10
A31: 31 | G31: 0 | H31: дата окончания фактического периода | I31: задать вручную дату окончания периода | Q31: 2020-10-31 | Y31: номер периода модели: | AA31: 1 | AB31: 2 | AC31: 3 | AD31: 4 | AE31: 5 | AF31: 6 | AG31: 7 | AH31: 8 | AI31: 9 | AJ31: 10 | AK31: 11 | AL31: 12 | AM31: 13 | AN31: 14 | AO31: 15 | AP31: 16 | AQ31: 17 | AR31: 18 | AS31: 19 | AT31: 20 | AU31: 21 | AV31: 22 | AW31: 23 | AX31: 24 | AY31: 25 | AZ31: 26 | BA31: 27 | BB31: 28 | BC31: 29 | BD31: 30 | BE31: 31 | BF31: 32 | BG31: 33 | BH31: 34 | BI31: 35 | BJ31: 36 | BK31: 37 | BL31: 38 | BM31: 39 | BN31: 40 | BO31: 41 | BP31: 42 | BQ31: 43 | BR31: 44 | BS31: 45 | BT31: 46 | BU31: 47 | BV31: 48 | BW31: 49 | BX31: 50 | BY31: 51 | BZ31: 52 | CA31: 53 | CB31: 54 | CC31: 55 | CD31: 56 | CE31: 57 | CF31: 58 | CG31: 59 | CH31: 60 | CI31: 61 | CJ31: 62 | CK31: 63 | CL31: 64 | CM31: 65 | CN31: 66 | CO31: 67 | CP31: 68 | CQ31: 69 | CR31: 70 | CS31: 71 | CT31: 72 | CU31: 73
A32: 32 | Y32: номер месяца даты начала: | AA32: 7 | AB32: 7 | AC32: 7 | AD32: 7 | AE32: 7 | AF32: 7 | AG32: 7 | AH32: 7 | AI32: 7 | AJ32: 7 | AK32: 7 | AL32: 7 | AM32: 7 | AN32: 7 | AO32: 7
A33: 33 | G33: 0 | H33: период отчетности | P33: * | Q33: год текущий | R33: ^ | S33: 0 | Y33: год даты начала: | AA33: 21 | AB33: 22 | AC33: 23 | AD33: 24 | AE33: 25 | AF33: 26 | AG33: 27 | AH33: 28 | AI33: 29 | AJ33: 30 | AK33: 31 | AL33: 32 | AM33: 33 | AN33: 34 | AO33: 35
A34: 34
A35: 35 | G35: 0 | H35: дата старта отчетности модели | X35: 2021-07-01 | AA35: 2021-07-01 | AB35: 2022-07-01 | AC35: 2023-07-01 | AD35: 2024-07-01 | AE35: 2025-07-01 | AF35: 2026-07-01 | AG35: 2027-07-01 | AH35: 2028-07-01 | AI35: 2029-07-01 | AJ35: 2030-07-01 | AK35: 2031-07-01 | AL35: 2032-07-01 | AM35: 2033-07-01 | AN35: 2034-07-01 | AO35: 2035-07-01
A36: 36 | G36: 0 | H36: дата завершения отчетности модели | X36: 2036-06-30 | AA36: 2022-06-30 | AB36: 2023-06-30 | AC36: 2024-06-30 | AD36: 2025-06-30 | AE36: 2026-06-30 | AF36: 2027-06-30 | AG36: 2028-06-30 | AH36: 2029-06-30 | AI36: 2030-06-30 | AJ36: 2031-06-30 | AK36: 2032-06-30 | AL36: 2033-06-30 | AM36: 2034-06-30 | AN36: 2035-06-30 | AO36: 2036-06-30
A37: 37 | G37: 0 | H37: названия периодов отчетности | AA37: 1 год | AB37: 2 год | AC37: 3 год | AD37: 4 год | AE37: 5 год | AF37: 6 год | AG37: 7 год | AH37: 8 год | AI37: 9 год | AJ37: 10 год | AK37: 11 год | AL37: 12 год | AM37: 13 год | AN37: 14 год | AO37: 15 год
A38: 38
A39: 39
A40: 40
A41: 41
A42: 42 | H42: разработка финмоделей: https://mngmnt.ru/
A43: 43
A44: 44
A45: 45
A46: 46
A47: 47
A48: 48
A49: 49
A50: 50
A51: 51
A52: 52
A53: 53
A54: 54
A55: 55
A56: 56
A57: 57
A58: 58
A59: 59
A60: 60
A61: 61
A62: 62
A63: 63
A64: 64
A65: 65
A66: 66
A67: 67
A68: 68
A69: 69
A70: 70

Sheet Lists
I1: =COLUMN() -> 9 | M1: =COLUMN() -> 13 | Q1: =COLUMN() -> 17 | U1: =COLUMN() -> 21 | AB1: =COLUMN() -> 28 | AF1: =COLUMN() -> 32 | AI1: =COLUMN() -> 35 | AM1: =COLUMN() -> 39 | AQ1: =COLUMN() -> 43 | AU1: =COLUMN() -> 47 | AY1: =COLUMN() -> 51 | BC1: =COLUMN() -> 55 | BG1: =COLUMN() -> 59 | BK1: =COLUMN() -> 63 | BO1: =COLUMN() -> 67 | BS1: =COLUMN() -> 71 | BW1: =COLUMN() -> 75 | CA1: =COLUMN() -> 79 | CE1: =COLUMN() -> 83 | CI1: =COLUMN() -> 87 | CM1: =COLUMN() -> 91 | CQ1: =COLUMN() -> 95 | CU1: =COLUMN() -> 99
I2: =LEFT(ADDRESS(1,COLUMN(),4),LEN(ADDRESS(1,COLUMN(),4))-1) -> I | M2: =LEFT(ADDRESS(1,COLUMN(),4),LEN(ADDRESS(1,COLUMN(),4))-1) -> M | Q2: =LEFT(ADDRESS(1,COLUMN(),4),LEN(ADDRESS(1,COLUMN(),4))-1) -> Q | U2: =LEFT(ADDRESS(1,COLUMN(),4),LEN(ADDRESS(1,COLUMN(),4))-1) -> U | AB2: =LEFT(ADDRESS(1,COLUMN(),4),LEN(ADDRESS(1,COLUMN(),4))-1) -> AB | AF2: =LEFT(ADDRESS(1,COLUMN(),4),LEN(ADDRESS(1,COLUMN(),4))-1) -> AF | AI2: =LEFT(ADDRESS(1,COLUMN(),4),LEN(ADDRESS(1,COLUMN(),4))-1) -> AI | AM2: =LEFT(ADDRESS(1,COLUMN(),4),LEN(ADDRESS(1,COLUMN(),4))-1) -> AM | AQ2: =LEFT(ADDRESS(1,COLUMN(),4),LEN(ADDRESS(1,COLUMN(),4))-1) -> AQ | AU2: =LEFT(ADDRESS(1,COLUMN(),4),LEN(ADDRESS(1,COLUMN(),4))-1) -> AU | AY2: =LEFT(ADDRESS(1,COLUMN(),4),LEN(ADDRESS(1,COLUMN(),4))-1) -> AY | BC2: =LEFT(ADDRESS(1,COLUMN(),4),LEN(ADDRESS(1,COLUMN(),4))-1) -> BC | BG2: =LEFT(ADDRESS(1,COLUMN(),4),LEN(ADDRESS(1,COLUMN(),4))-1) -> BG | BK2: =LEFT(ADDRESS(1,COLUMN(),4),LEN(ADDRESS(1,COLUMN(),4))-1) -> BK | BO2: =LEFT(ADDRESS(1,COLUMN(),4),LEN(ADDRESS(1,COLUMN(),4))-1) -> BO | BS2: =LEFT(ADDRESS(1,COLUMN(),4),LEN(ADDRESS(1,COLUMN(),4))-1) -> BS | BW2: =LEFT(ADDRESS(1,COLUMN(),4),LEN(ADDRESS(1,COLUMN(),4))-1) -> BW | CA2: =LEFT(ADDRESS(1,COLUMN(),4),LEN(ADDRESS(1,COLUMN(),4))-1) -> CA | CE2: =LEFT(ADDRESS(1,COLUMN(),4),LEN(ADDRESS(1,COLUMN(),4))-1) -> CE | CI2: =LEFT(ADDRESS(1,COLUMN(),4),LEN(ADDRESS(1,COLUMN(),4))-1) -> CI | CM2: =LEFT(ADDRESS(1,COLUMN(),4),LEN(ADDRESS(1,COLUMN(),4))-1) -> CM | CQ2: =LEFT(ADDRESS(1,COLUMN(),4),LEN(ADDRESS(1,COLUMN(),4))-1) -> CQ | CU2: =LEFT(ADDRESS(1,COLUMN(),4),LEN(ADDRESS(1,COLUMN(),4))-1) -> CU
F11: =INDIRECT("START!I28") -> Lists | I11: =INDIRECT("START!K28") -> Выпадающие списки финансовой модели
AI12: =START!$I$32 -> Mrkting | AY12: =START!$I$32 -> Mrkting | BC12: =START!$I$32 -> Mrkting | BK12: =START!$I$34 -> Sales | BO12: =START!$I$35 -> Prdction | BS12: =START!$I$33 -> CapEx | BW12: =START!$I$33 -> CapEx | CA12: =START!$I$36 -> HR | CI12: =START!$I$36 -> HR | CM12: =START!$I$29 -> Macro | CQ12: =START!$I$29 -> Macro | CU12: =START!$I$54 -> Calc
I13: минимальный период расчетов | M13: ответ "да/нет" | Q13: период отчетности | U13: тип листа | AB13: тип прогрессии | AF13: кол-во дней в периоде | AI13: каналы привлечения клиентов | AM13: продукция | AQ13: дата старта | AU13: тип учета | AY13: натуральные факторы переменных расходов маркетинга | BC13: денежные факторы переменных расходов маркетинга | BG13: тип зависимости переменных расходов | BK13: типы деятельности сотрудников отдела продаж | BO13: типы деятельности производственных сотрудников | BS13: Ввод в эксплуатацию | BW13: Налоги на внеоборотные активы | CA13: Типы и должности персонала | CE13: Типы оплаты | CI13: Потребность в офисе | CM13: Система налогообложения | CQ13: Налоги и сборы | CU13: Метки расчетов
D14: =INDIRECT("Cntrl!M17") -> 0 | E14: =SUM($F14:$PH14) -> 0 | F14: =IFERROR(_xlfn.SHEET($A$1)-SUMIFS(Cntrl!O$15:O$100000,Cntrl!I$15:I$100000,$F$11),1) -> 0 | I14: =IF(OR(I13=0,I13=""),1,IF(COUNTIF(13:13,I13)=1,0,1)) -> 0 | K14: =SUM(K$15:K$100000) -> 0 | M14: =IF(OR(M13=0,M13=""),1,IF(COUNTIF(13:13,M13)=1,0,1)) -> 0 | O14: =SUM(O$15:O$100000) -> 0 | Q14: =IF(OR(Q13=0,Q13=""),1,IF(COUNTIF(13:13,Q13)=1,0,1)) -> 0 | S14: =SUM(S$15:S$100000) -> 0 | U14: =IF(OR(U13=0,U13=""),1,IF(COUNTIF(13:13,U13)=1,0,1)) -> 0 | W14: =SUM(W$15:W$100000) -> 0 | AD14: =SUM(AD$15:AD$100000) -> 0 | AF14: =IF(OR(AF13=0,AF13=""),1,IF(COUNTIF(13:13,AF13)=1,0,1)) -> 0 | AI14: =IF(OR(AI13=0,AI13=""),1,IF(COUNTIF(13:13,AI13)=1,0,1)) -> 0 | AK14: =SUM(AK$15:AK$100000) -> 0 | AM14: =IF(OR(AM13=0,AM13=""),1,IF(COUNTIF(13:13,AM13)=1,0,1)) -> 0 | AO14: =SUM(AO$15:AO$100000) -> 0 | AQ14: =IF(OR(AQ13=0,AQ13=""),1,IF(COUNTIF(13:13,AQ13)=1,0,1)) -> 0 | AS14: =SUM(AS$15:AS$100000) -> 0 | AU14: =IF(OR(AU13=0,AU13=""),1,IF(COUNTIF(13:13,AU13)=1,0,1)) -> 0 | AW14: =SUM(AW$15:AW$100000) -> 0 | AY14: =IF(OR(AY13=0,AY13=""),1,IF(COUNTIF(13:13,AY13)=1,0,1)) -> 0 | BA14: =SUM(BA$15:BA$100000) -> 0 | BC14: =IF(OR(BC13=0,BC13=""),1,IF(COUNTIF(13:13,BC13)=1,0,1)) -> 0 | BE14: =SUM(BE$15:BE$100000) -> 0 | BG14: =IF(OR(BG13=0,BG13=""),1,IF(COUNTIF(13:13,BG13)=1,0,1)) -> 0 | BI14: =SUM(BI$15:BI$100000) -> 0 | BK14: =IF(OR(BK13=0,BK13=""),1,IF(COUNTIF(13:13,BK13)=1,0,1)) -> 0 | BM14: =SUM(BM$15:BM$100000) -> 0 | BO14: =IF(OR(BO13=0,BO13=""),1,IF(COUNTIF(13:13,BO13)=1,0,1)) -> 0 | BQ14: =SUM(BQ$15:BQ$100000) -> 0 | BS14: =IF(OR(BS13=0,BS13=""),1,IF(COUNTIF(13:13,BS13)=1,0,1)) -> 0 | BU14: =SUM(BU$15:BU$100000) -> 0 | BW14: =IF(OR(BW13=0,BW13=""),1,IF(COUNTIF(13:13,BW13)=1,0,1)) -> 0 | BY14: =SUM(BY$15:BY$100000) -> 0 | CA14: =IF(OR(CA13=0,CA13=""),1,IF(COUNTIF(13:13,CA13)=1,0,1)) -> 0 | CC14: =SUM(CC$15:CC$100000) -> 0 | CE14: =IF(OR(CE13=0,CE13=""),1,IF(COUNTIF(13:13,CE13)=1,0,1)) -> 0 | CG14: =SUM(CG$15:CG$100000) -> 0 | CI14: =IF(OR(CI13=0,CI13=""),1,IF(COUNTIF(13:13,CI13)=1,0,1)) -> 0 | CK14: =SUM(CK$15:CK$100000) -> 0 | CM14: =IF(OR(CM13=0,CM13=""),1,IF(COUNTIF(13:13,CM13)=1,0,1)) -> 0 | CO14: =SUM(CO$15:CO$100000) -> 0 | CQ14: =IF(OR(CQ13=0,CQ13=""),1,IF(COUNTIF(13:13,CQ13)=1,0,1)) -> 0 | CS14: =SUM(CS$15:CS$100000) -> 0 | CU14: =IF(OR(CU13=0,CU13=""),1,IF(COUNTIF(13:13,CU13)=1,0,1)) -> 0 | CW14: =SUM(CW$15:CW$100000) -> 0
A15: =ROW() -> 15 | I15: =$F$11&"!"&I$2&$A16&":"&I$2&($A15+MAX(J$15:J$100000)) -> Lists!I16:I22 | M15: =$F$11&"!"&M$2&$A16&":"&M$2&($A15+MAX(N$15:N$100000)) -> Lists!M16:M17 | Q15: =$F$11&"!"&Q$2&$A16&":"&Q$2&($A15+MAX(R$15:R$100000)) -> Lists!Q16:Q17 | U15: =$F$11&"!"&U$2&$A16&":"&U$2&($A15+MAX(V$15:V$100000)) -> Lists!U16:U18 | AB15: =$F$11&"!"&AB$2&$A16&":"&AB$2&($A15+MAX(AC$15:AC$100000)) -> Lists!AB16:AB17 | AF15: =$F$11&"!"&AF$2&$A16&":"&AF$2&($A15+MAX(AG$15:AG$100000)) -> Lists!AF16:AF22 | AI15: =$F$11&"!"&AI$2&$A16&":"&AI$2&($A15+MAX(AJ$15:AJ$100000)) -> Lists!AI16:AI22 | AM15: =$F$11&"!"&AM$2&$A16&":"&AM$2&($A15+MAX(AN$15:AN$100000)) -> Lists!AM16:AM18 | AQ15: =$F$11&"!"&AQ$2&$A16&":"&AQ$2&($A15+MAX(AR$15:AR$100000)) -> Lists!AQ16:AQ75 | AU15: =$F$11&"!"&AU$2&$A16&":"&AU$2&($A15+MAX(AV$15:AV$100000)) -> Lists!AU16:AU20 | AY15: =$F$11&"!"&AY$2&$A16&":"&AY$2&($A15+MAX(AZ$15:AZ$100000)) -> Lists!AY16:AY19 | BC15: =$F$11&"!"&BC$2&$A16&":"&BC$2&($A15+MAX(BD$15:BD$100000)) -> Lists!BC16:BC17 | BG15: =$F$11&"!"&BG$2&$A16&":"&BG$2&($A15+MAX(BH$15:BH$100000)) -> Lists!BG16:BG17 | BK15: =$F$11&"!"&BK$2&$A16&":"&BK$2&($A15+MAX(BL$15:BL$100000)) -> Lists!BK16:BK18 | BO15: =$F$11&"!"&BO$2&$A16&":"&BO$2&($A15+MAX(BP$15:BP$100000)) -> Lists!BO16:BO18 | BS15: =$F$11&"!"&BS$2&$A16&":"&BS$2&($A15+MAX(BT$15:BT$100000)) -> Lists!BS16:BS18 | BW15: =$F$11&"!"&BW$2&$A16&":"&BW$2&($A15+MAX(BX$15:BX$100000)) -> Lists!BW16:BW18 | CA15: =$F$11&"!"&CA$2&$A16&":"&CA$2&($A15+MAX(CB$15:CB$100000)) -> Lists!CA16:CA25 | CE15: =$F$11&"!"&CE$2&$A16&":"&CE$2&($A15+MAX(CF$15:CF$100000)) -> Lists!CE16:CE18 | CI15: =$F$11&"!"&CI$2&$A16&":"&CI$2&($A15+MAX(CJ$15:CJ$100000)) -> Lists!CI16:CI17 | CM15: =$F$11&"!"&CM$2&$A16&":"&CM$2&($A15+MAX(CN$15:CN$100000)) -> Lists!CM16:CM19 | CQ15: =$F$11&"!"&CQ$2&$A16&":"&CQ$2&($A15+MAX(CR$15:CR$100000)) -> Lists!CQ16:CQ19 | CU15: =$F$11&"!"&CU$2&$A16&":"&CU$2&($A15+MAX(CV$15:CV$100000)) -> Lists!CU16:CU29
A16: =ROW() -> 16 | I16: день | J16: =MAX(J$15:J15)+1 -> 1 | K16: =IF(OR(I16=0,I16=""),0,IF(COUNTIF(I$15:I$100000,I16)=1,0,1)) -> 0 | M16: да | N16: =MAX(N$15:N15)+1 -> 1 | O16: =IF(OR(M16=0,M16=""),0,IF(COUNTIF(M$15:M$100000,M16)=1,0,1)) -> 0 | Q16: =IF(Periods!$Q$16=$I$16,$I17,IF(OR(Periods!$Q$16=$I$17,Periods!$Q$16=$I$18),$I19,IF(Periods!$Q$16=$I$19,$I20,IF(Periods!$Q$16=$I$20,$I21,IF(Periods!$Q$16=$I$21,$I22,""))))) -> год текущий | R16: =IF(OR(Q16="",Q16=0),"",MAX(R$15:R15)+1) -> 1 | S16: =IF(OR(Q16=0,Q16=""),0,IF(COUNTIF(Q$15:Q$100000,Q16)=1,0,1)) -> 0 | U16: расчетный | V16: =MAX(V$15:V15)+1 -> 1 | W16: =IF(OR(U16=0,U16=""),0,IF(COUNTIF(U$15:U$100000,U16)=1,0,1)) -> 0 | AB16: линейная | AC16: =MAX(AC$15:AC15)+1 -> 1 | AD16: =IF(OR(AB16=0,AB16=""),0,IF(COUNTIF(AB$15:AB$100000,AB16)=1,0,1)) -> 0 | AF16: 1 | AG16: =MAX(AG$15:AG15)+1 -> 1 | AH16: =MAX(AH$15:AH15)+1 -> 1 | AI16: =IF(SUMIFS(Mrkting!$A:$A,Mrkting!$K:$K,AH16)=0,"",INDEX(Mrkting!$L:$L,SUMIFS(Mrkting!$A:$A,Mrkting!$K:$K,AH16))) -> Объекты размещения (отели, гостиницы) | AJ16: =IF(OR(AI16="",AI16=0),"",MAX(AJ$15:AJ15)+1) -> 1 | AK16: =IF(OR(AI16=0,AI16=""),0,IF(COUNTIF(AI$15:AI$100000,AI16)=1,0,1)) -> 0 | AL16: * | AM16: Номерной фонд | AN16: =MAX(AN$15:AN15)+1 -> 1 | AO16: =IF(OR(AM16=0,AM16=""),0,IF(COUNTIF(AM$15:AM$100000,AM16)=1,0,1)) -> 0 | AP16: =MAX(AP$15:AP15)+1 -> 1 | AQ16: =SUMIFS(Periods!$11:$11,Periods!$2:$2,AP16) -> 2021-07-01 | AR16: =IF(OR(AQ16="",AQ16=0),"",MAX(AR$15:AR15)+1) -> 1 | AS16: =IF(OR(AQ16=0,AQ16=""),0,IF(COUNTIF(AQ$15:AQ$100000,AQ16)=1,0,1)) -> 0 | AU16: начисление | AV16: =MAX(AV$15:AV15)+1 -> 1 | AW16: =IF(OR(AU16=0,AU16=""),0,IF(COUNTIF(AU$15:AU$100000,AU16)=1,0,1)) -> 0 | AY16: =Mrkting!$H$19 -> Поток запусков создания отелей | AZ16: =MAX(AZ$15:AZ15)+1 -> 1 | BA16: =IF(OR(AY16=0,AY16=""),0,IF(COUNTIF(AY$15:AY$100000,AY16)=1,0,1)) -> 0 | BC16: =Mrkting!$H$107 -> Общий оборот (GMV) | BD16: =MAX(BD$15:BD15)+1 -> 1 | BE16: =IF(OR(BC16=0,BC16=""),0,IF(COUNTIF(BC$15:BC$100000,BC16)=1,0,1)) -> 0 | BG16: натуральные факторы | BH16: =MAX(BH$15:BH15)+1 -> 1 | BI16: =IF(OR(BG16=0,BG16=""),0,IF(COUNTIF(BG$15:BG$100000,BG16)=1,0,1)) -> 0 | BJ16: * | BK16: информирование об услугах | BL16: =MAX(BL$15:BL15)+1 -> 1 | BM16: =IF(OR(BK16=0,BK16=""),0,IF(COUNTIF(BK$15:BK$100000,BK16)=1,0,1)) -> 0 | BN16: * | BO16: Эксплуатация и ремонт | BP16: =MAX(BP$15:BP15)+1 -> 1 | BQ16: =IF(OR(BO16=0,BO16=""),0,IF(COUNTIF(BO$15:BO$100000,BO16)=1,0,1)) -> 0 | BS16: в последний период всех капзатрат | BT16: =MAX(BT$15:BT15)+1 -> 1 | BU16: =IF(OR(BS16=0,BS16=""),0,IF(COUNTIF(BS$15:BS$100000,BS16)=1,0,1)) -> 0 | BW16: земельный налог | BX16: =MAX(BX$15:BX15)+1 -> 1 | BY16: =IF(OR(BW16=0,BW16=""),0,IF(COUNTIF(BW$15:BW$100000,BW16)=1,0,1)) -> 0 | CA16: Сотрудники маркетинга | CB16: =MAX(CB$15:CB15)+1 -> 1 | CC16: =IF(OR(CA16=0,CA16=""),0,IF(COUNTIF(CA$15:CA$100000,CA16)=1,0,1)) -> 0 | CE16: аванс-доплата | CF16: =MAX(CF$15:CF15)+1 -> 1 | CG16: =IF(OR(CE16=0,CE16=""),0,IF(COUNTIF(CE$15:CE$100000,CE16)=1,0,1)) -> 0 | CI16: нужен офис | CJ16: =MAX(CJ$15:CJ15)+1 -> 1 | CK16: =IF(OR(CI16=0,CI16=""),0,IF(COUNTIF(CI$15:CI$100000,CI16)=1,0,1)) -> 0 | CM16: ОСНО | CN16: =MAX(CN$15:CN15)+1 -> 1 | CO16: =IF(OR(CM16=0,CM16=""),0,IF(COUNTIF(CM$15:CM$100000,CM16)=1,0,1)) -> 0 | CQ16: НДС | CR16: =MAX(CR$15:CR15)+1 -> 1 | CS16: =IF(OR(CQ16=0,CQ16=""),0,IF(COUNTIF(CQ$15:CQ$100000,CQ16)=1,0,1)) -> 0 | CU16: ндс(+) | CV16: =MAX(CV$15:CV15)+1 -> 1 | CW16: =IF(OR(CU16=0,CU16=""),0,IF(COUNTIF(CU$15:CU$100000,CU16)=1,0,1)) -> 0
A17: =ROW() -> 17 | I17: неделя | J17: =MAX(J$15:J16)+1 -> 2 | K17: =IF(OR(I17=0,I17=""),0,IF(COUNTIF(I$15:I$100000,I17)=1,0,1)) -> 0 | M17: нет | N17: =MAX(N$15:N16)+1 -> 2 | O17: =IF(OR(M17=0,M17=""),0,IF(COUNTIF(M$15:M$100000,M17)=1,0,1)) -> 0 | Q17: =IF(Periods!$Q$16=$I$16,$I18,IF(OR(Periods!$Q$16=$I$17,Periods!$Q$16=$I$18),$I20,IF(Periods!$Q$16=$I$19,$I21,IF(Periods!$Q$16=$I$20,$I22,IF(Periods!$Q$16=$I$21,$I23,""))))) -> год календ. | R17: =IF(OR(Q17="",Q17=0),"",MAX(R$15:R16)+1) -> 2 | S17: =IF(OR(Q17=0,Q17=""),0,IF(COUNTIF(Q$15:Q$100000,Q17)=1,0,1)) -> 0 | U17: отчетный | V17: =MAX(V$15:V16)+1 -> 2 | W17: =IF(OR(U17=0,U17=""),0,IF(COUNTIF(U$15:U$100000,U17)=1,0,1)) -> 0 | AB17: геометрическая | AC17: =MAX(AC$15:AC16)+1 -> 2 | AD17: =IF(OR(AB17=0,AB17=""),0,IF(COUNTIF(AB$15:AB$100000,AB17)=1,0,1)) -> 0 | AF17: 7 | AG17: =MAX(AG$15:AG16)+1 -> 2 | AH17: =MAX(AH$15:AH16)+1 -> 2 | AI17: =IF(SUMIFS(Mrkting!$A:$A,Mrkting!$K:$K,AH17)=0,"",INDEX(Mrkting!$L:$L,SUMIFS(Mrkting!$A:$A,Mrkting!$K:$K,AH17))) -> Объекты активного отдыха | AJ17: =IF(OR(AI17="",AI17=0),"",MAX(AJ$15:AJ16)+1) -> 2 | AK17: =IF(OR(AI17=0,AI17=""),0,IF(COUNTIF(AI$15:AI$100000,AI17)=1,0,1)) -> 0 | AL17: * | AM17: Food&Beverage | AN17: =MAX(AN$15:AN16)+1 -> 2 | AO17: =IF(OR(AM17=0,AM17=""),0,IF(COUNTIF(AM$15:AM$100000,AM17)=1,0,1)) -> 0 | AP17: =MAX(AP$15:AP16)+1 -> 2 | AQ17: =SUMIFS(Periods!$11:$11,Periods!$2:$2,AP17) -> 2021-10-01 | AR17: =IF(OR(AQ17="",AQ17=0),"",MAX(AR$15:AR16)+1) -> 2 | AS17: =IF(OR(AQ17=0,AQ17=""),0,IF(COUNTIF(AQ$15:AQ$100000,AQ17)=1,0,1)) -> 0 | AU17: учет | AV17: =MAX(AV$15:AV16)+1 -> 2 | AW17: =IF(OR(AU17=0,AU17=""),0,IF(COUNTIF(AU$15:AU$100000,AU17)=1,0,1)) -> 0 | AY17: =Mrkting!$H$75 -> Трафик | AZ17: =MAX(AZ$15:AZ16)+1 -> 2 | BA17: =IF(OR(AY17=0,AY17=""),0,IF(COUNTIF(AY$15:AY$100000,AY17)=1,0,1)) -> 0 | BC17: =Mrkting!$H$141 -> Общий оборот (GMV) с учетом скидок | BD17: =MAX(BD$15:BD16)+1 -> 2 | BE17: =IF(OR(BC17=0,BC17=""),0,IF(COUNTIF(BC$15:BC$100000,BC17)=1,0,1)) -> 0 | BG17: денежные факторы | BH17: =MAX(BH$15:BH16)+1 -> 2 | BI17: =IF(OR(BG17=0,BG17=""),0,IF(COUNTIF(BG$15:BG$100000,BG17)=1,0,1)) -> 0 | BJ17: * | BK17: информирование о ценах и условиях | BL17: =MAX(BL$15:BL16)+1 -> 2 | BM17: =IF(OR(BK17=0,BK17=""),0,IF(COUNTIF(BK$15:BK$100000,BK17)=1,0,1)) -> 0 | BN17: * | BO17: Уборка и обслуживание номеров | BP17: =MAX(BP$15:BP16)+1 -> 2 | BQ17: =IF(OR(BO17=0,BO17=""),0,IF(COUNTIF(BO$15:BO$100000,BO17)=1,0,1)) -> 0 | BS17: в последний период данной статьи | BT17: =MAX(BT$15:BT16)+1 -> 2 | BU17: =IF(OR(BS17=0,BS17=""),0,IF(COUNTIF(BS$15:BS$100000,BS17)=1,0,1)) -> 0 | BW17: транспортный налог | BX17: =MAX(BX$15:BX16)+1 -> 2 | BY17: =IF(OR(BW17=0,BW17=""),0,IF(COUNTIF(BW$15:BW$100000,BW17)=1,0,1)) -> 0 | CA17: Менеджеры по продажам | CB17: =MAX(CB$15:CB16)+1 -> 2 | CC17: =IF(OR(CA17=0,CA17=""),0,IF(COUNTIF(CA$15:CA$100000,CA17)=1,0,1)) -> 0 | CE17: аванс-платеж | CF17: =MAX(CF$15:CF16)+1 -> 2 | CG17: =IF(OR(CE17=0,CE17=""),0,IF(COUNTIF(CE$15:CE$100000,CE17)=1,0,1)) -> 0 | CI17: не нужен офис | CJ17: =MAX(CJ$15:CJ16)+1 -> 2 | CK17: =IF(OR(CI17=0,CI17=""),0,IF(COUNTIF(CI$15:CI$100000,CI17)=1,0,1)) -> 0 | CM17: УСН(6%) | CN17: =MAX(CN$15:CN16)+1 -> 2 | CO17: =IF(OR(CM17=0,CM17=""),0,IF(COUNTIF(CM$15:CM$100000,CM17)=1,0,1)) -> 0 | CQ17: Соцсборы | CR17: =MAX(CR$15:CR16)+1 -> 2 | CS17: =IF(OR(CQ17=0,CQ17=""),0,IF(COUNTIF(CQ$15:CQ$100000,CQ17)=1,0,1)) -> 0 | CU17: ндс(-) | CV17: =MAX(CV$15:CV16)+1 -> 2 | CW17: 0
A18: =ROW() -> 18 | I18: декада | J18: =MAX(J$15:J17)+1 -> 3 | K18: 0 | Q18: =IF(Periods!$Q$16=$I$16,$I19,IF(OR(Periods!$Q$16=$I$17,Periods!$Q$16=$I$18),$I21,IF(Periods!$Q$16=$I$19,$I22,IF(Periods!$Q$16=$I$20,$I23,IF(Periods!$Q$16=$I$21,$I24,""))))) -> 0 | R18: =IF(OR(Q18="",Q18=0),"",MAX(R$15:R17)+1) ->  | S18: 0 | U18: технический | V18: =MAX(V$15:V17)+1 -> 3 | W18: =IF(OR(U18=0,U18=""),0,IF(COUNTIF(U$15:U$100000,U18)=1,0,1)) -> 0 | AF18: 10 | AG18: =MAX(AG$15:AG17)+1 -> 3 | AH18: =MAX(AH$15:AH17)+1 -> 3 | AI18: =IF(SUMIFS(Mrkting!$A:$A,Mrkting!$K:$K,AH18)=0,"",INDEX(Mrkting!$L:$L,SUMIFS(Mrkting!$A:$A,Mrkting!$K:$K,AH18))) -> Концертно-зрелищные объекты | AJ18: =IF(OR(AI18="",AI18=0),"",MAX(AJ$15:AJ17)+1) -> 3 | AK18: 0 | AL18: * | AM18: Развлекат. услуги | AN18: =MAX(AN$15:AN17)+1 -> 3 | AO18: =IF(OR(AM18=0,AM18=""),0,IF(COUNTIF(AM$15:AM$100000,AM18)=1,0,1)) -> 0 | AP18: =MAX(AP$15:AP17)+1 -> 3 | AQ18: =SUMIFS(Periods!$11:$11,Periods!$2:$2,AP18) -> 2022-01-01 | AR18: =IF(OR(AQ18="",AQ18=0),"",MAX(AR$15:AR17)+1) -> 3 | AS18: 0 | AU18: оплата | AV18: =MAX(AV$15:AV17)+1 -> 3 | AW18: =IF(OR(AU18=0,AU18=""),0,IF(COUNTIF(AU$15:AU$100000,AU18)=1,0,1)) -> 0 | AY18: =Mrkting!$H$77 -> Конверсия в гостя | AZ18: =MAX(AZ$15:AZ17)+1 -> 3 | BA18: =IF(OR(AY18=0,AY18=""),0,IF(COUNTIF(AY$15:AY$100000,AY18)=1,0,1)) -> 0 | BJ18: * | BK18: представительская деятельность | BL18: =MAX(BL$15:BL17)+1 -> 3 | BM18: =IF(OR(BK18=0,BK18=""),0,IF(COUNTIF(BK$15:BK$100000,BK18)=1,0,1)) -> 0 | BN18: * | BO18: Снабжение расходниками | BP18: =MAX(BP$15:BP17)+1 -> 3 | BQ18: =IF(OR(BO18=0,BO18=""),0,IF(COUNTIF(BO$15:BO$100000,BO18)=1,0,1)) -> 0 | BS18: в каждый период начисления | BT18: =MAX(BT$15:BT17)+1 -> 3 | BU18: =IF(OR(BS18=0,BS18=""),0,IF(COUNTIF(BS$15:BS$100000,BS18)=1,0,1)) -> 0 | BW18: налог на имущество организаций | BX18: =MAX(BX$15:BX17)+1 -> 3 | BY18: =IF(OR(BW18=0,BW18=""),0,IF(COUNTIF(BW$15:BW$100000,BW18)=1,0,1)) -> 0 | CA18: Администраторы и горничные | CB18: =MAX(CB$15:CB17)+1 -> 3 | CC18: =IF(OR(CA18=0,CA18=""),0,IF(COUNTIF(CA$15:CA$100000,CA18)=1,0,1)) -> 0 | CE18: ретро-платеж | CF18: =MAX(CF$15:CF17)+1 -> 3 | CG18: =IF(OR(CE18=0,CE18=""),0,IF(COUNTIF(CE$15:CE$100000,CE18)=1,0,1)) -> 0 | CM18: УСН(15%) | CN18: =MAX(CN$15:CN17)+1 -> 3 | CO18: =IF(OR(CM18=0,CM18=""),0,IF(COUNTIF(CM$15:CM$100000,CM18)=1,0,1)) -> 0 | CQ18: Налог на прибыль | CR18: =MAX(CR$15:CR17)+1 -> 3 | CS18: =IF(OR(CQ18=0,CQ18=""),0,IF(COUNTIF(CQ$15:CQ$100000,CQ18)=1,0,1)) -> 0 | CU18: PL(+) | CV18: =MAX(CV$15:CV17)+1 -> 3 | CW18: 0
A19: =ROW() -> 19 | I19: месяц | J19: =MAX(J$15:J18)+1 -> 4 | K19: 0 | Q19: =IF(Periods!$Q$16=$I$16,$I20,IF(OR(Periods!$Q$16=$I$17,Periods!$Q$16=$I$18),$I22,IF(Periods!$Q$16=$I$19,$I23,IF(Periods!$Q$16=$I$20,$I24,IF(Periods!$Q$16=$I$21,$I25,""))))) -> 0 | R19: =IF(OR(Q19="",Q19=0),"",MAX(R$15:R18)+1) ->  | S19: 0 | AF19: 30 | AG19: =MAX(AG$15:AG18)+1 -> 4 | AH19: =MAX(AH$15:AH18)+1 -> 4 | AI19: =IF(SUMIFS(Mrkting!$A:$A,Mrkting!$K:$K,AH19)=0,"",INDEX(Mrkting!$L:$L,SUMIFS(Mrkting!$A:$A,Mrkting!$K:$K,AH19))) -> Развлекательно-игровые объекты | AJ19: =IF(OR(AI19="",AI19=0),"",MAX(AJ$15:AJ18)+1) -> 4 | AK19: 0 | AP19: =MAX(AP$15:AP18)+1 -> 4 | AQ19: =SUMIFS(Periods!$11:$11,Periods!$2:$2,AP19) -> 2022-04-01 | AR19: =IF(OR(AQ19="",AQ19=0),"",MAX(AR$15:AR18)+1) -> 4 | AS19: 0 | AU19: списание | AV19: =MAX(AV$15:AV18)+1 -> 4 | AW19: =IF(OR(AU19=0,AU19=""),0,IF(COUNTIF(AU$15:AU$100000,AU19)=1,0,1)) -> 0 | AY19: =Mrkting!$H$86 -> Валовый поток гостей | AZ19: =MAX(AZ$15:AZ18)+1 -> 4 | BA19: =IF(OR(AY19=0,AY19=""),0,IF(COUNTIF(AY$15:AY$100000,AY19)=1,0,1)) -> 0 | BZ19: * | CA19: Генеральный директор | CB19: =MAX(CB$15:CB18)+1 -> 4 | CC19: =IF(OR(CA19=0,CA19=""),0,IF(COUNTIF(CA$15:CA$100000,CA19)=1,0,1)) -> 0 | CM19: ТОСЭР | CN19: =MAX(CN$15:CN18)+1 -> 4 | CO19: =IF(OR(CM19=0,CM19=""),0,IF(COUNTIF(CM$15:CM$100000,CM19)=1,0,1)) -> 0 | CQ19: ТОСЭР | CR19: =MAX(CR$15:CR18)+1 -> 4 | CS19: =IF(OR(CQ19=0,CQ19=""),0,IF(COUNTIF(CQ$15:CQ$100000,CQ19)=1,0,1)) -> 0 | CU19: PL(-) | CV19: =MAX(CV$15:CV18)+1 -> 4 | CW19: 0
A20: =ROW() -> 20 | I20: квартал | J20: =MAX(J$15:J19)+1 -> 5 | K20: 0 | Q20: =IF(Periods!$Q$16=$I$16,$I21,IF(OR(Periods!$Q$16=$I$17,Periods!$Q$16=$I$18),$I23,IF(Periods!$Q$16=$I$19,$I24,IF(Periods!$Q$16=$I$20,$I25,IF(Periods!$Q$16=$I$21,$I26,""))))) -> 0 | R20: =IF(OR(Q20="",Q20=0),"",MAX(R$15:R19)+1) ->  | S20: 0 | AF20: 90 | AG20: =MAX(AG$15:AG19)+1 -> 5 | AH20: =MAX(AH$15:AH19)+1 -> 5 | AI20: =IF(SUMIFS(Mrkting!$A:$A,Mrkting!$K:$K,AH20)=0,"",INDEX(Mrkting!$L:$L,SUMIFS(Mrkting!$A:$A,Mrkting!$K:$K,AH20))) -> Рестораны, кафе, бары | AJ20: =IF(OR(AI20="",AI20=0),"",MAX(AJ$15:AJ19)+1) -> 5 | AK20: 0 | AP20: =MAX(AP$15:AP19)+1 -> 5 | AQ20: =SUMIFS(Periods!$11:$11,Periods!$2:$2,AP20) -> 2022-07-01 | AR20: =IF(OR(AQ20="",AQ20=0),"",MAX(AR$15:AR19)+1) -> 5 | AS20: 0 | AU20: калькуляция | AV20: =MAX(AV$15:AV19)+1 -> 5 | AW20: =IF(OR(AU20=0,AU20=""),0,IF(COUNTIF(AU$15:AU$100000,AU20)=1,0,1)) -> 0 | BZ20: * | CA20: Операционный директор | CB20: =MAX(CB$15:CB19)+1 -> 5 | CC20: 0 | CU20: PL | CV20: =MAX(CV$15:CV19)+1 -> 5 | CW20: 0
A21: =ROW() -> 21 | I21: год текущий | J21: =MAX(J$15:J20)+1 -> 6 | K21: 0 | Q21: =IF(Periods!$Q$16=$I$16,$I22,IF(OR(Periods!$Q$16=$I$17,Periods!$Q$16=$I$18),$I24,IF(Periods!$Q$16=$I$19,$I25,IF(Periods!$Q$16=$I$20,$I26,IF(Periods!$Q$16=$I$21,$I27,""))))) -> 0 | R21: =IF(OR(Q21="",Q21=0),"",MAX(R$15:R20)+1) ->  | S21: 0 | AF21: 360 | AG21: =MAX(AG$15:AG20)+1 -> 6 | AH21: =MAX(AH$15:AH20)+1 -> 6 | AI21: =IF(SUMIFS(Mrkting!$A:$A,Mrkting!$K:$K,AH21)=0,"",INDEX(Mrkting!$L:$L,SUMIFS(Mrkting!$A:$A,Mrkting!$K:$K,AH21))) -> Дополнительные объекты - 1 | AJ21: =IF(OR(AI21="",AI21=0),"",MAX(AJ$15:AJ20)+1) -> 6 | AK21: 0 | AP21: =MAX(AP$15:AP20)+1 -> 6 | AQ21: =SUMIFS(Periods!$11:$11,Periods!$2:$2,AP21) -> 2022-10-01 | AR21: =IF(OR(AQ21="",AQ21=0),"",MAX(AR$15:AR20)+1) -> 6 | AS21: 0 | BZ21: * | CA21: Главный бухгалтер | CB21: =MAX(CB$15:CB20)+1 -> 6 | CC21: 0 | CU21: CF(+) | CV21: =MAX(CV$15:CV20)+1 -> 6 | CW21: 0
A22: =ROW() -> 22 | I22: год календ. | J22: =MAX(J$15:J21)+1 -> 7 | K22: 0 | Q22: =IF(Periods!$Q$16=$I$16,$I23,IF(OR(Periods!$Q$16=$I$17,Periods!$Q$16=$I$18),$I25,IF(Periods!$Q$16=$I$19,$I26,IF(Periods!$Q$16=$I$20,$I27,IF(Periods!$Q$16=$I$21,$I28,""))))) -> 0 | R22: =IF(OR(Q22="",Q22=0),"",MAX(R$15:R21)+1) ->  | S22: 0 | AF22: 360 | AG22: =MAX(AG$15:AG21)+1 -> 7 | AH22: =MAX(AH$15:AH21)+1 -> 7 | AI22: =IF(SUMIFS(Mrkting!$A:$A,Mrkting!$K:$K,AH22)=0,"",INDEX(Mrkting!$L:$L,SUMIFS(Mrkting!$A:$A,Mrkting!$K:$K,AH22))) -> Дополнительные объекты - 2 | AJ22: =IF(OR(AI22="",AI22=0),"",MAX(AJ$15:AJ21)+1) -> 7 | AK22: 0 | AP22: =MAX(AP$15:AP21)+1 -> 7 | AQ22: =SUMIFS(Periods!$11:$11,Periods!$2:$2,AP22) -> 2023-01-01 | AR22: =IF(OR(AQ22="",AQ22=0),"",MAX(AR$15:AR21)+1) -> 7 | AS22: 0 | BZ22: * | CA22: ИТ-специалисты | CB22: =MAX(CB$15:CB21)+1 -> 7 | CC22: 0 | CU22: CF(-) | CV22: =MAX(CV$15:CV21)+1 -> 7 | CW22: 0
A23: =ROW() -> 23 | AH23: =MAX(AH$15:AH22)+1 -> 8 | AI23: =IF(SUMIFS(Mrkting!$A:$A,Mrkting!$K:$K,AH23)=0,"",INDEX(Mrkting!$L:$L,SUMIFS(Mrkting!$A:$A,Mrkting!$K:$K,AH23))) ->  | AJ23: =IF(OR(AI23="",AI23=0),"",MAX(AJ$15:AJ22)+1) ->  | AK23: =IF(OR(AI23=0,AI23=""),0,IF(COUNTIF(AI$15:AI$100000,AI23)=1,0,1)) -> 0 | AP23: =MAX(AP$15:AP22)+1 -> 8 | AQ23: =SUMIFS(Periods!$11:$11,Periods!$2:$2,AP23) -> 2023-04-01 | AR23: =IF(OR(AQ23="",AQ23=0),"",MAX(AR$15:AR22)+1) -> 8 | AS23: =IF(OR(AQ23=0,AQ23=""),0,IF(COUNTIF(AQ$15:AQ$100000,AQ23)=1,0,1)) -> 0 | BZ23: * | CA23: Финансовые менеджеры | CB23: =MAX(CB$15:CB22)+1 -> 8 | CC23: 0 | CU23: CF | CV23: =MAX(CV$15:CV22)+1 -> 8 | CW23: 0
A24: =ROW() -> 24 | AH24: =MAX(AH$15:AH23)+1 -> 9 | AI24: =IF(SUMIFS(Mrkting!$A:$A,Mrkting!$K:$K,AH24)=0,"",INDEX(Mrkting!$L:$L,SUMIFS(Mrkting!$A:$A,Mrkting!$K:$K,AH24))) ->  | AJ24: =IF(OR(AI24="",AI24=0),"",MAX(AJ$15:AJ23)+1) ->  | AK24: 0 | AP24: =MAX(AP$15:AP23)+1 -> 9 | AQ24: =SUMIFS(Periods!$11:$11,Periods!$2:$2,AP24) -> 2023-07-01 | AR24: =IF(OR(AQ24="",AQ24=0),"",MAX(AR$15:AR23)+1) -> 9 | AS24: 0 | BZ24: * | CA24: Бухгалтера | CB24: =MAX(CB$15:CB23)+1 -> 9 | CC24: 0 | CU24: BS | CV24: =MAX(CV$15:CV23)+1 -> 9 | CW24: 0
A25: =ROW() -> 25 | AH25: =MAX(AH$15:AH24)+1 -> 10 | AI25: =IF(SUMIFS(Mrkting!$A:$A,Mrkting!$K:$K,AH25)=0,"",INDEX(Mrkting!$L:$L,SUMIFS(Mrkting!$A:$A,Mrkting!$K:$K,AH25))) ->  | AJ25: =IF(OR(AI25="",AI25=0),"",MAX(AJ$15:AJ24)+1) ->  | AK25: 0 | AP25: =MAX(AP$15:AP24)+1 -> 10 | AQ25: =SUMIFS(Periods!$11:$11,Periods!$2:$2,AP25) -> 2023-10-01 | AR25: =IF(OR(AQ25="",AQ25=0),"",MAX(AR$15:AR24)+1) -> 10 | AS25: 0 | BZ25: * | CA25: Прочие сотрудники | CB25: =MAX(CB$15:CB24)+1 -> 10 | CC25: 0 | CU25: BS(+) | CV25: =MAX(CV$15:CV24)+1 -> 10 | CW25: 0
A26: =ROW() -> 26 | AH26: =MAX(AH$15:AH25)+1 -> 11 | AI26: =IF(SUMIFS(Mrkting!$A:$A,Mrkting!$K:$K,AH26)=0,"",INDEX(Mrkting!$L:$L,SUMIFS(Mrkting!$A:$A,Mrkting!$K:$K,AH26))) ->  | AJ26: =IF(OR(AI26="",AI26=0),"",MAX(AJ$15:AJ25)+1) ->  | AK26: 0 | AP26: =MAX(AP$15:AP25)+1 -> 11 | AQ26: =SUMIFS(Periods!$11:$11,Periods!$2:$2,AP26) -> 2024-01-01 | AR26: =IF(OR(AQ26="",AQ26=0),"",MAX(AR$15:AR25)+1) -> 11 | AS26: 0 | CU26: BS(-) | CV26: =MAX(CV$15:CV25)+1 -> 11 | CW26: 0
A27: =ROW() -> 27 | AH27: =MAX(AH$15:AH26)+1 -> 12 | AI27: =IF(SUMIFS(Mrkting!$A:$A,Mrkting!$K:$K,AH27)=0,"",INDEX(Mrkting!$L:$L,SUMIFS(Mrkting!$A:$A,Mrkting!$K:$K,AH27))) ->  | AJ27: =IF(OR(AI27="",AI27=0),"",MAX(AJ$15:AJ26)+1) ->  | AK27: 0 | AP27: =MAX(AP$15:AP26)+1 -> 12 | AQ27: =SUMIFS(Periods!$11:$11,Periods!$2:$2,AP27) -> 2024-04-01 | AR27: =IF(OR(AQ27="",AQ27=0),"",MAX(AR$15:AR26)+1) -> 12 | AS27: 0 | CU27: SF(+) | CV27: =MAX(CV$15:CV26)+1 -> 12 | CW27: 0
A28: =ROW() -> 28 | AH28: =MAX(AH$15:AH27)+1 -> 13 | AI28: =IF(SUMIFS(Mrkting!$A:$A,Mrkting!$K:$K,AH28)=0,"",INDEX(Mrkting!$L:$L,SUMIFS(Mrkting!$A:$A,Mrkting!$K:$K,AH28))) ->  | AJ28: =IF(OR(AI28="",AI28=0),"",MAX(AJ$15:AJ27)+1) ->  | AK28: 0 | AP28: =MAX(AP$15:AP27)+1 -> 13 | AQ28: =SUMIFS(Periods!$11:$11,Periods!$2:$2,AP28) -> 2024-07-01 | AR28: =IF(OR(AQ28="",AQ28=0),"",MAX(AR$15:AR27)+1) -> 13 | AS28: 0 | CU28: SF(-) | CV28: =MAX(CV$15:CV27)+1 -> 13 | CW28: 0
A29: =ROW() -> 29 | AH29: =MAX(AH$15:AH28)+1 -> 14 | AI29: =IF(SUMIFS(Mrkting!$A:$A,Mrkting!$K:$K,AH29)=0,"",INDEX(Mrkting!$L:$L,SUMIFS(Mrkting!$A:$A,Mrkting!$K:$K,AH29))) ->  | AJ29: =IF(OR(AI29="",AI29=0),"",MAX(AJ$15:AJ28)+1) ->  | AK29: =IF(OR(AI29=0,AI29=""),0,IF(COUNTIF(AI$15:AI$100000,AI29)=1,0,1)) -> 0 | AP29: =MAX(AP$15:AP28)+1 -> 14 | AQ29: =SUMIFS(Periods!$11:$11,Periods!$2:$2,AP29) -> 2024-10-01 | AR29: =IF(OR(AQ29="",AQ29=0),"",MAX(AR$15:AR28)+1) -> 14 | AS29: 0 | CU29: SF | CV29: =MAX(CV$15:CV28)+1 -> 14 | CW29: 0
A30: =ROW() -> 30 | AH30: =MAX(AH$15:AH29)+1 -> 15 | AI30: =IF(SUMIFS(Mrkting!$A:$A,Mrkting!$K:$K,AH30)=0,"",INDEX(Mrkting!$L:$L,SUMIFS(Mrkting!$A:$A,Mrkting!$K:$K,AH30))) ->  | AJ30: =IF(OR(AI30="",AI30=0),"",MAX(AJ$15:AJ29)+1) ->  | AK30: =IF(OR(AI30=0,AI30=""),0,IF(COUNTIF(AI$15:AI$100000,AI30)=1,0,1)) -> 0 | AP30: =MAX(AP$15:AP29)+1 -> 15 | AQ30: =SUMIFS(Periods!$11:$11,Periods!$2:$2,AP30) -> 2025-01-01 | AR30: =IF(OR(AQ30="",AQ30=0),"",MAX(AR$15:AR29)+1) -> 15 | AS30: 0
A31: =ROW() -> 31 | AP31: =MAX(AP$15:AP30)+1 -> 16 | AQ31: =SUMIFS(Periods!$11:$11,Periods!$2:$2,AP31) -> 2025-04-01 | AR31: =IF(OR(AQ31="",AQ31=0),"",MAX(AR$15:AR30)+1) -> 16 | AS31: =IF(OR(AQ31=0,AQ31=""),0,IF(COUNTIF(AQ$15:AQ$100000,AQ31)=1,0,1)) -> 0
A32: =ROW() -> 32 | AP32: =MAX(AP$15:AP31)+1 -> 17 | AQ32: =SUMIFS(Periods!$11:$11,Periods!$2:$2,AP32) -> 2025-07-01 | AR32: =IF(OR(AQ32="",AQ32=0),"",MAX(AR$15:AR31)+1) -> 17 | AS32: 0
A33: =ROW() -> 33 | AP33: =MAX(AP$15:AP32)+1 -> 18 | AQ33: =SUMIFS(Periods!$11:$11,Periods!$2:$2,AP33) -> 2025-10-01 | AR33: =IF(OR(AQ33="",AQ33=0),"",MAX(AR$15:AR32)+1) -> 18 | AS33: 0
A34: =ROW() -> 34 | AP34: =MAX(AP$15:AP33)+1 -> 19 | AQ34: =SUMIFS(Periods!$11:$11,Periods!$2:$2,AP34) -> 2026-01-01 | AR34: =IF(OR(AQ34="",AQ34=0),"",MAX(AR$15:AR33)+1) -> 19 | AS34: 0
A35: =ROW() -> 35 | AP35: =MAX(AP$15:AP34)+1 -> 20 | AQ35: =SUMIFS(Periods!$11:$11,Periods!$2:$2,AP35) -> 2026-04-01 | AR35: =IF(OR(AQ35="",AQ35=0),"",MAX(AR$15:AR34)+1) -> 20 | AS35: 0
A36: =ROW() -> 36 | AP36: =MAX(AP$15:AP35)+1 -> 21 | AQ36: =SUMIFS(Periods!$11:$11,Periods!$2:$2,AP36) -> 2026-07-01 | AR36: =IF(OR(AQ36="",AQ36=0),"",MAX(AR$15:AR35)+1) -> 21 | AS36: 0
A37: =ROW() -> 37 | AP37: =MAX(AP$15:AP36)+1 -> 22 | AQ37: =SUMIFS(Periods!$11:$11,Periods!$2:$2,AP37) -> 2026-10-01 | AR37: =IF(OR(AQ37="",AQ37=0),"",MAX(AR$15:AR36)+1) -> 22 | AS37: 0
A38: =ROW() -> 38 | AP38: =MAX(AP$15:AP37)+1 -> 23 | AQ38: =SUMIFS(Periods!$11:$11,Periods!$2:$2,AP38) -> 2027-01-01 | AR38: =IF(OR(AQ38="",AQ38=0),"",MAX(AR$15:AR37)+1) -> 23 | AS38: 0
A39: =ROW() -> 39 | AP39: =MAX(AP$15:AP38)+1 -> 24 | AQ39: =SUMIFS(Periods!$11:$11,Periods!$2:$2,AP39) -> 2027-04-01 | AR39: =IF(OR(AQ39="",AQ39=0),"",MAX(AR$15:AR38)+1) -> 24 | AS39: 0
A40: =ROW() -> 40 | AP40: =MAX(AP$15:AP39)+1 -> 25 | AQ40: =SUMIFS(Periods!$11:$11,Periods!$2:$2,AP40) -> 2027-07-01 | AR40: =IF(OR(AQ40="",AQ40=0),"",MAX(AR$15:AR39)+1) -> 25 | AS40: 0
A41: =ROW() -> 41 | AP41: =MAX(AP$15:AP40)+1 -> 26 | AQ41: =SUMIFS(Periods!$11:$11,Periods!$2:$2,AP41) -> 2027-10-01 | AR41: =IF(OR(AQ41="",AQ41=0),"",MAX(AR$15:AR40)+1) -> 26 | AS41: 0
A42: =ROW() -> 42 | AP42: =MAX(AP$15:AP41)+1 -> 27 | AQ42: =SUMIFS(Periods!$11:$11,Periods!$2:$2,AP42) -> 2028-01-01 | AR42: =IF(OR(AQ42="",AQ42=0),"",MAX(AR$15:AR41)+1) -> 27 | AS42: 0
A43: =ROW() -> 43 | I43: разработка финмоделей: https://mngmnt.ru/ | AP43: =MAX(AP$15:AP42)+1 -> 28 | AQ43: =SUMIFS(Periods!$11:$11,Periods!$2:$2,AP43) -> 2028-04-01 | AR43: =IF(OR(AQ43="",AQ43=0),"",MAX(AR$15:AR42)+1) -> 28 | AS43: 0
A44: =ROW() -> 44 | AP44: =MAX(AP$15:AP43)+1 -> 29 | AQ44: =SUMIFS(Periods!$11:$11,Periods!$2:$2,AP44) -> 2028-07-01 | AR44: =IF(OR(AQ44="",AQ44=0),"",MAX(AR$15:AR43)+1) -> 29 | AS44: 0
A45: =ROW() -> 45 | AP45: =MAX(AP$15:AP44)+1 -> 30 | AQ45: =SUMIFS(Periods!$11:$11,Periods!$2:$2,AP45) -> 2028-10-01 | AR45: =IF(OR(AQ45="",AQ45=0),"",MAX(AR$15:AR44)+1) -> 30 | AS45: 0
A46: =ROW() -> 46 | AP46: =MAX(AP$15:AP45)+1 -> 31 | AQ46: =SUMIFS(Periods!$11:$11,Periods!$2:$2,AP46) -> 2029-01-01 | AR46: =IF(OR(AQ46="",AQ46=0),"",MAX(AR$15:AR45)+1) -> 31 | AS46: 0
A47: =ROW() -> 47 | AP47: =MAX(AP$15:AP46)+1 -> 32 | AQ47: =SUMIFS(Periods!$11:$11,Periods!$2:$2,AP47) -> 2029-04-01 | AR47: =IF(OR(AQ47="",AQ47=0),"",MAX(AR$15:AR46)+1) -> 32 | AS47: 0
A48: =ROW() -> 48 | AP48: =MAX(AP$15:AP47)+1 -> 33 | AQ48: =SUMIFS(Periods!$11:$11,Periods!$2:$2,AP48) -> 2029-07-01 | AR48: =IF(OR(AQ48="",AQ48=0),"",MAX(AR$15:AR47)+1) -> 33 | AS48: 0
A49: =ROW() -> 49 | AP49: =MAX(AP$15:AP48)+1 -> 34 | AQ49: =SUMIFS(Periods!$11:$11,Periods!$2:$2,AP49) -> 2029-10-01 | AR49: =IF(OR(AQ49="",AQ49=0),"",MAX(AR$15:AR48)+1) -> 34 | AS49: 0
A50: =ROW() -> 50 | AP50: =MAX(AP$15:AP49)+1 -> 35 | AQ50: =SUMIFS(Periods!$11:$11,Periods!$2:$2,AP50) -> 2030-01-01 | AR50: =IF(OR(AQ50="",AQ50=0),"",MAX(AR$15:AR49)+1) -> 35 | AS50: 0
A51: =ROW() -> 51 | AP51: =MAX(AP$15:AP50)+1 -> 36 | AQ51: =SUMIFS(Periods!$11:$11,Periods!$2:$2,AP51) -> 2030-04-01 | AR51: =IF(OR(AQ51="",AQ51=0),"",MAX(AR$15:AR50)+1) -> 36 | AS51: 0
A52: =ROW() -> 52 | AP52: =MAX(AP$15:AP51)+1 -> 37 | AQ52: =SUMIFS(Periods!$11:$11,Periods!$2:$2,AP52) -> 2030-07-01 | AR52: =IF(OR(AQ52="",AQ52=0),"",MAX(AR$15:AR51)+1) -> 37 | AS52: 0
A53: =ROW() -> 53 | AP53: =MAX(AP$15:AP52)+1 -> 38 | AQ53: =SUMIFS(Periods!$11:$11,Periods!$2:$2,AP53) -> 2030-10-01 | AR53: =IF(OR(AQ53="",AQ53=0),"",MAX(AR$15:AR52)+1) -> 38 | AS53: 0
A54: =ROW() -> 54 | AP54: =MAX(AP$15:AP53)+1 -> 39 | AQ54: =SUMIFS(Periods!$11:$11,Periods!$2:$2,AP54) -> 2031-01-01 | AR54: =IF(OR(AQ54="",AQ54=0),"",MAX(AR$15:AR53)+1) -> 39 | AS54: 0
A55: =ROW() -> 55 | AP55: =MAX(AP$15:AP54)+1 -> 40 | AQ55: =SUMIFS(Periods!$11:$11,Periods!$2:$2,AP55) -> 2031-04-01 | AR55: =IF(OR(AQ55="",AQ55=0),"",MAX(AR$15:AR54)+1) -> 40 | AS55: 0
A56: =ROW() -> 56 | AP56: =MAX(AP$15:AP55)+1 -> 41 | AQ56: =SUMIFS(Periods!$11:$11,Periods!$2:$2,AP56) -> 2031-07-01 | AR56: =IF(OR(AQ56="",AQ56=0),"",MAX(AR$15:AR55)+1) -> 41 | AS56: 0
A57: =ROW() -> 57 | AP57: =MAX(AP$15:AP56)+1 -> 42 | AQ57: =SUMIFS(Periods!$11:$11,Periods!$2:$2,AP57) -> 2031-10-01 | AR57: =IF(OR(AQ57="",AQ57=0),"",MAX(AR$15:AR56)+1) -> 42 | AS57: 0
A58: =ROW() -> 58 | AP58: =MAX(AP$15:AP57)+1 -> 43 | AQ58: =SUMIFS(Periods!$11:$11,Periods!$2:$2,AP58) -> 2032-01-01 | AR58: =IF(OR(AQ58="",AQ58=0),"",MAX(AR$15:AR57)+1) -> 43 | AS58: 0
A59: =ROW() -> 59 | AP59: =MAX(AP$15:AP58)+1 -> 44 | AQ59: =SUMIFS(Periods!$11:$11,Periods!$2:$2,AP59) -> 2032-04-01 | AR59: =IF(OR(AQ59="",AQ59=0),"",MAX(AR$15:AR58)+1) -> 44 | AS59: 0
A60: =ROW() -> 60 | AP60: =MAX(AP$15:AP59)+1 -> 45 | AQ60: =SUMIFS(Periods!$11:$11,Periods!$2:$2,AP60) -> 2032-07-01 | AR60: =IF(OR(AQ60="",AQ60=0),"",MAX(AR$15:AR59)+1) -> 45 | AS60: 0
A61: =ROW() -> 61 | AP61: =MAX(AP$15:AP60)+1 -> 46 | AQ61: =SUMIFS(Periods!$11:$11,Periods!$2:$2,AP61) -> 2032-10-01 | AR61: =IF(OR(AQ61="",AQ61=0),"",MAX(AR$15:AR60)+1) -> 46 | AS61: 0
A62: =ROW() -> 62 | AP62: =MAX(AP$15:AP61)+1 -> 47 | AQ62: =SUMIFS(Periods!$11:$11,Periods!$2:$2,AP62) -> 2033-01-01 | AR62: =IF(OR(AQ62="",AQ62=0),"",MAX(AR$15:AR61)+1) -> 47 | AS62: 0
A63: =ROW() -> 63 | AP63: =MAX(AP$15:AP62)+1 -> 48 | AQ63: =SUMIFS(Periods!$11:$11,Periods!$2:$2,AP63) -> 2033-04-01 | AR63: =IF(OR(AQ63="",AQ63=0),"",MAX(AR$15:AR62)+1) -> 48 | AS63: 0
A64: =ROW() -> 64 | AP64: =MAX(AP$15:AP63)+1 -> 49 | AQ64: =SUMIFS(Periods!$11:$11,Periods!$2:$2,AP64) -> 2033-07-01 | AR64: =IF(OR(AQ64="",AQ64=0),"",MAX(AR$15:AR63)+1) -> 49 | AS64: 0
A65: =ROW() -> 65 | AP65: =MAX(AP$15:AP64)+1 -> 50 | AQ65: =SUMIFS(Periods!$11:$11,Periods!$2:$2,AP65) -> 2033-10-01 | AR65: =IF(OR(AQ65="",AQ65=0),"",MAX(AR$15:AR64)+1) -> 50 | AS65: 0
A66: =ROW() -> 66 | AP66: =MAX(AP$15:AP65)+1 -> 51 | AQ66: =SUMIFS(Periods!$11:$11,Periods!$2:$2,AP66) -> 2034-01-01 | AR66: =IF(OR(AQ66="",AQ66=0),"",MAX(AR$15:AR65)+1) -> 51 | AS66: 0
A67: =ROW() -> 67 | AP67: =MAX(AP$15:AP66)+1 -> 52 | AQ67: =SUMIFS(Periods!$11:$11,Periods!$2:$2,AP67) -> 2034-04-01 | AR67: =IF(OR(AQ67="",AQ67=0),"",MAX(AR$15:AR66)+1) -> 52 | AS67: 0
A68: =ROW() -> 68 | AP68: =MAX(AP$15:AP67)+1 -> 53 | AQ68: =SUMIFS(Periods!$11:$11,Periods!$2:$2,AP68) -> 2034-07-01 | AR68: =IF(OR(AQ68="",AQ68=0),"",MAX(AR$15:AR67)+1) -> 53 | AS68: 0
A69: =ROW() -> 69 | AP69: =MAX(AP$15:AP68)+1 -> 54 | AQ69: =SUMIFS(Periods!$11:$11,Periods!$2:$2,AP69) -> 2034-10-01 | AR69: =IF(OR(AQ69="",AQ69=0),"",MAX(AR$15:AR68)+1) -> 54 | AS69: 0
A70: =ROW() -> 70 | AP70: =MAX(AP$15:AP69)+1 -> 55 | AQ70: =SUMIFS(Periods!$11:$11,Periods!$2:$2,AP70) -> 2035-01-01 | AR70: =IF(OR(AQ70="",AQ70=0),"",MAX(AR$15:AR69)+1) -> 55 | AS70: 0
AP71: =MAX(AP$15:AP70)+1 -> 56 | AQ71: =SUMIFS(Periods!$11:$11,Periods!$2:$2,AP71) -> 2035-04-01 | AR71: =IF(OR(AQ71="",AQ71=0),"",MAX(AR$15:AR70)+1) -> 56 | AS71: 0
AP72: =MAX(AP$15:AP71)+1 -> 57 | AQ72: =SUMIFS(Periods!$11:$11,Periods!$2:$2,AP72) -> 2035-07-01 | AR72: =IF(OR(AQ72="",AQ72=0),"",MAX(AR$15:AR71)+1) -> 57 | AS72: 0
AP73: =MAX(AP$15:AP72)+1 -> 58 | AQ73: =SUMIFS(Periods!$11:$11,Periods!$2:$2,AP73) -> 2035-10-01 | AR73: =IF(OR(AQ73="",AQ73=0),"",MAX(AR$15:AR72)+1) -> 58 | AS73: 0
AP74: =MAX(AP$15:AP73)+1 -> 59 | AQ74: =SUMIFS(Periods!$11:$11,Periods!$2:$2,AP74) -> 2036-01-01 | AR74: =IF(OR(AQ74="",AQ74=0),"",MAX(AR$15:AR73)+1) -> 59 | AS74: 0
AP75: =MAX(AP$15:AP74)+1 -> 60 | AQ75: =SUMIFS(Periods!$11:$11,Periods!$2:$2,AP75) -> 2036-04-01 | AR75: =IF(OR(AQ75="",AQ75=0),"",MAX(AR$15:AR74)+1) -> 60 | AS75: 0
AP76: =MAX(AP$15:AP75)+1 -> 61 | AQ76: =SUMIFS(Periods!$11:$11,Periods!$2:$2,AP76) -> 00:00:00 | AR76: =IF(OR(AQ76="",AQ76=0),"",MAX(AR$15:AR75)+1) ->  | AS76: 0
AP77: =MAX(AP$15:AP76)+1 -> 62 | AQ77: =SUMIFS(Periods!$11:$11,Periods!$2:$2,AP77) -> 00:00:00 | AR77: =IF(OR(AQ77="",AQ77=0),"",MAX(AR$15:AR76)+1) ->  | AS77: 0
AP78: =MAX(AP$15:AP77)+1 -> 63 | AQ78: =SUMIFS(Periods!$11:$11,Periods!$2:$2,AP78) -> 00:00:00 | AR78: =IF(OR(AQ78="",AQ78=0),"",MAX(AR$15:AR77)+1) ->  | AS78: 0
AP79: =MAX(AP$15:AP78)+1 -> 64 | AQ79: =SUMIFS(Periods!$11:$11,Periods!$2:$2,AP79) -> 00:00:00 | AR79: =IF(OR(AQ79="",AQ79=0),"",MAX(AR$15:AR78)+1) ->  | AS79: 0
AP80: =MAX(AP$15:AP79)+1 -> 65 | AQ80: =SUMIFS(Periods!$11:$11,Periods!$2:$2,AP80) -> 00:00:00 | AR80: =IF(OR(AQ80="",AQ80=0),"",MAX(AR$15:AR79)+1) ->  | AS80: 0
AP81: =MAX(AP$15:AP80)+1 -> 66 | AQ81: =SUMIFS(Periods!$11:$11,Periods!$2:$2,AP81) -> 00:00:00 | AR81: =IF(OR(AQ81="",AQ81=0),"",MAX(AR$15:AR80)+1) ->  | AS81: 0
AP82: =MAX(AP$15:AP81)+1 -> 67 | AQ82: =SUMIFS(Periods!$11:$11,Periods!$2:$2,AP82) -> 00:00:00 | AR82: =IF(OR(AQ82="",AQ82=0),"",MAX(AR$15:AR81)+1) ->  | AS82: 0
AP83: =MAX(AP$15:AP82)+1 -> 68 | AQ83: =SUMIFS(Periods!$11:$11,Periods!$2:$2,AP83) -> 00:00:00 | AR83: =IF(OR(AQ83="",AQ83=0),"",MAX(AR$15:AR82)+1) ->  | AS83: 0
AP84: =MAX(AP$15:AP83)+1 -> 69 | AQ84: =SUMIFS(Periods!$11:$11,Periods!$2:$2,AP84) -> 00:00:00 | AR84: =IF(OR(AQ84="",AQ84=0),"",MAX(AR$15:AR83)+1) ->  | AS84: 0
AP85: =MAX(AP$15:AP84)+1 -> 70 | AQ85: =SUMIFS(Periods!$11:$11,Periods!$2:$2,AP85) -> 00:00:00 | AR85: =IF(OR(AQ85="",AQ85=0),"",MAX(AR$15:AR84)+1) ->  | AS85: 0
AP86: =MAX(AP$15:AP85)+1 -> 71 | AQ86: =SUMIFS(Periods!$11:$11,Periods!$2:$2,AP86) -> 00:00:00 | AR86: =IF(OR(AQ86="",AQ86=0),"",MAX(AR$15:AR85)+1) ->  | AS86: 0
AP87: =MAX(AP$15:AP86)+1 -> 72 | AQ87: =SUMIFS(Periods!$11:$11,Periods!$2:$2,AP87) -> 00:00:00 | AR87: =IF(OR(AQ87="",AQ87=0),"",MAX(AR$15:AR86)+1) ->  | AS87: 0
AP88: =MAX(AP$15:AP87)+1 -> 73 | AQ88: =SUMIFS(Periods!$11:$11,Periods!$2:$2,AP88) -> 00:00:00 | AR88: =IF(OR(AQ88="",AQ88=0),"",MAX(AR$15:AR87)+1) ->  | AS88: 0
AP89: =MAX(AP$15:AP88)+1 -> 74 | AQ89: =SUMIFS(Periods!$11:$11,Periods!$2:$2,AP89) -> 00:00:00 | AR89: =IF(OR(AQ89="",AQ89=0),"",MAX(AR$15:AR88)+1) ->  | AS89: 0
AP90: =MAX(AP$15:AP89)+1 -> 75 | AQ90: =SUMIFS(Periods!$11:$11,Periods!$2:$2,AP90) -> 00:00:00 | AR90: =IF(OR(AQ90="",AQ90=0),"",MAX(AR$15:AR89)+1) ->  | AS90: 0
AP91: =MAX(AP$15:AP90)+1 -> 76 | AQ91: =SUMIFS(Periods!$11:$11,Periods!$2:$2,AP91) -> 00:00:00 | AR91: =IF(OR(AQ91="",AQ91=0),"",MAX(AR$15:AR90)+1) ->  | AS91: 0
AP92: =MAX(AP$15:AP91)+1 -> 77 | AQ92: =SUMIFS(Periods!$11:$11,Periods!$2:$2,AP92) -> 00:00:00 | AR92: =IF(OR(AQ92="",AQ92=0),"",MAX(AR$15:AR91)+1) ->  | AS92: 0
AP93: =MAX(AP$15:AP92)+1 -> 78 | AQ93: =SUMIFS(Periods!$11:$11,Periods!$2:$2,AP93) -> 00:00:00 | AR93: =IF(OR(AQ93="",AQ93=0),"",MAX(AR$15:AR92)+1) ->  | AS93: 0
AP94: =MAX(AP$15:AP93)+1 -> 79 | AQ94: =SUMIFS(Periods!$11:$11,Periods!$2:$2,AP94) -> 00:00:00 | AR94: =IF(OR(AQ94="",AQ94=0),"",MAX(AR$15:AR93)+1) ->  | AS94: 0
AP95: =MAX(AP$15:AP94)+1 -> 80 | AQ95: =SUMIFS(Periods!$11:$11,Periods!$2:$2,AP95) -> 00:00:00 | AR95: =IF(OR(AQ95="",AQ95=0),"",MAX(AR$15:AR94)+1) ->  | AS95: =IF(OR(AQ95=0,AQ95=""),0,IF(COUNTIF(AQ$15:AQ$100000,AQ95)=1,0,1)) -> 0
AP96: =MAX(AP$15:AP95)+1 -> 81 | AQ96: =SUMIFS(Periods!$11:$11,Periods!$2:$2,AP96) -> 00:00:00 | AR96: =IF(OR(AQ96="",AQ96=0),"",MAX(AR$15:AR95)+1) ->  | AS96: 0
AP97: =MAX(AP$15:AP96)+1 -> 82 | AQ97: =SUMIFS(Periods!$11:$11,Periods!$2:$2,AP97) -> 00:00:00 | AR97: =IF(OR(AQ97="",AQ97=0),"",MAX(AR$15:AR96)+1) ->  | AS97: 0
AP98: =MAX(AP$15:AP97)+1 -> 83 | AQ98: =SUMIFS(Periods!$11:$11,Periods!$2:$2,AP98) -> 00:00:00 | AR98: =IF(OR(AQ98="",AQ98=0),"",MAX(AR$15:AR97)+1) ->  | AS98: 0
AP99: =MAX(AP$15:AP98)+1 -> 84 | AQ99: =SUMIFS(Periods!$11:$11,Periods!$2:$2,AP99) -> 00:00:00 | AR99: =IF(OR(AQ99="",AQ99=0),"",MAX(AR$15:AR98)+1) ->  | AS99: 0
AP100: =MAX(AP$15:AP99)+1 -> 85 | AQ100: =SUMIFS(Periods!$11:$11,Periods!$2:$2,AP100) -> 00:00:00 | AR100: =IF(OR(AQ100="",AQ100=0),"",MAX(AR$15:AR99)+1) ->  | AS100: 0
AP101: =MAX(AP$15:AP100)+1 -> 86 | AQ101: =SUMIFS(Periods!$11:$11,Periods!$2:$2,AP101) -> 00:00:00 | AR101: =IF(OR(AQ101="",AQ101=0),"",MAX(AR$15:AR100)+1) ->  | AS101: 0
AP102: =MAX(AP$15:AP101)+1 -> 87 | AQ102: =SUMIFS(Periods!$11:$11,Periods!$2:$2,AP102) -> 00:00:00 | AR102: =IF(OR(AQ102="",AQ102=0),"",MAX(AR$15:AR101)+1) ->  | AS102: 0
AP103: =MAX(AP$15:AP102)+1 -> 88 | AQ103: =SUMIFS(Periods!$11:$11,Periods!$2:$2,AP103) -> 00:00:00 | AR103: =IF(OR(AQ103="",AQ103=0),"",MAX(AR$15:AR102)+1) ->  | AS103: 0
AP104: =MAX(AP$15:AP103)+1 -> 89 | AQ104: =SUMIFS(Periods!$11:$11,Periods!$2:$2,AP104) -> 00:00:00 | AR104: =IF(OR(AQ104="",AQ104=0),"",MAX(AR$15:AR103)+1) ->  | AS104: 0
AP105: =MAX(AP$15:AP104)+1 -> 90 | AQ105: =SUMIFS(Periods!$11:$11,Periods!$2:$2,AP105) -> 00:00:00 | AR105: =IF(OR(AQ105="",AQ105=0),"",MAX(AR$15:AR104)+1) ->  | AS105: 0
AP106: =MAX(AP$15:AP105)+1 -> 91 | AQ106: =SUMIFS(Periods!$11:$11,Periods!$2:$2,AP106) -> 00:00:00 | AR106: =IF(OR(AQ106="",AQ106=0),"",MAX(AR$15:AR105)+1) ->  | AS106: 0
AP107: =MAX(AP$15:AP106)+1 -> 92 | AQ107: =SUMIFS(Periods!$11:$11,Periods!$2:$2,AP107) -> 00:00:00 | AR107: =IF(OR(AQ107="",AQ107=0),"",MAX(AR$15:AR106)+1) ->  | AS107: 0
AP108: =MAX(AP$15:AP107)+1 -> 93 | AQ108: =SUMIFS(Periods!$11:$11,Periods!$2:$2,AP108) -> 00:00:00 | AR108: =IF(OR(AQ108="",AQ108=0),"",MAX(AR$15:AR107)+1) ->  | AS108: 0
AP109: =MAX(AP$15:AP108)+1 -> 94 | AQ109: =SUMIFS(Periods!$11:$11,Periods!$2:$2,AP109) -> 00:00:00 | AR109: =IF(OR(AQ109="",AQ109=0),"",MAX(AR$15:AR108)+1) ->  | AS109: 0
AP110: =MAX(AP$15:AP109)+1 -> 95 | AQ110: =SUMIFS(Periods!$11:$11,Periods!$2:$2,AP110) -> 00:00:00 | AR110: =IF(OR(AQ110="",AQ110=0),"",MAX(AR$15:AR109)+1) ->  | AS110: 0
AP111: =MAX(AP$15:AP110)+1 -> 96 | AQ111: =SUMIFS(Periods!$11:$11,Periods!$2:$2,AP111) -> 00:00:00 | AR111: =IF(OR(AQ111="",AQ111=0),"",MAX(AR$15:AR110)+1) ->  | AS111: 0
AP112: =MAX(AP$15:AP111)+1 -> 97 | AQ112: =SUMIFS(Periods!$11:$11,Periods!$2:$2,AP112) -> 00:00:00 | AR112: =IF(OR(AQ112="",AQ112=0),"",MAX(AR$15:AR111)+1) ->  | AS112: 0
AP113: =MAX(AP$15:AP112)+1 -> 98 | AQ113: =SUMIFS(Periods!$11:$11,Periods!$2:$2,AP113) -> 00:00:00 | AR113: =IF(OR(AQ113="",AQ113=0),"",MAX(AR$15:AR112)+1) ->  | AS113: 0
AP114: =MAX(AP$15:AP113)+1 -> 99 | AQ114: =SUMIFS(Periods!$11:$11,Periods!$2:$2,AP114) -> 00:00:00 | AR114: =IF(OR(AQ114="",AQ114=0),"",MAX(AR$15:AR113)+1) ->  | AS114: 0
AP115: =MAX(AP$15:AP114)+1 -> 100 | AQ115: =SUMIFS(Periods!$11:$11,Periods!$2:$2,AP115) -> 00:00:00 | AR115: =IF(OR(AQ115="",AQ115=0),"",MAX(AR$15:AR114)+1) ->  | AS115: 0
AP116: =MAX(AP$15:AP115)+1 -> 101 | AQ116: =SUMIFS(Periods!$11:$11,Periods!$2:$2,AP116) -> 00:00:00 | AR116: =IF(OR(AQ116="",AQ116=0),"",MAX(AR$15:AR115)+1) ->  | AS116: 0
AP117: =MAX(AP$15:AP116)+1 -> 102 | AQ117: =SUMIFS(Periods!$11:$11,Periods!$2:$2,AP117) -> 00:00:00 | AR117: =IF(OR(AQ117="",AQ117=0),"",MAX(AR$15:AR116)+1) ->  | AS117: 0
AP118: =MAX(AP$15:AP117)+1 -> 103 | AQ118: =SUMIFS(Periods!$11:$11,Periods!$2:$2,AP118) -> 00:00:00 | AR118: =IF(OR(AQ118="",AQ118=0),"",MAX(AR$15:AR117)+1) ->  | AS118: 0
AP119: =MAX(AP$15:AP118)+1 -> 104 | AQ119: =SUMIFS(Periods!$11:$11,Periods!$2:$2,AP119) -> 00:00:00 | AR119: =IF(OR(AQ119="",AQ119=0),"",MAX(AR$15:AR118)+1) ->  | AS119: 0
AP120: =MAX(AP$15:AP119)+1 -> 105 | AQ120: =SUMIFS(Periods!$11:$11,Periods!$2:$2,AP120) -> 00:00:00 | AR120: =IF(OR(AQ120="",AQ120=0),"",MAX(AR$15:AR119)+1) ->  | AS120: 0
AP121: =MAX(AP$15:AP120)+1 -> 106 | AQ121: =SUMIFS(Periods!$11:$11,Periods!$2:$2,AP121) -> 00:00:00 | AR121: =IF(OR(AQ121="",AQ121=0),"",MAX(AR$15:AR120)+1) ->  | AS121: 0
AP122: =MAX(AP$15:AP121)+1 -> 107 | AQ122: =SUMIFS(Periods!$11:$11,Periods!$2:$2,AP122) -> 00:00:00 | AR122: =IF(OR(AQ122="",AQ122=0),"",MAX(AR$15:AR121)+1) ->  | AS122: 0
AP123: =MAX(AP$15:AP122)+1 -> 108 | AQ123: =SUMIFS(Periods!$11:$11,Periods!$2:$2,AP123) -> 00:00:00 | AR123: =IF(OR(AQ123="",AQ123=0),"",MAX(AR$15:AR122)+1) ->  | AS123: 0
AP124: =MAX(AP$15:AP123)+1 -> 109 | AQ124: =SUMIFS(Periods!$11:$11,Periods!$2:$2,AP124) -> 00:00:00 | AR124: =IF(OR(AQ124="",AQ124=0),"",MAX(AR$15:AR123)+1) ->  | AS124: 0
AP125: =MAX(AP$15:AP124)+1 -> 110 | AQ125: =SUMIFS(Periods!$11:$11,Periods!$2:$2,AP125) -> 00:00:00 | AR125: =IF(OR(AQ125="",AQ125=0),"",MAX(AR$15:AR124)+1) ->  | AS125: 0
AP126: =MAX(AP$15:AP125)+1 -> 111 | AQ126: =SUMIFS(Periods!$11:$11,Periods!$2:$2,AP126) -> 00:00:00 | AR126: =IF(OR(AQ126="",AQ126=0),"",MAX(AR$15:AR125)+1) ->  | AS126: 0
AP127: =MAX(AP$15:AP126)+1 -> 112 | AQ127: =SUMIFS(Periods!$11:$11,Periods!$2:$2,AP127) -> 00:00:00 | AR127: =IF(OR(AQ127="",AQ127=0),"",MAX(AR$15:AR126)+1) ->  | AS127: 0
AP128: =MAX(AP$15:AP127)+1 -> 113 | AQ128: =SUMIFS(Periods!$11:$11,Periods!$2:$2,AP128) -> 00:00:00 | AR128: =IF(OR(AQ128="",AQ128=0),"",MAX(AR$15:AR127)+1) ->  | AS128: 0
AP129: =MAX(AP$15:AP128)+1 -> 114 | AQ129: =SUMIFS(Periods!$11:$11,Periods!$2:$2,AP129) -> 00:00:00 | AR129: =IF(OR(AQ129="",AQ129=0),"",MAX(AR$15:AR128)+1) ->  | AS129: 0
AP130: =MAX(AP$15:AP129)+1 -> 115 | AQ130: =SUMIFS(Periods!$11:$11,Periods!$2:$2,AP130) -> 00:00:00 | AR130: =IF(OR(AQ130="",AQ130=0),"",MAX(AR$15:AR129)+1) ->  | AS130: 0
AP131: =MAX(AP$15:AP130)+1 -> 116 | AQ131: =SUMIFS(Periods!$11:$11,Periods!$2:$2,AP131) -> 00:00:00 | AR131: =IF(OR(AQ131="",AQ131=0),"",MAX(AR$15:AR130)+1) ->  | AS131: 0
AP132: =MAX(AP$15:AP131)+1 -> 117 | AQ132: =SUMIFS(Periods!$11:$11,Periods!$2:$2,AP132) -> 00:00:00 | AR132: =IF(OR(AQ132="",AQ132=0),"",MAX(AR$15:AR131)+1) ->  | AS132: 0
AP133: =MAX(AP$15:AP132)+1 -> 118 | AQ133: =SUMIFS(Periods!$11:$11,Periods!$2:$2,AP133) -> 00:00:00 | AR133: =IF(OR(AQ133="",AQ133=0),"",MAX(AR$15:AR132)+1) ->  | AS133: 0
AP134: =MAX(AP$15:AP133)+1 -> 119 | AQ134: =SUMIFS(Periods!$11:$11,Periods!$2:$2,AP134) -> 00:00:00 | AR134: =IF(OR(AQ134="",AQ134=0),"",MAX(AR$15:AR133)+1) ->  | AS134: 0
AP135: =MAX(AP$15:AP134)+1 -> 120 | AQ135: =SUMIFS(Periods!$11:$11,Periods!$2:$2,AP135) -> 00:00:00 | AR135: =IF(OR(AQ135="",AQ135=0),"",MAX(AR$15:AR134)+1) ->  | AS135: 0
AP136: =MAX(AP$15:AP135)+1 -> 121 | AQ136: =SUMIFS(Periods!$11:$11,Periods!$2:$2,AP136) -> 00:00:00 | AR136: =IF(OR(AQ136="",AQ136=0),"",MAX(AR$15:AR135)+1) ->  | AS136: 0
AP137: =MAX(AP$15:AP136)+1 -> 122 | AQ137: =SUMIFS(Periods!$11:$11,Periods!$2:$2,AP137) -> 00:00:00 | AR137: =IF(OR(AQ137="",AQ137=0),"",MAX(AR$15:AR136)+1) ->  | AS137: 0
AP138: =MAX(AP$15:AP137)+1 -> 123 | AQ138: =SUMIFS(Periods!$11:$11,Periods!$2:$2,AP138) -> 00:00:00 | AR138: =IF(OR(AQ138="",AQ138=0),"",MAX(AR$15:AR137)+1) ->  | AS138: 0
AP139: =MAX(AP$15:AP138)+1 -> 124 | AQ139: =SUMIFS(Periods!$11:$11,Periods!$2:$2,AP139) -> 00:00:00 | AR139: =IF(OR(AQ139="",AQ139=0),"",MAX(AR$15:AR138)+1) ->  | AS139: 0
AP140: =MAX(AP$15:AP139)+1 -> 125 | AQ140: =SUMIFS(Periods!$11:$11,Periods!$2:$2,AP140) -> 00:00:00 | AR140: =IF(OR(AQ140="",AQ140=0),"",MAX(AR$15:AR139)+1) ->  | AS140: 0
AP141: =MAX(AP$15:AP140)+1 -> 126 | AQ141: =SUMIFS(Periods!$11:$11,Periods!$2:$2,AP141) -> 00:00:00 | AR141: =IF(OR(AQ141="",AQ141=0),"",MAX(AR$15:AR140)+1) ->  | AS141: 0
AP142: =MAX(AP$15:AP141)+1 -> 127 | AQ142: =SUMIFS(Periods!$11:$11,Periods!$2:$2,AP142) -> 00:00:00 | AR142: =IF(OR(AQ142="",AQ142=0),"",MAX(AR$15:AR141)+1) ->  | AS142: 0
AP143: =MAX(AP$15:AP142)+1 -> 128 | AQ143: =SUMIFS(Periods!$11:$11,Periods!$2:$2,AP143) -> 00:00:00 | AR143: =IF(OR(AQ143="",AQ143=0),"",MAX(AR$15:AR142)+1) ->  | AS143: 0
AP144: =MAX(AP$15:AP143)+1 -> 129 | AQ144: =SUMIFS(Periods!$11:$11,Periods!$2:$2,AP144) -> 00:00:00 | AR144: =IF(OR(AQ144="",AQ144=0),"",MAX(AR$15:AR143)+1) ->  | AS144: 0
AP145: =MAX(AP$15:AP144)+1 -> 130 | AQ145: =SUMIFS(Periods!$11:$11,Periods!$2:$2,AP145) -> 00:00:00 | AR145: =IF(OR(AQ145="",AQ145=0),"",MAX(AR$15:AR144)+1) ->  | AS145: 0
AP146: =MAX(AP$15:AP145)+1 -> 131 | AQ146: =SUMIFS(Periods!$11:$11,Periods!$2:$2,AP146) -> 00:00:00 | AR146: =IF(OR(AQ146="",AQ146=0),"",MAX(AR$15:AR145)+1) ->  | AS146: 0
AP147: =MAX(AP$15:AP146)+1 -> 132 | AQ147: =SUMIFS(Periods!$11:$11,Periods!$2:$2,AP147) -> 00:00:00 | AR147: =IF(OR(AQ147="",AQ147=0),"",MAX(AR$15:AR146)+1) ->  | AS147: 0
AP148: =MAX(AP$15:AP147)+1 -> 133 | AQ148: =SUMIFS(Periods!$11:$11,Periods!$2:$2,AP148) -> 00:00:00 | AR148: =IF(OR(AQ148="",AQ148=0),"",MAX(AR$15:AR147)+1) ->  | AS148: 0
AP149: =MAX(AP$15:AP148)+1 -> 134 | AQ149: =SUMIFS(Periods!$11:$11,Periods!$2:$2,AP149) -> 00:00:00 | AR149: =IF(OR(AQ149="",AQ149=0),"",MAX(AR$15:AR148)+1) ->  | AS149: 0
AP150: =MAX(AP$15:AP149)+1 -> 135 | AQ150: =SUMIFS(Periods!$11:$11,Periods!$2:$2,AP150) -> 00:00:00 | AR150: =IF(OR(AQ150="",AQ150=0),"",MAX(AR$15:AR149)+1) ->  | AS150: 0
AP151: =MAX(AP$15:AP150)+1 -> 136 | AQ151: =SUMIFS(Periods!$11:$11,Periods!$2:$2,AP151) -> 00:00:00 | AR151: =IF(OR(AQ151="",AQ151=0),"",MAX(AR$15:AR150)+1) ->  | AS151: 0
AP152: =MAX(AP$15:AP151)+1 -> 137 | AQ152: =SUMIFS(Periods!$11:$11,Periods!$2:$2,AP152) -> 00:00:00 | AR152: =IF(OR(AQ152="",AQ152=0),"",MAX(AR$15:AR151)+1) ->  | AS152: 0
AP153: =MAX(AP$15:AP152)+1 -> 138 | AQ153: =SUMIFS(Periods!$11:$11,Periods!$2:$2,AP153) -> 00:00:00 | AR153: =IF(OR(AQ153="",AQ153=0),"",MAX(AR$15:AR152)+1) ->  | AS153: 0
AP154: =MAX(AP$15:AP153)+1 -> 139 | AQ154: =SUMIFS(Periods!$11:$11,Periods!$2:$2,AP154) -> 00:00:00 | AR154: =IF(OR(AQ154="",AQ154=0),"",MAX(AR$15:AR153)+1) ->  | AS154: 0
AP155: =MAX(AP$15:AP154)+1 -> 140 | AQ155: =SUMIFS(Periods!$11:$11,Periods!$2:$2,AP155) -> 00:00:00 | AR155: =IF(OR(AQ155="",AQ155=0),"",MAX(AR$15:AR154)+1) ->  | AS155: 0
AP156: =MAX(AP$15:AP155)+1 -> 141 | AQ156: =SUMIFS(Periods!$11:$11,Periods!$2:$2,AP156) -> 00:00:00 | AR156: =IF(OR(AQ156="",AQ156=0),"",MAX(AR$15:AR155)+1) ->  | AS156: 0
AP157: =MAX(AP$15:AP156)+1 -> 142 | AQ157: =SUMIFS(Periods!$11:$11,Periods!$2:$2,AP157) -> 00:00:00 | AR157: =IF(OR(AQ157="",AQ157=0),"",MAX(AR$15:AR156)+1) ->  | AS157: 0
AP158: =MAX(AP$15:AP157)+1 -> 143 | AQ158: =SUMIFS(Periods!$11:$11,Periods!$2:$2,AP158) -> 00:00:00 | AR158: =IF(OR(AQ158="",AQ158=0),"",MAX(AR$15:AR157)+1) ->  | AS158: 0
AP159: =MAX(AP$15:AP158)+1 -> 144 | AQ159: =SUMIFS(Periods!$11:$11,Periods!$2:$2,AP159) -> 00:00:00 | AR159: =IF(OR(AQ159="",AQ159=0),"",MAX(AR$15:AR158)+1) ->  | AS159: =IF(OR(AQ159=0,AQ159=""),0,IF(COUNTIF(AQ$15:AQ$100000,AQ159)=1,0,1)) -> 0
AP160: =MAX(AP$15:AP159)+1 -> 145 | AQ160: =SUMIFS(Periods!$11:$11,Periods!$2:$2,AP160) -> 00:00:00 | AR160: =IF(OR(AQ160="",AQ160=0),"",MAX(AR$15:AR159)+1) ->  | AS160: 0
AP161: =MAX(AP$15:AP160)+1 -> 146 | AQ161: =SUMIFS(Periods!$11:$11,Periods!$2:$2,AP161) -> 00:00:00 | AR161: =IF(OR(AQ161="",AQ161=0),"",MAX(AR$15:AR160)+1) ->  | AS161: 0
AP162: =MAX(AP$15:AP161)+1 -> 147 | AQ162: =SUMIFS(Periods!$11:$11,Periods!$2:$2,AP162) -> 00:00:00 | AR162: =IF(OR(AQ162="",AQ162=0),"",MAX(AR$15:AR161)+1) ->  | AS162: 0
AP163: =MAX(AP$15:AP162)+1 -> 148 | AQ163: =SUMIFS(Periods!$11:$11,Periods!$2:$2,AP163) -> 00:00:00 | AR163: =IF(OR(AQ163="",AQ163=0),"",MAX(AR$15:AR162)+1) ->  | AS163: 0
AP164: =MAX(AP$15:AP163)+1 -> 149 | AQ164: =SUMIFS(Periods!$11:$11,Periods!$2:$2,AP164) -> 00:00:00 | AR164: =IF(OR(AQ164="",AQ164=0),"",MAX(AR$15:AR163)+1) ->  | AS164: 0
AP165: =MAX(AP$15:AP164)+1 -> 150 | AQ165: =SUMIFS(Periods!$11:$11,Periods!$2:$2,AP165) -> 00:00:00 | AR165: =IF(OR(AQ165="",AQ165=0),"",MAX(AR$15:AR164)+1) ->  | AS165: 0
AP166: =MAX(AP$15:AP165)+1 -> 151 | AQ166: =SUMIFS(Periods!$11:$11,Periods!$2:$2,AP166) -> 00:00:00 | AR166: =IF(OR(AQ166="",AQ166=0),"",MAX(AR$15:AR165)+1) ->  | AS166: 0
AP167: =MAX(AP$15:AP166)+1 -> 152 | AQ167: =SUMIFS(Periods!$11:$11,Periods!$2:$2,AP167) -> 00:00:00 | AR167: =IF(OR(AQ167="",AQ167=0),"",MAX(AR$15:AR166)+1) ->  | AS167: 0
AP168: =MAX(AP$15:AP167)+1 -> 153 | AQ168: =SUMIFS(Periods!$11:$11,Periods!$2:$2,AP168) -> 00:00:00 | AR168: =IF(OR(AQ168="",AQ168=0),"",MAX(AR$15:AR167)+1) ->  | AS168: 0
AP169: =MAX(AP$15:AP168)+1 -> 154 | AQ169: =SUMIFS(Periods!$11:$11,Periods!$2:$2,AP169) -> 00:00:00 | AR169: =IF(OR(AQ169="",AQ169=0),"",MAX(AR$15:AR168)+1) ->  | AS169: 0
AP170: =MAX(AP$15:AP169)+1 -> 155 | AQ170: =SUMIFS(Periods!$11:$11,Periods!$2:$2,AP170) -> 00:00:00 | AR170: =IF(OR(AQ170="",AQ170=0),"",MAX(AR$15:AR169)+1) ->  | AS170: 0
AP171: =MAX(AP$15:AP170)+1 -> 156 | AQ171: =SUMIFS(Periods!$11:$11,Periods!$2:$2,AP171) -> 00:00:00 | AR171: =IF(OR(AQ171="",AQ171=0),"",MAX(AR$15:AR170)+1) ->  | AS171: 0
AP172: =MAX(AP$15:AP171)+1 -> 157 | AQ172: =SUMIFS(Periods!$11:$11,Periods!$2:$2,AP172) -> 00:00:00 | AR172: =IF(OR(AQ172="",AQ172=0),"",MAX(AR$15:AR171)+1) ->  | AS172: 0
AP173: =MAX(AP$15:AP172)+1 -> 158 | AQ173: =SUMIFS(Periods!$11:$11,Periods!$2:$2,AP173) -> 00:00:00 | AR173: =IF(OR(AQ173="",AQ173=0),"",MAX(AR$15:AR172)+1) ->  | AS173: 0
AP174: =MAX(AP$15:AP173)+1 -> 159 | AQ174: =SUMIFS(Periods!$11:$11,Periods!$2:$2,AP174) -> 00:00:00 | AR174: =IF(OR(AQ174="",AQ174=0),"",MAX(AR$15:AR173)+1) ->  | AS174: 0
AP175: =MAX(AP$15:AP174)+1 -> 160 | AQ175: =SUMIFS(Periods!$11:$11,Periods!$2:$2,AP175) -> 00:00:00 | AR175: =IF(OR(AQ175="",AQ175=0),"",MAX(AR$15:AR174)+1) ->  | AS175: 0
AP176: =MAX(AP$15:AP175)+1 -> 161 | AQ176: =SUMIFS(Periods!$11:$11,Periods!$2:$2,AP176) -> 00:00:00 | AR176: =IF(OR(AQ176="",AQ176=0),"",MAX(AR$15:AR175)+1) ->  | AS176: 0
AP177: =MAX(AP$15:AP176)+1 -> 162 | AQ177: =SUMIFS(Periods!$11:$11,Periods!$2:$2,AP177) -> 00:00:00 | AR177: =IF(OR(AQ177="",AQ177=0),"",MAX(AR$15:AR176)+1) ->  | AS177: 0
AP178: =MAX(AP$15:AP177)+1 -> 163 | AQ178: =SUMIFS(Periods!$11:$11,Periods!$2:$2,AP178) -> 00:00:00 | AR178: =IF(OR(AQ178="",AQ178=0),"",MAX(AR$15:AR177)+1) ->  | AS178: 0
AP179: =MAX(AP$15:AP178)+1 -> 164 | AQ179: =SUMIFS(Periods!$11:$11,Periods!$2:$2,AP179) -> 00:00:00 | AR179: =IF(OR(AQ179="",AQ179=0),"",MAX(AR$15:AR178)+1) ->  | AS179: 0
AP180: =MAX(AP$15:AP179)+1 -> 165 | AQ180: =SUMIFS(Periods!$11:$11,Periods!$2:$2,AP180) -> 00:00:00 | AR180: =IF(OR(AQ180="",AQ180=0),"",MAX(AR$15:AR179)+1) ->  | AS180: 0
AP181: =MAX(AP$15:AP180)+1 -> 166 | AQ181: =SUMIFS(Periods!$11:$11,Periods!$2:$2,AP181) -> 00:00:00 | AR181: =IF(OR(AQ181="",AQ181=0),"",MAX(AR$15:AR180)+1) ->  | AS181: 0
AP182: =MAX(AP$15:AP181)+1 -> 167 | AQ182: =SUMIFS(Periods!$11:$11,Periods!$2:$2,AP182) -> 00:00:00 | AR182: =IF(OR(AQ182="",AQ182=0),"",MAX(AR$15:AR181)+1) ->  | AS182: 0
AP183: =MAX(AP$15:AP182)+1 -> 168 | AQ183: =SUMIFS(Periods!$11:$11,Periods!$2:$2,AP183) -> 00:00:00 | AR183: =IF(OR(AQ183="",AQ183=0),"",MAX(AR$15:AR182)+1) ->  | AS183: 0
AP184: =MAX(AP$15:AP183)+1 -> 169 | AQ184: =SUMIFS(Periods!$11:$11,Periods!$2:$2,AP184) -> 00:00:00 | AR184: =IF(OR(AQ184="",AQ184=0),"",MAX(AR$15:AR183)+1) ->  | AS184: 0
AP185: =MAX(AP$15:AP184)+1 -> 170 | AQ185: =SUMIFS(Periods!$11:$11,Periods!$2:$2,AP185) -> 00:00:00 | AR185: =IF(OR(AQ185="",AQ185=0),"",MAX(AR$15:AR184)+1) ->  | AS185: 0
AP186: =MAX(AP$15:AP185)+1 -> 171 | AQ186: =SUMIFS(Periods!$11:$11,Periods!$2:$2,AP186) -> 00:00:00 | AR186: =IF(OR(AQ186="",AQ186=0),"",MAX(AR$15:AR185)+1) ->  | AS186: 0
AP187: =MAX(AP$15:AP186)+1 -> 172 | AQ187: =SUMIFS(Periods!$11:$11,Periods!$2:$2,AP187) -> 00:00:00 | AR187: =IF(OR(AQ187="",AQ187=0),"",MAX(AR$15:AR186)+1) ->  | AS187: 0
AP188: =MAX(AP$15:AP187)+1 -> 173 | AQ188: =SUMIFS(Periods!$11:$11,Periods!$2:$2,AP188) -> 00:00:00 | AR188: =IF(OR(AQ188="",AQ188=0),"",MAX(AR$15:AR187)+1) ->  | AS188: 0
AP189: =MAX(AP$15:AP188)+1 -> 174 | AQ189: =SUMIFS(Periods!$11:$11,Periods!$2:$2,AP189) -> 00:00:00 | AR189: =IF(OR(AQ189="",AQ189=0),"",MAX(AR$15:AR188)+1) ->  | AS189: 0
AP190: =MAX(AP$15:AP189)+1 -> 175 | AQ190: =SUMIFS(Periods!$11:$11,Periods!$2:$2,AP190) -> 00:00:00 | AR190: =IF(OR(AQ190="",AQ190=0),"",MAX(AR$15:AR189)+1) ->  | AS190: 0
AP191: =MAX(AP$15:AP190)+1 -> 176 | AQ191: =SUMIFS(Periods!$11:$11,Periods!$2:$2,AP191) -> 00:00:00 | AR191: =IF(OR(AQ191="",AQ191=0),"",MAX(AR$15:AR190)+1) ->  | AS191: 0
AP192: =MAX(AP$15:AP191)+1 -> 177 | AQ192: =SUMIFS(Periods!$11:$11,Periods!$2:$2,AP192) -> 00:00:00 | AR192: =IF(OR(AQ192="",AQ192=0),"",MAX(AR$15:AR191)+1) ->  | AS192: 0
AP193: =MAX(AP$15:AP192)+1 -> 178 | AQ193: =SUMIFS(Periods!$11:$11,Periods!$2:$2,AP193) -> 00:00:00 | AR193: =IF(OR(AQ193="",AQ193=0),"",MAX(AR$15:AR192)+1) ->  | AS193: 0
AP194: =MAX(AP$15:AP193)+1 -> 179 | AQ194: =SUMIFS(Periods!$11:$11,Periods!$2:$2,AP194) -> 00:00:00 | AR194: =IF(OR(AQ194="",AQ194=0),"",MAX(AR$15:AR193)+1) ->  | AS194: 0
AP195: =MAX(AP$15:AP194)+1 -> 180 | AQ195: =SUMIFS(Periods!$11:$11,Periods!$2:$2,AP195) -> 00:00:00 | AR195: =IF(OR(AQ195="",AQ195=0),"",MAX(AR$15:AR194)+1) ->  | AS195: 0
AP196: =MAX(AP$15:AP195)+1 -> 181 | AQ196: =SUMIFS(Periods!$11:$11,Periods!$2:$2,AP196) -> 00:00:00 | AR196: =IF(OR(AQ196="",AQ196=0),"",MAX(AR$15:AR195)+1) ->  | AS196: 0
AP197: =MAX(AP$15:AP196)+1 -> 182 | AQ197: =SUMIFS(Periods!$11:$11,Periods!$2:$2,AP197) -> 00:00:00 | AR197: =IF(OR(AQ197="",AQ197=0),"",MAX(AR$15:AR196)+1) ->  | AS197: 0
AP198: =MAX(AP$15:AP197)+1 -> 183 | AQ198: =SUMIFS(Periods!$11:$11,Periods!$2:$2,AP198) -> 00:00:00 | AR198: =IF(OR(AQ198="",AQ198=0),"",MAX(AR$15:AR197)+1) ->  | AS198: 0
AP199: =MAX(AP$15:AP198)+1 -> 184 | AQ199: =SUMIFS(Periods!$11:$11,Periods!$2:$2,AP199) -> 00:00:00 | AR199: =IF(OR(AQ199="",AQ199=0),"",MAX(AR$15:AR198)+1) ->  | AS199: 0
AP200: =MAX(AP$15:AP199)+1 -> 185 | AQ200: =SUMIFS(Periods!$11:$11,Periods!$2:$2,AP200) -> 00:00:00 | AR200: =IF(OR(AQ200="",AQ200=0),"",MAX(AR$15:AR199)+1) ->  | AS200: 0
AP201: =MAX(AP$15:AP200)+1 -> 186 | AQ201: =SUMIFS(Periods!$11:$11,Periods!$2:$2,AP201) -> 00:00:00 | AR201: =IF(OR(AQ201="",AQ201=0),"",MAX(AR$15:AR200)+1) ->  | AS201: 0
AP202: =MAX(AP$15:AP201)+1 -> 187 | AQ202: =SUMIFS(Periods!$11:$11,Periods!$2:$2,AP202) -> 00:00:00 | AR202: =IF(OR(AQ202="",AQ202=0),"",MAX(AR$15:AR201)+1) ->  | AS202: 0
AP203: =MAX(AP$15:AP202)+1 -> 188 | AQ203: =SUMIFS(Periods!$11:$11,Periods!$2:$2,AP203) -> 00:00:00 | AR203: =IF(OR(AQ203="",AQ203=0),"",MAX(AR$15:AR202)+1) ->  | AS203: 0
AP204: =MAX(AP$15:AP203)+1 -> 189 | AQ204: =SUMIFS(Periods!$11:$11,Periods!$2:$2,AP204) -> 00:00:00 | AR204: =IF(OR(AQ204="",AQ204=0),"",MAX(AR$15:AR203)+1) ->  | AS204: 0
AP205: =MAX(AP$15:AP204)+1 -> 190 | AQ205: =SUMIFS(Periods!$11:$11,Periods!$2:$2,AP205) -> 00:00:00 | AR205: =IF(OR(AQ205="",AQ205=0),"",MAX(AR$15:AR204)+1) ->  | AS205: 0
AP206: =MAX(AP$15:AP205)+1 -> 191 | AQ206: =SUMIFS(Periods!$11:$11,Periods!$2:$2,AP206) -> 00:00:00 | AR206: =IF(OR(AQ206="",AQ206=0),"",MAX(AR$15:AR205)+1) ->  | AS206: 0
AP207: =MAX(AP$15:AP206)+1 -> 192 | AQ207: =SUMIFS(Periods!$11:$11,Periods!$2:$2,AP207) -> 00:00:00 | AR207: =IF(OR(AQ207="",AQ207=0),"",MAX(AR$15:AR206)+1) ->  | AS207: 0
AP208: =MAX(AP$15:AP207)+1 -> 193 | AQ208: =SUMIFS(Periods!$11:$11,Periods!$2:$2,AP208) -> 00:00:00 | AR208: =IF(OR(AQ208="",AQ208=0),"",MAX(AR$15:AR207)+1) ->  | AS208: 0
... 207 more rows

Sheet Macro
Y1: номер столбца: | AA1: 27 | AB1: 28 | AC1: 29 | AD1: 30 | AE1: 31 | AF1: 32 | AG1: 33 | AH1: 34 | AI1: 35 | AJ1: 36 | AK1: 37 | AL1: 38 | AM1: 39 | AN1: 40 | AO1: 41 | AP1: 42 | AQ1: 43 | AR1: 44 | AS1: 45 | AT1: 46 | AU1: 47 | AV1: 48 | AW1: 49 | AX1: 50 | AY1: 51 | AZ1: 52 | BA1: 53 | BB1: 54 | BC1: 55 | BD1: 56 | BE1: 57 | BF1: 58 | BG1: 59 | BH1: 60 | BI1: 61 | BJ1: 62 | BK1: 63 | BL1: 64 | BM1: 65 | BN1: 66 | BO1: 67 | BP1: 68 | BQ1: 69 | BR1: 70 | BS1: 71 | BT1: 72 | BU1: 73 | BV1: 74 | BW1: 75 | BX1: 76 | BY1: 77 | BZ1: 78 | CA1: 79 | CB1: 80 | CC1: 81 | CD1: 82 | CE1: 83 | CF1: 84 | CG1: 85 | CH1: 86 | CI1: 87 | CJ1: 88 | CK1: 89 | CL1: 90 | CM1: 91 | CN1: 92 | CO1: 93 | CP1: 94 | CQ1: 95 | CR1: 96 | CS1: 97 | CT1: 98 | CU1: 99
Y2: номер периода модели: | AA2: 1 | AB2: 2 | AC2: 3 | AD2: 4 | AE2: 5 | AF2: 6 | AG2: 7 | AH2: 8 | AI2: 9 | AJ2: 10 | AK2: 11 | AL2: 12 | AM2: 13 | AN2: 14 | AO2: 15 | AP2: 16 | AQ2: 17 | AR2: 18 | AS2: 19 | AT2: 20 | AU2: 21 | AV2: 22 | AW2: 23 | AX2: 24 | AY2: 25 | AZ2: 26 | BA2: 27 | BB2: 28 | BC2: 29 | BD2: 30 | BE2: 31 | BF2: 32 | BG2: 33 | BH2: 34 | BI2: 35 | BJ2: 36 | BK2: 37 | BL2: 38 | BM2: 39 | BN2: 40 | BO2: 41 | BP2: 42 | BQ2: 43 | BR2: 44 | BS2: 45 | BT2: 46 | BU2: 47 | BV2: 48 | BW2: 49 | BX2: 50 | BY2: 51 | BZ2: 52 | CA2: 53 | CB2: 54 | CC2: 55 | CD2: 56 | CE2: 57 | CF2: 58 | CG2: 59 | CH2: 60 | CI2: 61 | CJ2: 62 | CK2: 63 | CL2: 64 | CM2: 65 | CN2: 66 | CO2: 67 | CP2: 68 | CQ2: 69 | CR2: 70 | CS2: 71 | CT2: 72 | CU2: 73
Y3: номер факт-периода:
Y4: номер план-периода: | AA4: 1 | AB4: 2 | AC4: 3 | AD4: 4 | AE4: 5 | AF4: 6 | AG4: 7 | AH4: 8 | AI4: 9 | AJ4: 10 | AK4: 11 | AL4: 12 | AM4: 13 | AN4: 14 | AO4: 15 | AP4: 16 | AQ4: 17 | AR4: 18 | AS4: 19 | AT4: 20 | AU4: 21 | AV4: 22 | AW4: 23 | AX4: 24 | AY4: 25 | AZ4: 26 | BA4: 27 | BB4: 28 | BC4: 29 | BD4: 30 | BE4: 31 | BF4: 32 | BG4: 33 | BH4: 34 | BI4: 35 | BJ4: 36 | BK4: 37 | BL4: 38 | BM4: 39 | BN4: 40 | BO4: 41 | BP4: 42 | BQ4: 43 | BR4: 44 | BS4: 45 | BT4: 46 | BU4: 47 | BV4: 48 | BW4: 49 | BX4: 50 | BY4: 51 | BZ4: 52 | CA4: 53 | CB4: 54 | CC4: 55 | CD4: 56 | CE4: 57 | CF4: 58 | CG4: 59 | CH4: 60
Y5: число даты начала: | AA5: 1 | AB5: 1 | AC5: 1 | AD5: 1 | AE5: 1 | AF5: 1 | AG5: 1 | AH5: 1 | AI5: 1 | AJ5: 1 | AK5: 1 | AL5: 1 | AM5: 1 | AN5: 1 | AO5: 1 | AP5: 1 | AQ5: 1 | AR5: 1 | AS5: 1 | AT5: 1 | AU5: 1 | AV5: 1 | AW5: 1 | AX5: 1 | AY5: 1 | AZ5: 1 | BA5: 1 | BB5: 1 | BC5: 1 | BD5: 1 | BE5: 1 | BF5: 1 | BG5: 1 | BH5: 1 | BI5: 1 | BJ5: 1 | BK5: 1 | BL5: 1 | BM5: 1 | BN5: 1 | BO5: 1 | BP5: 1 | BQ5: 1 | BR5: 1 | BS5: 1 | BT5: 1 | BU5: 1 | BV5: 1 | BW5: 1 | BX5: 1 | BY5: 1 | BZ5: 1 | CA5: 1 | CB5: 1 | CC5: 1 | CD5: 1 | CE5: 1 | CF5: 1 | CG5: 1 | CH5: 1
Y6: номер месяца даты начала: | AA6: 7 | AB6: 10 | AC6: 1 | AD6: 4 | AE6: 7 | AF6: 10 | AG6: 1 | AH6: 4 | AI6: 7 | AJ6: 10 | AK6: 1 | AL6: 4 | AM6: 7 | AN6: 10 | AO6: 1 | AP6: 4 | AQ6: 7 | AR6: 10 | AS6: 1 | AT6: 4 | AU6: 7 | AV6: 10 | AW6: 1 | AX6: 4 | AY6: 7 | AZ6: 10 | BA6: 1 | BB6: 4 | BC6: 7 | BD6: 10 | BE6: 1 | BF6: 4 | BG6: 7 | BH6: 10 | BI6: 1 | BJ6: 4 | BK6: 7 | BL6: 10 | BM6: 1 | BN6: 4 | BO6: 7 | BP6: 10 | BQ6: 1 | BR6: 4 | BS6: 7 | BT6: 10 | BU6: 1 | BV6: 4 | BW6: 7 | BX6: 10 | BY6: 1 | BZ6: 4 | CA6: 7 | CB6: 10 | CC6: 1 | CD6: 4 | CE6: 7 | CF6: 10 | CG6: 1 | CH6: 4
Y7: год даты начала: | AA7: 21 | AB7: 21 | AC7: 22 | AD7: 22 | AE7: 22 | AF7: 22 | AG7: 23 | AH7: 23 | AI7: 23 | AJ7: 23 | AK7: 24 | AL7: 24 | AM7: 24 | AN7: 24 | AO7: 25 | AP7: 25 | AQ7: 25 | AR7: 25 | AS7: 26 | AT7: 26 | AU7: 26 | AV7: 26 | AW7: 27 | AX7: 27 | AY7: 27 | AZ7: 27 | BA7: 28 | BB7: 28 | BC7: 28 | BD7: 28 | BE7: 29 | BF7: 29 | BG7: 29 | BH7: 29 | BI7: 30 | BJ7: 30 | BK7: 30 | BL7: 30 | BM7: 31 | BN7: 31 | BO7: 31 | BP7: 31 | BQ7: 32 | BR7: 32 | BS7: 32 | BT7: 32 | BU7: 33 | BV7: 33 | BW7: 33 | BX7: 33 | BY7: 34 | BZ7: 34 | CA7: 34 | CB7: 34 | CC7: 35 | CD7: 35 | CE7: 35 | CF7: 35 | CG7: 36 | CH7: 36
Y8: число даты окончания: | AA8: 30 | AB8: 31 | AC8: 31 | AD8: 30 | AE8: 30 | AF8: 31 | AG8: 31 | AH8: 30 | AI8: 30 | AJ8: 31 | AK8: 31 | AL8: 30 | AM8: 30 | AN8: 31 | AO8: 31 | AP8: 30 | AQ8: 30 | AR8: 31 | AS8: 31 | AT8: 30 | AU8: 30 | AV8: 31 | AW8: 31 | AX8: 30 | AY8: 30 | AZ8: 31 | BA8: 31 | BB8: 30 | BC8: 30 | BD8: 31 | BE8: 31 | BF8: 30 | BG8: 30 | BH8: 31 | BI8: 31 | BJ8: 30 | BK8: 30 | BL8: 31 | BM8: 31 | BN8: 30 | BO8: 30 | BP8: 31 | BQ8: 31 | BR8: 30 | BS8: 30 | BT8: 31 | BU8: 31 | BV8: 30 | BW8: 30 | BX8: 31 | BY8: 31 | BZ8: 30 | CA8: 30 | CB8: 31 | CC8: 31 | CD8: 30 | CE8: 30 | CF8: 31 | CG8: 31 | CH8: 30
Y9: номер месяца даты окончания: | AA9: 9 | AB9: 12 | AC9: 3 | AD9: 6 | AE9: 9 | AF9: 12 | AG9: 3 | AH9: 6 | AI9: 9 | AJ9: 12 | AK9: 3 | AL9: 6 | AM9: 9 | AN9: 12 | AO9: 3 | AP9: 6 | AQ9: 9 | AR9: 12 | AS9: 3 | AT9: 6 | AU9: 9 | AV9: 12 | AW9: 3 | AX9: 6 | AY9: 9 | AZ9: 12 | BA9: 3 | BB9: 6 | BC9: 9 | BD9: 12 | BE9: 3 | BF9: 6 | BG9: 9 | BH9: 12 | BI9: 3 | BJ9: 6 | BK9: 9 | BL9: 12 | BM9: 3 | BN9: 6 | BO9: 9 | BP9: 12 | BQ9: 3 | BR9: 6 | BS9: 9 | BT9: 12 | BU9: 3 | BV9: 6 | BW9: 9 | BX9: 12 | BY9: 3 | BZ9: 6 | CA9: 9 | CB9: 12 | CC9: 3 | CD9: 6 | CE9: 9 | CF9: 12 | CG9: 3 | CH9: 6
Y10: год даты окончания: | AA10: 21 | AB10: 21 | AC10: 22 | AD10: 22 | AE10: 22 | AF10: 22 | AG10: 23 | AH10: 23 | AI10: 23 | AJ10: 23 | AK10: 24 | AL10: 24 | AM10: 24 | AN10: 24 | AO10: 25 | AP10: 25 | AQ10: 25 | AR10: 25 | AS10: 26 | AT10: 26 | AU10: 26 | AV10: 26 | AW10: 27 | AX10: 27 | AY10: 27 | AZ10: 27 | BA10: 28 | BB10: 28 | BC10: 28 | BD10: 28 | BE10: 29 | BF10: 29 | BG10: 29 | BH10: 29 | BI10: 30 | BJ10: 30 | BK10: 30 | BL10: 30 | BM10: 31 | BN10: 31 | BO10: 31 | BP10: 31 | BQ10: 32 | BR10: 32 | BS10: 32 | BT10: 32 | BU10: 33 | BV10: 33 | BW10: 33 | BX10: 33 | BY10: 34 | BZ10: 34 | CA10: 34 | CB10: 34 | CC10: 35 | CD10: 35 | CE10: 35 | CF10: 35 | CG10: 36 | CH10: 36
F11: Macro | I11: Макропоказатели внешней среды | X11: 2021-07-01 | AA11: 2021-07-01 | AB11: 2021-10-01 | AC11: 2022-01-01 | AD11: 2022-04-01 | AE11: 2022-07-01 | AF11: 2022-10-01 | AG11: 2023-01-01 | AH11: 2023-04-01 | AI11: 2023-07-01 | AJ11: 2023-10-01 | AK11: 2024-01-01 | AL11: 2024-04-01 | AM11: 2024-07-01 | AN11: 2024-10-01 | AO11: 2025-01-01 | AP11: 2025-04-01 | AQ11: 2025-07-01 | AR11: 2025-10-01 | AS11: 2026-01-01 | AT11: 2026-04-01 | AU11: 2026-07-01 | AV11: 2026-10-01 | AW11: 2027-01-01 | AX11: 2027-04-01 | AY11: 2027-07-01 | AZ11: 2027-10-01 | BA11: 2028-01-01 | BB11: 2028-04-01 | BC11: 2028-07-01 | BD11: 2028-10-01 | BE11: 2029-01-01 | BF11: 2029-04-01 | BG11: 2029-07-01 | BH11: 2029-10-01 | BI11: 2030-01-01 | BJ11: 2030-04-01 | BK11: 2030-07-01 | BL11: 2030-10-01 | BM11: 2031-01-01 | BN11: 2031-04-01 | BO11: 2031-07-01 | BP11: 2031-10-01 | BQ11: 2032-01-01 | BR11: 2032-04-01 | BS11: 2032-07-01 | BT11: 2032-10-01 | BU11: 2033-01-01 | BV11: 2033-04-01 | BW11: 2033-07-01 | BX11: 2033-10-01 | BY11: 2034-01-01 | BZ11: 2034-04-01 | CA11: 2034-07-01 | CB11: 2034-10-01 | CC11: 2035-01-01 | CD11: 2035-04-01 | CE11: 2035-07-01 | CF11: 2035-10-01 | CG11: 2036-01-01 | CH11: 2036-04-01
H12: тип листа | Q12: расчетный | X12: 2036-06-30 | AA12: 2021-09-30 | AB12: 2021-12-31 | AC12: 2022-03-31 | AD12: 2022-06-30 | AE12: 2022-09-30 | AF12: 2022-12-31 | AG12: 2023-03-31 | AH12: 2023-06-30 | AI12: 2023-09-30 | AJ12: 2023-12-31 | AK12: 2024-03-31 | AL12: 2024-06-30 | AM12: 2024-09-30 | AN12: 2024-12-31 | AO12: 2025-03-31 | AP12: 2025-06-30 | AQ12: 2025-09-30 | AR12: 2025-12-31 | AS12: 2026-03-31 | AT12: 2026-06-30 | AU12: 2026-09-30 | AV12: 2026-12-31 | AW12: 2027-03-31 | AX12: 2027-06-30 | AY12: 2027-09-30 | AZ12: 2027-12-31 | BA12: 2028-03-31 | BB12: 2028-06-30 | BC12: 2028-09-30 | BD12: 2028-12-31 | BE12: 2029-03-31 | BF12: 2029-06-30 | BG12: 2029-09-30 | BH12: 2029-12-31 | BI12: 2030-03-31 | BJ12: 2030-06-30 | BK12: 2030-09-30 | BL12: 2030-12-31 | BM12: 2031-03-31 | BN12: 2031-06-30 | BO12: 2031-09-30 | BP12: 2031-12-31 | BQ12: 2032-03-31 | BR12: 2032-06-30 | BS12: 2032-09-30 | BT12: 2032-12-31 | BU12: 2033-03-31 | BV12: 2033-06-30 | BW12: 2033-09-30 | BX12: 2033-12-31 | BY12: 2034-03-31 | BZ12: 2034-06-30 | CA12: 2034-09-30 | CB12: 2034-12-31 | CC12: 2035-03-31 | CD12: 2035-06-30 | CE12: 2035-09-30 | CF12: 2035-12-31 | CG12: 2036-03-31 | CH12: 2036-06-30
H13: показатель | M13: ед.изм. | Q13: значение | X13: итого | AA13: 3кв21г | AB13: 4кв21г | AC13: 1кв22г | AD13: 2кв22г | AE13: 3кв22г | AF13: 4кв22г | AG13: 1кв23г | AH13: 2кв23г | AI13: 3кв23г | AJ13: 4кв23г | AK13: 1кв24г | AL13: 2кв24г | AM13: 3кв24г | AN13: 4кв24г | AO13: 1кв25г | AP13: 2кв25г | AQ13: 3кв25г | AR13: 4кв25г | AS13: 1кв26г | AT13: 2кв26г | AU13: 3кв26г | AV13: 4кв26г | AW13: 1кв27г | AX13: 2кв27г | AY13: 3кв27г | AZ13: 4кв27г | BA13: 1кв28г | BB13: 2кв28г | BC13: 3кв28г | BD13: 4кв28г | BE13: 1кв29г | BF13: 2кв29г | BG13: 3кв29г | BH13: 4кв29г | BI13: 1кв30г | BJ13: 2кв30г | BK13: 3кв30г | BL13: 4кв30г | BM13: 1кв31г | BN13: 2кв31г | BO13: 3кв31г | BP13: 4кв31г | BQ13: 1кв32г | BR13: 2кв32г | BS13: 3кв32г | BT13: 4кв32г | BU13: 1кв33г | BV13: 2кв33г | BW13: 3кв33г | BX13: 4кв33г | BY13: 1кв34г | BZ13: 2кв34г | CA13: 3кв34г | CB13: 4кв34г | CC13: 1кв35г | CD13: 2кв35г | CE13: 3кв35г | CF13: 4кв35г | CG13: 1кв36г | CH13: 2кв36г
D14: 0 | E14: 0 | F14: 0 | G14: 0 | S14: 0 | T14: 0
A15: 15 | H15: разработка финмоделей: https://mngmnt.ru/
A16: 16 | G16: 0 | H16: Параметры рабочего дня сотрудника
A17: 17 | G17: 0 | H17: Параметры рабочего дня сотрудника | I17: Время одной смены рабочего дня | M17: кол-во часов | P17: * | Q17: 8 | S17: 0
A18: 18 | G18: 0 | H18: Параметры рабочего дня сотрудника | I18: Количество рабочих дней в месяце | M18: р.дней/мес. | P18: * | Q18: 20 | S18: 0
A19: 19 | G19: 0 | H19: Параметры рабочего дня сотрудника | I19: Количество рабочих дней в расчетном периоде | M19: р.дней/расч.пер. | Q19: 60 | S19: 0
A20: 20 | G20: 0 | H20: Параметры рабочего дня сотрудника | I20: Количество рабочих часов в расчетном периоде | M20: р.часов/расч.пер. | Q20: 480 | S20: 0
A21: 21
A22: 22 | G22: 0 | H22: Система налогообложения | AA22: УСН(6%) | AB22: УСН(6%) | AC22: УСН(15%) | AD22: УСН(15%) | AE22: УСН(15%) | AF22: УСН(15%) | AG22: ОСНО | AH22: ОСНО | AI22: ОСНО | AJ22: ОСНО | AK22: ОСНО | AL22: ОСНО | AM22: ОСНО | AN22: ОСНО | AO22: ОСНО | AP22: ОСНО | AQ22: ОСНО | AR22: ОСНО | AS22: ОСНО | AT22: ОСНО | AU22: ОСНО | AV22: ОСНО | AW22: ОСНО | AX22: ОСНО | AY22: ОСНО | AZ22: ОСНО | BA22: ОСНО | BB22: ОСНО | BC22: ОСНО | BD22: ОСНО | BE22: ОСНО | BF22: ОСНО | BG22: ОСНО | BH22: ОСНО | BI22: ОСНО | BJ22: ОСНО | BK22: ОСНО | BL22: ОСНО | BM22: ОСНО | BN22: ОСНО | BO22: ОСНО | BP22: ОСНО | BQ22: ОСНО | BR22: ОСНО | BS22: ОСНО | BT22: ОСНО | BU22: ОСНО | BV22: ОСНО | BW22: ОСНО | BX22: ОСНО | BY22: ОСНО | BZ22: ОСНО | CA22: ОСНО | CB22: ОСНО | CC22: ОСНО | CD22: ОСНО | CE22: ОСНО | CF22: ОСНО | CG22: ОСНО | CH22: ОСНО
A23: 23 | G23: 0 | H23: Система налогообложения | I23: Единое значение для всех периодов расчета | M23: вып.список | P23: * | R23: ^ | S23: 0
A24: 24 | G24: 0 | H24: Система налогообложения | I24: Вручную для каждого периода расчетов | M24: вып.список | Y24: *
A25: 25 | G25: 0 | H25: Система налогообложения | I25: г | J25: 2021 | M25: вып.список | P25: * | Q25: УСН(6%) | R25: ^ | S25: 0
A26: 26 | G26: 0 | H26: Система налогообложения | I26: г | J26: 2022 | M26: вып.список | P26: * | Q26: УСН(15%) | R26: ^ | S26: 0
A27: 27 | G27: 0 | H27: Система налогообложения | I27: г | J27: 2023 | M27: вып.список | P27: * | R27: ^ | S27: 0
A28: 28 | G28: 0 | H28: Система налогообложения | I28: г | J28: 2024 | M28: вып.список | P28: * | R28: ^ | S28: 0
A29: 29 | L29: пустая строка
A30: 30
A31: 31 | G31: 0 | H31: Ставки налога на прибыль
A32: 32 | G32: 0 | H32: Ставки налога на прибыль | I32: ОСНО | M32: % | P32: * | Q32: 0.2 | S32: 0
A33: 33 | G33: 0 | H33: Ставки налога на прибыль | I33: УСН(6%) | M33: % | P33: * | Q33: 0.06 | S33: 0
A34: 34 | G34: 0 | H34: Ставки налога на прибыль | I34: УСН(6%) | J34: ограничения суммы НП на вычет соцсборов | M34: % | P34: * | Q34: 0.5 | S34: 0
A35: 35 | G35: 0 | H35: Ставки налога на прибыль | I35: УСН(15%) | M35: % | P35: * | Q35: 0.15 | S35: 0
A36: 36 | G36: 0 | H36: Ставки налога на прибыль | I36: УСН(15%) | J36: минимальный процент от дохода | M36: % | P36: * | Q36: 0.01 | S36: 0
A37: 37 | G37: 0 | H37: Ставки налога на прибыль | I37: ТОСЭР | M37: %
A38: 38 | G38: 0 | H38: Ставки налога на прибыль | I38: г | J38: 5 | M38: % | P38: * | Q38: 0 | S38: 0
A39: 39 | G39: 0 | H39: Ставки налога на прибыль | I39: г | J39: 10 | M39: % | P39: * | Q39: 0.12 | S39: 0
A40: 40 | L40: пустая строка
A41: 41
A42: 42 | G42: 0 | H42: Ставки НДС
A43: 43 | G43: 0 | H43: Ставки НДС | I43: ОСНО | M43: % | P43: * | Q43: 0.2 | S43: 0
A44: 44 | G44: 0 | H44: Ставки НДС | I44: УСН(6%) | M44: % | P44: * | Q44: 0 | S44: 0
A45: 45 | G45: 0 | H45: Ставки НДС | I45: УСН(15%) | M45: % | P45: * | Q45: 0 | S45: 0
A46: 46 | G46: 0 | H46: Ставки НДС | I46: ТОСЭР | M46: %
A47: 47 | G47: 0 | H47: Ставки НДС | I47: г | J47: 5 | M47: % | P47: * | Q47: 0.2 | S47: 0
A48: 48 | G48: 0 | H48: Ставки НДС | I48: г | J48: 10 | M48: % | P48: * | Q48: 0.2 | S48: 0
A49: 49 | L49: пустая строка
A50: 50
A51: 51 | G51: 0 | H51: Ставки соцсборов
A52: 52 | G52: 0 | H52: Ставки соцсборов | I52: ОСНО | M52: % | P52: * | Q52: 0.3 | S52: 0
A53: 53 | G53: 0 | H53: Ставки соцсборов | I53: УСН(6%) | M53: % | P53: * | Q53: 0.3 | S53: 0
A54: 54 | G54: 0 | H54: Ставки соцсборов | I54: УСН(15%) | M54: % | P54: * | Q54: 0.3 | S54: 0
A55: 55 | G55: 0 | H55: Ставки соцсборов | I55: ТОСЭР | M55: %
A56: 56 | G56: 0 | H56: Ставки соцсборов | I56: г | J56: 5 | M56: % | P56: * | Q56: 0.076 | S56: 0
A57: 57 | G57: 0 | H57: Ставки соцсборов | I57: г | J57: 10 | M57: % | P57: * | Q57: 0.076 | S57: 0
A58: 58 | L58: пустая строка
A59: 59
A60: 60 | G60: 0 | H60: Ставки земельного налога | AA60: 0.015 | AB60: 0.015 | AC60: 0.015 | AD60: 0.015 | AE60: 0.015 | AF60: 0.015 | AG60: 0.015 | AH60: 0.015 | AI60: 0.015 | AJ60: 0.015 | AK60: 0.015 | AL60: 0.015 | AM60: 0.015 | AN60: 0.015 | AO60: 0.015 | AP60: 0.015 | AQ60: 0.015 | AR60: 0.015 | AS60: 0.015 | AT60: 0.015 | AU60: 0.015 | AV60: 0.015 | AW60: 0.015 | AX60: 0.015 | AY60: 0.015 | AZ60: 0.015 | BA60: 0.015 | BB60: 0.015 | BC60: 0.015 | BD60: 0.015 | BE60: 0.015 | BF60: 0.015 | BG60: 0.015 | BH60: 0.015 | BI60: 0.015 | BJ60: 0.015 | BK60: 0.015 | BL60: 0.015 | BM60: 0.015 | BN60: 0.015 | BO60: 0.015 | BP60: 0.015 | BQ60: 0.015 | BR60: 0.015 | BS60: 0.015 | BT60: 0.015 | BU60: 0.015 | BV60: 0.015 | BW60: 0.015 | BX60: 0.015 | BY60: 0.015 | BZ60: 0.015 | CA60: 0.015 | CB60: 0.015 | CC60: 0.015 | CD60: 0.015 | CE60: 0.015 | CF60: 0.015 | CG60: 0.015 | CH60: 0.015 | CI60: 0.015 | CJ60: 0.015 | CK60: 0.015 | CL60: 0.015 | CM60: 0.015 | CN60: 0.015 | CO60: 0.015 | CP60: 0.015 | CQ60: 0.015 | CR60: 0.015 | CS60: 0.015 | CT60: 0.015 | CU60: 0.015
A61: 61 | G61: 0 | H61: Ставки земельного налога | I61: ОСНО | M61: % | P61: * | Q61: 0.015 | S61: 0
A62: 62 | G62: 0 | H62: Ставки земельного налога | I62: УСН(6%) | M62: % | P62: * | Q62: 0.015 | S62: 0
A63: 63 | G63: 0 | H63: Ставки земельного налога | I63: УСН(15%) | M63: % | P63: * | Q63: 0.015 | S63: 0
A64: 64 | G64: 0 | H64: Ставки земельного налога | I64: ТОСЭР | M64: %
A65: 65 | G65: 0 | H65: Ставки земельного налога | I65: г | J65: 5 | M65: % | P65: * | Q65: 0 | S65: 0
A66: 66 | G66: 0 | H66: Ставки земельного налога | I66: г | J66: 20 | M66: % | P66: * | Q66: 0 | S66: 0
A67: 67 | L67: пустая строка
A68: 68
A69: 69 | G69: 0 | H69: Ставки налога на имущество | AA69: 0.015 | AB69: 0.015 | AC69: 0.015 | AD69: 0.015 | AE69: 0.015 | AF69: 0.015 | AG69: 0.015 | AH69: 0.015 | AI69: 0.015 | AJ69: 0.015 | AK69: 0.015 | AL69: 0.015 | AM69: 0.015 | AN69: 0.015 | AO69: 0.015 | AP69: 0.015 | AQ69: 0.015 | AR69: 0.015 | AS69: 0.015 | AT69: 0.015 | AU69: 0.015 | AV69: 0.015 | AW69: 0.015 | AX69: 0.015 | AY69: 0.015 | AZ69: 0.015 | BA69: 0.015 | BB69: 0.015 | BC69: 0.015 | BD69: 0.015 | BE69: 0.015 | BF69: 0.015 | BG69: 0.015 | BH69: 0.015 | BI69: 0.015 | BJ69: 0.015 | BK69: 0.015 | BL69: 0.015 | BM69: 0.015 | BN69: 0.015 | BO69: 0.015 | BP69: 0.015 | BQ69: 0.015 | BR69: 0.015 | BS69: 0.015 | BT69: 0.015 | BU69: 0.015 | BV69: 0.015 | BW69: 0.015 | BX69: 0.015 | BY69: 0.015 | BZ69: 0.015 | CA69: 0.015 | CB69: 0.015 | CC69: 0.015 | CD69: 0.015 | CE69: 0.015 | CF69: 0.015 | CG69: 0.015 | CH69: 0.015 | CI69: 0.015 | CJ69: 0.015 | CK69: 0.015 | CL69: 0.015 | CM69: 0.015 | CN69: 0.015 | CO69: 0.015 | CP69: 0.015 | CQ69: 0.015 | CR69: 0.015 | CS69: 0.015 | CT69: 0.015 | CU69: 0.015
A70: 70 | G70: 0 | H70: Ставки налога на имущество | I70: ОСНО | M70: % | P70: * | Q70: 0.015 | S70: 0
A71: 71 | G71: 0 | H71: Ставки налога на имущество | I71: УСН(6%) | M71: % | P71: * | Q71: 0.015 | S71: 0
A72: 72 | G72: 0 | H72: Ставки налога на имущество | I72: УСН(15%) | M72: % | P72: * | Q72: 0.015 | S72: 0
A73: 73 | G73: 0 | H73: Ставки налога на имущество | I73: ТОСЭР | M73: %
A74: 74 | G74: 0 | H74: Ставки налога на имущество | I74: г | J74: 5 | M74: % | P74: * | Q74: 0 | S74: 0
A75: 75 | G75: 0 | H75: Ставки налога на имущество | I75: г | J75: 20 | M75: % | P75: * | Q75: 0 | S75: 0
A76: 76 | L76: пустая строка
A77: 77
A78: 78 | G78: 0 | H78: Ставки транспортного налога | AA78: 0.0045 | AB78: 0.0045 | AC78: 0.0045 | AD78: 0.0045 | AE78: 0.0045 | AF78: 0.0045 | AG78: 0.0045 | AH78: 0.0045 | AI78: 0.0045 | AJ78: 0.0045 | AK78: 0.0045 | AL78: 0.0045 | AM78: 0.0045 | AN78: 0.0045 | AO78: 0.0045 | AP78: 0.0045 | AQ78: 0.0045 | AR78: 0.0045 | AS78: 0.0045 | AT78: 0.0045 | AU78: 0.0045 | AV78: 0.0045 | AW78: 0.0045 | AX78: 0.0045 | AY78: 0.0045 | AZ78: 0.0045 | BA78: 0.0045 | BB78: 0.0045 | BC78: 0.0045 | BD78: 0.0045 | BE78: 0.0045 | BF78: 0.0045 | BG78: 0.0045 | BH78: 0.0045 | BI78: 0.0045 | BJ78: 0.0045 | BK78: 0.0045 | BL78: 0.0045 | BM78: 0.0045 | BN78: 0.0045 | BO78: 0.0045 | BP78: 0.0045 | BQ78: 0.0045 | BR78: 0.0045 | BS78: 0.0045 | BT78: 0.0045 | BU78: 0.0045 | BV78: 0.0045 | BW78: 0.0045 | BX78: 0.0045 | BY78: 0.0045 | BZ78: 0.0045 | CA78: 0.0045 | CB78: 0.0045 | CC78: 0.0045 | CD78: 0.0045 | CE78: 0.0045 | CF78: 0.0045 | CG78: 0.0045 | CH78: 0.0045 | CI78: 0.0045 | CJ78: 0.0045 | CK78: 0.0045 | CL78: 0.0045 | CM78: 0.0045 | CN78: 0.0045 | CO78: 0.0045 | CP78: 0.0045 | CQ78: 0.0045 | CR78: 0.0045 | CS78: 0.0045 | CT78: 0.0045 | CU78: 0.0045
A79: 79 | G79: 0 | H79: Ставки транспортного налога | I79: ОСНО | M79: % | P79: * | Q79: 0.0045 | S79: 0
A80: 80 | G80: 0 | H80: Ставки транспортного налога | I80: УСН(6%) | M80: % | P80: * | Q80: 0.0045 | S80: 0
A81: 81 | G81: 0 | H81: Ставки транспортного налога | I81: УСН(15%) | M81: % | P81: * | Q81: 0.0045 | S81: 0
A82: 82 | G82: 0 | H82: Ставки транспортного налога | I82: ТОСЭР | M82: %
A83: 83 | G83: 0 | H83: Ставки транспортного налога | I83: г | J83: 5 | M83: % | P83: * | Q83: 0 | S83: 0
A84: 84 | G84: 0 | H84: Ставки транспортного налога | I84: г | J84: 20 | M84: % | P84: * | Q84: 0 | S84: 0
A85: 85 | L85: пустая строка
A86: 86
A87: 87 | G87: 0 | H87: НДС к возмещению по капзатратам
A88: 88 | G88: 0 | H88: НДС к возмещению по капзатратам | I88: кол-во месяцев на возмещение НДС | M88: кол-во мес. | P88: * | Q88: 7 | S88: 0
H91: разработка финмоделей: https://mngmnt.ru/

Sheet Items
I1: =COLUMN() -> 9 | M1: =COLUMN() -> 13 | Q1: =COLUMN() -> 17 | AD1: =COLUMN() -> 30 | AH1: =COLUMN() -> 34 | AL1: =COLUMN() -> 38 | AN1: =COLUMN() -> 40 | AQ1: =COLUMN() -> 43 | AU1: =COLUMN() -> 47 | AY1: =COLUMN() -> 51 | BC1: =COLUMN() -> 55 | BG1: =COLUMN() -> 59 | BK1: =COLUMN() -> 63 | BO1: =COLUMN() -> 67 | BS1: =COLUMN() -> 71
I2: =LEFT(ADDRESS(1,COLUMN(),4),LEN(ADDRESS(1,COLUMN(),4))-1) -> I | M2: =LEFT(ADDRESS(1,COLUMN(),4),LEN(ADDRESS(1,COLUMN(),4))-1) -> M | Q2: =LEFT(ADDRESS(1,COLUMN(),4),LEN(ADDRESS(1,COLUMN(),4))-1) -> Q | AD2: =LEFT(ADDRESS(1,COLUMN(),4),LEN(ADDRESS(1,COLUMN(),4))-1) -> AD | AH2: =LEFT(ADDRESS(1,COLUMN(),4),LEN(ADDRESS(1,COLUMN(),4))-1) -> AH | AL2: =LEFT(ADDRESS(1,COLUMN(),4),LEN(ADDRESS(1,COLUMN(),4))-1) -> AL | AN2: =LEFT(ADDRESS(1,COLUMN(),4),LEN(ADDRESS(1,COLUMN(),4))-1) -> AN | AQ2: =LEFT(ADDRESS(1,COLUMN(),4),LEN(ADDRESS(1,COLUMN(),4))-1) -> AQ | AU2: =LEFT(ADDRESS(1,COLUMN(),4),LEN(ADDRESS(1,COLUMN(),4))-1) -> AU | AY2: =LEFT(ADDRESS(1,COLUMN(),4),LEN(ADDRESS(1,COLUMN(),4))-1) -> AY | BC2: =LEFT(ADDRESS(1,COLUMN(),4),LEN(ADDRESS(1,COLUMN(),4))-1) -> BC | BG2: =LEFT(ADDRESS(1,COLUMN(),4),LEN(ADDRESS(1,COLUMN(),4))-1) -> BG | BK2: =LEFT(ADDRESS(1,COLUMN(),4),LEN(ADDRESS(1,COLUMN(),4))-1) -> BK | BO2: =LEFT(ADDRESS(1,COLUMN(),4),LEN(ADDRESS(1,COLUMN(),4))-1) -> BO | BS2: =LEFT(ADDRESS(1,COLUMN(),4),LEN(ADDRESS(1,COLUMN(),4))-1) -> BS
F11: =INDIRECT("START!I30") -> Items | I11: =INDIRECT("START!K30") -> Справочники статей доходов и расходов и т.д.
I12: =START!$I$32 -> Mrkting | M12: =START!$I$32 -> Mrkting | Q12: =START!$I$32 -> Mrkting | AD12: =START!$I$34 -> Sales | AH12: =START!$I$34 -> Sales | AL12: =START!$I$35 -> Prdction | AN12: =START!$I$35 -> Prdction | AQ12: =START!$I$35 -> Prdction | AU12: =START!$I$33 -> CapEx | AY12: =START!$I$33 -> CapEx | BC12: =START!$I$37 -> Exp | BG12: =START!$I$36 -> HR | BK12: =START!$I$54 -> Calc | BO12: =START!$I$54 -> Calc | BS12: =START!$I$54 -> Calc
I13: Капзатраты на ЗУ и открытие | M13: Прямые переменные расходы маркетинга | Q13: Прямые постоянные расходы маркетинга | AD13: Прямые переменные коммерческие расходы | AH13: Прямые постоянные расходы отдела продаж | AL13: Прямые производственные расходы | AN13: ед.изм. | AQ13: Постоянные производственные расходы | AU13: Капзатраты разовые амортизируемые | AY13: Капзатраты переменные амортизируемые | BC13: Постоянные расходы | BG13: Расходы на персонал | BK13: Статьи Баланса | BO13: Статьи отчета о прибылях и убытках | BS13: Статьи отчета о ДДС
D14: =INDIRECT("Cntrl!M17") -> 0 | E14: =SUM($F14:$PM14) -> 0 | F14: =IFERROR(_xlfn.SHEET($A$1)-SUMIFS(Cntrl!O$15:O$100000,Cntrl!I$15:I$100000,$F$11),1) -> 0 | I14: =IF(OR(I13=0,I13=""),1,IF(COUNTIF(13:13,I13)=1,0,1)) -> 0 | K14: =SUM(K$15:K$100000) -> 0 | M14: =IF(OR(M13=0,M13=""),1,IF(COUNTIF(13:13,M13)=1,0,1)) -> 0 | O14: =SUM(O$15:O$100000) -> 0 | Q14: =IF(OR(Q13=0,Q13=""),1,IF(COUNTIF(13:13,Q13)=1,0,1)) -> 0 | S14: =SUM(S$15:S$100000) -> 0 | AD14: =IF(OR(AD13=0,AD13=""),1,IF(COUNTIF(13:13,AD13)=1,0,1)) -> 0 | AF14: =SUM(AF$15:AF$100000) -> 0 | AH14: =IF(OR(AH13=0,AH13=""),1,IF(COUNTIF(13:13,AH13)=1,0,1)) -> 0 | AJ14: =SUM(AJ$15:AJ$100000) -> 0 | AL14: =IF(OR(AL13=0,AL13=""),1,IF(COUNTIF(13:13,AL13)=1,0,1)) -> 0 | AN14: =IF(OR(AN13=0,AN13=""),1,IF(COUNTIF(13:13,AN13)=1,0,1)) -> 0 | AO14: =SUM(AO$15:AO$100000) -> 0 | AQ14: =IF(OR(AQ13=0,AQ13=""),1,IF(COUNTIF(13:13,AQ13)=1,0,1)) -> 0 | AS14: =SUM(AS$15:AS$100000) -> 0 | AU14: =IF(OR(AU13=0,AU13=""),1,IF(COUNTIF(13:13,AU13)=1,0,1)) -> 0 | AW14: =SUM(AW$15:AW$100000) -> 0 | AY14: =IF(OR(AY13=0,AY13=""),1,IF(COUNTIF(13:13,AY13)=1,0,1)) -> 0 | BA14: =SUM(BA$15:BA$100000) -> 0 | BC14: =IF(OR(BC13=0,BC13=""),1,IF(COUNTIF(13:13,BC13)=1,0,1)) -> 0 | BE14: =SUM(BE$15:BE$100000) -> 0 | BG14: =IF(OR(BG13=0,BG13=""),1,IF(COUNTIF(13:13,BG13)=1,0,1)) -> 0 | BI14: =SUM(BI$15:BI$100000) -> 0 | BK14: =IF(OR(BK13=0,BK13=""),1,IF(COUNTIF(13:13,BK13)=1,0,1)) -> 0 | BM14: =SUM(BM$15:BM$100000) -> 0 | BO14: =IF(OR(BO13=0,BO13=""),1,IF(COUNTIF(13:13,BO13)=1,0,1)) -> 0 | BQ14: =SUM(BQ$15:BQ$100000) -> 0 | BS14: =IF(OR(BS13=0,BS13=""),1,IF(COUNTIF(13:13,BS13)=1,0,1)) -> 0 | BU14: =SUM(BU$15:BU$100000) -> 0
A15: =ROW() -> 15 | I15: =$F$11&"!"&I$2&$A16&":"&I$2&($A15+MAX(J$15:J$100000)) -> Items!I16:I18 | M15: =$F$11&"!"&M$2&$A16&":"&M$2&($A15+MAX(N$15:N$100000)) -> Items!M16:M18 | Q15: =$F$11&"!"&Q$2&$A16&":"&Q$2&($A15+MAX(R$15:R$100000)) -> Items!Q16:Q17 | AD15: =$F$11&"!"&AD$2&$A16&":"&AD$2&($A15+MAX(AE$15:AE$100000)) -> Items!AD16:AD18 | AH15: =$F$11&"!"&AH$2&$A16&":"&AH$2&($A15+MAX(AI$15:AI$100000)) -> Items!AH16:AH17 | AL15: =$F$11&"!"&AL$2&$A16&":"&AL$2&($A15+MAX(AM$15:AM$100000)) -> Items!AL16:AL18 | AN15: =$F$11&"!"&AN$2&$A16&":"&AN$2&($A15+MAX(AO$15:AO$100000)) -> Items!AN16:AN15 | AQ15: =$F$11&"!"&AQ$2&$A16&":"&AQ$2&($A15+MAX(AR$15:AR$100000)) -> Items!AQ16:AQ17 | AU15: =$F$11&"!"&AU$2&$A16&":"&AU$2&($A15+MAX(AV$15:AV$100000)) -> Items!AU16:AU25 | AY15: =$F$11&"!"&AY$2&$A16&":"&AY$2&($A15+MAX(AZ$15:AZ$100000)) -> Items!AY16:AY25 | BC15: =$F$11&"!"&BC$2&$A16&":"&BC$2&($A15+MAX(BD$15:BD$100000)) -> Items!BC16:BC22 | BG15: =$F$11&"!"&BG$2&$A16&":"&BG$2&($A15+MAX(BH$15:BH$100000)) -> Items!BG16:BG20 | BK15: =$F$11&"!"&BK$2&$A16&":"&BK$2&($A15+MAX(BL$15:BL$100000)) -> Items!BK16:BK46 | BO15: =$F$11&"!"&BO$2&$A16&":"&BO$2&($A15+MAX(BP$15:BP$100000)) -> Items!BO16:BO35 | BS15: =$F$11&"!"&BS$2&$A16&":"&BS$2&($A15+MAX(BT$15:BT$100000)) -> Items!BS16:BS42
A16: =ROW() -> 16 | H16: * | I16: Расходы на маркетинг открытия | J16: =MAX(J$15:J15)+1 -> 1 | K16: =IF(OR(I16=0,I16=""),0,IF(COUNTIF(I$15:I$100000,I16)=1,0,1)) -> 0 | L16: * | M16: Расходы на привлечение туристов | N16: =MAX(N$15:N15)+1 -> 1 | O16: =IF(OR(M16=0,M16=""),0,IF(COUNTIF(M$15:M$100000,M16)=1,0,1)) -> 0 | Q16: ФОТ сотрудников маркетинга | R16: =MAX(R$15:R15)+1 -> 1 | S16: =IF(OR(Q16=0,Q16=""),0,IF(COUNTIF(Q$15:Q$100000,Q16)=1,0,1)) -> 0 | AC16: * | AD16: Представительские расходы | AE16: =MAX(AE$15:AE15)+1 -> 1 | AF16: =IF(OR(AD16=0,AD16=""),0,IF(COUNTIF(AD$15:AD$100000,AD16)=1,0,1)) -> 0 | AH16: ФОТ менеджеров-консультантов | AI16: =MAX(AI$15:AI15)+1 -> 1 | AJ16: =IF(OR(AH16=0,AH16=""),0,IF(COUNTIF(AH$15:AH$100000,AH16)=1,0,1)) -> 0 | AK16: * | AL16: Расходы производственные - 1 | AM16: =MAX(AM$15:AM15)+1 -> 1 | AN16: шт | AO16: =IF(OR(AL16=0,AL16=""),0,IF(COUNTIF(AL$15:AL$100000,AL16)=1,0,1)) -> 0 | AQ16: ФОТ обслуживающего персонала | AR16: =MAX(AR$15:AR15)+1 -> 1 | AS16: =IF(OR(AQ16=0,AQ16=""),0,IF(COUNTIF(AQ$15:AQ$100000,AQ16)=1,0,1)) -> 0 | AT16: * | AU16: Юридические расходы | AV16: =MAX(AV$15:AV15)+1 -> 1 | AW16: =IF(OR(AU16=0,AU16=""),0,IF(COUNTIF(AU$15:AU$100000,AU16)=1,0,1)) -> 0 | AX16: * | AY16: Приобретение зданий/сооружений | AZ16: =MAX(AZ$15:AZ15)+1 -> 1 | BA16: =IF(OR(AY16=0,AY16=""),0,IF(COUNTIF(AY$15:AY$100000,AY16)=1,0,1)) -> 0 | BB16: * | BC16: Аутсорсинг бухгалтерии | BD16: =MAX(BD$15:BD15)+1 -> 1 | BE16: =IF(OR(BC16=0,BC16=""),0,IF(COUNTIF(BC$15:BC$100000,BC16)=1,0,1)) -> 0 | BF16: * | BG16: Аренда офиса | BH16: =MAX(BH$15:BH15)+1 -> 1 | BI16: =IF(OR(BG16=0,BG16=""),0,IF(COUNTIF(BG$15:BG$100000,BG16)=1,0,1)) -> 0 | BJ16: * | BK16: Дебиторская задолженность | BL16: =MAX(BL$15:BL15)+1 -> 1 | BM16: =IF(OR(BK16=0,BK16=""),0,IF(COUNTIF(BK$15:BK$100000,BK16)=1,0,1)) -> 0 | BN16: * | BO16: Выручка | BP16: =MAX(BP$15:BP15)+1 -> 1 | BQ16: =IF(OR(BO16=0,BO16=""),0,IF(COUNTIF(BO$15:BO$100000,BO16)=1,0,1)) -> 0 | BR16: * | BS16: Финпоток проекта без финансирования (CF) | BT16: =MAX(BT$15:BT15)+1 -> 1 | BU16: =IF(OR(BS16=0,BS16=""),0,IF(COUNTIF(BS$15:BS$100000,BS16)=1,0,1)) -> 0
A17: =ROW() -> 17 | H17: * | I17: Приобретение ЗУ | J17: =MAX(J$15:J16)+1 -> 2 | K17: =IF(OR(I17=0,I17=""),0,IF(COUNTIF(I$15:I$100000,I17)=1,0,1)) -> 0 | L17: * | M17: Рекламные расходы | N17: =MAX(N$15:N16)+1 -> 2 | O17: =IF(OR(M17=0,M17=""),0,IF(COUNTIF(M$15:M$100000,M17)=1,0,1)) -> 0 | P17: * | Q17: Прочие расходы маркетинга | R17: =MAX(R$15:R16)+1 -> 2 | S17: =IF(OR(Q17=0,Q17=""),0,IF(COUNTIF(Q$15:Q$100000,Q17)=1,0,1)) -> 0 | AC17: * | AD17: Консультационные расходы | AE17: =MAX(AE$15:AE16)+1 -> 2 | AF17: =IF(OR(AD17=0,AD17=""),0,IF(COUNTIF(AD$15:AD$100000,AD17)=1,0,1)) -> 0 | AG17: * | AH17: Прочие расходы отдела продаж | AI17: =MAX(AI$15:AI16)+1 -> 2 | AJ17: =IF(OR(AH17=0,AH17=""),0,IF(COUNTIF(AH$15:AH$100000,AH17)=1,0,1)) -> 0 | AK17: * | AL17: Расходы производственные - 2 | AM17: =MAX(AM$15:AM16)+1 -> 2 | AN17: шт | AO17: =IF(OR(AL17=0,AL17=""),0,IF(COUNTIF(AL$15:AL$100000,AL17)=1,0,1)) -> 0 | AP17: * | AQ17: Прочие производственные расходы | AR17: =MAX(AR$15:AR16)+1 -> 2 | AS17: =IF(OR(AQ17=0,AQ17=""),0,IF(COUNTIF(AQ$15:AQ$100000,AQ17)=1,0,1)) -> 0 | AT17: * | AU17: Градостроительное планирование | AV17: =MAX(AV$15:AV16)+1 -> 2 | AW17: =IF(OR(AU17=0,AU17=""),0,IF(COUNTIF(AU$15:AU$100000,AU17)=1,0,1)) -> 0 | AX17: * | AY17: Строительство зданий/сооружений | AZ17: =MAX(AZ$15:AZ16)+1 -> 2 | BA17: =IF(OR(AY17=0,AY17=""),0,IF(COUNTIF(AY$15:AY$100000,AY17)=1,0,1)) -> 0 | BB17: * | BC17: Юридические расходы | BD17: =MAX(BD$15:BD16)+1 -> 2 | BE17: 0 | BF17: * | BG17: Расходы на организацию рабочего места | BH17: =MAX(BH$15:BH16)+1 -> 2 | BI17: =IF(OR(BG17=0,BG17=""),0,IF(COUNTIF(BG$15:BG$100000,BG17)=1,0,1)) -> 0 | BJ17: * | BK17: Авансы полученные | BL17: =MAX(BL$15:BL16)+1 -> 2 | BM17: 0 | BN17: * | BO17: Себестоимость | BP17: =MAX(BP$15:BP16)+1 -> 2 | BQ17: 0 | BR17: * | BS17: Финпоток проекта нарастающим итогом | BT17: =MAX(BT$15:BT16)+1 -> 2 | BU17: 0
A18: =ROW() -> 18 | H18: * | I18: Расходы на аренду ЗУ | J18: =MAX(J$15:J17)+1 -> 3 | K18: =IF(OR(I18=0,I18=""),0,IF(COUNTIF(I$15:I$100000,I18)=1,0,1)) -> 0 | L18: * | M18: Расходы на поддержание конверсии | N18: =MAX(N$15:N17)+1 -> 3 | O18: =IF(OR(M18=0,M18=""),0,IF(COUNTIF(M$15:M$100000,M18)=1,0,1)) -> 0 | AC18: * | AD18: Прочие расходники | AE18: =MAX(AE$15:AE17)+1 -> 3 | AF18: =IF(OR(AD18=0,AD18=""),0,IF(COUNTIF(AD$15:AD$100000,AD18)=1,0,1)) -> 0 | AK18: * | AL18: Расходы производственные - 3 | AM18: =MAX(AM$15:AM17)+1 -> 3 | AN18: шт | AO18: =IF(OR(AL18=0,AL18=""),0,IF(COUNTIF(AL$15:AL$100000,AL18)=1,0,1)) -> 0 | AT18: * | AU18: ="Разовые капзатраты - "&AV18 -> Разовые капзатраты - 3 | AV18: =MAX(AV$15:AV17)+1 -> 3 | AW18: =IF(OR(AU18=0,AU18=""),0,IF(COUNTIF(AU$15:AU$100000,AU18)=1,0,1)) -> 0 | AX18: * | AY18: Ремонтные работы | AZ18: =MAX(AZ$15:AZ17)+1 -> 3 | BA18: =IF(OR(AY18=0,AY18=""),0,IF(COUNTIF(AY$15:AY$100000,AY18)=1,0,1)) -> 0 | BB18: * | BC18: Расходы на ПО и т.п. | BD18: =MAX(BD$15:BD17)+1 -> 3 | BE18: 0 | BF18: * | BG18: Расходы на оргтехнику | BH18: =MAX(BH$15:BH17)+1 -> 3 | BI18: =IF(OR(BG18=0,BG18=""),0,IF(COUNTIF(BG$15:BG$100000,BG18)=1,0,1)) -> 0 | BJ18: * | BK18: Поступление запасов | BL18: =MAX(BL$15:BL17)+1 -> 3 | BM18: 0 | BN18: * | BO18: Валовая прибыль | BP18: =MAX(BP$15:BP17)+1 -> 3 | BQ18: 0 | BR18: * | BS18: Свободный положительный финпоток проекта | BT18: =MAX(BT$15:BT17)+1 -> 3 | BU18: 0
A19: =ROW() -> 19 | AT19: * | AU19: Разовые капзатраты - 4 | AV19: =MAX(AV$15:AV18)+1 -> 4 | AW19: =IF(OR(AU19=0,AU19=""),0,IF(COUNTIF(AU$15:AU$100000,AU19)=1,0,1)) -> 0 | AX19: * | AY19: Оборудование | AZ19: =MAX(AZ$15:AZ18)+1 -> 4 | BA19: =IF(OR(AY19=0,AY19=""),0,IF(COUNTIF(AY$15:AY$100000,AY19)=1,0,1)) -> 0 | BB19: * | BC19: Банковские расходы | BD19: =MAX(BD$15:BD18)+1 -> 4 | BE19: 0 | BF19: * | BG19: Канцелярские расходы | BH19: =MAX(BH$15:BH18)+1 -> 4 | BI19: =IF(OR(BG19=0,BG19=""),0,IF(COUNTIF(BG$15:BG$100000,BG19)=1,0,1)) -> 0 | BJ19: * | BK19: Списание запасов на незавершенное пр-во | BL19: =MAX(BL$15:BL18)+1 -> 4 | BM19: 0 | BN19: * | BO19: НДС начисленный | BP19: =MAX(BP$15:BP18)+1 -> 4 | BQ19: 0 | BR19: * | BS19: Свободный отрицательный финпоток проекта | BT19: =MAX(BT$15:BT18)+1 -> 4 | BU19: 0
A20: =ROW() -> 20 | AT20: * | AU20: Разовые капзатраты - 5 | AV20: =MAX(AV$15:AV19)+1 -> 5 | AW20: 0 | AX20: * | AY20: инфраструктурные объеты типа - 1 | AZ20: =MAX(AZ$15:AZ19)+1 -> 5 | BA20: 0 | BB20: * | BC20: Расходы на уборку-охрану | BD20: =MAX(BD$15:BD19)+1 -> 5 | BE20: 0 | BF20: * | BG20: Прочие расходы на персонал | BH20: =MAX(BH$15:BH19)+1 -> 5 | BI20: =IF(OR(BG20=0,BG20=""),0,IF(COUNTIF(BG$15:BG$100000,BG20)=1,0,1)) -> 0 | BJ20: * | BK20: Запасы | BL20: =MAX(BL$15:BL19)+1 -> 5 | BM20: 0 | BN20: * | BO20: НДС к возмещению | BP20: =MAX(BP$15:BP19)+1 -> 5 | BQ20: 0 | BR20: * | BS20: Свободный финпоток (FCF) | BT20: =MAX(BT$15:BT19)+1 -> 5 | BU20: 0
A21: =ROW() -> 21 | AT21: * | AU21: Разовые капзатраты - 6 | AV21: =MAX(AV$15:AV20)+1 -> 6 | AW21: 0 | AX21: * | AY21: инфраструктурные объеты типа - 2 | AZ21: =MAX(AZ$15:AZ20)+1 -> 6 | BA21: 0 | BB21: * | BC21: Эксплуатация объектов недвижимости | BD21: =MAX(BD$15:BD20)+1 -> 6 | BE21: 0 | BJ21: * | BK21: Незавершенное производство | BL21: =MAX(BL$15:BL20)+1 -> 6 | BM21: 0 | BN21: * | BO21: Прямые расходы | BP21: =MAX(BP$15:BP20)+1 -> 6 | BQ21: 0 | BR21: * | BS21: Кассовый разрыв | BT21: =MAX(BT$15:BT20)+1 -> 6 | BU21: 0
A22: =ROW() -> 22 | AT22: * | AU22: ="Разовые капзатраты - "&AV22 -> Разовые капзатраты - 7 | AV22: =MAX(AV$15:AV21)+1 -> 7 | AW22: 0 | AX22: * | AY22: инфраструктурные объеты типа - 3 | AZ22: =MAX(AZ$15:AZ21)+1 -> 7 | BA22: 0 | BB22: * | BC22: Постоянный расход - 7 | BD22: =MAX(BD$15:BD21)+1 -> 7 | BE22: 0 | BJ22: * | BK22: Авансы выданные | BL22: =MAX(BL$15:BL21)+1 -> 7 | BM22: 0 | BN22: * | BO22: Маржинальная прибыль | BP22: =MAX(BP$15:BP21)+1 -> 7 | BQ22: 0 | BR22: * | BS22: Поступление финансирования от Учредителей | BT22: =MAX(BT$15:BT21)+1 -> 7 | BU22: 0
A23: =ROW() -> 23 | AT23: * | AU23: ="Разовые капзатраты - "&AV23 -> Разовые капзатраты - 8 | AV23: =MAX(AV$15:AV22)+1 -> 8 | AW23: 0 | AX23: * | AY23: инфраструктурные объеты типа - 4 | AZ23: =MAX(AZ$15:AZ22)+1 -> 8 | BA23: 0 | BJ23: * | BK23: Кредиторская задолженность | BL23: =MAX(BL$15:BL22)+1 -> 8 | BM23: 0 | BN23: * | BO23: Управленческие расходы | BP23: =MAX(BP$15:BP22)+1 -> 8 | BQ23: 0 | BR23: * | BS23: Финпоток проекта для кредиторов | BT23: =MAX(BT$15:BT22)+1 -> 8 | BU23: 0
A24: =ROW() -> 24 | AT24: * | AU24: ="Разовые капзатраты - "&AV24 -> Разовые капзатраты - 9 | AV24: =MAX(AV$15:AV23)+1 -> 9 | AW24: 0 | AX24: * | AY24: инфраструктурные объеты типа - 5 | AZ24: =MAX(AZ$15:AZ23)+1 -> 9 | BA24: 0 | BJ24: * | BK24: Задолженность перед персоналом | BL24: =MAX(BL$15:BL23)+1 -> 9 | BM24: 0 | BN24: * | BO24: ФОТ управленческого персонала | BP24: =MAX(BP$15:BP23)+1 -> 9 | BQ24: 0 | BR24: * | BS24: Финпоток проекта для кредиторов нараст. итогом | BT24: =MAX(BT$15:BT23)+1 -> 9 | BU24: 0
A25: =ROW() -> 25 | AT25: * | AU25: ="Разовые капзатраты - "&AV25 -> Разовые капзатраты - 10 | AV25: =MAX(AV$15:AV24)+1 -> 10 | AW25: 0 | AX25: * | AY25: инфраструктурные объеты типа - 6 | AZ25: =MAX(AZ$15:AZ24)+1 -> 10 | BA25: 0 | BJ25: * | BK25: Задолженность по соцсборам | BL25: =MAX(BL$15:BL24)+1 -> 10 | BM25: 0 | BN25: * | BO25: EBITDA | BP25: =MAX(BP$15:BP24)+1 -> 10 | BQ25: 0 | BR25: * | BS25: Свободный полож. финпоток для кредиторов | BT25: =MAX(BT$15:BT24)+1 -> 10 | BU25: 0
A26: =ROW() -> 26 | BJ26: * | BK26: АКТИВЫ | BL26: =MAX(BL$15:BL25)+1 -> 11 | BM26: =IF(OR(BK26=0,BK26=""),0,IF(COUNTIF(BK$15:BK$100000,BK26)=1,0,1)) -> 0 | BN26: * | BO26: Капзатраты | BP26: =MAX(BP$15:BP25)+1 -> 11 | BQ26: =IF(OR(BO26=0,BO26=""),0,IF(COUNTIF(BO$15:BO$100000,BO26)=1,0,1)) -> 0 | BR26: * | BS26: Свободный отриц. финпоток для кредиторов | BT26: =MAX(BT$15:BT25)+1 -> 11 | BU26: 0
A27: =ROW() -> 27 | BJ27: * | BK27: ПАССИВЫ | BL27: =MAX(BL$15:BL26)+1 -> 12 | BM27: 0 | BN27: * | BO27: НДС к возмещению по капзатратам | BP27: =MAX(BP$15:BP26)+1 -> 12 | BQ27: 0 | BR27: * | BS27: Свободный финпоток для кредиторов | BT27: =MAX(BT$15:BT26)+1 -> 12 | BU27: 0
A28: =ROW() -> 28 | BJ28: * | BK28: Денежные средства | BL28: =MAX(BL$15:BL27)+1 -> 13 | BM28: 0 | BN28: * | BO28: Амортизация | BP28: =MAX(BP$15:BP27)+1 -> 13 | BQ28: 0 | BR28: * | BS28: Кассовый разрыв проекта для кредиторов | BT28: =MAX(BT$15:BT27)+1 -> 13 | BU28: 0
A29: =ROW() -> 29 | BJ29: * | BK29: Собственный капитал | BL29: =MAX(BL$15:BL28)+1 -> 14 | BM29: 0 | BN29: * | BO29: EBIT | BP29: =MAX(BP$15:BP28)+1 -> 14 | BQ29: 0 | BR29: * | BS29: Поступление кредита | BT29: =MAX(BT$15:BT28)+1 -> 14 | BU29: 0
A30: =ROW() -> 30 | BJ30: * | BK30: Промежуточный баланс-контроль | BL30: =MAX(BL$15:BL29)+1 -> 15 | BM30: 0 | BN30: * | BO30: Прочие доходы | BP30: =MAX(BP$15:BP29)+1 -> 15 | BQ30: 0 | BR30: * | BS30: Возврат кредита | BT30: =MAX(BT$15:BT29)+1 -> 15 | BU30: 0
A31: =ROW() -> 31 | BJ31: * | BK31: Задолженность по прямым расходам | BL31: =MAX(BL$15:BL30)+1 -> 16 | BM31: 0 | BN31: * | BO31: Проценты начисленные | BP31: =MAX(BP$15:BP30)+1 -> 16 | BQ31: 0 | BR31: * | BS31: Оплата процентов по кредиту | BT31: =MAX(BT$15:BT30)+1 -> 16 | BU31: 0
A32: =ROW() -> 32 | BJ32: * | BK32: Задолженность по управленческим расходам | BL32: =MAX(BL$15:BL31)+1 -> 17 | BM32: =IF(OR(BK32=0,BK32=""),0,IF(COUNTIF(BK$15:BK$100000,BK32)=1,0,1)) -> 0 | BN32: * | BO32: Прибыль до налога на прибыль | BP32: =MAX(BP$15:BP31)+1 -> 17 | BQ32: 0 | BR32: * | BS32: Финпоток проекта с учетом финансирования | BT32: =MAX(BT$15:BT31)+1 -> 17 | BU32: 0
A33: =ROW() -> 33 | BJ33: * | BK33: Задолженность по капзатратам | BL33: =MAX(BL$15:BL32)+1 -> 18 | BM33: 0 | BN33: * | BO33: Налог на прибыль | BP33: =MAX(BP$15:BP32)+1 -> 18 | BQ33: 0 | BR33: * | BS33: Финпоток проекта с уч. финансир. нараст. итогом | BT33: =MAX(BT$15:BT32)+1 -> 18 | BU33: 0
A34: =ROW() -> 34 | BJ34: * | BK34: Внеоборотные активы | BL34: =MAX(BL$15:BL33)+1 -> 19 | BM34: 0 | BN34: * | BO34: Чистая прибыль | BP34: =MAX(BP$15:BP33)+1 -> 19 | BQ34: 0 | BR34: * | BS34: Осаточный кассовый разрыв | BT34: =MAX(BT$15:BT33)+1 -> 19 | BU34: 0
A35: =ROW() -> 35 | BJ35: * | BK35: ДЗ по возмещению НДС с капзатрат | BL35: =MAX(BL$15:BL34)+1 -> 20 | BM35: 0 | BN35: * | BO35: Проценты начисленные по кредиту | BP35: =MAX(BP$15:BP34)+1 -> 20 | BQ35: 0 | BR35: * | BS35: Итоговый финпоток | BT35: =MAX(BT$15:BT34)+1 -> 20 | BU35: =IF(OR(BS35=0,BS35=""),0,IF(COUNTIF(BS$15:BS$100000,BS35)=1,0,1)) -> 0
A36: =ROW() -> 36 | BJ36: * | BK36: Задолженность по налогам | BL36: =MAX(BL$15:BL35)+1 -> 21 | BM36: 0 | BR36: * | BS36: Итоговый финпоток нараст. итогом | BT36: =MAX(BT$15:BT35)+1 -> 21 | BU36: 0
A37: =ROW() -> 37 | BJ37: * | BK37: Задолженность по НДС | BL37: =MAX(BL$15:BL36)+1 -> 22 | BM37: 0 | BR37: * | BS37: Итоговый кассовый разрыв | BT37: =MAX(BT$15:BT36)+1 -> 22 | BU37: 0
A38: =ROW() -> 38 | BJ38: * | BK38: Задолженность по НП | BL38: =MAX(BL$15:BL37)+1 -> 23 | BM38: 0 | BR38: * | BS38: Финпоток по операционной деятельности | BT38: =MAX(BT$15:BT37)+1 -> 23 | BU38: 0
A39: =ROW() -> 39 | BJ39: * | BK39: Остаток долга по кредиту | BL39: =MAX(BL$15:BL38)+1 -> 24 | BM39: 0 | BR39: * | BS39: Финпоток по основной деятельности | BT39: =MAX(BT$15:BT38)+1 -> 24 | BU39: 0
A40: =ROW() -> 40 | BJ40: * | BK40: Задолженность по выплате %% по кредиту | BL40: =MAX(BL$15:BL39)+1 -> 25 | BM40: 0 | BR40: * | BS40: Финпоток по финансовой деятельности | BT40: =MAX(BT$15:BT39)+1 -> 25 | BU40: 0
A41: =ROW() -> 41 | BJ41: * | BK41: Вложения Учредителей в капитал | BL41: =MAX(BL$15:BL40)+1 -> 26 | BM41: 0 | BR41: * | BS41: Поступление ДС | BT41: =MAX(BT$15:BT40)+1 -> 26 | BU41: 0
A42: =ROW() -> 42 | BJ42: * | BK42: БАЛАНС | BL42: =MAX(BL$15:BL41)+1 -> 27 | BM42: 0 | BR42: * | BS42: Итоговый свободный финпоток (Total FCF) | BT42: =MAX(BT$15:BT41)+1 -> 27 | BU42: 0
A43: =ROW() -> 43 | BJ43: * | BL43: =MAX(BL$15:BL42)+1 -> 28 | BM43: 0
A44: =ROW() -> 44 | BJ44: * | BL44: =MAX(BL$15:BL43)+1 -> 29 | BM44: 0
A45: =ROW() -> 45 | BJ45: * | BL45: =MAX(BL$15:BL44)+1 -> 30 | BM45: 0
A46: =ROW() -> 46 | BJ46: * | BL46: =MAX(BL$15:BL45)+1 -> 31 | BM46: 0
A47: =ROW() -> 47
A48: =ROW() -> 48
A49: =ROW() -> 49
A50: =ROW() -> 50
A51: =ROW() -> 51
A52: =ROW() -> 52
A53: =ROW() -> 53
A54: =ROW() -> 54
A55: =ROW() -> 55
A56: =ROW() -> 56
A57: =ROW() -> 57
A58: =ROW() -> 58
A59: =ROW() -> 59
A60: =ROW() -> 60
A61: =ROW() -> 61
A62: =ROW() -> 62
A63: =ROW() -> 63
A64: =ROW() -> 64
A65: =ROW() -> 65
A66: =ROW() -> 66
A67: =ROW() -> 67
A68: =ROW() -> 68
A69: =ROW() -> 69
A70: =ROW() -> 70

Sheet KPI
I1: =COLUMN() -> 9
I2: =LEFT(ADDRESS(1,COLUMN(),4),LEN(ADDRESS(1,COLUMN(),4))-1) -> I
F11: =INDIRECT("START!I31") -> KPI | I11: =INDIRECT("START!K31") -> Справочники ключевых показателей эффективности
I13: Список показателей эффективности | Q13: Формулы расчета показателей
D14: =INDIRECT("Cntrl!M17") -> 0 | E14: =SUM($F14:$ML14) -> 0 | F14: =IFERROR(_xlfn.SHEET($A$1)-SUMIFS(Cntrl!O$15:O$100000,Cntrl!I$15:I$100000,$F$11),1) -> 0 | I14: =IF(OR(I13=0,I13=""),1,IF(COUNTIF(13:13,I13)=1,0,1)) -> 0 | K14: =SUM(K$15:K$100000) -> 0
A15: =ROW() -> 15 | I15: =$F$11&"!"&I$2&$A16&":"&I$2&($A15+MAX(J$15:J$100000)) -> KPI!I16:I92
A16: =ROW() -> 16 | I16: Срок окупаемости по чистой прибыли | J16: =MAX(J$15:J15)+1 -> 1 | K16: =IF(OR(I16=0,I16=""),0,IF(COUNTIF(I$15:I$100000,I16)=1,0,1)) -> 0
A17: =ROW() -> 17 | I17: Точка безубыточности по чистой прибыли | J17: =MAX(J$15:J16)+1 -> 2 | K17: =IF(OR(I17=0,I17=""),0,IF(COUNTIF(I$15:I$100000,I17)=1,0,1)) -> 0
A18: =ROW() -> 18 | I18: Срок окупаемости по финпотоку (PBP) | J18: =MAX(J$15:J17)+1 -> 3 | K18: 0
A19: =ROW() -> 19 | I19: Точка безубыточности по финпотоку | J19: =MAX(J$15:J18)+1 -> 4 | K19: 0
A20: =ROW() -> 20 | I20: IRR проекта | J20: =MAX(J$15:J19)+1 -> 5 | K20: 0
A21: =ROW() -> 21 | I21: NPV(Учредителя) | J21: =MAX(J$15:J20)+1 -> 6 | K21: 0
A22: =ROW() -> 22 | I22: IRR для кредиторов | J22: =MAX(J$15:J21)+1 -> 7 | K22: 0
A23: =ROW() -> 23 | I23: NPV(Кредиторов) | J23: =MAX(J$15:J22)+1 -> 8 | K23: =IF(OR(I23=0,I23=""),0,IF(COUNTIF(I$15:I$100000,I23)=1,0,1)) -> 0
A24: =ROW() -> 24 | I24: Рентабельность | J24: =MAX(J$15:J23)+1 -> 9 | K24: 0
A25: =ROW() -> 25 | I25: WACC | J25: =MAX(J$15:J24)+1 -> 10 | K25: 0
A26: =ROW() -> 26 | I26: NPV(WACC) | J26: =MAX(J$15:J25)+1 -> 11 | K26: 0
A27: =ROW() -> 27 | I27: ROI | J27: =MAX(J$15:J26)+1 -> 12 | K27: 0
A28: =ROW() -> 28 | I28: Дисконтированный срок окупаемости (DPBP) | J28: =MAX(J$15:J27)+1 -> 13 | K28: 0
A29: =ROW() -> 29 | I29: Коэффициент текущей ликвидности (L1) | J29: =MAX(J$15:J28)+1 -> 14 | K29: 0 | Q29: Отношение оборотных активов к краткосрочным обязательствам
A30: =ROW() -> 30 | I30: Коэффициент промежуточного покрытия (L2) | J30: =MAX(J$15:J29)+1 -> 15 | K30: 0 | Q30: Отношение суммы активов А1 и А2 к краткосрочным обязательствам
A31: =ROW() -> 31 | I31: Коэффициент абсолютной ликвидности (L3) | J31: =MAX(J$15:J30)+1 -> 16 | K31: =IF(OR(I31=0,I31=""),0,IF(COUNTIF(I$15:I$100000,I31)=1,0,1)) -> 0 | Q31: Отношение суммы активов А1 к краткосрочным обязательствам
A32: =ROW() -> 32 | I32: Коэффициент общей платежеспособности (L4) | J32: =MAX(J$15:J31)+1 -> 17 | K32: 0 | Q32: Отношение всех активов ко всем обязательствам
A33: =ROW() -> 33 | I33: Коэфф. платежеспособности по тек. обяз. (L5) | J33: =MAX(J$15:J32)+1 -> 18 | K33: 0 | Q33: Отношение среднемесячной выручки к краткосрочным обязательствам
A34: =ROW() -> 34 | J34: =MAX(J$15:J33)+1 -> 19 | K34: 0
A35: =ROW() -> 35 | I35: Оценка стоимости бизнеса/компании | J35: =MAX(J$15:J34)+1 -> 20 | K35: 0
A36: =ROW() -> 36 | J36: =MAX(J$15:J35)+1 -> 21 | K36: 0
A37: =ROW() -> 37 | J37: =MAX(J$15:J36)+1 -> 22 | K37: 0
A38: =ROW() -> 38 | J38: =MAX(J$15:J37)+1 -> 23 | K38: 0
A39: =ROW() -> 39 | I39: Терминальная стоимость (TV) | J39: =MAX(J$15:J38)+1 -> 24 | K39: 0
A40: =ROW() -> 40 | I40: NPV(TV) | J40: =MAX(J$15:J39)+1 -> 25 | K40: =IF(OR(I40=0,I40=""),0,IF(COUNTIF(I$15:I$100000,I40)=1,0,1)) -> 0
A41: =ROW() -> 41 | I41: CFADS | J41: =MAX(J$15:J40)+1 -> 26 | K41: 0
A42: =ROW() -> 42 | I42: Выплаты долга [Debt (Principals+Interests)] | J42: =MAX(J$15:J41)+1 -> 27 | K42: 0
A43: =ROW() -> 43 | I43: Выплаты тела кредитов (Principals) | J43: =MAX(J$15:J42)+1 -> 28 | K43: 0
A44: =ROW() -> 44 | I44: Выплаты %% (Interests) | J44: =MAX(J$15:J43)+1 -> 29 | K44: 0
A45: =ROW() -> 45 | I45: Коэф. покрытия выплат долга (DSCR) | J45: =MAX(J$15:J44)+1 -> 30 | K45: 0
A46: =ROW() -> 46 | I46: Коэф. покрытия процентов (ICR) | J46: =MAX(J$15:J45)+1 -> 31 | K46: =IF(OR(I46=0,I46=""),0,IF(COUNTIF(I$15:I$100000,I46)=1,0,1)) -> 0
A47: =ROW() -> 47 | I47: CF(EBIT) | J47: =MAX(J$15:J46)+1 -> 32 | K47: 0
A48: =ROW() -> 48 | I48: Наиболее ликвидные активы (А1) | J48: =MAX(J$15:J47)+1 -> 33 | K48: 0
A49: =ROW() -> 49 | I49: Денежные средства | J49: =MAX(J$15:J48)+1 -> 34 | K49: 0
A50: =ROW() -> 50 | I50: Финансовые вложения | J50: =MAX(J$15:J49)+1 -> 35 | K50: 0
A51: =ROW() -> 51 | I51: Быстро реализуемые активы (А2) | J51: =MAX(J$15:J50)+1 -> 36 | K51: 0
A52: =ROW() -> 52 | I52: Незавершенное производство | J52: =MAX(J$15:J51)+1 -> 37 | K52: 0
A53: =ROW() -> 53 | I53: Дебиторская задолженность | J53: =MAX(J$15:J52)+1 -> 38 | K53: =IF(OR(I53=0,I53=""),0,IF(COUNTIF(I$15:I$100000,I53)=1,0,1)) -> 0
A54: =ROW() -> 54 | I54: Авансы выданные | J54: =MAX(J$15:J53)+1 -> 39 | K54: 0
A55: =ROW() -> 55 | I55: Медленно реализуемые активы (А3) | J55: =MAX(J$15:J54)+1 -> 40 | K55: 0
A56: =ROW() -> 56 | I56: Запасы | J56: =MAX(J$15:J55)+1 -> 41 | K56: 0
A57: =ROW() -> 57 | I57: Трудно реализуемые активы (А4) | J57: =MAX(J$15:J56)+1 -> 42 | K57: 0
A58: =ROW() -> 58 | I58: Внеоборотные активы | J58: =MAX(J$15:J57)+1 -> 43 | K58: 0
A59: =ROW() -> 59 | I59: Наиболее срочные обязательства (П1) | J59: =MAX(J$15:J58)+1 -> 44 | K59: 0
A60: =ROW() -> 60 | I60: Овердрафт | J60: =MAX(J$15:J59)+1 -> 45 | K60: 0
A61: =ROW() -> 61 | I61: Кредиторская задолженность | J61: =MAX(J$15:J60)+1 -> 46 | K61: 0
A62: =ROW() -> 62 | I62: Краткосрочные обязательства (П2) | J62: =MAX(J$15:J61)+1 -> 47 | K62: 0
A63: =ROW() -> 63 | I63: Прочие краткосрочные обязательства | J63: =MAX(J$15:J62)+1 -> 48 | K63: 0
A64: =ROW() -> 64 | I64: Долгосрочные обязательства (П3) | J64: =MAX(J$15:J63)+1 -> 49 | K64: 0
A65: =ROW() -> 65 | I65: Долгосрочные кредиты | J65: =MAX(J$15:J64)+1 -> 50 | K65: 0
A66: =ROW() -> 66 | I66: Постоянные пассивы (П4) | J66: =MAX(J$15:J65)+1 -> 51 | K66: 0
A67: =ROW() -> 67 | I67: Собственный капитал | J67: =MAX(J$15:J66)+1 -> 52 | K67: =IF(OR(I67=0,I67=""),0,IF(COUNTIF(I$15:I$100000,I67)=1,0,1)) -> 0
A68: =ROW() -> 68 | I68: Собственные оборотные средства (СОС) | J68: =MAX(J$15:J67)+1 -> 53 | K68: 0 | Q68: Разность собственного капитала и внеоборотных активов
A69: =ROW() -> 69 | I69: Коэффициент финансовой устойчивости (S1) | J69: =MAX(J$15:J68)+1 -> 54 | K69: 0 | Q69: Отношение суммы собственного капитала и долгосрочных обязательств к активам
A70: =ROW() -> 70 | I70: Коэффициент автономии (независимости) (S2) | J70: =MAX(J$15:J69)+1 -> 55 | K70: 0 | Q70: Отношение собственного капитала к активам
I71: Коэфф. обеспеч-ти собств. об. средствами (S3) | J71: =MAX(J$15:J70)+1 -> 56 | K71: 0 | Q71: Отношение объема СОС к оборотным активам
I72: Коэффициент финансового рычага (S4) | J72: =MAX(J$15:J71)+1 -> 57 | K72: 0 | Q72: Отношение собственного капитала к заемному капиталу
I73: Рентабельность продаж (Return On Sales) (R1) | J73: =MAX(J$15:J72)+1 -> 58 | K73: 0 | Q73: Отношение валовой прибыли к выручке
I74: Рентабельность активов (Return On Assets) (R2) | J74: =MAX(J$15:J73)+1 -> 59 | K74: 0 | Q74: Отношение среднемесячной чистой прибыли за период к уровню активов на конец периода
I75: Рентаб-сть собств. капитала (Return On Equity) (R3) | J75: =MAX(J$15:J74)+1 -> 60 | K75: 0 | Q75: Отношение среднемесячной чистой прибыли за период к уровню собственного капитала на конец периода
I76: Рент. инвестиций (Return On Invested Capital) (R4) | J76: =MAX(J$15:J75)+1 -> 61 | K76: 0 | Q76: Отношение среднемес. EBITDA за период к уровню инвестиций (собств.+долгосроч.) на конец периода
I77: Рент. об. капитала (Return On Working Capital) (R5) | J77: =MAX(J$15:J76)+1 -> 62 | K77: 0 | Q77: Отношение среднемес. марж. прибыли за период к уровню оборотного капитала на конец периода
I78: Оборачиваемость запасов и незавершенки | J78: =MAX(J$15:J77)+1 -> 63 | K78: 0
I79: Период оборач-сти запасов и незавершенки (P1) | J79: =MAX(J$15:J78)+1 -> 64 | K79: =IF(OR(I79=0,I79=""),0,IF(COUNTIF(I$15:I$100000,I79)=1,0,1)) -> 0
I80: Оборачиваемость дебиторской задолженности | J80: =MAX(J$15:J79)+1 -> 65 | K80: 0
I81: Период оборач-ти дебит. задолженности (P2) | J81: =MAX(J$15:J80)+1 -> 66 | K81: 0
I82: Оборачиваемость кредиторской задолженности | J82: =MAX(J$15:J81)+1 -> 67 | K82: 0
I83: Период оборач-ти кредит. задолженности (P3) | J83: =MAX(J$15:J82)+1 -> 68 | K83: 0
I84: Финансовый цикл (P4) | J84: =MAX(J$15:J83)+1 -> 69 | K84: =IF(OR(I84=0,I84=""),0,IF(COUNTIF(I$15:I$100000,I84)=1,0,1)) -> 0
I85: ТЕМПЫ РОСТА АКТИВОВ [T(A)] | J85: =MAX(J$15:J84)+1 -> 70 | K85: 0
I86: ТЕМПЫ РОСТА ВЫРУЧКИ [T(R)] | J86: =MAX(J$15:J85)+1 -> 71 | K86: 0
I87: ТЕМПЫ РОСТА ЧИСТОЙ ПРИБЫЛИ [T(E)] | J87: =MAX(J$15:J86)+1 -> 72 | K87: 0
J88: =MAX(J$15:J87)+1 -> 73 | K88: 0
J89: =MAX(J$15:J88)+1 -> 74 | K89: 0
J90: =MAX(J$15:J89)+1 -> 75 | K90: 0
J91: =MAX(J$15:J90)+1 -> 76 | K91: 0
J92: =MAX(J$15:J91)+1 -> 77 | K92: 0

Sheet Mrkting
Y1: номер столбца: | AA1: 27 | AB1: 28 | AC1: 29 | AD1: 30 | AE1: 31 | AF1: 32 | AG1: 33 | AH1: 34 | AI1: 35 | AJ1: 36 | AK1: 37 | AL1: 38 | AM1: 39 | AN1: 40 | AO1: 41 | AP1: 42 | AQ1: 43 | AR1: 44 | AS1: 45 | AT1: 46 | AU1: 47 | AV1: 48 | AW1: 49 | AX1: 50 | AY1: 51 | AZ1: 52 | BA1: 53 | BB1: 54 | BC1: 55 | BD1: 56 | BE1: 57 | BF1: 58 | BG1: 59 | BH1: 60 | BI1: 61 | BJ1: 62 | BK1: 63 | BL1: 64 | BM1: 65 | BN1: 66 | BO1: 67 | BP1: 68 | BQ1: 69 | BR1: 70 | BS1: 71 | BT1: 72 | BU1: 73 | BV1: 74 | BW1: 75 | BX1: 76 | BY1: 77 | BZ1: 78 | CA1: 79 | CB1: 80 | CC1: 81 | CD1: 82 | CE1: 83 | CF1: 84 | CG1: 85 | CH1: 86 | CI1: 87
Y2: номер периода модели: | AA2: 1 | AB2: 2 | AC2: 3 | AD2: 4 | AE2: 5 | AF2: 6 | AG2: 7 | AH2: 8 | AI2: 9 | AJ2: 10 | AK2: 11 | AL2: 12 | AM2: 13 | AN2: 14 | AO2: 15 | AP2: 16 | AQ2: 17 | AR2: 18 | AS2: 19 | AT2: 20 | AU2: 21 | AV2: 22 | AW2: 23 | AX2: 24 | AY2: 25 | AZ2: 26 | BA2: 27 | BB2: 28 | BC2: 29 | BD2: 30 | BE2: 31 | BF2: 32 | BG2: 33 | BH2: 34 | BI2: 35 | BJ2: 36 | BK2: 37 | BL2: 38 | BM2: 39 | BN2: 40 | BO2: 41 | BP2: 42 | BQ2: 43 | BR2: 44 | BS2: 45 | BT2: 46 | BU2: 47 | BV2: 48 | BW2: 49 | BX2: 50 | BY2: 51 | BZ2: 52 | CA2: 53 | CB2: 54 | CC2: 55 | CD2: 56 | CE2: 57 | CF2: 58 | CG2: 59 | CH2: 60 | CI2: 61
Y3: номер факт-периода:
Y4: номер план-периода: | AA4: 1 | AB4: 2 | AC4: 3 | AD4: 4 | AE4: 5 | AF4: 6 | AG4: 7 | AH4: 8 | AI4: 9 | AJ4: 10 | AK4: 11 | AL4: 12 | AM4: 13 | AN4: 14 | AO4: 15 | AP4: 16 | AQ4: 17 | AR4: 18 | AS4: 19 | AT4: 20 | AU4: 21 | AV4: 22 | AW4: 23 | AX4: 24 | AY4: 25 | AZ4: 26 | BA4: 27 | BB4: 28 | BC4: 29 | BD4: 30 | BE4: 31 | BF4: 32 | BG4: 33 | BH4: 34 | BI4: 35 | BJ4: 36 | BK4: 37 | BL4: 38 | BM4: 39 | BN4: 40 | BO4: 41 | BP4: 42 | BQ4: 43 | BR4: 44 | BS4: 45 | BT4: 46 | BU4: 47 | BV4: 48 | BW4: 49 | BX4: 50 | BY4: 51 | BZ4: 52 | CA4: 53 | CB4: 54 | CC4: 55 | CD4: 56 | CE4: 57 | CF4: 58 | CG4: 59 | CH4: 60
Y5: число даты начала: | AA5: 1 | AB5: 1 | AC5: 1 | AD5: 1 | AE5: 1 | AF5: 1 | AG5: 1 | AH5: 1 | AI5: 1 | AJ5: 1 | AK5: 1 | AL5: 1 | AM5: 1 | AN5: 1 | AO5: 1 | AP5: 1 | AQ5: 1 | AR5: 1 | AS5: 1 | AT5: 1 | AU5: 1 | AV5: 1 | AW5: 1 | AX5: 1 | AY5: 1 | AZ5: 1 | BA5: 1 | BB5: 1 | BC5: 1 | BD5: 1 | BE5: 1 | BF5: 1 | BG5: 1 | BH5: 1 | BI5: 1 | BJ5: 1 | BK5: 1 | BL5: 1 | BM5: 1 | BN5: 1 | BO5: 1 | BP5: 1 | BQ5: 1 | BR5: 1 | BS5: 1 | BT5: 1 | BU5: 1 | BV5: 1 | BW5: 1 | BX5: 1 | BY5: 1 | BZ5: 1 | CA5: 1 | CB5: 1 | CC5: 1 | CD5: 1 | CE5: 1 | CF5: 1 | CG5: 1 | CH5: 1
Y6: номер месяца даты начала: | AA6: 7 | AB6: 10 | AC6: 1 | AD6: 4 | AE6: 7 | AF6: 10 | AG6: 1 | AH6: 4 | AI6: 7 | AJ6: 10 | AK6: 1 | AL6: 4 | AM6: 7 | AN6: 10 | AO6: 1 | AP6: 4 | AQ6: 7 | AR6: 10 | AS6: 1 | AT6: 4 | AU6: 7 | AV6: 10 | AW6: 1 | AX6: 4 | AY6: 7 | AZ6: 10 | BA6: 1 | BB6: 4 | BC6: 7 | BD6: 10 | BE6: 1 | BF6: 4 | BG6: 7 | BH6: 10 | BI6: 1 | BJ6: 4 | BK6: 7 | BL6: 10 | BM6: 1 | BN6: 4 | BO6: 7 | BP6: 10 | BQ6: 1 | BR6: 4 | BS6: 7 | BT6: 10 | BU6: 1 | BV6: 4 | BW6: 7 | BX6: 10 | BY6: 1 | BZ6: 4 | CA6: 7 | CB6: 10 | CC6: 1 | CD6: 4 | CE6: 7 | CF6: 10 | CG6: 1 | CH6: 4
Y7: год даты начала: | AA7: 21 | AB7: 21 | AC7: 22 | AD7: 22 | AE7: 22 | AF7: 22 | AG7: 23 | AH7: 23 | AI7: 23 | AJ7: 23 | AK7: 24 | AL7: 24 | AM7: 24 | AN7: 24 | AO7: 25 | AP7: 25 | AQ7: 25 | AR7: 25 | AS7: 26 | AT7: 26 | AU7: 26 | AV7: 26 | AW7: 27 | AX7: 27 | AY7: 27 | AZ7: 27 | BA7: 28 | BB7: 28 | BC7: 28 | BD7: 28 | BE7: 29 | BF7: 29 | BG7: 29 | BH7: 29 | BI7: 30 | BJ7: 30 | BK7: 30 | BL7: 30 | BM7: 31 | BN7: 31 | BO7: 31 | BP7: 31 | BQ7: 32 | BR7: 32 | BS7: 32 | BT7: 32 | BU7: 33 | BV7: 33 | BW7: 33 | BX7: 33 | BY7: 34 | BZ7: 34 | CA7: 34 | CB7: 34 | CC7: 35 | CD7: 35 | CE7: 35 | CF7: 35 | CG7: 36 | CH7: 36
Y8: число даты окончания: | AA8: 30 | AB8: 31 | AC8: 31 | AD8: 30 | AE8: 30 | AF8: 31 | AG8: 31 | AH8: 30 | AI8: 30 | AJ8: 31 | AK8: 31 | AL8: 30 | AM8: 30 | AN8: 31 | AO8: 31 | AP8: 30 | AQ8: 30 | AR8: 31 | AS8: 31 | AT8: 30 | AU8: 30 | AV8: 31 | AW8: 31 | AX8: 30 | AY8: 30 | AZ8: 31 | BA8: 31 | BB8: 30 | BC8: 30 | BD8: 31 | BE8: 31 | BF8: 30 | BG8: 30 | BH8: 31 | BI8: 31 | BJ8: 30 | BK8: 30 | BL8: 31 | BM8: 31 | BN8: 30 | BO8: 30 | BP8: 31 | BQ8: 31 | BR8: 30 | BS8: 30 | BT8: 31 | BU8: 31 | BV8: 30 | BW8: 30 | BX8: 31 | BY8: 31 | BZ8: 30 | CA8: 30 | CB8: 31 | CC8: 31 | CD8: 30 | CE8: 30 | CF8: 31 | CG8: 31 | CH8: 30
Y9: номер месяца даты окончания: | AA9: 9 | AB9: 12 | AC9: 3 | AD9: 6 | AE9: 9 | AF9: 12 | AG9: 3 | AH9: 6 | AI9: 9 | AJ9: 12 | AK9: 3 | AL9: 6 | AM9: 9 | AN9: 12 | AO9: 3 | AP9: 6 | AQ9: 9 | AR9: 12 | AS9: 3 | AT9: 6 | AU9: 9 | AV9: 12 | AW9: 3 | AX9: 6 | AY9: 9 | AZ9: 12 | BA9: 3 | BB9: 6 | BC9: 9 | BD9: 12 | BE9: 3 | BF9: 6 | BG9: 9 | BH9: 12 | BI9: 3 | BJ9: 6 | BK9: 9 | BL9: 12 | BM9: 3 | BN9: 6 | BO9: 9 | BP9: 12 | BQ9: 3 | BR9: 6 | BS9: 9 | BT9: 12 | BU9: 3 | BV9: 6 | BW9: 9 | BX9: 12 | BY9: 3 | BZ9: 6 | CA9: 9 | CB9: 12 | CC9: 3 | CD9: 6 | CE9: 9 | CF9: 12 | CG9: 3 | CH9: 6
Y10: год даты окончания: | AA10: 21 | AB10: 21 | AC10: 22 | AD10: 22 | AE10: 22 | AF10: 22 | AG10: 23 | AH10: 23 | AI10: 23 | AJ10: 23 | AK10: 24 | AL10: 24 | AM10: 24 | AN10: 24 | AO10: 25 | AP10: 25 | AQ10: 25 | AR10: 25 | AS10: 26 | AT10: 26 | AU10: 26 | AV10: 26 | AW10: 27 | AX10: 27 | AY10: 27 | AZ10: 27 | BA10: 28 | BB10: 28 | BC10: 28 | BD10: 28 | BE10: 29 | BF10: 29 | BG10: 29 | BH10: 29 | BI10: 30 | BJ10: 30 | BK10: 30 | BL10: 30 | BM10: 31 | BN10: 31 | BO10: 31 | BP10: 31 | BQ10: 32 | BR10: 32 | BS10: 32 | BT10: 32 | BU10: 33 | BV10: 33 | BW10: 33 | BX10: 33 | BY10: 34 | BZ10: 34 | CA10: 34 | CB10: 34 | CC10: 35 | CD10: 35 | CE10: 35 | CF10: 35 | CG10: 36 | CH10: 36
F11: Mrkting | I11: Маркетинг. Параметры рынков сбыта и каналов привлечения клиентов | Q11: все включает НДС | X11: 2021-07-01 | AA11: 2021-07-01 | AB11: 2021-10-01 | AC11: 2022-01-01 | AD11: 2022-04-01 | AE11: 2022-07-01 | AF11: 2022-10-01 | AG11: 2023-01-01 | AH11: 2023-04-01 | AI11: 2023-07-01 | AJ11: 2023-10-01 | AK11: 2024-01-01 | AL11: 2024-04-01 | AM11: 2024-07-01 | AN11: 2024-10-01 | AO11: 2025-01-01 | AP11: 2025-04-01 | AQ11: 2025-07-01 | AR11: 2025-10-01 | AS11: 2026-01-01 | AT11: 2026-04-01 | AU11: 2026-07-01 | AV11: 2026-10-01 | AW11: 2027-01-01 | AX11: 2027-04-01 | AY11: 2027-07-01 | AZ11: 2027-10-01 | BA11: 2028-01-01 | BB11: 2028-04-01 | BC11: 2028-07-01 | BD11: 2028-10-01 | BE11: 2029-01-01 | BF11: 2029-04-01 | BG11: 2029-07-01 | BH11: 2029-10-01 | BI11: 2030-01-01 | BJ11: 2030-04-01 | BK11: 2030-07-01 | BL11: 2030-10-01 | BM11: 2031-01-01 | BN11: 2031-04-01 | BO11: 2031-07-01 | BP11: 2031-10-01 | BQ11: 2032-01-01 | BR11: 2032-04-01 | BS11: 2032-07-01 | BT11: 2032-10-01 | BU11: 2033-01-01 | BV11: 2033-04-01 | BW11: 2033-07-01 | BX11: 2033-10-01 | BY11: 2034-01-01 | BZ11: 2034-04-01 | CA11: 2034-07-01 | CB11: 2034-10-01 | CC11: 2035-01-01 | CD11: 2035-04-01 | CE11: 2035-07-01 | CF11: 2035-10-01 | CG11: 2036-01-01 | CH11: 2036-04-01
H12: тип листа | Q12: расчетный | X12: 2036-06-30 | AA12: 2021-09-30 | AB12: 2021-12-31 | AC12: 2022-03-31 | AD12: 2022-06-30 | AE12: 2022-09-30 | AF12: 2022-12-31 | AG12: 2023-03-31 | AH12: 2023-06-30 | AI12: 2023-09-30 | AJ12: 2023-12-31 | AK12: 2024-03-31 | AL12: 2024-06-30 | AM12: 2024-09-30 | AN12: 2024-12-31 | AO12: 2025-03-31 | AP12: 2025-06-30 | AQ12: 2025-09-30 | AR12: 2025-12-31 | AS12: 2026-03-31 | AT12: 2026-06-30 | AU12: 2026-09-30 | AV12: 2026-12-31 | AW12: 2027-03-31 | AX12: 2027-06-30 | AY12: 2027-09-30 | AZ12: 2027-12-31 | BA12: 2028-03-31 | BB12: 2028-06-30 | BC12: 2028-09-30 | BD12: 2028-12-31 | BE12: 2029-03-31 | BF12: 2029-06-30 | BG12: 2029-09-30 | BH12: 2029-12-31 | BI12: 2030-03-31 | BJ12: 2030-06-30 | BK12: 2030-09-30 | BL12: 2030-12-31 | BM12: 2031-03-31 | BN12: 2031-06-30 | BO12: 2031-09-30 | BP12: 2031-12-31 | BQ12: 2032-03-31 | BR12: 2032-06-30 | BS12: 2032-09-30 | BT12: 2032-12-31 | BU12: 2033-03-31 | BV12: 2033-06-30 | BW12: 2033-09-30 | BX12: 2033-12-31 | BY12: 2034-03-31 | BZ12: 2034-06-30 | CA12: 2034-09-30 | CB12: 2034-12-31 | CC12: 2035-03-31 | CD12: 2035-06-30 | CE12: 2035-09-30 | CF12: 2035-12-31 | CG12: 2036-03-31 | CH12: 2036-06-30
H13: показатель | M13: ед.изм. | Q13: значение | X13: итого | AA13: 3кв21г | AB13: 4кв21г | AC13: 1кв22г | AD13: 2кв22г | AE13: 3кв22г | AF13: 4кв22г | AG13: 1кв23г | AH13: 2кв23г | AI13: 3кв23г | AJ13: 4кв23г | AK13: 1кв24г | AL13: 2кв24г | AM13: 3кв24г | AN13: 4кв24г | AO13: 1кв25г | AP13: 2кв25г | AQ13: 3кв25г | AR13: 4кв25г | AS13: 1кв26г | AT13: 2кв26г | AU13: 3кв26г | AV13: 4кв26г | AW13: 1кв27г | AX13: 2кв27г | AY13: 3кв27г | AZ13: 4кв27г | BA13: 1кв28г | BB13: 2кв28г | BC13: 3кв28г | BD13: 4кв28г | BE13: 1кв29г | BF13: 2кв29г | BG13: 3кв29г | BH13: 4кв29г | BI13: 1кв30г | BJ13: 2кв30г | BK13: 3кв30г | BL13: 4кв30г | BM13: 1кв31г | BN13: 2кв31г | BO13: 3кв31г | BP13: 4кв31г | BQ13: 1кв32г | BR13: 2кв32г | BS13: 3кв32г | BT13: 4кв32г | BU13: 1кв33г | BV13: 2кв33г | BW13: 3кв33г | BX13: 4кв33г | BY13: 1кв34г | BZ13: 2кв34г | CA13: 3кв34г | CB13: 4кв34г | CC13: 1кв35г | CD13: 2кв35г | CE13: 3кв35г | CF13: 4кв35г | CG13: 1кв36г | CH13: 2кв36г
D14: 0 | E14: 0 | F14: 0 | G14: 0 | S14: 0 | T14: 0
A15: 15 | H15: разработка финмоделей: https://mngmnt.ru/ | Y15: обратный порядок периодизации | AA15: 61 | AB15: 60 | AC15: 59 | AD15: 58 | AE15: 57 | AF15: 56 | AG15: 55 | AH15: 54 | AI15: 53 | AJ15: 52 | AK15: 51 | AL15: 50 | AM15: 49 | AN15: 48 | AO15: 47 | AP15: 46 | AQ15: 45 | AR15: 44 | AS15: 43 | AT15: 42 | AU15: 41 | AV15: 40 | AW15: 39 | AX15: 38 | AY15: 37 | AZ15: 36 | BA15: 35 | BB15: 34 | BC15: 33 | BD15: 32 | BE15: 31 | BF15: 30 | BG15: 29 | BH15: 28 | BI15: 27 | BJ15: 26 | BK15: 25 | BL15: 24 | BM15: 23 | BN15: 22 | BO15: 21 | BP15: 20 | BQ15: 19 | BR15: 18 | BS15: 17 | BT15: 16 | BU15: 15 | BV15: 14 | BW15: 13 | BX15: 12 | BY15: 11 | BZ15: 10 | CA15: 9 | CB15: 8 | CC15: 7 | CD15: 6 | CE15: 5 | CF15: 4 | CG15: 3 | CH15: 2 | CI15: 1
A16: 16 | G16: 0 | H16: Метод расчета потока клиентов/заказчиков | K16: 1 | L16: Объекты размещения (отели, гостиницы)
A17: 17 | G17: 0 | H17: Метод расчета потока клиентов/заказчиков | I17: Сеть отелей - Поток гостей | L17: начало 1 маркетингового блока
A18: 18
A19: 19 | G19: 0 | H19: Поток запусков создания отелей | L19: 1 | M19: кол-во объектов | Q19: запуски процесса | X19: 10 | AA19: 1 | AB19: 0 | AC19: 0 | AD19: 0 | AE19: 0 | AF19: 0 | AG19: 1 | AH19: 0 | AI19: 0 | AJ19: 0 | AK19: 0 | AL19: 0 | AM19: 1 | AN19: 0 | AO19: 0 | AP19: 0 | AQ19: 0 | AR19: 0 | AS19: 1 | AT19: 0 | AU19: 0 | AV19: 0 | AW19: 0 | AX19: 0 | AY19: 1 | AZ19: 0 | BA19: 0 | BB19: 0 | BC19: 0 | BD19: 0 | BE19: 1 | BF19: 0 | BG19: 0 | BH19: 0 | BI19: 0 | BJ19: 0 | BK19: 1 | BL19: 0 | BM19: 0 | BN19: 0 | BO19: 0 | BP19: 0 | BQ19: 1 | BR19: 0 | BS19: 0 | BT19: 0 | BU19: 0 | BV19: 0 | BW19: 1 | BX19: 0 | BY19: 0 | BZ19: 0 | CA19: 0 | CB19: 0 | CC19: 1 | CD19: 0 | CE19: 0 | CF19: 0 | CG19: 0 | CH19: 0 | CI19: 0
A20: 20 | G20: 0 | H20: дата старта | I20: Начальная дата старта запусков создания | M20: дата из списка | P20: * | Q20: 2021-07-01 | R20: ^ | S20: 0 | Y20: идентификаторы запуска | AA20: 1 | AB20: 0 | AC20: 0 | AD20: 0 | AE20: 0 | AF20: 0 | AG20: 1 | AH20: 0 | AI20: 0 | AJ20: 0 | AK20: 0 | AL20: 0 | AM20: 1 | AN20: 0 | AO20: 0 | AP20: 0 | AQ20: 0 | AR20: 0 | AS20: 1 | AT20: 0 | AU20: 0 | AV20: 0 | AW20: 0 | AX20: 0 | AY20: 1 | AZ20: 0 | BA20: 0 | BB20: 0 | BC20: 0 | BD20: 0 | BE20: 1 | BF20: 0 | BG20: 0 | BH20: 0 | BI20: 0 | BJ20: 0 | BK20: 1 | BL20: 0 | BM20: 0 | BN20: 0 | BO20: 0 | BP20: 0 | BQ20: 1 | BR20: 0 | BS20: 0 | BT20: 0 | BU20: 0 | BV20: 0 | BW20: 1 | BX20: 0 | BY20: 0 | BZ20: 0 | CA20: 0 | CB20: 0 | CC20: 1 | CD20: 0 | CE20: 0 | CF20: 0 | CG20: 0 | CH20: 0 | CI20: 0
A21: 21 | G21: 0 | H21: Поток запусков создания отелей | I21: номер соответствующего периода расчетов | M21: номер периода | Q21: 1 | S21: 0 | T21: 0
A22: 22 | G22: 0 | H22: дата старта | I22: Конечная дата активности по запуску создания | M22: дата из списка | P22: * | R22: ^ | S22: 0
A23: 23 | G23: 0 | H23: Поток запусков создания отелей | I23: номер соответствующего периода расчетов | M23: номер периода | Q23: 60 | S23: 0 | T23: 0
A24: 24 | G24: 0 | H24: Поток запусков создания отелей | I24: Задание потока запусков создания вручную | M24: кол-во объектов | X24: 0 | Y24: *
A25: 25 | G25: 0 | H25: Поток запусков создания отелей | I25: Задание потока запусков создания через прогрессии
A26: 26 | G26: 0 | H26: Поток запусков создания отелей | I26: Задание потока запусков создания через прогрессии | J26: Начальная частота запусков создания | M26: кол-во периодов | P26: * | Q26: 6 | S26: 0
A27: 27 | G27: 0 | H27: Поток запусков создания отелей | I27: Задание потока запусков создания через прогрессии | J27: Лин. коэфф. изменения частоты создания | M27: кол-во периодов | P27: * | Q27: 0 | S27: 0
A28: 28 | G28: 0 | H28: дата старта | I28: Задание потока запусков создания через прогрессии | J28: Кол-во запусков создания в 1-ый период | M28: кол-во объектов | P28: * | Q28: 1 | S28: 0
A29: 29 | G29: 0 | H29: Поток запусков создания отелей | I29: Задание потока запусков создания через прогрессии | J29: Лин. коэфф. изменения кол-ва запусков создания | M29: кол-во объектов | P29: * | Q29: 0 | S29: 0
A30: 30 | G30: 0 | H30: дата старта | I30: Задание потока запусков создания через прогрессии | J30: Максимальное кол-во новых запусков за период | M30: кол-во объектов | P30: * | Q30: 1 | S30: 0
A31: 31
A32: 32 | G32: 0 | H32: Расчет максим. загрузки отеля за период | M32: гостей/период | Q32: 1692 | T32: 0
A33: 33 | G33: 0 | H33: Расчет максим. загрузки отеля за период | I33: Кол-во рабочих суток в периоде | M33: кол-во суток | P33: * | Q33: 90 | S33: 0
A34: 34 | G34: 0 | H34: Расчет максим. загрузки отеля за период | I34: Средн. продолжит-сть проживания 1 гостя | M34: суток/гость | P34: * | Q34: 5 | S34: 0
A35: 35 | G35: 0 | H35: Расчет максим. загрузки отеля за период | I35: Кол-во койко-мест в одном номере | M35: койко-мест/номер | P35: * | Q35: 2 | S35: 0
A36: 36 | G36: 0 | H36: Расчет максим. загрузки отеля за период | I36: Кол-во номеров одного отеля | M36: кол-во номеров | Q36: 47 | S36: 0
A37: 37 | G37: 0 | H37: Расчет максим. загрузки отеля за период | I37: Кол-во номеров одного отеля | J37: эконом/стандарт | M37: кол-во номеров | P37: * | Q37: 30 | S37: 0
A38: 38 | G38: 0 | H38: Расчет максим. загрузки отеля за период | I38: Кол-во номеров одного отеля | J38: бизнес | M38: кол-во номеров | P38: * | Q38: 10 | S38: 0
A39: 39 | G39: 0 | H39: Расчет максим. загрузки отеля за период | I39: Кол-во номеров одного отеля | J39: люкс | M39: кол-во номеров | P39: * | Q39: 5 | S39: 0
A40: 40 | G40: 0 | H40: Расчет максим. загрузки отеля за период | I40: Кол-во номеров одного отеля | J40: супер-люкс | M40: кол-во номеров | P40: * | Q40: 2 | S40: 0
A41: 41
A42: 42 | G42: 0 | H42: Расчет максимального трафика за период | M42: трафик/период | Q42: 5400 | T42: 0
A43: 43 | G43: 0 | H43: Расчет максимального трафика за период | I43: Кол-во рабочих дней в периоде | M43: кол-во дней | P43: * | Q43: 90 | S43: 0
A44: 44 | G44: 0 | H44: Расчет максимального трафика за период | I44: Поправка на конкурентов | M44: % | P44: * | Q44: 0.25 | S44: 0
A45: 45 | G45: 0 | H45: Расчет максимального трафика за период | I45: Коэффициент лояльности | M45: % | P45: * | Q45: 0.8 | S45: 0
A46: 46 | G46: 0 | H46: Расчет максимального трафика за период | I46: Доля людей, которые снимают отели | M46: % | P46: * | Q46: 0.3 | S46: 0
A47: 47 | G47: 0 | H47: Расчет максимального трафика за период | I47: Ежедневный трафик | M47: кол-во чел | P47: M | Q47: 1000 | S47: 0
A48: 48
A49: 49 | G49: 0 | H49: Динамика выхода отеля на максим. трафик | M49: трафик/объект | Q49: процесс | X49: 249400 | AA49: 0 | AB49: 0 | AC49: 0 | AD49: 0 | AE49: 500 | AF49: 500 | AG49: 1000 | AH49: 1000 | AI49: 1500 | AJ49: 1500 | AK49: 2000 | AL49: 2000 | AM49: 2500 | AN49: 2500 | AO49: 3000 | AP49: 3000 | AQ49: 3500 | AR49: 3500 | AS49: 4000 | AT49: 4000 | AU49: 4500 | AV49: 4500 | AW49: 5000 | AX49: 5000 | AY49: 5400 | AZ49: 5400 | BA49: 5400 | BB49: 5400 | BC49: 5400 | BD49: 5400 | BE49: 5400 | BF49: 5400 | BG49: 5400 | BH49: 5400 | BI49: 5400 | BJ49: 5400 | BK49: 5400 | BL49: 5400 | BM49: 5400 | BN49: 5400 | BO49: 5400 | BP49: 5400 | BQ49: 5400 | BR49: 5400 | BS49: 5400 | BT49: 5400 | BU49: 5400 | BV49: 5400 | BW49: 5400 | BX49: 5400 | BY49: 5400 | BZ49: 5400 | CA49: 5400 | CB49: 5400 | CC49: 5400 | CD49: 5400 | CE49: 5400 | CF49: 5400 | CG49: 5400 | CH49: 5400 | CI49: 0
A50: 50 | G50: 0 | H50: Динамика выхода отеля на максим. трафик | I50: Стартовый период с запуска создания | M50: номер периода | P50: * | Q50: 5 | S50: 0
A51: 51 | G51: 0 | H51: Динамика выхода отеля на максим. трафик | I51: Финишный период с запуска создания | M51: номер периода | P51: * | S51: 0
A52: 52 | G52: 0 | H52: Динамика выхода отеля на максим. трафик | I52: Вручную для каждого периода расчетов | M52: трафик/объект | X52: 0 | Y52: *
A53: 53 | G53: 0 | H53: тип прогрессии | I53: Через прогрессию | P53: * | Q53: линейная | R53: ^ | S53: 0
A54: 54 | G54: 0 | H54: Динамика выхода отеля на максим. трафик | I54: Значение в стартовый период | M54: трафик/объект | P54: M | Q54: 500 | S54: 0
A55: 55 | G55: 0 | H55: Динамика выхода отеля на максим. трафик | I55: Коэффициент прироста | M55: трафик/объект | P55: M | Q55: 500 | S55: 0
A56: 56 | G56: 0 | H56: Динамика выхода отеля на максим. трафик | I56: Частота приростов | M56: кол-во периодов | P56: M | Q56: 2 | S56: 0
A57: 57 | G57: 0 | H57: Динамика выхода отеля на максим. трафик | I57: Обратное распределение трафика | M57: трафик/объект | X57: 249400 | AA57: 0 | AB57: 5400 | AC57: 5400 | AD57: 5400 | AE57: 5400 | AF57: 5400 | AG57: 5400 | AH57: 5400 | AI57: 5400 | AJ57: 5400 | AK57: 5400 | AL57: 5400 | AM57: 5400 | AN57: 5400 | AO57: 5400 | AP57: 5400 | AQ57: 5400 | AR57: 5400 | AS57: 5400 | AT57: 5400 | AU57: 5400 | AV57: 5400 | AW57: 5400 | AX57: 5400 | AY57: 5400 | AZ57: 5400 | BA57: 5400 | BB57: 5400 | BC57: 5400 | BD57: 5400 | BE57: 5400 | BF57: 5400 | BG57: 5400 | BH57: 5400 | BI57: 5400 | BJ57: 5400 | BK57: 5400 | BL57: 5000 | BM57: 5000 | BN57: 4500 | BO57: 4500 | BP57: 4000 | BQ57: 4000 | BR57: 3500 | BS57: 3500 | BT57: 3000 | BU57: 3000 | BV57: 2500 | BW57: 2500 | BX57: 2000 | BY57: 2000 | BZ57: 1500 | CA57: 1500 | CB57: 1000 | CC57: 1000 | CD57: 500 | CE57: 500 | CF57: 0 | CG57: 0 | CH57: 0 | CI57: 0
A58: 58 | G58: 0 | H58: Динамика выхода отеля на максим. трафик | I58: Процентное распределние трафика | M58: % | T58: 0 | X58: 1 | AA58: 0 | AB58: 0 | AC58: 0 | AD58: 0 | AE58: 0.002004811548 | AF58: 0.002004811548 | AG58: 0.004009623095 | AH58: 0.004009623095 | AI58: 0.006014434643 | AJ58: 0.006014434643 | AK58: 0.008019246191 | AL58: 0.008019246191 | AM58: 0.01002405774 | AN58: 0.01002405774 | AO58: 0.01202886929 | AP58: 0.01202886929 | AQ58: 0.01403368083 | AR58: 0.01403368083 | AS58: 0.01603849238 | AT58: 0.01603849238 | AU58: 0.01804330393 | AV58: 0.01804330393 | AW58: 0.02004811548 | AX58: 0.02004811548 | AY58: 0.02165196472 | AZ58: 0.02165196472 | BA58: 0.02165196472 | BB58: 0.02165196472 | BC58: 0.02165196472 | BD58: 0.02165196472 | BE58: 0.02165196472 | BF58: 0.02165196472 | BG58: 0.02165196472 | BH58: 0.02165196472 | BI58: 0.02165196472 | BJ58: 0.02165196472 | BK58: 0.02165196472 | BL58: 0.02165196472 | BM58: 0.02165196472 | BN58: 0.02165196472 | BO58: 0.02165196472 | BP58: 0.02165196472 | BQ58: 0.02165196472 | BR58: 0.02165196472 | BS58: 0.02165196472 | BT58: 0.02165196472 | BU58: 0.02165196472 | BV58: 0.02165196472 | BW58: 0.02165196472 | BX58: 0.02165196472 | BY58: 0.02165196472 | BZ58: 0.02165196472 | CA58: 0.02165196472 | CB58: 0.02165196472 | CC58: 0.02165196472 | CD58: 0.02165196472 | CE58: 0.02165196472 | CF58: 0.02165196472 | CG58: 0.02165196472 | CH58: 0.02165196472 | CI58: 0
A59: 59
A60: 60 | G60: 0 | H60: Зависимость заполняемости от сезона | M60: за 100% берется максимальный трафик за период
A61: 61 | G61: 0 | H61: Зависимость заполняемости от сезона | I61: Номера месяцев года
A62: 62 | G62: 0 | H62: Зависимость заполняемости от сезона | I62: Номера месяцев года | J62: 1 | M62: % | P62: * | Q62: 0.5 | S62: 0
A63: 63 | G63: 0 | H63: Зависимость заполняемости от сезона | I63: Номера месяцев года | J63: 2 | M63: % | P63: * | Q63: 0.7 | S63: 0
A64: 64 | G64: 0 | H64: Зависимость заполняемости от сезона | I64: Номера месяцев года | J64: 3 | M64: % | P64: * | Q64: 0.95 | S64: 0
A65: 65 | G65: 0 | H65: Зависимость заполняемости от сезона | I65: Номера месяцев года | J65: 4 | M65: % | P65: * | Q65: 0.9 | S65: 0
A66: 66 | G66: 0 | H66: Зависимость заполняемости от сезона | I66: Номера месяцев года | J66: 5 | M66: % | P66: * | Q66: 0.65 | S66: 0
A67: 67 | G67: 0 | H67: Зависимость заполняемости от сезона | I67: Номера месяцев года | J67: 6 | M67: % | P67: * | Q67: 0.8 | S67: 0
A68: 68 | G68: 0 | H68: Зависимость заполняемости от сезона | I68: Номера месяцев года | J68: 7 | M68: % | P68: * | Q68: 0.8 | S68: 0
A69: 69 | G69: 0 | H69: Зависимость заполняемости от сезона | I69: Номера месяцев года | J69: 8 | M69: % | P69: * | Q69: 0.7 | S69: 0
A70: 70 | G70: 0 | H70: Зависимость заполняемости от сезона | I70: Номера месяцев года | J70: 9 | M70: % | P70: * | Q70: 1 | S70: 0
A71: 71 | G71: 0 | H71: Зависимость заполняемости от сезона | I71: Номера месяцев года | J71: 10 | M71: % | P71: * | Q71: 0.9 | S71: 0
A72: 72 | G72: 0 | H72: Зависимость заполняемости от сезона | I72: Номера месяцев года | J72: 11 | M72: % | P72: * | Q72: 0.7 | S72: 0
A73: 73 | G73: 0 | H73: Зависимость заполняемости от сезона | I73: Номера месяцев года | J73: 12 | M73: % | P73: * | Q73: 1 | S73: 0
A74: 74
A75: 75 | G75: 0 | H75: Трафик | L75: 1 | M75: кол-во потенциальных гостей | X75: 852580 | AA75: 0 | AB75: 0 | AC75: 0 | AD75: 0 | AE75: 400 | AF75: 450 | AG75: 500 | AH75: 900 | AI75: 1200 | AJ75: 1350 | AK75: 1250 | AL75: 2250 | AM75: 2800 | AN75: 3150 | AO75: 2250 | AP75: 4050 | AQ75: 4800 | AR75: 5400 | AS75: 3750 | AT75: 6750 | AU75: 7200 | AV75: 8100 | AW75: 5500 | AX75: 9900 | AY75: 10320 | AZ75: 11610 | BA75: 7200 | BB75: 12960 | BC75: 13120 | BD75: 14760 | BE75: 9150 | BF75: 16470 | BG75: 15840 | BH75: 17820 | BI75: 10900 | BJ75: 19620 | BK75: 18960 | BL75: 21330 | BM75: 12600 | BN75: 22680 | BO75: 21760 | BP75: 24480 | BQ75: 14550 | BR75: 26190 | BS75: 24480 | BT75: 27540 | BU75: 16300 | BV75: 29340 | BW75: 27600 | BX75: 31050 | BY75: 18000 | BZ75: 32400 | CA75: 30400 | CB75: 34200 | CC75: 19950 | CD75: 35910 | CE75: 33120 | CF75: 37260 | CG75: 21700 | CH75: 39060 | CI75: 0
A76: 76
A77: 77 | G77: 0 | H77: Конверсия в гостя | L77: 1 | M77: % | X77: 0.4081158366 | AA77: 0.1 | AB77: 0.1 | AC77: 0.12 | AD77: 0.12 | AE77: 0.14 | AF77: 0.14 | AG77: 0.16 | AH77: 0.16 | AI77: 0.18 | AJ77: 0.18 | AK77: 0.2 | AL77: 0.2 | AM77: 0.22 | AN77: 0.22 | AO77: 0.24 | AP77: 0.24 | AQ77: 0.26 | AR77: 0.26 | AS77: 0.28 | AT77: 0.28 | AU77: 0.3 | AV77: 0.3 | AW77: 0.32 | AX77: 0.32 | AY77: 0.34 | AZ77: 0.34 | BA77: 0.36 | BB77: 0.36 | BC77: 0.38 | BD77: 0.38 | BE77: 0.4 | BF77: 0.4 | BG77: 0.42 | BH77: 0.42 | BI77: 0.44 | BJ77: 0.44 | BK77: 0.46 | BL77: 0.46 | BM77: 0.48 | BN77: 0.48 | BO77: 0.5 | BP77: 0.5 | BQ77: 0.5 | BR77: 0.5 | BS77: 0.5 | BT77: 0.5 | BU77: 0.5 | BV77: 0.5 | BW77: 0.5 | BX77: 0.5 | BY77: 0.5 | BZ77: 0.5 | CA77: 0.5 | CB77: 0.5 | CC77: 0.5 | CD77: 0.5 | CE77: 0.5 | CF77: 0.5 | CG77: 0.5 | CH77: 0.5 | CI77: 0
A78: 78 | G78: 0 | H78: Конверсия в гостя | I78: Единое значение для всех периодов расчета | M78: % | P78: * | S78: 0
A79: 79 | G79: 0 | H79: Конверсия в гостя | I79: Вручную для каждого периода расчетов | M79: % | X79: 0 | Y79: *
A80: 80 | G80: 0 | H80: тип прогрессии | I80: Через прогрессию | P80: * | Q80: линейная | R80: ^ | S80: 0
A81: 81 | G81: 0 | H81: Конверсия в гостя | I81: Значение в стартовый период | M81: % | P81: * | Q81: 0.1 | S81: 0
A82: 82 | G82: 0 | H82: Конверсия в гостя | I82: Коэффициент прироста | M82: % | P82: * | Q82: 0.02 | S82: 0
A83: 83 | G83: 0 | H83: Конверсия в гостя | I83: Частота приростов | M83: кол-во периодов | P83: * | Q83: 2 | S83: 0
A84: 84 | G84: 0 | H84: Конверсия в гостя | I84: Максимальное значение | M84: % | P84: * | Q84: 0.5 | S84: 0
A85: 85
A86: 86 | G86: 0 | H86: Валовый поток гостей | L86: 1 | M86: кол-во гостей | X86: 347951.4 | AA86: 0 | AB86: 0 | AC86: 0 | AD86: 0 | AE86: 56 | AF86: 63 | AG86: 80 | AH86: 144 | AI86: 216 | AJ86: 243 | AK86: 250 | AL86: 450 | AM86: 616 | AN86: 693 | AO86: 540 | AP86: 972 | AQ86: 1248 | AR86: 1404 | AS86: 1050 | AT86: 1890 | AU86: 2160 | AV86: 2430 | AW86: 1760 | AX86: 3168 | AY86: 3508.8 | AZ86: 3947.4 | BA86: 2592 | BB86: 4665.6 | BC86: 4985.6 | BD86: 5608.8 | BE86: 3660 | BF86: 6588 | BG86: 6652.8 | BH86: 7484.4 | BI86: 4796 | BJ86: 8632.8 | BK86: 8721.6 | BL86: 9811.8 | BM86: 5922 | BN86: 10659.6 | BO86: 9475.2 | BP86: 10659.6 | BQ86: 6768 | BR86: 12182.4 | BS86: 10828.8 | BT86: 12182.4 | BU86: 6768 | BV86: 12182.4 | BW86: 12182.4 | BX86: 13705.2 | BY86: 7614 | BZ86: 13705.2 | CA86: 12182.4 | CB86: 13705.2 | CC86: 8460 | CD86: 15228 | CE86: 13536 | CF86: 15228 | CG86: 8460 | CH86: 15228 | CI86: 0
A87: 87 | G87: 0 | H87: Валовый поток гостей | I87: Номерной фонд | L87: 1 | M87: шт | T87: 0 | X87: 347951.4 | AA87: 0 | AB87: 0 | AC87: 0 | AD87: 0 | AE87: 56 | AF87: 63 | AG87: 80 | AH87: 144 | AI87: 216 | AJ87: 243 | AK87: 250 | AL87: 450 | AM87: 616 | AN87: 693 | AO87: 540 | AP87: 972 | AQ87: 1248 | AR87: 1404 | AS87: 1050 | AT87: 1890 | AU87: 2160 | AV87: 2430 | AW87: 1760 | AX87: 3168 | AY87: 3508.8 | AZ87: 3947.4 | BA87: 2592 | BB87: 4665.6 | BC87: 4985.6 | BD87: 5608.8 | BE87: 3660 | BF87: 6588 | BG87: 6652.8 | BH87: 7484.4 | BI87: 4796 | BJ87: 8632.8 | BK87: 8721.6 | BL87: 9811.8 | BM87: 5922 | BN87: 10659.6 | BO87: 9475.2 | BP87: 10659.6 | BQ87: 6768 | BR87: 12182.4 | BS87: 10828.8 | BT87: 12182.4 | BU87: 6768 | BV87: 12182.4 | BW87: 12182.4 | BX87: 13705.2 | BY87: 7614 | BZ87: 13705.2 | CA87: 12182.4 | CB87: 13705.2 | CC87: 8460 | CD87: 15228 | CE87: 13536 | CF87: 15228 | CG87: 8460 | CH87: 15228 | CI87: 0
A88: 88 | G88: 0 | H88: Валовый поток гостей | I88: Food&Beverage | L88: 1 | M88: шт | T88: 0 | X88: 347951.4 | AA88: 0 | AB88: 0 | AC88: 0 | AD88: 0 | AE88: 56 | AF88: 63 | AG88: 80 | AH88: 144 | AI88: 216 | AJ88: 243 | AK88: 250 | AL88: 450 | AM88: 616 | AN88: 693 | AO88: 540 | AP88: 972 | AQ88: 1248 | AR88: 1404 | AS88: 1050 | AT88: 1890 | AU88: 2160 | AV88: 2430 | AW88: 1760 | AX88: 3168 | AY88: 3508.8 | AZ88: 3947.4 | BA88: 2592 | BB88: 4665.6 | BC88: 4985.6 | BD88: 5608.8 | BE88: 3660 | BF88: 6588 | BG88: 6652.8 | BH88: 7484.4 | BI88: 4796 | BJ88: 8632.8 | BK88: 8721.6 | BL88: 9811.8 | BM88: 5922 | BN88: 10659.6 | BO88: 9475.2 | BP88: 10659.6 | BQ88: 6768 | BR88: 12182.4 | BS88: 10828.8 | BT88: 12182.4 | BU88: 6768 | BV88: 12182.4 | BW88: 12182.4 | BX88: 13705.2 | BY88: 7614 | BZ88: 13705.2 | CA88: 12182.4 | CB88: 13705.2 | CC88: 8460 | CD88: 15228 | CE88: 13536 | CF88: 15228 | CG88: 8460 | CH88: 15228 | CI88: 0
A89: 89 | G89: 0 | H89: Валовый поток гостей | I89: Развлекат. услуги | L89: 1 | M89: шт | T89: 0 | X89: 347951.4 | AA89: 0 | AB89: 0 | AC89: 0 | AD89: 0 | AE89: 56 | AF89: 63 | AG89: 80 | AH89: 144 | AI89: 216 | AJ89: 243 | AK89: 250 | AL89: 450 | AM89: 616 | AN89: 693 | AO89: 540 | AP89: 972 | AQ89: 1248 | AR89: 1404 | AS89: 1050 | AT89: 1890 | AU89: 2160 | AV89: 2430 | AW89: 1760 | AX89: 3168 | AY89: 3508.8 | AZ89: 3947.4 | BA89: 2592 | BB89: 4665.6 | BC89: 4985.6 | BD89: 5608.8 | BE89: 3660 | BF89: 6588 | BG89: 6652.8 | BH89: 7484.4 | BI89: 4796 | BJ89: 8632.8 | BK89: 8721.6 | BL89: 9811.8 | BM89: 5922 | BN89: 10659.6 | BO89: 9475.2 | BP89: 10659.6 | BQ89: 6768 | BR89: 12182.4 | BS89: 10828.8 | BT89: 12182.4 | BU89: 6768 | BV89: 12182.4 | BW89: 12182.4 | BX89: 13705.2 | BY89: 7614 | BZ89: 13705.2 | CA89: 12182.4 | CB89: 13705.2 | CC89: 8460 | CD89: 15228 | CE89: 13536 | CF89: 15228 | CG89: 8460 | CH89: 15228 | CI89: 0
A90: 90 | L90: пустая строка
A91: 91
A92: 92 | G92: 0 | H92: Долевое распределние потока по продукции
A93: 93 | G93: 0 | H93: продукция | I93: Вручную для каждого периода расчетов | M93: % | P93: * | Q93: Номерной фонд | R93: ^ | S93: 0 | T93: 0 | X93: 1 | Y93: * | AA93: 1 | AB93: 1 | AC93: 1 | AD93: 1 | AE93: 1 | AF93: 1 | AG93: 1 | AH93: 1 | AI93: 1 | AJ93: 1 | AK93: 1 | AL93: 1 | AM93: 1 | AN93: 1 | AO93: 1 | AP93: 1 | AQ93: 1 | AR93: 1 | AS93: 1 | AT93: 1 | AU93: 1 | AV93: 1 | AW93: 1 | AX93: 1 | AY93: 1 | AZ93: 1 | BA93: 1 | BB93: 1 | BC93: 1 | BD93: 1 | BE93: 1 | BF93: 1 | BG93: 1 | BH93: 1 | BI93: 1 | BJ93: 1 | BK93: 1 | BL93: 1 | BM93: 1 | BN93: 1 | BO93: 1 | BP93: 1 | BQ93: 1 | BR93: 1 | BS93: 1 | BT93: 1 | BU93: 1 | BV93: 1 | BW93: 1 | BX93: 1 | BY93: 1 | BZ93: 1 | CA93: 1 | CB93: 1 | CC93: 1 | CD93: 1 | CE93: 1 | CF93: 1 | CG93: 1 | CH93: 1 | CI93: 1
A94: 94 | G94: 0 | H94: продукция | I94: Вручную для каждого периода расчетов | M94: % | P94: * | Q94: Food&Beverage | R94: ^ | S94: 0 | T94: 0 | X94: 1 | Y94: * | AA94: 1 | AB94: 1 | AC94: 1 | AD94: 1 | AE94: 1 | AF94: 1 | AG94: 1 | AH94: 1 | AI94: 1 | AJ94: 1 | AK94: 1 | AL94: 1 | AM94: 1 | AN94: 1 | AO94: 1 | AP94: 1 | AQ94: 1 | AR94: 1 | AS94: 1 | AT94: 1 | AU94: 1 | AV94: 1 | AW94: 1 | AX94: 1 | AY94: 1 | AZ94: 1 | BA94: 1 | BB94: 1 | BC94: 1 | BD94: 1 | BE94: 1 | BF94: 1 | BG94: 1 | BH94: 1 | BI94: 1 | BJ94: 1 | BK94: 1 | BL94: 1 | BM94: 1 | BN94: 1 | BO94: 1 | BP94: 1 | BQ94: 1 | BR94: 1 | BS94: 1 | BT94: 1 | BU94: 1 | BV94: 1 | BW94: 1 | BX94: 1 | BY94: 1 | BZ94: 1 | CA94: 1 | CB94: 1 | CC94: 1 | CD94: 1 | CE94: 1 | CF94: 1 | CG94: 1 | CH94: 1 | CI94: 1
A95: 95 | G95: 0 | H95: продукция | I95: Вручную для каждого периода расчетов | M95: % | P95: * | Q95: Развлекат. услуги | R95: ^ | S95: 0 | T95: 0 | X95: 1 | Y95: * | AA95: 1 | AB95: 1 | AC95: 1 | AD95: 1 | AE95: 1 | AF95: 1 | AG95: 1 | AH95: 1 | AI95: 1 | AJ95: 1 | AK95: 1 | AL95: 1 | AM95: 1 | AN95: 1 | AO95: 1 | AP95: 1 | AQ95: 1 | AR95: 1 | AS95: 1 | AT95: 1 | AU95: 1 | AV95: 1 | AW95: 1 | AX95: 1 | AY95: 1 | AZ95: 1 | BA95: 1 | BB95: 1 | BC95: 1 | BD95: 1 | BE95: 1 | BF95: 1 | BG95: 1 | BH95: 1 | BI95: 1 | BJ95: 1 | BK95: 1 | BL95: 1 | BM95: 1 | BN95: 1 | BO95: 1 | BP95: 1 | BQ95: 1 | BR95: 1 | BS95: 1 | BT95: 1 | BU95: 1 | BV95: 1 | BW95: 1 | BX95: 1 | BY95: 1 | BZ95: 1 | CA95: 1 | CB95: 1 | CC95: 1 | CD95: 1 | CE95: 1 | CF95: 1 | CG95: 1 | CH95: 1 | CI95: 1
A96: 96 | L96: пустая строка
A97: 97
A98: 98 | G98: 0 | H98: Базовый прайс-лист продукции | M98: руб./гость | X98: 53525.49787 | AA98: 48882.97872 | AB98: 48882.97872 | AC98: 48882.97872 | AD98: 48882.97872 | AE98: 48882.97872 | AF98: 48882.97872 | AG98: 49860.6383 | AH98: 49860.6383 | AI98: 49860.6383 | AJ98: 49860.6383 | AK98: 49860.6383 | AL98: 49860.6383 | AM98: 50857.85106 | AN98: 50857.85106 | AO98: 50857.85106 | AP98: 50857.85106 | AQ98: 50857.85106 | AR98: 50857.85106 | AS98: 51875.00809 | AT98: 51875.00809 | AU98: 51875.00809 | AV98: 51875.00809 | AW98: 51875.00809 | AX98: 51875.00809 | AY98: 52912.50825 | AZ98: 52912.50825 | BA98: 52912.50825 | BB98: 52912.50825 | BC98: 52912.50825 | BD98: 52912.50825 | BE98: 53970.75841 | BF98: 53970.75841 | BG98: 53970.75841 | BH98: 53970.75841 | BI98: 53970.75841 | BJ98: 53970.75841 | BK98: 55050.17358 | BL98: 55050.17358 | BM98: 55050.17358 | BN98: 55050.17358 | BO98: 55050.17358 | BP98: 55050.17358 | BQ98: 56151.17705 | BR98: 56151.17705 | BS98: 56151.17705 | BT98: 56151.17705 | BU98: 56151.17705 | BV98: 56151.17705 | BW98: 57274.20059 | BX98: 57274.20059 | BY98: 57274.20059 | BZ98: 57274.20059 | CA98: 57274.20059 | CB98: 57274.20059 | CC98: 58419.6846 | CD98: 58419.6846 | CE98: 58419.6846 | CF98: 58419.6846 | CG98: 58419.6846 | CH98: 58419.6846 | CI98: 0
A99: 99 | G99: 0 | H99: Базовый прайс-лист продукции | I99: Номерной фонд | M99: руб./шт | P99: M | Q99: 6702.12766 | S99: 0 | X99: 36693.21399 | AA99: 33510.6383 | AB99: 33510.6383 | AC99: 33510.6383 | AD99: 33510.6383 | AE99: 33510.6383 | AF99: 33510.6383 | AG99: 34180.85106 | AH99: 34180.85106 | AI99: 34180.85106 | AJ99: 34180.85106 | AK99: 34180.85106 | AL99: 34180.85106 | AM99: 34864.46809 | AN99: 34864.46809 | AO99: 34864.46809 | AP99: 34864.46809 | AQ99: 34864.46809 | AR99: 34864.46809 | AS99: 35561.75745 | AT99: 35561.75745 | AU99: 35561.75745 | AV99: 35561.75745 | AW99: 35561.75745 | AX99: 35561.75745 | AY99: 36272.9926 | AZ99: 36272.9926 | BA99: 36272.9926 | BB99: 36272.9926 | BC99: 36272.9926 | BD99: 36272.9926 | BE99: 36998.45245 | BF99: 36998.45245 | BG99: 36998.45245 | BH99: 36998.45245 | BI99: 36998.45245 | BJ99: 36998.45245 | BK99: 37738.4215 | BL99: 37738.4215 | BM99: 37738.4215 | BN99: 37738.4215 | BO99: 37738.4215 | BP99: 37738.4215 | BQ99: 38493.18993 | BR99: 38493.18993 | BS99: 38493.18993 | BT99: 38493.18993 | BU99: 38493.18993 | BV99: 38493.18993 | BW99: 39263.05373 | BX99: 39263.05373 | BY99: 39263.05373 | BZ99: 39263.05373 | CA99: 39263.05373 | CB99: 39263.05373 | CC99: 40048.3148 | CD99: 40048.3148 | CE99: 40048.3148 | CF99: 40048.3148 | CG99: 40048.3148 | CH99: 40048.3148 | CI99: 0
A100: 100 | G100: 0 | H100: Базовый прайс-лист продукции | I100: Food&Beverage | M100: руб./шт | P100: M | Q100: 2425.531915 | S100: 0 | X100: 13279.44887 | AA100: 12127.65957 | AB100: 12127.65957 | AC100: 12127.65957 | AD100: 12127.65957 | AE100: 12127.65957 | AF100: 12127.65957 | AG100: 12370.21277 | AH100: 12370.21277 | AI100: 12370.21277 | AJ100: 12370.21277 | AK100: 12370.21277 | AL100: 12370.21277 | AM100: 12617.61702 | AN100: 12617.61702 | AO100: 12617.61702 | AP100: 12617.61702 | AQ100: 12617.61702 | AR100: 12617.61702 | AS100: 12869.96936 | AT100: 12869.96936 | AU100: 12869.96936 | AV100: 12869.96936 | AW100: 12869.96936 | AX100: 12869.96936 | AY100: 13127.36875 | AZ100: 13127.36875 | BA100: 13127.36875 | BB100: 13127.36875 | BC100: 13127.36875 | BD100: 13127.36875 | BE100: 13389.91612 | BF100: 13389.91612 | BG100: 13389.91612 | BH100: 13389.91612 | BI100: 13389.91612 | BJ100: 13389.91612 | BK100: 13657.71445 | BL100: 13657.71445 | BM100: 13657.71445 | BN100: 13657.71445 | BO100: 13657.71445 | BP100: 13657.71445 | BQ100: 13930.86874 | BR100: 13930.86874 | BS100: 13930.86874 | BT100: 13930.86874 | BU100: 13930.86874 | BV100: 13930.86874 | BW100: 14209.48611 | BX100: 14209.48611 | BY100: 14209.48611 | BZ100: 14209.48611 | CA100: 14209.48611 | CB100: 14209.48611 | CC100: 14493.67583 | CD100: 14493.67583 | CE100: 14493.67583 | CF100: 14493.67583 | CG100: 14493.67583 | CH100: 14493.67583 | CI100: 0
A101: 101 | G101: 0 | H101: Базовый прайс-лист продукции | I101: Развлекат. услуги | M101: руб./шт | P101: M | Q101: 648.9361702 | S101: 0 | X101: 3552.835005 | AA101: 3244.680851 | AB101: 3244.680851 | AC101: 3244.680851 | AD101: 3244.680851 | AE101: 3244.680851 | AF101: 3244.680851 | AG101: 3309.574468 | AH101: 3309.574468 | AI101: 3309.574468 | AJ101: 3309.574468 | AK101: 3309.574468 | AL101: 3309.574468 | AM101: 3375.765957 | AN101: 3375.765957 | AO101: 3375.765957 | AP101: 3375.765957 | AQ101: 3375.765957 | AR101: 3375.765957 | AS101: 3443.281277 | AT101: 3443.281277 | AU101: 3443.281277 | AV101: 3443.281277 | AW101: 3443.281277 | AX101: 3443.281277 | AY101: 3512.146902 | AZ101: 3512.146902 | BA101: 3512.146902 | BB101: 3512.146902 | BC101: 3512.146902 | BD101: 3512.146902 | BE101: 3582.38984 | BF101: 3582.38984 | BG101: 3582.38984 | BH101: 3582.38984 | BI101: 3582.38984 | BJ101: 3582.38984 | BK101: 3654.037637 | BL101: 3654.037637 | BM101: 3654.037637 | BN101: 3654.037637 | BO101: 3654.037637 | BP101: 3654.037637 | BQ101: 3727.11839 | BR101: 3727.11839 | BS101: 3727.11839 | BT101: 3727.11839 | BU101: 3727.11839 | BV101: 3727.11839 | BW101: 3801.660758 | BX101: 3801.660758 | BY101: 3801.660758 | BZ101: 3801.660758 | CA101: 3801.660758 | CB101: 3801.660758 | CC101: 3877.693973 | CD101: 3877.693973 | CE101: 3877.693973 | CF101: 3877.693973 | CG101: 3877.693973 | CH101: 3877.693973 | CI101: 0
A102: 102 | L102: пустая строка
A103: 103 | G103: 0 | H103: Индексация прайс-листа
A104: 104 | G104: 0 | H104: Индексация прайс-листа | I104: Процент индексации/прироста | M104: % | P104: M | Q104: 0.02 | S104: 0
A105: 105 | G105: 0 | H105: Индексация прайс-листа | I105: Частота индексации | M105: кол-во периодов | P105: * | Q105: 6 | S105: 0
A106: 106
A107: 107 | G107: 0 | H107: Общий оборот (GMV) | L107: 1 | M107: руб. | T107: 0 | X107: 1.94756385e+10 | AA107: 0 | AB107: 0 | AC107: 0 | AD107: 0 | AE107: 2737446.809 | AF107: 3079627.66 | AG107: 3988851.064 | AH107: 7179931.915 | AI107: 10769897.87 | AJ107: 12116135.11 | AK107: 12465159.57 | AL107: 22437287.23 | AM107: 31328436.26 | AN107: 35244490.79 | AO107: 27463239.57 | AP107: 49433831.23 | AQ107: 63470598.13 | AR107: 71404422.89 | AS107: 54468758.49 | AT107: 98043765.28 | AU107: 112050017.5 | AV107: 126056269.6 | AW107: 91300014.23 | AX107: 164340025.6 | AY107: 185659408.9 | AZ107: 208866835.1 | BA107: 137149221.4 | BB107: 246868598.5 | BC107: 263800601.1 | BD107: 296775676.3 | BE107: 197532975.8 | BF107: 355559356.4 | BG107: 359056661.6 | BH107: 403938744.3 | BI107: 258843757.3 | BJ107: 465918763.2 | BK107: 480125593.9 | BL107: 540141293.1 | BM107: 326007127.9 | BN107: 586812830.3 | BO107: 521611404.7 | BP107: 586812830.3 | BQ107: 380031166.3 | BR107: 684056099.3 | BS107: 608049866.1 | BT107: 684056099.3 | BU107: 380031166.3 | BV107: 684056099.3 | BW107: 697737221.3 | BX107: 784954374 | BY107: 436085763.3 | BZ107: 784954374 | CA107: 697737221.3 | CB107: 784954374 | CC107: 494230531.8 | CD107: 889614957.2 | CE107: 790768850.8 | CF107: 889614957.2 | CG107: 494230531.8 | CH107: 889614957.2 | CI107: 0
A108: 108 | G108: 0 | H108: Общий оборот (GMV) | I108: Номерной фонд | L108: 1 | M108: руб. | X108: 1.335109059e+10 | AA108: 0 | AB108: 0 | AC108: 0 | AD108: 0 | AE108: 1876595.745 | AF108: 2111170.213 | AG108: 2734468.085 | AH108: 4922042.553 | AI108: 7383063.83 | AJ108: 8305946.809 | AK108: 8545212.766 | AL108: 15381382.98 | AM108: 21476512.34 | AN108: 24161076.38 | AO108: 18826812.77 | AP108: 33888262.98 | AQ108: 43510856.17 | AR108: 48949713.19 | AS108: 37339845.32 | AT108: 67211721.57 | AU108: 76813396.09 | AV108: 86415070.6 | AW108: 62588693.11 | AX108: 112659647.6 | AY108: 127274676.4 | AZ108: 143184011 | BA108: 94019596.81 | BB108: 169235274.3 | BC108: 180842631.9 | BD108: 203447960.9 | BE108: 135414336 | BF108: 243745804.7 | BG108: 246143304.4 | BH108: 276911217.5 | BI108: 177444577.9 | BJ108: 319400240.3 | BK108: 329139416.9 | BL108: 370281844 | BM108: 223486932.1 | BN108: 402276477.8 | BO108: 357579091.4 | BP108: 402276477.8 | BQ108: 260521909.4 | BR108: 468939437 | BS108: 416835055.1 | BT108: 468939437 | BU108: 260521909.4 | BV108: 468939437 | BW108: 478318225.7 | BX108: 538108003.9 | BY108: 298948891.1 | BZ108: 538108003.9 | CA108: 478318225.7 | CB108: 538108003.9 | CC108: 338808743.2 | CD108: 609855737.8 | CE108: 542093989.1 | CF108: 609855737.8 | CG108: 338808743.2 | CH108: 609855737.8 | CI108: 0
A109: 109 | G109: 0 | H109: Общий оборот (GMV) | I109: Food&Beverage | L109: 1 | M109: руб. | X109: 4831823262 | AA109: 0 | AB109: 0 | AC109: 0 | AD109: 0 | AE109: 679148.9362 | AF109: 764042.5532 | AG109: 989617.0213 | AH109: 1781310.638 | AI109: 2671965.957 | AJ109: 3005961.702 | AK109: 3092553.191 | AL109: 5566595.745 | AM109: 7772452.085 | AN109: 8744008.596 | AO109: 6813513.191 | AP109: 12264323.74 | AQ109: 15746786.04 | AR109: 17715134.3 | AS109: 13513467.83 | AT109: 24324242.09 | AU109: 27799133.82 | AV109: 31274025.55 | AW109: 22651146.08 | AX109: 40772062.94 | AY109: 46061311.47 | AZ109: 51818975.4 | BA109: 34026139.8 | BB109: 61247051.64 | BC109: 65447809.63 | BD109: 73628785.84 | BE109: 49007093.01 | BF109: 88212767.42 | BG109: 89080433.99 | BH109: 100215488.2 | BI109: 64218037.73 | BJ109: 115592467.9 | BK109: 119117122.3 | BL109: 134006762.6 | BM109: 80880984.95 | BN109: 145585772.9 | BO109: 129409575.9 | BP109: 145585772.9 | BQ109: 94284119.6 | BR109: 169711415.3 | BS109: 150854591.4 | BT109: 169711415.3 | BU109: 94284119.6 | BV109: 169711415.3 | BW109: 173105643.6 | BX109: 194743849 | BY109: 108191027.2 | BZ109: 194743849 | CA109: 173105643.6 | CB109: 194743849 | CC109: 122616497.5 | CD109: 220709695.6 | CE109: 196186396.1 | CF109: 220709695.6 | CG109: 122616497.5 | CH109: 220709695.6 | CI109: 0
A110: 110 | G110: 0 | H110: Общий оборот (GMV) | I110: Развлекат. услуги | L110: 1 | M110: руб. | X110: 1292724645 | AA110: 0 | AB110: 0 | AC110: 0 | AD110: 0 | AE110: 181702.1277 | AF110: 204414.8936 | AG110: 264765.9574 | AH110: 476578.7234 | AI110: 714868.0851 | AJ110: 804226.5957 | AK110: 827393.617 | AL110: 1489308.511 | AM110: 2079471.83 | AN110: 2339405.809 | AO110: 1822913.617 | AP110: 3281244.511 | AQ110: 4212955.915 | AR110: 4739575.404 | AS110: 3615445.34 | AT110: 6507801.613 | AU110: 7437487.557 | AV110: 8367173.502 | AW110: 6060175.047 | AX110: 10908315.08 | AY110: 12323421.05 | AZ110: 13863848.68 | BA110: 9103484.77 | BB110: 16386272.59 | BC110: 17510159.6 | BD110: 19698929.54 | BE110: 13111546.82 | BF110: 23600784.27 | BG110: 23832923.13 | BH110: 26812038.52 | BI110: 17181141.67 | BJ110: 30926055.01 | BK110: 31869054.65 | BL110: 35852686.49 | BM110: 21639210.89 | BN110: 38950579.6 | BO110: 34622737.42 | BP110: 38950579.6 | BQ110: 25225137.26 | BR110: 45405247.07 | BS110: 40360219.62 | BT110: 45405247.07 | BU110: 25225137.26 | BV110: 45405247.07 | BW110: 46313352.01 | BX110: 52102521.01 | BY110: 28945845.01 | BZ110: 52102521.01 | CA110: 46313352.01 | CB110: 52102521.01 | CC110: 32805291.01 | CD110: 59049523.82 | CE110: 52488465.61 | CF110: 59049523.82 | CG110: 32805291.01 | CH110: 59049523.82 | CI110: 0
A111: 111 | L111: пустая строка
A112: 112
A113: 113 | G113: 0 | H113: Доля продаж со скидками
A114: 114 | G114: 0 | H114: продукция | I114: Вручную для каждого периода расчетов | M114: % | Q114: Номерной фонд | S114: 0 | T114: 0 | X114: 0.3 | Y114: * | AA114: 0.3 | AB114: 0.3 | AC114: 0.3 | AD114: 0.3 | AE114: 0.3 | AF114: 0.3 | AG114: 0.3 | AH114: 0.3 | AI114: 0.3 | AJ114: 0.3 | AK114: 0.3 | AL114: 0.3 | AM114: 0.3 | AN114: 0.3 | AO114: 0.3 | AP114: 0.3 | AQ114: 0.3 | AR114: 0.3 | AS114: 0.3 | AT114: 0.3 | AU114: 0.3 | AV114: 0.3 | AW114: 0.3 | AX114: 0.3 | AY114: 0.3 | AZ114: 0.3 | BA114: 0.3 | BB114: 0.3 | BC114: 0.3 | BD114: 0.3 | BE114: 0.3 | BF114: 0.3 | BG114: 0.3 | BH114: 0.3 | BI114: 0.3 | BJ114: 0.3 | BK114: 0.3 | BL114: 0.3 | BM114: 0.3 | BN114: 0.3 | BO114: 0.3 | BP114: 0.3 | BQ114: 0.3 | BR114: 0.3 | BS114: 0.3 | BT114: 0.3 | BU114: 0.3 | BV114: 0.3 | BW114: 0.3 | BX114: 0.3 | BY114: 0.3 | BZ114: 0.3 | CA114: 0.3 | CB114: 0.3 | CC114: 0.3 | CD114: 0.3 | CE114: 0.3 | CF114: 0.3 | CG114: 0.3 | CH114: 0.3 | CI114: 0.3
A115: 115 | G115: 0 | H115: продукция | I115: Вручную для каждого периода расчетов | M115: % | Q115: Food&Beverage | S115: 0 | T115: 0 | X115: 0.4 | Y115: * | AA115: 0.4 | AB115: 0.4 | AC115: 0.4 | AD115: 0.4 | AE115: 0.4 | AF115: 0.4 | AG115: 0.4 | AH115: 0.4 | AI115: 0.4 | AJ115: 0.4 | AK115: 0.4 | AL115: 0.4 | AM115: 0.4 | AN115: 0.4 | AO115: 0.4 | AP115: 0.4 | AQ115: 0.4 | AR115: 0.4 | AS115: 0.4 | AT115: 0.4 | AU115: 0.4 | AV115: 0.4 | AW115: 0.4 | AX115: 0.4 | AY115: 0.4 | AZ115: 0.4 | BA115: 0.4 | BB115: 0.4 | BC115: 0.4 | BD115: 0.4 | BE115: 0.4 | BF115: 0.4 | BG115: 0.4 | BH115: 0.4 | BI115: 0.4 | BJ115: 0.4 | BK115: 0.4 | BL115: 0.4 | BM115: 0.4 | BN115: 0.4 | BO115: 0.4 | BP115: 0.4 | BQ115: 0.4 | BR115: 0.4 | BS115: 0.4 | BT115: 0.4 | BU115: 0.4 | BV115: 0.4 | BW115: 0.4 | BX115: 0.4 | BY115: 0.4 | BZ115: 0.4 | CA115: 0.4 | CB115: 0.4 | CC115: 0.4 | CD115: 0.4 | CE115: 0.4 | CF115: 0.4 | CG115: 0.4 | CH115: 0.4 | CI115: 0.4
A116: 116 | G116: 0 | H116: продукция | I116: Вручную для каждого периода расчетов | M116: % | Q116: Развлекат. услуги | S116: 0 | T116: 0 | X116: 0.5 | Y116: * | AA116: 0.5 | AB116: 0.5 | AC116: 0.5 | AD116: 0.5 | AE116: 0.5 | AF116: 0.5 | AG116: 0.5 | AH116: 0.5 | AI116: 0.5 | AJ116: 0.5 | AK116: 0.5 | AL116: 0.5 | AM116: 0.5 | AN116: 0.5 | AO116: 0.5 | AP116: 0.5 | AQ116: 0.5 | AR116: 0.5 | AS116: 0.5 | AT116: 0.5 | AU116: 0.5 | AV116: 0.5 | AW116: 0.5 | AX116: 0.5 | AY116: 0.5 | AZ116: 0.5 | BA116: 0.5 | BB116: 0.5 | BC116: 0.5 | BD116: 0.5 | BE116: 0.5 | BF116: 0.5 | BG116: 0.5 | BH116: 0.5 | BI116: 0.5 | BJ116: 0.5 | BK116: 0.5 | BL116: 0.5 | BM116: 0.5 | BN116: 0.5 | BO116: 0.5 | BP116: 0.5 | BQ116: 0.5 | BR116: 0.5 | BS116: 0.5 | BT116: 0.5 | BU116: 0.5 | BV116: 0.5 | BW116: 0.5 | BX116: 0.5 | BY116: 0.5 | BZ116: 0.5 | CA116: 0.5 | CB116: 0.5 | CC116: 0.5 | CD116: 0.5 | CE116: 0.5 | CF116: 0.5 | CG116: 0.5 | CH116: 0.5 | CI116: 0.5
A117: 117 | L117: пустая строка
A118: 118
A119: 119 | G119: 0 | H119: Средний размер скидок
A120: 120 | G120: 0 | H120: Средний размер скидок | I120: Номерной фонд | M120: % | P120: * | Q120: 0.2 | S120: 0 | X120: 0.105 | AA120: 0.2 | AB120: 0.2 | AC120: 0.2 | AD120: 0.19 | AE120: 0.19 | AF120: 0.19 | AG120: 0.18 | AH120: 0.18 | AI120: 0.18 | AJ120: 0.17 | AK120: 0.17 | AL120: 0.17 | AM120: 0.16 | AN120: 0.16 | AO120: 0.16 | AP120: 0.15 | AQ120: 0.15 | AR120: 0.15 | AS120: 0.14 | AT120: 0.14 | AU120: 0.14 | AV120: 0.13 | AW120: 0.13 | AX120: 0.13 | AY120: 0.12 | AZ120: 0.12 | BA120: 0.12 | BB120: 0.11 | BC120: 0.11 | BD120: 0.11 | BE120: 0.1 | BF120: 0.1 | BG120: 0.1 | BH120: 0.09 | BI120: 0.09 | BJ120: 0.09 | BK120: 0.08 | BL120: 0.08 | BM120: 0.08 | BN120: 0.07 | BO120: 0.07 | BP120: 0.07 | BQ120: 0.06 | BR120: 0.06 | BS120: 0.06 | BT120: 0.05 | BU120: 0.05 | BV120: 0.05 | BW120: 0.04 | BX120: 0.04 | BY120: 0.04 | BZ120: 0.03 | CA120: 0.03 | CB120: 0.03 | CC120: 0.02 | CD120: 0.02 | CE120: 0.02 | CF120: 0.01 | CG120: 0.01 | CH120: 0.01 | CI120: 0
A121: 121 | G121: 0 | H121: Средний размер скидок | I121: Food&Beverage | M121: % | P121: * | Q121: 0.25 | S121: 0 | X121: 0.155 | AA121: 0.25 | AB121: 0.25 | AC121: 0.25 | AD121: 0.24 | AE121: 0.24 | AF121: 0.24 | AG121: 0.23 | AH121: 0.23 | AI121: 0.23 | AJ121: 0.22 | AK121: 0.22 | AL121: 0.22 | AM121: 0.21 | AN121: 0.21 | AO121: 0.21 | AP121: 0.2 | AQ121: 0.2 | AR121: 0.2 | AS121: 0.19 | AT121: 0.19 | AU121: 0.19 | AV121: 0.18 | AW121: 0.18 | AX121: 0.18 | AY121: 0.17 | AZ121: 0.17 | BA121: 0.17 | BB121: 0.16 | BC121: 0.16 | BD121: 0.16 | BE121: 0.15 | BF121: 0.15 | BG121: 0.15 | BH121: 0.14 | BI121: 0.14 | BJ121: 0.14 | BK121: 0.13 | BL121: 0.13 | BM121: 0.13 | BN121: 0.12 | BO121: 0.12 | BP121: 0.12 | BQ121: 0.11 | BR121: 0.11 | BS121: 0.11 | BT121: 0.1 | BU121: 0.1 | BV121: 0.1 | BW121: 0.09 | BX121: 0.09 | BY121: 0.09 | BZ121: 0.08 | CA121: 0.08 | CB121: 0.08 | CC121: 0.07 | CD121: 0.07 | CE121: 0.07 | CF121: 0.06 | CG121: 0.06 | CH121: 0.06 | CI121: 0
A122: 122 | G122: 0 | H122: Средний размер скидок | I122: Развлекат. услуги | M122: % | P122: * | Q122: 0.3 | S122: 0 | X122: 0.205 | AA122: 0.3 | AB122: 0.3 | AC122: 0.3 | AD122: 0.29 | AE122: 0.29 | AF122: 0.29 | AG122: 0.28 | AH122: 0.28 | AI122: 0.28 | AJ122: 0.27 | AK122: 0.27 | AL122: 0.27 | AM122: 0.26 | AN122: 0.26 | AO122: 0.26 | AP122: 0.25 | AQ122: 0.25 | AR122: 0.25 | AS122: 0.24 | AT122: 0.24 | AU122: 0.24 | AV122: 0.23 | AW122: 0.23 | AX122: 0.23 | AY122: 0.22 | AZ122: 0.22 | BA122: 0.22 | BB122: 0.21 | BC122: 0.21 | BD122: 0.21 | BE122: 0.2 | BF122: 0.2 | BG122: 0.2 | BH122: 0.19 | BI122: 0.19 | BJ122: 0.19 | BK122: 0.18 | BL122: 0.18 | BM122: 0.18 | BN122: 0.17 | BO122: 0.17 | BP122: 0.17 | BQ122: 0.16 | BR122: 0.16 | BS122: 0.16 | BT122: 0.15 | BU122: 0.15 | BV122: 0.15 | BW122: 0.14 | BX122: 0.14 | BY122: 0.14 | BZ122: 0.13 | CA122: 0.13 | CB122: 0.13 | CC122: 0.12 | CD122: 0.12 | CE122: 0.12 | CF122: 0.11 | CG122: 0.11 | CH122: 0.11 | CI122: 0
A123: 123 | L123: пустая строка
A124: 124 | G124: 0 | H124: Линейные изменения размеров скидок
A125: 125 | G125: 0 | H125: Линейные изменения размеров скидок | I125: Коэффициент прироста | M125: % | P125: * | Q125: -0.01 | S125: 0
A126: 126 | G126: 0 | H126: Линейные изменения размеров скидок | I126: Частота приростов | M126: кол-во периодов | P126: * | Q126: 3 | S126: 0
A127: 127 | G127: 0 | H127: Линейные изменения размеров скидок | I127: Максимальное значение | M127: % | P127: * | Q127: 0.5 | S127: 0
A128: 128
A129: 129 | G129: 0 | H129: Маркетинговые скидки | L129: 1 | M129: руб. | T129: 0 | X129: 537536834 | AA129: 0 | AB129: 0 | AC129: 0 | AD129: 0 | AE129: 198511.0638 | AF129: 223324.9468 | AG129: 275773.2766 | AH129: 496391.8979 | AI129: 744587.8468 | AJ129: 796698.5074 | AK129: 819648.6702 | AL129: 1475367.606 | AM129: 1954089.905 | AN129: 2198351.144 | AO129: 1713000.891 | AP129: 2916273.297 | AQ129: 3744350.9 | AR129: 4212394.763 | AS129: 3029150.499 | AT129: 5452470.899 | AU129: 6231395.313 | AV129: 6584142.546 | AW129: 4768761.679 | AX129: 8583771.022 | AY129: 9069633.846 | AZ129: 10203338.08 | BA129: 6699866.316 | BB129: 11225133.98 | BC129: 11995033.43 | BD129: 13494412.6 | BE129: 8314010.341 | BF129: 14965218.61 | BG129: 15112417.49 | BH129: 15635813.87 | BI129: 10019422.18 | BJ129: 18034959.92 | BK129: 16961651.29 | BL129: 19081857.7 | BM129: 11517026.57 | BN129: 18746722.4 | BO129: 16663753.24 | BP129: 18746722.4 | BQ129: 10855906.61 | BR129: 19540631.9 | BS129: 17369450.58 | BT129: 17227941.7 | BU129: 9571078.72 | BV129: 17227941.7 | BW129: 15213556.52 | BX129: 17115251.08 | BY129: 9508472.824 | BZ129: 14461439.07 | CA129: 12854612.51 | CB129: 14461439.07 | CC129: 7434431.851 | CD129: 13381977.33 | CE129: 11895090.96 | CF129: 10374323.72 | CG129: 5763513.176 | CH129: 10374323.72 | CI129: 0
A130: 130 | G130: 0 | H130: Маркетинговые скидки | I130: Номерной фонд | L130: 1 | M130: руб. | X130: 228882915.3 | AA130: 0 | AB130: 0 | AC130: 0 | AD130: 0 | AE130: 106965.9574 | AF130: 120336.7021 | AG130: 147661.2766 | AH130: 265790.2979 | AI130: 398685.4468 | AJ130: 423603.2872 | AK130: 435805.8511 | AL130: 784450.5319 | AM130: 1030872.592 | AN130: 1159731.666 | AO130: 903687.0128 | AP130: 1524971.834 | AQ130: 1957988.528 | AR130: 2202737.094 | AS130: 1568273.503 | AT130: 2822892.306 | AU130: 3226162.636 | AV130: 3370187.753 | AW130: 2440959.031 | AX130: 4393726.256 | AY130: 4581888.351 | AZ130: 5154624.395 | BA130: 3384705.485 | BB130: 5584764.05 | BC130: 5967806.852 | BD130: 6713782.709 | BE130: 4062430.079 | BF130: 7312374.142 | BG130: 7384299.133 | BH130: 7476602.872 | BI130: 4791003.604 | BJ130: 8623806.488 | BK130: 7899346.006 | BL130: 8886764.257 | BM130: 5363686.37 | BN130: 8447806.033 | BO130: 7509160.919 | BP130: 8447806.033 | BQ130: 4689394.37 | BR130: 8440909.865 | BS130: 7503030.991 | BT130: 7034091.554 | BU130: 3907828.641 | BV130: 7034091.554 | BW130: 5739818.708 | BX130: 6457296.047 | BY130: 3587386.693 | BZ130: 4842972.035 | CA130: 4304864.031 | CB130: 4842972.035 | CC130: 2032852.459 | CD130: 3659134.427 | CE130: 3252563.935 | CF130: 1829567.213 | CG130: 1016426.23 | CH130: 1829567.213 | CI130: 0
A131: 131 | G131: 0 | H131: Маркетинговые скидки | I131: Food&Beverage | L131: 1 | M131: руб. | X131: 207081554.5 | AA131: 0 | AB131: 0 | AC131: 0 | AD131: 0 | AE131: 65198.29787 | AF131: 73348.08511 | AG131: 91044.76596 | AH131: 163880.5787 | AI131: 245820.8681 | AJ131: 264524.6298 | AK131: 272144.6809 | AL131: 489860.4255 | AM131: 652885.9751 | AN131: 734496.722 | AO131: 572335.1081 | AP131: 981145.8996 | AQ131: 1259742.883 | AR131: 1417210.744 | AS131: 1027023.555 | AT131: 1848642.399 | AU131: 2112734.17 | AV131: 2251729.84 | AW131: 1630882.518 | AX131: 2935588.532 | AY131: 3132169.18 | AZ131: 3523690.327 | BA131: 2313777.506 | BB131: 3919811.305 | BC131: 4188659.817 | BD131: 4712242.294 | BE131: 2940425.581 | BF131: 5292766.045 | BG131: 5344826.039 | BH131: 5612067.341 | BI131: 3596210.113 | BJ131: 6473178.203 | BK131: 6194090.36 | BL131: 6968351.655 | BM131: 4205811.217 | BN131: 6988117.1 | BO131: 6211659.644 | BP131: 6988117.1 | BQ131: 4148501.262 | BR131: 7467302.272 | BS131: 6637602.02 | BT131: 6788456.611 | BU131: 3771364.784 | BV131: 6788456.611 | BW131: 6231803.169 | BX131: 7010778.565 | BY131: 3894876.981 | BZ131: 6231803.169 | CA131: 5539380.595 | CB131: 6231803.169 | CC131: 3433261.931 | CD131: 6179871.476 | CE131: 5493219.09 | CF131: 5297032.694 | CG131: 2942795.941 | CH131: 5297032.694 | CI131: 0
A132: 132 | G132: 0 | H132: Маркетинговые скидки | I132: Развлекат. услуги | L132: 1 | M132: руб. | X132: 101572364.1 | AA132: 0 | AB132: 0 | AC132: 0 | AD132: 0 | AE132: 26346.80851 | AF132: 29640.15957 | AG132: 37067.23404 | AH132: 66721.02128 | AI132: 100081.5319 | AJ132: 108570.5904 | AK132: 111698.1383 | AL132: 201056.6489 | AM132: 270331.3379 | AN132: 304122.7551 | AO132: 236978.7702 | AP132: 410155.5638 | AQ132: 526619.4894 | AR132: 592446.9255 | AS132: 433853.4409 | AT132: 780936.1935 | AU132: 892498.5069 | AV132: 962224.9527 | AW132: 696920.1304 | AX132: 1254456.235 | AY132: 1355576.316 | AZ132: 1525023.355 | BA132: 1001383.325 | BB132: 1720558.622 | BC132: 1838566.758 | BD132: 2068387.602 | BE132: 1311154.682 | BF132: 2360078.427 | BG132: 2383292.313 | BH132: 2547143.659 | BI132: 1632208.459 | BJ132: 2937975.226 | BK132: 2868214.919 | BL132: 3226741.784 | BM132: 1947528.98 | BN132: 3310799.266 | BO132: 2942932.681 | BP132: 3310799.266 | BQ132: 2018010.981 | BR132: 3632419.766 | BS132: 3228817.569 | BT132: 3405393.53 | BU132: 1891885.295 | BV132: 3405393.53 | BW132: 3241934.641 | BX132: 3647176.471 | BY132: 2026209.151 | BZ132: 3386663.866 | CA132: 3010367.881 | CB132: 3386663.866 | CC132: 1968317.461 | CD132: 3542971.429 | CE132: 3149307.937 | CF132: 3247723.81 | CG132: 1804291.005 | CH132: 3247723.81 | CI132: 0
A133: 133 | L133: пустая строка
A134: 134
A135: 135 | G135: 0 | H135: Доля скидок в общем обороте | L135: 1 | M135: % | X135: 0.02760047297 | AA135: 0 | AB135: 0 | AC135: 0 | AD135: 0 | AE135: 0.07251686616 | AF135: 0.07251686616 | AG135: 0.06913601741 | AH135: 0.06913601741 | AI135: 0.06913601741 | AJ135: 0.06575516866 | AK135: 0.06575516866 | AL135: 0.06575516866 | AM135: 0.06237431991 | AN135: 0.06237431991 | AO135: 0.06237431991 | AP135: 0.05899347116 | AQ135: 0.05899347116 | AR135: 0.05899347116 | AS135: 0.05561262242 | AT135: 0.05561262242 | AU135: 0.05561262242 | AV135: 0.05223177367 | AW135: 0.05223177367 | AX135: 0.05223177367 | AY135: 0.04885092492 | AZ135: 0.04885092492 | BA135: 0.04885092492 | BB135: 0.04547007617 | BC135: 0.04547007617 | BD135: 0.04547007617 | BE135: 0.04208922742 | BF135: 0.04208922742 | BG135: 0.04208922742 | BH135: 0.03870837867 | BI135: 0.03870837867 | BJ135: 0.03870837867 | BK135: 0.03532752992 | BL135: 0.03532752992 | BM135: 0.03532752992 | BN135: 0.03194668118 | BO135: 0.03194668118 | BP135: 0.03194668118 | BQ135: 0.02856583243 | BR135: 0.02856583243 | BS135: 0.02856583243 | BT135: 0.02518498368 | BU135: 0.02518498368 | BV135: 0.02518498368 | BW135: 0.02180413493 | BX135: 0.02180413493 | BY135: 0.02180413493 | BZ135: 0.01842328618 | CA135: 0.01842328618 | CB135: 0.01842328618 | CC135: 0.01504243743 | CD135: 0.01504243743 | CE135: 0.01504243743 | CF135: 0.01166158868 | CG135: 0.01166158868 | CH135: 0.01166158868 | CI135: 0
A136: 136 | G136: 0 | H136: Доля скидок в общем обороте | I136: Номерной фонд | L136: 1 | M136: % | X136: 0.01714338719 | AA136: 0 | AB136: 0 | AC136: 0 | AD136: 0 | AE136: 0.057 | AF136: 0.057 | AG136: 0.054 | AH136: 0.054 | AI136: 0.054 | AJ136: 0.051 | AK136: 0.051 | AL136: 0.051 | AM136: 0.048 | AN136: 0.048 | AO136: 0.048 | AP136: 0.045 | AQ136: 0.045 | AR136: 0.045 | AS136: 0.042 | AT136: 0.042 | AU136: 0.042 | AV136: 0.039 | AW136: 0.039 | AX136: 0.039 | AY136: 0.036 | AZ136: 0.036 | BA136: 0.036 | BB136: 0.033 | BC136: 0.033 | BD136: 0.033 | BE136: 0.03 | BF136: 0.03 | BG136: 0.03 | BH136: 0.027 | BI136: 0.027 | BJ136: 0.027 | BK136: 0.024 | BL136: 0.024 | BM136: 0.024 | BN136: 0.021 | BO136: 0.021 | BP136: 0.021 | BQ136: 0.018 | BR136: 0.018 | BS136: 0.018 | BT136: 0.015 | BU136: 0.015 | BV136: 0.015 | BW136: 0.012 | BX136: 0.012 | BY136: 0.012 | BZ136: 0.009 | CA136: 0.009 | CB136: 0.009 | CC136: 0.006 | CD136: 0.006 | CE136: 0.006 | CF136: 0.003 | CG136: 0.003 | CH136: 0.003 | CI136: 0
A137: 137 | G137: 0 | H137: Доля скидок в общем обороте | I137: Food&Beverage | L137: 1 | M137: % | X137: 0.04285784958 | AA137: 0 | AB137: 0 | AC137: 0 | AD137: 0 | AE137: 0.096 | AF137: 0.096 | AG137: 0.092 | AH137: 0.092 | AI137: 0.092 | AJ137: 0.088 | AK137: 0.088 | AL137: 0.088 | AM137: 0.084 | AN137: 0.084 | AO137: 0.084 | AP137: 0.08 | AQ137: 0.08 | AR137: 0.08 | AS137: 0.076 | AT137: 0.076 | AU137: 0.076 | AV137: 0.072 | AW137: 0.072 | AX137: 0.072 | AY137: 0.068 | AZ137: 0.068 | BA137: 0.068 | BB137: 0.064 | BC137: 0.064 | BD137: 0.064 | BE137: 0.06 | BF137: 0.06 | BG137: 0.06 | BH137: 0.056 | BI137: 0.056 | BJ137: 0.056 | BK137: 0.052 | BL137: 0.052 | BM137: 0.052 | BN137: 0.048 | BO137: 0.048 | BP137: 0.048 | BQ137: 0.044 | BR137: 0.044 | BS137: 0.044 | BT137: 0.04 | BU137: 0.04 | BV137: 0.04 | BW137: 0.036 | BX137: 0.036 | BY137: 0.036 | BZ137: 0.032 | CA137: 0.032 | CB137: 0.032 | CC137: 0.028 | CD137: 0.028 | CE137: 0.028 | CF137: 0.024 | CG137: 0.024 | CH137: 0.024 | CI137: 0
A138: 138 | G138: 0 | H138: Доля скидок в общем обороте | I138: Развлекат. услуги | L138: 1 | M138: % | X138: 0.07857231198 | AA138: 0 | AB138: 0 | AC138: 0 | AD138: 0 | AE138: 0.145 | AF138: 0.145 | AG138: 0.14 | AH138: 0.14 | AI138: 0.14 | AJ138: 0.135 | AK138: 0.135 | AL138: 0.135 | AM138: 0.13 | AN138: 0.13 | AO138: 0.13 | AP138: 0.125 | AQ138: 0.125 | AR138: 0.125 | AS138: 0.12 | AT138: 0.12 | AU138: 0.12 | AV138: 0.115 | AW138: 0.115 | AX138: 0.115 | AY138: 0.11 | AZ138: 0.11 | BA138: 0.11 | BB138: 0.105 | BC138: 0.105 | BD138: 0.105 | BE138: 0.1 | BF138: 0.1 | BG138: 0.1 | BH138: 0.095 | BI138: 0.095 | BJ138: 0.095 | BK138: 0.09 | BL138: 0.09 | BM138: 0.09 | BN138: 0.085 | BO138: 0.085 | BP138: 0.085 | BQ138: 0.08 | BR138: 0.08 | BS138: 0.08 | BT138: 0.075 | BU138: 0.075 | BV138: 0.075 | BW138: 0.07 | BX138: 0.07 | BY138: 0.07 | BZ138: 0.065 | CA138: 0.065 | CB138: 0.065 | CC138: 0.06 | CD138: 0.06 | CE138: 0.06 | CF138: 0.055 | CG138: 0.055 | CH138: 0.055 | CI138: 0
A139: 139 | L139: пустая строка
A140: 140
A141: 141 | G141: 0 | H141: Общий оборот (GMV) с учетом скидок | L141: 1 | M141: руб. | T141: 0 | X141: 1.893810166e+10 | AA141: 0 | AB141: 0 | AC141: 0 | AD141: 0 | AE141: 2538935.745 | AF141: 2856302.713 | AG141: 3713077.787 | AH141: 6683540.017 | AI141: 10025310.03 | AJ141: 11319436.6 | AK141: 11645510.9 | AL141: 20961919.63 | AM141: 29374346.35 | AN141: 33046139.64 | AO141: 25750238.68 | AP141: 46517557.94 | AQ141: 59726247.23 | AR141: 67192028.13 | AS141: 51439607.99 | AT141: 92591294.38 | AU141: 105818622.2 | AV141: 119472127.1 | AW141: 86531252.55 | AX141: 155756254.6 | AY141: 176589775.1 | AZ141: 198663497 | BA141: 130449355.1 | BB141: 235643464.5 | BC141: 251805567.7 | BD141: 283281263.7 | BE141: 189218965.4 | BF141: 340594137.8 | BG141: 343944244.1 | BH141: 388302930.4 | BI141: 248824335.2 | BJ141: 447883803.3 | BK141: 463163942.6 | BL141: 521059435.4 | BM141: 314490101.4 | BN141: 568066107.9 | BO141: 504947651.5 | BP141: 568066107.9 | BQ141: 369175259.7 | BR141: 664515467.4 | BS141: 590680415.5 | BT141: 666828157.6 | BU141: 370460087.6 | BV141: 666828157.6 | BW141: 682523664.8 | BX141: 767839122.9 | BY141: 426577290.5 | BZ141: 770492934.9 | CA141: 684882608.8 | CB141: 770492934.9 | CC141: 486796099.9 | CD141: 876232979.8 | CE141: 778873759.8 | CF141: 879240633.4 | CG141: 488467018.6 | CH141: 879240633.4 | CI141: 0
A142: 142 | G142: 0 | H142: Общий оборот (GMV) с учетом скидок | I142: Номерной фонд | L142: 1 | M142: руб. | X142: 1.312220768e+10 | AA142: 0 | AB142: 0 | AC142: 0 | AD142: 0 | AE142: 1769629.787 | AF142: 1990833.511 | AG142: 2586806.809 | AH142: 4656252.255 | AI142: 6984378.383 | AJ142: 7882343.521 | AK142: 8109406.915 | AL142: 14596932.45 | AM142: 20445639.75 | AN142: 23001344.72 | AO142: 17923125.75 | AP142: 32363291.14 | AQ142: 41552867.64 | AR142: 46746976.1 | AS142: 35771571.82 | AT142: 64388829.27 | AU142: 73587233.45 | AV142: 83044882.84 | AW142: 60147734.08 | AX142: 108265921.3 | AY142: 122692788.1 | AZ142: 138029386.6 | BA142: 90634891.32 | BB142: 163650510.2 | BC142: 174874825 | BD142: 196734178.2 | BE142: 131351905.9 | BF142: 236433430.6 | BG142: 238759005.3 | BH142: 269434614.6 | BI142: 172653574.3 | BJ142: 310776433.8 | BK142: 321240070.9 | BL142: 361395079.8 | BM142: 218123245.7 | BN142: 393828671.8 | BO142: 350069930.4 | BP142: 393828671.8 | BQ142: 255832515.1 | BR142: 460498527.1 | BS142: 409332024.1 | BT142: 461905345.4 | BU142: 256614080.8 | BV142: 461905345.4 | BW142: 472578407 | BX142: 531650707.9 | BY142: 295361504.4 | BZ142: 533265031.9 | CA142: 474013361.7 | CB142: 533265031.9 | CC142: 336775890.7 | CD142: 606196603.3 | CE142: 538841425.2 | CF142: 608026170.6 | CG142: 337792317 | CH142: 608026170.6 | CI142: 0
A143: 143 | G143: 0 | H143: Общий оборот (GMV) с учетом скидок | I143: Food&Beverage | L143: 1 | M143: руб. | X143: 4624741707 | AA143: 0 | AB143: 0 | AC143: 0 | AD143: 0 | AE143: 613950.6383 | AF143: 690694.4681 | AG143: 898572.2553 | AH143: 1617430.06 | AI143: 2426145.089 | AJ143: 2741437.072 | AK143: 2820408.511 | AL143: 5076735.319 | AM143: 7119566.11 | AN143: 8009511.874 | AO143: 6241178.083 | AP143: 11283177.85 | AQ143: 14487043.16 | AR143: 16297923.55 | AS143: 12486444.27 | AT143: 22475599.69 | AU143: 25686399.65 | AV143: 29022295.71 | AW143: 21020263.56 | AX143: 37836474.41 | AY143: 42929142.29 | AZ143: 48295285.07 | BA143: 31712362.29 | BB143: 57327240.33 | BC143: 61259149.82 | BD143: 68916543.55 | BE143: 46066667.43 | BF143: 82920001.38 | BG143: 83735607.95 | BH143: 94603420.9 | BI143: 60621827.62 | BJ143: 109119289.7 | BK143: 112923032 | BL143: 127038410.9 | BM143: 76675173.73 | BN143: 138597655.8 | BO143: 123197916.3 | BP143: 138597655.8 | BQ143: 90135618.34 | BR143: 162244113 | BS143: 144216989.3 | BT143: 162922958.7 | BU143: 90512754.82 | BV143: 162922958.7 | BW143: 166873840.4 | BX143: 187733070.5 | BY143: 104296150.3 | BZ143: 188512045.9 | CA143: 167566263 | CB143: 188512045.9 | CC143: 119183235.6 | CD143: 214529824.1 | CE143: 190693177 | CF143: 215412662.9 | CG143: 119673701.6 | CH143: 215412662.9 | CI143: 0
A144: 144 | G144: 0 | H144: Общий оборот (GMV) с учетом скидок | I144: Развлекат. услуги | L144: 1 | M144: руб. | X144: 1191152280 | AA144: 0 | AB144: 0 | AC144: 0 | AD144: 0 | AE144: 155355.3191 | AF144: 174774.734 | AG144: 227698.7234 | AH144: 409857.7021 | AI144: 614786.5532 | AJ144: 695656.0053 | AK144: 715695.4787 | AL144: 1288251.862 | AM144: 1809140.492 | AN144: 2035283.053 | AO144: 1585934.847 | AP144: 2871088.947 | AQ144: 3686336.426 | AR144: 4147128.479 | AS144: 3181591.9 | AT144: 5726865.419 | AU144: 6544989.051 | AV144: 7404948.549 | AW144: 5363254.916 | AX144: 9653858.85 | AY144: 10967844.73 | AZ144: 12338825.33 | BA144: 8102101.446 | BB144: 14665713.96 | BC144: 15671592.84 | BD144: 17630541.94 | BE144: 11800392.13 | BF144: 21240705.84 | BG144: 21449630.82 | BH144: 24264894.86 | BI144: 15548933.21 | BJ144: 27988079.79 | BK144: 29000839.74 | BL144: 32625944.7 | BM144: 19691681.91 | BN144: 35639780.33 | BO144: 31679804.74 | BP144: 35639780.33 | BQ144: 23207126.28 | BR144: 41772827.31 | BS144: 37131402.05 | BT144: 41999853.54 | BU144: 23333251.97 | BV144: 41999853.54 | BW144: 43071417.37 | BX144: 48455344.54 | BY144: 26919635.86 | BZ144: 48715857.15 | CA144: 43302984.13 | CB144: 48715857.15 | CC144: 30836973.55 | CD144: 55506552.39 | CE144: 49339157.68 | CF144: 55801800.01 | CG144: 31001000 | CH144: 55801800.01 | CI144: 0
A145: 145 | L145: пустая строка
A146: 146
A147: 147 | G147: 0 | H147: Расходы на маркетинг открытия | L147: 1 | M147: руб. | Q147: начисление | X147: 50000000 | AA147: 0 | AB147: 0 | AC147: 0 | AD147: 1500000 | AE147: 3500000 | AF147: 0 | AG147: 0 | AH147: 0 | AI147: 0 | AJ147: 1500000 | AK147: 3500000 | AL147: 0 | AM147: 0 | AN147: 0 | AO147: 0 | AP147: 1500000 | AQ147: 3500000 | AR147: 0 | AS147: 0 | AT147: 0 | AU147: 0 | AV147: 1500000 | AW147: 3500000 | AX147: 0 | AY147: 0 | AZ147: 0 | BA147: 0 | BB147: 1500000 | BC147: 3500000 | BD147: 0 | BE147: 0 | BF147: 0 | BG147: 0 | BH147: 1500000 | BI147: 3500000 | BJ147: 0 | BK147: 0 | BL147: 0 | BM147: 0 | BN147: 1500000 | BO147: 3500000 | BP147: 0 | BQ147: 0 | BR147: 0 | BS147: 0 | BT147: 1500000 | BU147: 3500000 | BV147: 0 | BW147: 0 | BX147: 0 | BY147: 0 | BZ147: 1500000 | CA147: 3500000 | CB147: 0 | CC147: 0 | CD147: 0 | CE147: 0 | CF147: 1500000 | CG147: 3500000 | CH147: 0 | CI147: 0
A148: 148 | G148: 0 | H148: Расходы на маркетинг открытия | I148: Распределение расхода для одного запуска | M148: руб. | Q148: процесс | T148: 0 | U148: 0 | X148: 5000000 | AA148: 0 | AB148: 0 | AC148: 0 | AD148: 1500000 | AE148: 3500000 | AF148: 0 | AG148: 0 | AH148: 0 | AI148: 0 | AJ148: 0 | AK148: 0 | AL148: 0 | AM148: 0 | AN148: 0 | AO148: 0 | AP148: 0 | AQ148: 0 | AR148: 0 | AS148: 0 | AT148: 0 | AU148: 0 | AV148: 0 | AW148: 0 | AX148: 0 | AY148: 0 | AZ148: 0 | BA148: 0 | BB148: 0 | BC148: 0 | BD148: 0 | BE148: 0 | BF148: 0 | BG148: 0 | BH148: 0 | BI148: 0 | BJ148: 0 | BK148: 0 | BL148: 0 | BM148: 0 | BN148: 0 | BO148: 0 | BP148: 0 | BQ148: 0 | BR148: 0 | BS148: 0 | BT148: 0 | BU148: 0 | BV148: 0 | BW148: 0 | BX148: 0 | BY148: 0 | BZ148: 0 | CA148: 0 | CB148: 0 | CC148: 0 | CD148: 0 | CE148: 0 | CF148: 0 | CG148: 0 | CH148: 0 | CI148: 0
A149: 149 | G149: 0 | H149: Расходы на маркетинг открытия | I149: Распределение расхода для одного запуска | J149: Сумма расхода для одного запуска по этой статье | M149: руб. | P149: * | Q149: 5000000 | S149: 0 | Y149: обратное распределение расхода | AA149: 0 | AB149: 0 | AC149: 0 | AD149: 0 | AE149: 0 | AF149: 0 | AG149: 0 | AH149: 0 | AI149: 0 | AJ149: 0 | AK149: 0 | AL149: 0 | AM149: 0 | AN149: 0 | AO149: 0 | AP149: 0 | AQ149: 0 | AR149: 0 | AS149: 0 | AT149: 0 | AU149: 0 | AV149: 0 | AW149: 0 | AX149: 0 | AY149: 0 | AZ149: 0 | BA149: 0 | BB149: 0 | BC149: 0 | BD149: 0 | BE149: 0 | BF149: 0 | BG149: 0 | BH149: 0 | BI149: 0 | BJ149: 0 | BK149: 0 | BL149: 0 | BM149: 0 | BN149: 0 | BO149: 0 | BP149: 0 | BQ149: 0 | BR149: 0 | BS149: 0 | BT149: 0 | BU149: 0 | BV149: 0 | BW149: 0 | BX149: 0 | BY149: 0 | BZ149: 0 | CA149: 0 | CB149: 0 | CC149: 0 | CD149: 0 | CE149: 3500000 | CF149: 1500000 | CG149: 0 | CH149: 0 | CI149: 0
A150: 150 | G150: 0 | H150: Расходы на маркетинг открытия | I150: Распределение расхода для одного запуска | J150: Процентное распределение расхода по периодам | M150: % | T150: 0 | X150: 1 | Y150: * | AD150: 0.3 | AE150: 0.7
A151: 151
A152: 152 | G152: 0 | H152: Расходы на маркетинг открытия | L152: 1 | M152: руб. | Q152: оплата | X152: 50000000 | AA152: 0 | AB152: 0 | AC152: 0 | AD152: 1250000 | AE152: 3166666.667 | AF152: 583333.3333 | AG152: 0 | AH152: 0 | AI152: 0 | AJ152: 1250000 | AK152: 3166666.667 | AL152: 583333.3333 | AM152: 0 | AN152: 0 | AO152: 0 | AP152: 1250000 | AQ152: 3166666.667 | AR152: 583333.3333 | AS152: 0 | AT152: 0 | AU152: 0 | AV152: 1250000 | AW152: 3166666.667 | AX152: 583333.3333 | AY152: 0 | AZ152: 0 | BA152: 0 | BB152: 1250000 | BC152: 3166666.667 | BD152: 583333.3333 | BE152: 0 | BF152: 0 | BG152: 0 | BH152: 1250000 | BI152: 3166666.667 | BJ152: 583333.3333 | BK152: 0 | BL152: 0 | BM152: 0 | BN152: 1250000 | BO152: 3166666.667 | BP152: 583333.3333 | BQ152: 0 | BR152: 0 | BS152: 0 | BT152: 1250000 | BU152: 3166666.667 | BV152: 583333.3333 | BW152: 0 | BX152: 0 | BY152: 0 | BZ152: 1250000 | CA152: 3166666.667 | CB152: 583333.3333 | CC152: 0 | CD152: 0 | CE152: 0 | CF152: 1250000 | CG152: 3166666.667 | CH152: 583333.3333 | CI152: 0
A153: 153 | G153: 0 | H153: Расходы на маркетинг открытия | I153: Задаем через указание % предоплаты и сроков
A154: 154 | G154: 0 | H154: Расходы на маркетинг открытия | I154: Задаем через указание % предоплаты и сроков | J154: Размер предоплаты | M154: % | P154: * | Q154: 0.5 | S154: 0
A155: 155 | G155: 0 | H155: Расходы на маркетинг открытия | I155: Задаем через указание % предоплаты и сроков | J155: Период оборачиваемости предоплаты (срок) | M155: кол-во дней | P155: * | Q155: 0 | S155: 0
A156: 156 | G156: 0 | H156: Расходы на маркетинг открытия | I156: Задаем через указание % предоплаты и сроков | J156: расчет в количестве периодов | M156: кол-во периодов | Q156: 0 | S156: 0 | T156: 0
A157: 157 | G157: 0 | H157: Расходы на маркетинг открытия | I157: Задаем через указание % предоплаты и сроков | J157: Размер доплаты | M157: % | Q157: 0.5 | S157: 0 | T157: 0
A158: 158 | G158: 0 | H158: Расходы на маркетинг открытия | I158: Задаем через указание % предоплаты и сроков | J158: Период оборачиваемости доплат (срок) | M158: кол-во дней | P158: * | Q158: 30 | S158: 0
A159: 159 | G159: 0 | H159: Расходы на маркетинг открытия | I159: Задаем через указание % предоплаты и сроков | J159: расчет в количестве периодов | M159: кол-во периодов | Q159: 0.3333333333 | S159: 0 | T159: 0
A160: 160
A161: 161 | G161: 0 | H161: Расходы на маркетинг открытия | L161: 1 | M161: руб. | Q161: учет | X161: 22141138.73 | AA161: 0 | AB161: 0 | AC161: 0 | AD161: 0 | AE161: 10024.05774 | AF161: 10024.05774 | AG161: 20048.11548 | AH161: 20048.11548 | AI161: 30072.17322 | AJ161: 30072.17322 | AK161: 50120.28869 | AL161: 50120.28869 | AM161: 70168.40417 | AN161: 70168.40417 | AO161: 90216.51965 | AP161: 90216.51965 | AQ161: 120288.6929 | AR161: 120288.6929 | AS161: 150360.8661 | AT161: 150360.8661 | AU161: 180433.0393 | AV161: 180433.0393 | AW161: 220529.2702 | AX161: 220529.2702 | AY161: 258620.6897 | AZ161: 258620.6897 | BA161: 288692.8629 | BB161: 288692.8629 | BC161: 328789.0938 | BD161: 328789.0938 | BE161: 366880.5132 | BF161: 366880.5132 | BG161: 396952.6864 | BH161: 396952.6864 | BI161: 437048.9174 | BJ161: 437048.9174 | BK161: 475140.3368 | BL161: 475140.3368 | BM161: 505212.51 | BN161: 505212.51 | BO161: 545308.741 | BP161: 545308.741 | BQ161: 583400.1604 | BR161: 583400.1604 | BS161: 613472.3336 | BT161: 613472.3336 | BU161: 653568.5646 | BV161: 653568.5646 | BW161: 691659.984 | BX161: 691659.984 | BY161: 721732.1572 | BZ161: 721732.1572 | CA161: 761828.3881 | CB161: 761828.3881 | CC161: 799919.8075 | CD161: 799919.8075 | CE161: 829991.9808 | CF161: 829991.9808 | CG161: 870088.2117 | CH161: 870088.2117 | CI161: 0
A162: 162 | G162: 0 | H162: Расходы на маркетинг открытия | I162: Применяется процентное распределение трафика
A163: 163 | G163: 0 | H163: Расходы на маркетинг открытия | I163: Применяется процентное распределение трафика | J163: %-ное распределение учета расходов | M163: % | Q163: процесс | T163: 0 | X163: 1 | AA163: 0 | AB163: 0 | AC163: 0 | AD163: 0 | AE163: 0.002004811548 | AF163: 0.002004811548 | AG163: 0.004009623095 | AH163: 0.004009623095 | AI163: 0.006014434643 | AJ163: 0.006014434643 | AK163: 0.008019246191 | AL163: 0.008019246191 | AM163: 0.01002405774 | AN163: 0.01002405774 | AO163: 0.01202886929 | AP163: 0.01202886929 | AQ163: 0.01403368083 | AR163: 0.01403368083 | AS163: 0.01603849238 | AT163: 0.01603849238 | AU163: 0.01804330393 | AV163: 0.01804330393 | AW163: 0.02004811548 | AX163: 0.02004811548 | AY163: 0.02165196472 | AZ163: 0.02165196472 | BA163: 0.02165196472 | BB163: 0.02165196472 | BC163: 0.02165196472 | BD163: 0.02165196472 | BE163: 0.02165196472 | BF163: 0.02165196472 | BG163: 0.02165196472 | BH163: 0.02165196472 | BI163: 0.02165196472 | BJ163: 0.02165196472 | BK163: 0.02165196472 | BL163: 0.02165196472 | BM163: 0.02165196472 | BN163: 0.02165196472 | BO163: 0.02165196472 | BP163: 0.02165196472 | BQ163: 0.02165196472 | BR163: 0.02165196472 | BS163: 0.02165196472 | BT163: 0.02165196472 | BU163: 0.02165196472 | BV163: 0.02165196472 | BW163: 0.02165196472 | BX163: 0.02165196472 | BY163: 0.02165196472 | BZ163: 0.02165196472 | CA163: 0.02165196472 | CB163: 0.02165196472 | CC163: 0.02165196472 | CD163: 0.02165196472 | CE163: 0.02165196472 | CF163: 0.02165196472 | CG163: 0.02165196472 | CH163: 0.02165196472 | CI163: 0
A164: 164 | G164: 0 | H164: Расходы на маркетинг открытия | I164: Применяется процентное распределение трафика | J164: обратный порядок распределения учета расхода | M164: руб. | T164: 0 | Y164: обратный порядок процесса | AA164: 0 | AB164: 108259.8236 | AC164: 108259.8236 | AD164: 108259.8236 | AE164: 108259.8236 | AF164: 108259.8236 | AG164: 108259.8236 | AH164: 108259.8236 | AI164: 108259.8236 | AJ164: 108259.8236 | AK164: 108259.8236 | AL164: 108259.8236 | AM164: 108259.8236 | AN164: 108259.8236 | AO164: 108259.8236 | AP164: 108259.8236 | AQ164: 108259.8236 | AR164: 108259.8236 | AS164: 108259.8236 | AT164: 108259.8236 | AU164: 108259.8236 | AV164: 108259.8236 | AW164: 108259.8236 | AX164: 108259.8236 | AY164: 108259.8236 | AZ164: 108259.8236 | BA164: 108259.8236 | BB164: 108259.8236 | BC164: 108259.8236 | BD164: 108259.8236 | BE164: 108259.8236 | BF164: 108259.8236 | BG164: 108259.8236 | BH164: 108259.8236 | BI164: 108259.8236 | BJ164: 108259.8236 | BK164: 108259.8236 | BL164: 100240.5774 | BM164: 100240.5774 | BN164: 90216.51965 | BO164: 90216.51965 | BP164: 80192.46191 | BQ164: 80192.46191 | BR164: 70168.40417 | BS164: 70168.40417 | BT164: 60144.34643 | BU164: 60144.34643 | BV164: 50120.28869 | BW164: 50120.28869 | BX164: 40096.23095 | BY164: 40096.23095 | BZ164: 30072.17322 | CA164: 30072.17322 | CB164: 20048.11548 | CC164: 20048.11548 | CD164: 10024.05774 | CE164: 10024.05774 | CF164: 0 | CG164: 0 | CH164: 0 | CI164: 0
A165: 165 | L165: пустая строка
A166: 166
A167: 167 | G167: 0 | H167: Приобретение ЗУ | L167: 1 | M167: руб. | Q167: начисление | X167: 200000000 | AA167: 0 | AB167: 20000000 | AC167: 0 | AD167: 0 | AE167: 0 | AF167: 0 | AG167: 0 | AH167: 20000000 | AI167: 0 | AJ167: 0 | AK167: 0 | AL167: 0 | AM167: 0 | AN167: 20000000 | AO167: 0 | AP167: 0 | AQ167: 0 | AR167: 0 | AS167: 0 | AT167: 20000000 | AU167: 0 | AV167: 0 | AW167: 0 | AX167: 0 | AY167: 0 | AZ167: 20000000 | BA167: 0 | BB167: 0 | BC167: 0 | BD167: 0 | BE167: 0 | BF167: 20000000 | BG167: 0 | BH167: 0 | BI167: 0 | BJ167: 0 | BK167: 0 | BL167: 20000000 | BM167: 0 | BN167: 0 | BO167: 0 | BP167: 0 | BQ167: 0 | BR167: 20000000 | BS167: 0 | BT167: 0 | BU167: 0 | BV167: 0 | BW167: 0 | BX167: 20000000 | BY167: 0 | BZ167: 0 | CA167: 0 | CB167: 0 | CC167: 0 | CD167: 20000000 | CE167: 0 | CF167: 0 | CG167: 0 | CH167: 0 | CI167: 0
A168: 168 | G168: 0 | H168: Приобретение ЗУ | I168: Распределение расхода для одного запуска | M168: руб. | Q168: процесс | T168: 0 | U168: 0 | X168: 20000000 | AA168: 0 | AB168: 20000000 | AC168: 0 | AD168: 0 | AE168: 0 | AF168: 0 | AG168: 0 | AH168: 0 | AI168: 0 | AJ168: 0 | AK168: 0 | AL168: 0 | AM168: 0 | AN168: 0 | AO168: 0 | AP168: 0 | AQ168: 0 | AR168: 0 | AS168: 0 | AT168: 0 | AU168: 0 | AV168: 0 | AW168: 0 | AX168: 0 | AY168: 0 | AZ168: 0 | BA168: 0 | BB168: 0 | BC168: 0 | BD168: 0 | BE168: 0 | BF168: 0 | BG168: 0 | BH168: 0 | BI168: 0 | BJ168: 0 | BK168: 0 | BL168: 0 | BM168: 0 | BN168: 0 | BO168: 0 | BP168: 0 | BQ168: 0 | BR168: 0 | BS168: 0 | BT168: 0 | BU168: 0 | BV168: 0 | BW168: 0 | BX168: 0 | BY168: 0 | BZ168: 0 | CA168: 0 | CB168: 0 | CC168: 0 | CD168: 0 | CE168: 0 | CF168: 0 | CG168: 0 | CH168: 0 | CI168: 0
A169: 169 | G169: 0 | H169: Приобретение ЗУ | I169: Распределение расхода для одного запуска | J169: Сумма расхода для одного запуска по этой статье | M169: руб. | P169: * | Q169: 20000000 | S169: 0 | Y169: обратное распределение расхода | AA169: 0 | AB169: 0 | AC169: 0 | AD169: 0 | AE169: 0 | AF169: 0 | AG169: 0 | AH169: 0 | AI169: 0 | AJ169: 0 | AK169: 0 | AL169: 0 | AM169: 0 | AN169: 0 | AO169: 0 | AP169: 0 | AQ169: 0 | AR169: 0 | AS169: 0 | AT169: 0 | AU169: 0 | AV169: 0 | AW169: 0 | AX169: 0 | AY169: 0 | AZ169: 0 | BA169: 0 | BB169: 0 | BC169: 0 | BD169: 0 | BE169: 0 | BF169: 0 | BG169: 0 | BH169: 0 | BI169: 0 | BJ169: 0 | BK169: 0 | BL169: 0 | BM169: 0 | BN169: 0 | BO169: 0 | BP169: 0 | BQ169: 0 | BR169: 0 | BS169: 0 | BT169: 0 | BU169: 0 | BV169: 0 | BW169: 0 | BX169: 0 | BY169: 0 | BZ169: 0 | CA169: 0 | CB169: 0 | CC169: 0 | CD169: 0 | CE169: 0 | CF169: 0 | CG169: 0 | CH169: 20000000 | CI169: 0
A170: 170 | G170: 0 | H170: Приобретение ЗУ | I170: Распределение расхода для одного запуска | J170: Процентное распределение расхода по периодам | M170: % | T170: 0 | X170: 1 | Y170: * | AA170: 0 | AB170: 1
A171: 171
A172: 172 | G172: 0 | H172: Приобретение ЗУ | L172: 1 | M172: руб. | Q172: оплата | X172: 200000000 | AA172: 0 | AB172: 20000000 | AC172: 0 | AD172: 0 | AE172: 0 | AF172: 0 | AG172: 0 | AH172: 20000000 | AI172: 0 | AJ172: 0 | AK172: 0 | AL172: 0 | AM172: 0 | AN172: 20000000 | AO172: 0 | AP172: 0 | AQ172: 0 | AR172: 0 | AS172: 0 | AT172: 20000000 | AU172: 0 | AV172: 0 | AW172: 0 | AX172: 0 | AY172: 0 | AZ172: 20000000 | BA172: 0 | BB172: 0 | BC172: 0 | BD172: 0 | BE172: 0 | BF172: 20000000 | BG172: 0 | BH172: 0 | BI172: 0 | BJ172: 0 | BK172: 0 | BL172: 20000000 | BM172: 0 | BN172: 0 | BO172: 0 | BP172: 0 | BQ172: 0 | BR172: 20000000 | BS172: 0 | BT172: 0 | BU172: 0 | BV172: 0 | BW172: 0 | BX172: 20000000 | BY172: 0 | BZ172: 0 | CA172: 0 | CB172: 0 | CC172: 0 | CD172: 20000000 | CE172: 0 | CF172: 0 | CG172: 0 | CH172: 0 | CI172: 0
A173: 173 | G173: 0 | H173: Приобретение ЗУ | I173: Задаем через указание % предоплаты и сроков
A174: 174 | G174: 0 | H174: Приобретение ЗУ | I174: Задаем через указание % предоплаты и сроков | J174: Размер предоплаты | M174: % | P174: * | Q174: 1 | S174: 0
A175: 175 | G175: 0 | H175: Приобретение ЗУ | I175: Задаем через указание % предоплаты и сроков | J175: Период оборачиваемости предоплаты (срок) | M175: кол-во дней | P175: * | Q175: 0 | S175: 0
A176: 176 | G176: 0 | H176: Приобретение ЗУ | I176: Задаем через указание % предоплаты и сроков | J176: расчет в количестве периодов | M176: кол-во периодов | Q176: 0 | S176: 0 | T176: 0
A177: 177 | G177: 0 | H177: Приобретение ЗУ | I177: Задаем через указание % предоплаты и сроков | J177: Размер доплаты | M177: % | Q177: 0 | S177: 0 | T177: 0
A178: 178 | G178: 0 | H178: Приобретение ЗУ | I178: Задаем через указание % предоплаты и сроков | J178: Период оборачиваемости доплат (срок) | M178: кол-во дней | P178: * | Q178: 0 | S178: 0
A179: 179 | G179: 0 | H179: Приобретение ЗУ | I179: Задаем через указание % предоплаты и сроков | J179: расчет в количестве периодов | M179: кол-во периодов | Q179: 0 | S179: 0 | T179: 0
A180: 180
A181: 181 | G181: 0 | H181: Приобретение ЗУ | L181: 1 | M181: руб. | Q181: учет | X181: 88564554.93 | AA181: 0 | AB181: 0 | AC181: 0 | AD181: 0 | AE181: 40096.23095 | AF181: 40096.23095 | AG181: 80192.46191 | AH181: 80192.46191 | AI181: 120288.6929 | AJ181: 120288.6929 | AK181: 200481.1548 | AL181: 200481.1548 | AM181: 280673.6167 | AN181: 280673.6167 | AO181: 360866.0786 | AP181: 360866.0786 | AQ181: 481154.7715 | AR181: 481154.7715 | AS181: 601443.4643 | AT181: 601443.4643 | AU181: 721732.1572 | AV181: 721732.1572 | AW181: 882117.081 | AX181: 882117.081 | AY181: 1034482.759 | AZ181: 1034482.759 | BA181: 1154771.451 | BB181: 1154771.451 | BC181: 1315156.375 | BD181: 1315156.375 | BE181: 1467522.053 | BF181: 1467522.053 | BG181: 1587810.746 | BH181: 1587810.746 | BI181: 1748195.67 | BJ181: 1748195.67 | BK181: 1900561.347 | BL181: 1900561.347 | BM181: 2020850.04 | BN181: 2020850.04 | BO181: 2181234.964 | BP181: 2181234.964 | BQ181: 2333600.642 | BR181: 2333600.642 | BS181: 2453889.334 | BT181: 2453889.334 | BU181: 2614274.258 | BV181: 2614274.258 | BW181: 2766639.936 | BX181: 2766639.936 | BY181: 2886928.629 | BZ181: 2886928.629 | CA181: 3047313.553 | CB181: 3047313.553 | CC181: 3199679.23 | CD181: 3199679.23 | CE181: 3319967.923 | CF181: 3319967.923 | CG181: 3480352.847 | CH181: 3480352.847 | CI181: 0
A182: 182 | G182: 0 | H182: Приобретение ЗУ | I182: Применяется процентное распределение трафика
A183: 183 | G183: 0 | H183: Приобретение ЗУ | I183: Применяется процентное распределение трафика | J183: %-ное распределение учета расходов | M183: % | Q183: процесс | T183: 0 | X183: 1 | AA183: 0 | AB183: 0 | AC183: 0 | AD183: 0 | AE183: 0.002004811548 | AF183: 0.002004811548 | AG183: 0.004009623095 | AH183: 0.004009623095 | AI183: 0.006014434643 | AJ183: 0.006014434643 | AK183: 0.008019246191 | AL183: 0.008019246191 | AM183: 0.01002405774 | AN183: 0.01002405774 | AO183: 0.01202886929 | AP183: 0.01202886929 | AQ183: 0.01403368083 | AR183: 0.01403368083 | AS183: 0.01603849238 | AT183: 0.01603849238 | AU183: 0.01804330393 | AV183: 0.01804330393 | AW183: 0.02004811548 | AX183: 0.02004811548 | AY183: 0.02165196472 | AZ183: 0.02165196472 | BA183: 0.02165196472 | BB183: 0.02165196472 | BC183: 0.02165196472 | BD183: 0.02165196472 | BE183: 0.02165196472 | BF183: 0.02165196472 | BG183: 0.02165196472 | BH183: 0.02165196472 | BI183: 0.02165196472 | BJ183: 0.02165196472 | BK183: 0.02165196472 | BL183: 0.02165196472 | BM183: 0.02165196472 | BN183: 0.02165196472 | BO183: 0.02165196472 | BP183: 0.02165196472 | BQ183: 0.02165196472 | BR183: 0.02165196472 | BS183: 0.02165196472 | BT183: 0.02165196472 | BU183: 0.02165196472 | BV183: 0.02165196472 | BW183: 0.02165196472 | BX183: 0.02165196472 | BY183: 0.02165196472 | BZ183: 0.02165196472 | CA183: 0.02165196472 | CB183: 0.02165196472 | CC183: 0.02165196472 | CD183: 0.02165196472 | CE183: 0.02165196472 | CF183: 0.02165196472 | CG183: 0.02165196472 | CH183: 0.02165196472 | CI183: 0
A184: 184 | G184: 0 | H184: Приобретение ЗУ | I184: Применяется процентное распределение трафика | J184: обратный порядок распределения учета расхода | M184: руб. | T184: 0 | Y184: обратный порядок процесса | AA184: 0 | AB184: 433039.2943 | AC184: 433039.2943 | AD184: 433039.2943 | AE184: 433039.2943 | AF184: 433039.2943 | AG184: 433039.2943 | AH184: 433039.2943 | AI184: 433039.2943 | AJ184: 433039.2943 | AK184: 433039.2943 | AL184: 433039.2943 | AM184: 433039.2943 | AN184: 433039.2943 | AO184: 433039.2943 | AP184: 433039.2943 | AQ184: 433039.2943 | AR184: 433039.2943 | AS184: 433039.2943 | AT184: 433039.2943 | AU184: 433039.2943 | AV184: 433039.2943 | AW184: 433039.2943 | AX184: 433039.2943 | AY184: 433039.2943 | AZ184: 433039.2943 | BA184: 433039.2943 | BB184: 433039.2943 | BC184: 433039.2943 | BD184: 433039.2943 | BE184: 433039.2943 | BF184: 433039.2943 | BG184: 433039.2943 | BH184: 433039.2943 | BI184: 433039.2943 | BJ184: 433039.2943 | BK184: 433039.2943 | BL184: 400962.3095 | BM184: 400962.3095 | BN184: 360866.0786 | BO184: 360866.0786 | BP184: 320769.8476 | BQ184: 320769.8476 | BR184: 280673.6167 | BS184: 280673.6167 | BT184: 240577.3857 | BU184: 240577.3857 | BV184: 200481.1548 | BW184: 200481.1548 | BX184: 160384.9238 | BY184: 160384.9238 | BZ184: 120288.6929 | CA184: 120288.6929 | CB184: 80192.46191 | CC184: 80192.46191 | CD184: 40096.23095 | CE184: 40096.23095 | CF184: 0 | CG184: 0 | CH184: 0 | CI184: 0
A185: 185 | L185: пустая строка
A186: 186
A187: 187 | G187: 0 | H187: Расходы на аренду ЗУ | L187: 1 | M187: руб. | Q187: начисление | X187: 165000000 | AA187: 500000 | AB187: 500000 | AC187: 500000 | AD187: 500000 | AE187: 500000 | AF187: 500000 | AG187: 1000000 | AH187: 1000000 | AI187: 1000000 | AJ187: 1000000 | AK187: 1000000 | AL187: 1000000 | AM187: 1500000 | AN187: 1500000 | AO187: 1500000 | AP187: 1500000 | AQ187: 1500000 | AR187: 1500000 | AS187: 2000000 | AT187: 2000000 | AU187: 2000000 | AV187: 2000000 | AW187: 2000000 | AX187: 2000000 | AY187: 2500000 | AZ187: 2500000 | BA187: 2500000 | BB187: 2500000 | BC187: 2500000 | BD187: 2500000 | BE187: 3000000 | BF187: 3000000 | BG187: 3000000 | BH187: 3000000 | BI187: 3000000 | BJ187: 3000000 | BK187: 3500000 | BL187: 3500000 | BM187: 3500000 | BN187: 3500000 | BO187: 3500000 | BP187: 3500000 | BQ187: 4000000 | BR187: 4000000 | BS187: 4000000 | BT187: 4000000 | BU187: 4000000 | BV187: 4000000 | BW187: 4500000 | BX187: 4500000 | BY187: 4500000 | BZ187: 4500000 | CA187: 4500000 | CB187: 4500000 | CC187: 5000000 | CD187: 5000000 | CE187: 5000000 | CF187: 5000000 | CG187: 5000000 | CH187: 5000000 | CI187: 0
A188: 188 | G188: 0 | H188: Расходы на аренду ЗУ | I188: Распределение расхода для одного запуска | M188: руб. | Q188: процесс | T188: 0 | U188: 0 | X188: 30000000 | AA188: 500000 | AB188: 500000 | AC188: 500000 | AD188: 500000 | AE188: 500000 | AF188: 500000 | AG188: 500000 | AH188: 500000 | AI188: 500000 | AJ188: 500000 | AK188: 500000 | AL188: 500000 | AM188: 500000 | AN188: 500000 | AO188: 500000 | AP188: 500000 | AQ188: 500000 | AR188: 500000 | AS188: 500000 | AT188: 500000 | AU188: 500000 | AV188: 500000 | AW188: 500000 | AX188: 500000 | AY188: 500000 | AZ188: 500000 | BA188: 500000 | BB188: 500000 | BC188: 500000 | BD188: 500000 | BE188: 500000 | BF188: 500000 | BG188: 500000 | BH188: 500000 | BI188: 500000 | BJ188: 500000 | BK188: 500000 | BL188: 500000 | BM188: 500000 | BN188: 500000 | BO188: 500000 | BP188: 500000 | BQ188: 500000 | BR188: 500000 | BS188: 500000 | BT188: 500000 | BU188: 500000 | BV188: 500000 | BW188: 500000 | BX188: 500000 | BY188: 500000 | BZ188: 500000 | CA188: 500000 | CB188: 500000 | CC188: 500000 | CD188: 500000 | CE188: 500000 | CF188: 500000 | CG188: 500000 | CH188: 500000 | CI188: 0
A189: 189 | G189: 0 | H189: Расходы на аренду ЗУ | I189: Распределение расхода для одного запуска | J189: Сумма расхода для одного запуска по этой статье | M189: руб. | P189: * | Q189: 30000000 | S189: 0 | Y189: обратное распределение расхода | AA189: 0 | AB189: 500000 | AC189: 500000 | AD189: 500000 | AE189: 500000 | AF189: 500000 | AG189: 500000 | AH189: 500000 | AI189: 500000 | AJ189: 500000 | AK189: 500000 | AL189: 500000 | AM189: 500000 | AN189: 500000 | AO189: 500000 | AP189: 500000 | AQ189: 500000 | AR189: 500000 | AS189: 500000 | AT189: 500000 | AU189: 500000 | AV189: 500000 | AW189: 500000 | AX189: 500000 | AY189: 500000 | AZ189: 500000 | BA189: 500000 | BB189: 500000 | BC189: 500000 | BD189: 500000 | BE189: 500000 | BF189: 500000 | BG189: 500000 | BH189: 500000 | BI189: 500000 | BJ189: 500000 | BK189: 500000 | BL189: 500000 | BM189: 500000 | BN189: 500000 | BO189: 500000 | BP189: 500000 | BQ189: 500000 | BR189: 500000 | BS189: 500000 | BT189: 500000 | BU189: 500000 | BV189: 500000 | BW189: 500000 | BX189: 500000 | BY189: 500000 | BZ189: 500000 | CA189: 500000 | CB189: 500000 | CC189: 500000 | CD189: 500000 | CE189: 500000 | CF189: 500000 | CG189: 500000 | CH189: 500000 | CI189: 500000
A190: 190 | G190: 0 | H190: Расходы на аренду ЗУ | I190: Распределение расхода для одного запуска | J190: Процентное распределение расхода по периодам | M190: % | T190: 0 | X190: 1 | AA190: 0.01666666667 | AB190: 0.01666666667 | AC190: 0.01666666667 | AD190: 0.01666666667 | AE190: 0.01666666667 | AF190: 0.01666666667 | AG190: 0.01666666667 | AH190: 0.01666666667 | AI190: 0.01666666667 | AJ190: 0.01666666667 | AK190: 0.01666666667 | AL190: 0.01666666667 | AM190: 0.01666666667 | AN190: 0.01666666667 | AO190: 0.01666666667 | AP190: 0.01666666667 | AQ190: 0.01666666667 | AR190: 0.01666666667 | AS190: 0.01666666667 | AT190: 0.01666666667 | AU190: 0.01666666667 | AV190: 0.01666666667 | AW190: 0.01666666667 | AX190: 0.01666666667 | AY190: 0.01666666667 | AZ190: 0.01666666667 | BA190: 0.01666666667 | BB190: 0.01666666667 | BC190: 0.01666666667 | BD190: 0.01666666667 | BE190: 0.01666666667 | BF190: 0.01666666667 | BG190: 0.01666666667 | BH190: 0.01666666667 | BI190: 0.01666666667 | BJ190: 0.01666666667 | BK190: 0.01666666667 | BL190: 0.01666666667 | BM190: 0.01666666667 | BN190: 0.01666666667 | BO190: 0.01666666667 | BP190: 0.01666666667 | BQ190: 0.01666666667 | BR190: 0.01666666667 | BS190: 0.01666666667 | BT190: 0.01666666667 | BU190: 0.01666666667 | BV190: 0.01666666667 | BW190: 0.01666666667 | BX190: 0.01666666667 | BY190: 0.01666666667 | BZ190: 0.01666666667 | CA190: 0.01666666667 | CB190: 0.01666666667 | CC190: 0.01666666667 | CD190: 0.01666666667 | CE190: 0.01666666667 | CF190: 0.01666666667 | CG190: 0.01666666667 | CH190: 0.01666666667 | CI190: 0
A191: 191
A192: 192 | G192: 0 | H192: Расходы на аренду ЗУ | L192: 1 | M192: руб. | Q192: оплата | X192: 163833333.3 | AA192: 400000 | AB192: 500000 | AC192: 500000 | AD192: 500000 | AE192: 500000 | AF192: 516666.6667 | AG192: 883333.3333 | AH192: 1000000 | AI192: 1000000 | AJ192: 1000000 | AK192: 1000000 | AL192: 1016666.667 | AM192: 1383333.333 | AN192: 1500000 | AO192: 1500000 | AP192: 1500000 | AQ192: 1500000 | AR192: 1516666.667 | AS192: 1883333.333 | AT192: 2000000 | AU192: 2000000 | AV192: 2000000 | AW192: 2000000 | AX192: 2016666.667 | AY192: 2383333.333 | AZ192: 2500000 | BA192: 2500000 | BB192: 2500000 | BC192: 2500000 | BD192: 2516666.667 | BE192: 2883333.333 | BF192: 3000000 | BG192: 3000000 | BH192: 3000000 | BI192: 3000000 | BJ192: 3016666.667 | BK192: 3383333.333 | BL192: 3500000 | BM192: 3500000 | BN192: 3500000 | BO192: 3500000 | BP192: 3516666.667 | BQ192: 3883333.333 | BR192: 4000000 | BS192: 4000000 | BT192: 4000000 | BU192: 4000000 | BV192: 4016666.667 | BW192: 4383333.333 | BX192: 4500000 | BY192: 4500000 | BZ192: 4500000 | CA192: 4500000 | CB192: 4516666.667 | CC192: 4883333.333 | CD192: 5000000 | CE192: 5000000 | CF192: 5000000 | CG192: 5000000 | CH192: 4833333.333 | CI192: 0
A193: 193 | G193: 0 | H193: Расходы на аренду ЗУ | I193: Задаем через указание % предоплаты и сроков
A194: 194 | G194: 0 | H194: Расходы на аренду ЗУ | I194: Задаем через указание % предоплаты и сроков | J194: Размер предоплаты | M194: % | P194: * | Q194: 0.3 | S194: 0
A195: 195 | G195: 0 | H195: Расходы на аренду ЗУ | I195: Задаем через указание % предоплаты и сроков | J195: Период оборачиваемости предоплаты (срок) | M195: кол-во дней | P195: * | Q195: 10 | S195: 0
A196: 196 | G196: 0 | H196: Расходы на аренду ЗУ | I196: Задаем через указание % предоплаты и сроков | J196: расчет в количестве периодов | M196: кол-во периодов | Q196: 0.1111111111 | S196: 0 | T196: 0
A197: 197 | G197: 0 | H197: Расходы на аренду ЗУ | I197: Задаем через указание % предоплаты и сроков | J197: Размер доплаты | M197: % | Q197: 0.7 | S197: 0 | T197: 0
A198: 198 | G198: 0 | H198: Расходы на аренду ЗУ | I198: Задаем через указание % предоплаты и сроков | J198: Период оборачиваемости доплат (срок) | M198: кол-во дней | P198: * | Q198: 30 | S198: 0
A199: 199 | G199: 0 | H199: Расходы на аренду ЗУ | I199: Задаем через указание % предоплаты и сроков | J199: расчет в количестве периодов | M199: кол-во периодов | Q199: 0.3333333333 | S199: 0 | T199: 0
A200: 200
... 1894 more rows

Sheet CapEx
Y1: номер столбца: | AA1: 27 | AB1: 28 | AC1: 29 | AD1: 30 | AE1: 31 | AF1: 32 | AG1: 33 | AH1: 34 | AI1: 35 | AJ1: 36 | AK1: 37 | AL1: 38 | AM1: 39 | AN1: 40 | AO1: 41 | AP1: 42 | AQ1: 43 | AR1: 44 | AS1: 45 | AT1: 46 | AU1: 47 | AV1: 48 | AW1: 49 | AX1: 50 | AY1: 51 | AZ1: 52 | BA1: 53 | BB1: 54 | BC1: 55 | BD1: 56 | BE1: 57 | BF1: 58 | BG1: 59 | BH1: 60 | BI1: 61 | BJ1: 62 | BK1: 63 | BL1: 64 | BM1: 65 | BN1: 66 | BO1: 67 | BP1: 68 | BQ1: 69 | BR1: 70 | BS1: 71 | BT1: 72 | BU1: 73 | BV1: 74 | BW1: 75 | BX1: 76 | BY1: 77 | BZ1: 78 | CA1: 79 | CB1: 80 | CC1: 81 | CD1: 82 | CE1: 83 | CF1: 84 | CG1: 85 | CH1: 86 | CI1: 87
Y2: номер периода модели: | AA2: 1 | AB2: 2 | AC2: 3 | AD2: 4 | AE2: 5 | AF2: 6 | AG2: 7 | AH2: 8 | AI2: 9 | AJ2: 10 | AK2: 11 | AL2: 12 | AM2: 13 | AN2: 14 | AO2: 15 | AP2: 16 | AQ2: 17 | AR2: 18 | AS2: 19 | AT2: 20 | AU2: 21 | AV2: 22 | AW2: 23 | AX2: 24 | AY2: 25 | AZ2: 26 | BA2: 27 | BB2: 28 | BC2: 29 | BD2: 30 | BE2: 31 | BF2: 32 | BG2: 33 | BH2: 34 | BI2: 35 | BJ2: 36 | BK2: 37 | BL2: 38 | BM2: 39 | BN2: 40 | BO2: 41 | BP2: 42 | BQ2: 43 | BR2: 44 | BS2: 45 | BT2: 46 | BU2: 47 | BV2: 48 | BW2: 49 | BX2: 50 | BY2: 51 | BZ2: 52 | CA2: 53 | CB2: 54 | CC2: 55 | CD2: 56 | CE2: 57 | CF2: 58 | CG2: 59 | CH2: 60 | CI2: 61
Y3: номер факт-периода:
Y4: номер план-периода: | AA4: 1 | AB4: 2 | AC4: 3 | AD4: 4 | AE4: 5 | AF4: 6 | AG4: 7 | AH4: 8 | AI4: 9 | AJ4: 10 | AK4: 11 | AL4: 12 | AM4: 13 | AN4: 14 | AO4: 15 | AP4: 16 | AQ4: 17 | AR4: 18 | AS4: 19 | AT4: 20 | AU4: 21 | AV4: 22 | AW4: 23 | AX4: 24 | AY4: 25 | AZ4: 26 | BA4: 27 | BB4: 28 | BC4: 29 | BD4: 30 | BE4: 31 | BF4: 32 | BG4: 33 | BH4: 34 | BI4: 35 | BJ4: 36 | BK4: 37 | BL4: 38 | BM4: 39 | BN4: 40 | BO4: 41 | BP4: 42 | BQ4: 43 | BR4: 44 | BS4: 45 | BT4: 46 | BU4: 47 | BV4: 48 | BW4: 49 | BX4: 50 | BY4: 51 | BZ4: 52 | CA4: 53 | CB4: 54 | CC4: 55 | CD4: 56 | CE4: 57 | CF4: 58 | CG4: 59 | CH4: 60
Y5: число даты начала: | AA5: 1 | AB5: 1 | AC5: 1 | AD5: 1 | AE5: 1 | AF5: 1 | AG5: 1 | AH5: 1 | AI5: 1 | AJ5: 1 | AK5: 1 | AL5: 1 | AM5: 1 | AN5: 1 | AO5: 1 | AP5: 1 | AQ5: 1 | AR5: 1 | AS5: 1 | AT5: 1 | AU5: 1 | AV5: 1 | AW5: 1 | AX5: 1 | AY5: 1 | AZ5: 1 | BA5: 1 | BB5: 1 | BC5: 1 | BD5: 1 | BE5: 1 | BF5: 1 | BG5: 1 | BH5: 1 | BI5: 1 | BJ5: 1 | BK5: 1 | BL5: 1 | BM5: 1 | BN5: 1 | BO5: 1 | BP5: 1 | BQ5: 1 | BR5: 1 | BS5: 1 | BT5: 1 | BU5: 1 | BV5: 1 | BW5: 1 | BX5: 1 | BY5: 1 | BZ5: 1 | CA5: 1 | CB5: 1 | CC5: 1 | CD5: 1 | CE5: 1 | CF5: 1 | CG5: 1 | CH5: 1
Y6: номер месяца даты начала: | AA6: 7 | AB6: 10 | AC6: 1 | AD6: 4 | AE6: 7 | AF6: 10 | AG6: 1 | AH6: 4 | AI6: 7 | AJ6: 10 | AK6: 1 | AL6: 4 | AM6: 7 | AN6: 10 | AO6: 1 | AP6: 4 | AQ6: 7 | AR6: 10 | AS6: 1 | AT6: 4 | AU6: 7 | AV6: 10 | AW6: 1 | AX6: 4 | AY6: 7 | AZ6: 10 | BA6: 1 | BB6: 4 | BC6: 7 | BD6: 10 | BE6: 1 | BF6: 4 | BG6: 7 | BH6: 10 | BI6: 1 | BJ6: 4 | BK6: 7 | BL6: 10 | BM6: 1 | BN6: 4 | BO6: 7 | BP6: 10 | BQ6: 1 | BR6: 4 | BS6: 7 | BT6: 10 | BU6: 1 | BV6: 4 | BW6: 7 | BX6: 10 | BY6: 1 | BZ6: 4 | CA6: 7 | CB6: 10 | CC6: 1 | CD6: 4 | CE6: 7 | CF6: 10 | CG6: 1 | CH6: 4
Y7: год даты начала: | AA7: 21 | AB7: 21 | AC7: 22 | AD7: 22 | AE7: 22 | AF7: 22 | AG7: 23 | AH7: 23 | AI7: 23 | AJ7: 23 | AK7: 24 | AL7: 24 | AM7: 24 | AN7: 24 | AO7: 25 | AP7: 25 | AQ7: 25 | AR7: 25 | AS7: 26 | AT7: 26 | AU7: 26 | AV7: 26 | AW7: 27 | AX7: 27 | AY7: 27 | AZ7: 27 | BA7: 28 | BB7: 28 | BC7: 28 | BD7: 28 | BE7: 29 | BF7: 29 | BG7: 29 | BH7: 29 | BI7: 30 | BJ7: 30 | BK7: 30 | BL7: 30 | BM7: 31 | BN7: 31 | BO7: 31 | BP7: 31 | BQ7: 32 | BR7: 32 | BS7: 32 | BT7: 32 | BU7: 33 | BV7: 33 | BW7: 33 | BX7: 33 | BY7: 34 | BZ7: 34 | CA7: 34 | CB7: 34 | CC7: 35 | CD7: 35 | CE7: 35 | CF7: 35 | CG7: 36 | CH7: 36
Y8: число даты окончания: | AA8: 30 | AB8: 31 | AC8: 31 | AD8: 30 | AE8: 30 | AF8: 31 | AG8: 31 | AH8: 30 | AI8: 30 | AJ8: 31 | AK8: 31 | AL8: 30 | AM8: 30 | AN8: 31 | AO8: 31 | AP8: 30 | AQ8: 30 | AR8: 31 | AS8: 31 | AT8: 30 | AU8: 30 | AV8: 31 | AW8: 31 | AX8: 30 | AY8: 30 | AZ8: 31 | BA8: 31 | BB8: 30 | BC8: 30 | BD8: 31 | BE8: 31 | BF8: 30 | BG8: 30 | BH8: 31 | BI8: 31 | BJ8: 30 | BK8: 30 | BL8: 31 | BM8: 31 | BN8: 30 | BO8: 30 | BP8: 31 | BQ8: 31 | BR8: 30 | BS8: 30 | BT8: 31 | BU8: 31 | BV8: 30 | BW8: 30 | BX8: 31 | BY8: 31 | BZ8: 30 | CA8: 30 | CB8: 31 | CC8: 31 | CD8: 30 | CE8: 30 | CF8: 31 | CG8: 31 | CH8: 30
Y9: номер месяца даты окончания: | AA9: 9 | AB9: 12 | AC9: 3 | AD9: 6 | AE9: 9 | AF9: 12 | AG9: 3 | AH9: 6 | AI9: 9 | AJ9: 12 | AK9: 3 | AL9: 6 | AM9: 9 | AN9: 12 | AO9: 3 | AP9: 6 | AQ9: 9 | AR9: 12 | AS9: 3 | AT9: 6 | AU9: 9 | AV9: 12 | AW9: 3 | AX9: 6 | AY9: 9 | AZ9: 12 | BA9: 3 | BB9: 6 | BC9: 9 | BD9: 12 | BE9: 3 | BF9: 6 | BG9: 9 | BH9: 12 | BI9: 3 | BJ9: 6 | BK9: 9 | BL9: 12 | BM9: 3 | BN9: 6 | BO9: 9 | BP9: 12 | BQ9: 3 | BR9: 6 | BS9: 9 | BT9: 12 | BU9: 3 | BV9: 6 | BW9: 9 | BX9: 12 | BY9: 3 | BZ9: 6 | CA9: 9 | CB9: 12 | CC9: 3 | CD9: 6 | CE9: 9 | CF9: 12 | CG9: 3 | CH9: 6
Y10: год даты окончания: | AA10: 21 | AB10: 21 | AC10: 22 | AD10: 22 | AE10: 22 | AF10: 22 | AG10: 23 | AH10: 23 | AI10: 23 | AJ10: 23 | AK10: 24 | AL10: 24 | AM10: 24 | AN10: 24 | AO10: 25 | AP10: 25 | AQ10: 25 | AR10: 25 | AS10: 26 | AT10: 26 | AU10: 26 | AV10: 26 | AW10: 27 | AX10: 27 | AY10: 27 | AZ10: 27 | BA10: 28 | BB10: 28 | BC10: 28 | BD10: 28 | BE10: 29 | BF10: 29 | BG10: 29 | BH10: 29 | BI10: 30 | BJ10: 30 | BK10: 30 | BL10: 30 | BM10: 31 | BN10: 31 | BO10: 31 | BP10: 31 | BQ10: 32 | BR10: 32 | BS10: 32 | BT10: 32 | BU10: 33 | BV10: 33 | BW10: 33 | BX10: 33 | BY10: 34 | BZ10: 34 | CA10: 34 | CB10: 34 | CC10: 35 | CD10: 35 | CE10: 35 | CF10: 35 | CG10: 36 | CH10: 36
F11: CapEx | I11: Календарный план-график капитальных затрат | Q11: все включает НДС | X11: 2021-07-01 | AA11: 2021-07-01 | AB11: 2021-10-01 | AC11: 2022-01-01 | AD11: 2022-04-01 | AE11: 2022-07-01 | AF11: 2022-10-01 | AG11: 2023-01-01 | AH11: 2023-04-01 | AI11: 2023-07-01 | AJ11: 2023-10-01 | AK11: 2024-01-01 | AL11: 2024-04-01 | AM11: 2024-07-01 | AN11: 2024-10-01 | AO11: 2025-01-01 | AP11: 2025-04-01 | AQ11: 2025-07-01 | AR11: 2025-10-01 | AS11: 2026-01-01 | AT11: 2026-04-01 | AU11: 2026-07-01 | AV11: 2026-10-01 | AW11: 2027-01-01 | AX11: 2027-04-01 | AY11: 2027-07-01 | AZ11: 2027-10-01 | BA11: 2028-01-01 | BB11: 2028-04-01 | BC11: 2028-07-01 | BD11: 2028-10-01 | BE11: 2029-01-01 | BF11: 2029-04-01 | BG11: 2029-07-01 | BH11: 2029-10-01 | BI11: 2030-01-01 | BJ11: 2030-04-01 | BK11: 2030-07-01 | BL11: 2030-10-01 | BM11: 2031-01-01 | BN11: 2031-04-01 | BO11: 2031-07-01 | BP11: 2031-10-01 | BQ11: 2032-01-01 | BR11: 2032-04-01 | BS11: 2032-07-01 | BT11: 2032-10-01 | BU11: 2033-01-01 | BV11: 2033-04-01 | BW11: 2033-07-01 | BX11: 2033-10-01 | BY11: 2034-01-01 | BZ11: 2034-04-01 | CA11: 2034-07-01 | CB11: 2034-10-01 | CC11: 2035-01-01 | CD11: 2035-04-01 | CE11: 2035-07-01 | CF11: 2035-10-01 | CG11: 2036-01-01 | CH11: 2036-04-01
H12: тип листа | Q12: расчетный | X12: 2036-06-30 | AA12: 2021-09-30 | AB12: 2021-12-31 | AC12: 2022-03-31 | AD12: 2022-06-30 | AE12: 2022-09-30 | AF12: 2022-12-31 | AG12: 2023-03-31 | AH12: 2023-06-30 | AI12: 2023-09-30 | AJ12: 2023-12-31 | AK12: 2024-03-31 | AL12: 2024-06-30 | AM12: 2024-09-30 | AN12: 2024-12-31 | AO12: 2025-03-31 | AP12: 2025-06-30 | AQ12: 2025-09-30 | AR12: 2025-12-31 | AS12: 2026-03-31 | AT12: 2026-06-30 | AU12: 2026-09-30 | AV12: 2026-12-31 | AW12: 2027-03-31 | AX12: 2027-06-30 | AY12: 2027-09-30 | AZ12: 2027-12-31 | BA12: 2028-03-31 | BB12: 2028-06-30 | BC12: 2028-09-30 | BD12: 2028-12-31 | BE12: 2029-03-31 | BF12: 2029-06-30 | BG12: 2029-09-30 | BH12: 2029-12-31 | BI12: 2030-03-31 | BJ12: 2030-06-30 | BK12: 2030-09-30 | BL12: 2030-12-31 | BM12: 2031-03-31 | BN12: 2031-06-30 | BO12: 2031-09-30 | BP12: 2031-12-31 | BQ12: 2032-03-31 | BR12: 2032-06-30 | BS12: 2032-09-30 | BT12: 2032-12-31 | BU12: 2033-03-31 | BV12: 2033-06-30 | BW12: 2033-09-30 | BX12: 2033-12-31 | BY12: 2034-03-31 | BZ12: 2034-06-30 | CA12: 2034-09-30 | CB12: 2034-12-31 | CC12: 2035-03-31 | CD12: 2035-06-30 | CE12: 2035-09-30 | CF12: 2035-12-31 | CG12: 2036-03-31 | CH12: 2036-06-30
H13: показатель | M13: ед.изм. | Q13: значение | X13: итого | AA13: 3кв21г | AB13: 4кв21г | AC13: 1кв22г | AD13: 2кв22г | AE13: 3кв22г | AF13: 4кв22г | AG13: 1кв23г | AH13: 2кв23г | AI13: 3кв23г | AJ13: 4кв23г | AK13: 1кв24г | AL13: 2кв24г | AM13: 3кв24г | AN13: 4кв24г | AO13: 1кв25г | AP13: 2кв25г | AQ13: 3кв25г | AR13: 4кв25г | AS13: 1кв26г | AT13: 2кв26г | AU13: 3кв26г | AV13: 4кв26г | AW13: 1кв27г | AX13: 2кв27г | AY13: 3кв27г | AZ13: 4кв27г | BA13: 1кв28г | BB13: 2кв28г | BC13: 3кв28г | BD13: 4кв28г | BE13: 1кв29г | BF13: 2кв29г | BG13: 3кв29г | BH13: 4кв29г | BI13: 1кв30г | BJ13: 2кв30г | BK13: 3кв30г | BL13: 4кв30г | BM13: 1кв31г | BN13: 2кв31г | BO13: 3кв31г | BP13: 4кв31г | BQ13: 1кв32г | BR13: 2кв32г | BS13: 3кв32г | BT13: 4кв32г | BU13: 1кв33г | BV13: 2кв33г | BW13: 3кв33г | BX13: 4кв33г | BY13: 1кв34г | BZ13: 2кв34г | CA13: 3кв34г | CB13: 4кв34г | CC13: 1кв35г | CD13: 2кв35г | CE13: 3кв35г | CF13: 4кв35г | CG13: 1кв36г | CH13: 2кв36г
D14: 0 | E14: 0 | F14: 0 | G14: 0 | S14: 0 | T14: 0
A15: 15 | H15: разработка финмоделей: https://mngmnt.ru/ | Y15: обратный порядок периодизации | AA15: 61 | AB15: 60 | AC15: 59 | AD15: 58 | AE15: 57 | AF15: 56 | AG15: 55 | AH15: 54 | AI15: 53 | AJ15: 52 | AK15: 51 | AL15: 50 | AM15: 49 | AN15: 48 | AO15: 47 | AP15: 46 | AQ15: 45 | AR15: 44 | AS15: 43 | AT15: 42 | AU15: 41 | AV15: 40 | AW15: 39 | AX15: 38 | AY15: 37 | AZ15: 36 | BA15: 35 | BB15: 34 | BC15: 33 | BD15: 32 | BE15: 31 | BF15: 30 | BG15: 29 | BH15: 28 | BI15: 27 | BJ15: 26 | BK15: 25 | BL15: 24 | BM15: 23 | BN15: 22 | BO15: 21 | BP15: 20 | BQ15: 19 | BR15: 18 | BS15: 17 | BT15: 16 | BU15: 15 | BV15: 14 | BW15: 13 | BX15: 12 | BY15: 11 | BZ15: 10 | CA15: 9 | CB15: 8 | CC15: 7 | CD15: 6 | CE15: 5 | CF15: 4 | CG15: 3 | CH15: 2 | CI15: 1
A16: 16 | G16: 0 | H16: План-график разовых амортизируемых капзатрат | M16: руб. | T16: 0 | X16: 11000000 | AA16: 11000000 | AB16: 0 | AC16: 0 | AD16: 0 | AE16: 0 | AF16: 0 | AG16: 0 | AH16: 0 | AI16: 0 | AJ16: 0 | AK16: 0 | AL16: 0 | AM16: 0 | AN16: 0 | AO16: 0 | AP16: 0 | AQ16: 0 | AR16: 0 | AS16: 0 | AT16: 0 | AU16: 0 | AV16: 0 | AW16: 0 | AX16: 0 | AY16: 0 | AZ16: 0 | BA16: 0 | BB16: 0 | BC16: 0 | BD16: 0 | BE16: 0 | BF16: 0 | BG16: 0 | BH16: 0 | BI16: 0 | BJ16: 0 | BK16: 0 | BL16: 0 | BM16: 0 | BN16: 0 | BO16: 0 | BP16: 0 | BQ16: 0 | BR16: 0 | BS16: 0 | BT16: 0 | BU16: 0 | BV16: 0 | BW16: 0 | BX16: 0 | BY16: 0 | BZ16: 0 | CA16: 0 | CB16: 0 | CC16: 0 | CD16: 0 | CE16: 0 | CF16: 0 | CG16: 0 | CH16: 0 | CI16: 0
A17: 17 | G17: 0 | H17: План-график разовых амортизируемых капзатрат | I17: Юридические расходы | M17: руб. // % | P17: * | Q17: 1000000 | S17: 0 | T17: 0 | X17: 1 | Y17: * | AA17: 1
A18: 18 | G18: 0 | H18: План-график разовых амортизируемых капзатрат | I18: Градостроительное планирование | M18: руб. // % | P18: * | Q18: 10000000 | S18: 0 | T18: 0 | X18: 1 | Y18: * | AA18: 1
A19: 19 | G19: 0 | H19: План-график разовых амортизируемых капзатрат | I19: Разовые капзатраты - 3 | M19: руб. // % | P19: * | S19: 0 | T19: 0 | X19: 1 | Y19: * | AA19: 1
A20: 20 | G20: 0 | H20: План-график разовых амортизируемых капзатрат | I20: Разовые капзатраты - 4 | M20: руб. // % | P20: * | S20: 0 | T20: 0 | X20: 1 | Y20: * | AA20: 1
A21: 21 | G21: 0 | H21: План-график разовых амортизируемых капзатрат | I21: Разовые капзатраты - 5 | M21: руб. // % | P21: * | S21: 0 | T21: 0 | X21: 1 | Y21: * | AA21: 1
A22: 22 | G22: 0 | H22: План-график разовых амортизируемых капзатрат | I22: Разовые капзатраты - 6 | M22: руб. // % | P22: * | S22: 0 | T22: 0 | X22: 1 | Y22: * | AA22: 1
A23: 23 | G23: 0 | H23: План-график разовых амортизируемых капзатрат | I23: Разовые капзатраты - 7 | M23: руб. // % | P23: * | S23: 0 | T23: 0 | X23: 1 | Y23: * | AA23: 1
A24: 24 | G24: 0 | H24: План-график разовых амортизируемых капзатрат | I24: Разовые капзатраты - 8 | M24: руб. // % | P24: * | S24: 0 | T24: 0 | X24: 1 | Y24: * | AA24: 1
A25: 25 | G25: 0 | H25: План-график разовых амортизируемых капзатрат | I25: Разовые капзатраты - 9 | M25: руб. // % | P25: * | S25: 0 | T25: 0 | X25: 1 | Y25: * | AA25: 1
A26: 26 | G26: 0 | H26: План-график разовых амортизируемых капзатрат | I26: Разовые капзатраты - 10 | M26: руб. // % | P26: * | S26: 0 | T26: 0 | X26: 1 | Y26: * | AA26: 1
A27: 27 | L27: пустая строка
A28: 28 | T28: 0 | X28: 0 | AA28: 0 | AB28: 0 | AC28: 0 | AD28: 0 | AE28: 0 | AF28: 0 | AG28: 0 | AH28: 0 | AI28: 0 | AJ28: 0 | AK28: 0 | AL28: 0 | AM28: 0 | AN28: 0 | AO28: 0 | AP28: 0 | AQ28: 0 | AR28: 0 | AS28: 0 | AT28: 0 | AU28: 0 | AV28: 0 | AW28: 0 | AX28: 0 | AY28: 0 | AZ28: 0 | BA28: 0 | BB28: 0 | BC28: 0 | BD28: 0 | BE28: 0 | BF28: 0 | BG28: 0 | BH28: 0 | BI28: 0 | BJ28: 0 | BK28: 0 | BL28: 0 | BM28: 0 | BN28: 0 | BO28: 0 | BP28: 0 | BQ28: 0 | BR28: 0 | BS28: 0 | BT28: 0 | BU28: 0 | BV28: 0 | BW28: 0 | BX28: 0 | BY28: 0 | BZ28: 0 | CA28: 0 | CB28: 0 | CC28: 0 | CD28: 0 | CE28: 0 | CF28: 0 | CG28: 0 | CH28: 0 | CI28: 0
A29: 29 | G29: 0 | H29: Капзатраты разовые амортизируемые | M29: руб. | Q29: начисление | T29: 0 | X29: 11000000 | AA29: 11000000 | AB29: 0 | AC29: 0 | AD29: 0 | AE29: 0 | AF29: 0 | AG29: 0 | AH29: 0 | AI29: 0 | AJ29: 0 | AK29: 0 | AL29: 0 | AM29: 0 | AN29: 0 | AO29: 0 | AP29: 0 | AQ29: 0 | AR29: 0 | AS29: 0 | AT29: 0 | AU29: 0 | AV29: 0 | AW29: 0 | AX29: 0 | AY29: 0 | AZ29: 0 | BA29: 0 | BB29: 0 | BC29: 0 | BD29: 0 | BE29: 0 | BF29: 0 | BG29: 0 | BH29: 0 | BI29: 0 | BJ29: 0 | BK29: 0 | BL29: 0 | BM29: 0 | BN29: 0 | BO29: 0 | BP29: 0 | BQ29: 0 | BR29: 0 | BS29: 0 | BT29: 0 | BU29: 0 | BV29: 0 | BW29: 0 | BX29: 0 | BY29: 0 | BZ29: 0 | CA29: 0 | CB29: 0 | CC29: 0 | CD29: 0 | CE29: 0 | CF29: 0 | CG29: 0 | CH29: 0 | CI29: 0
A30: 30 | G30: 0 | H30: Капзатраты разовые амортизируемые | I30: Юридические расходы | M30: руб. | Q30: начисление | X30: 1000000 | AA30: 1000000 | AB30: 0 | AC30: 0 | AD30: 0 | AE30: 0 | AF30: 0 | AG30: 0 | AH30: 0 | AI30: 0 | AJ30: 0 | AK30: 0 | AL30: 0 | AM30: 0 | AN30: 0 | AO30: 0 | AP30: 0 | AQ30: 0 | AR30: 0 | AS30: 0 | AT30: 0 | AU30: 0 | AV30: 0 | AW30: 0 | AX30: 0 | AY30: 0 | AZ30: 0 | BA30: 0 | BB30: 0 | BC30: 0 | BD30: 0 | BE30: 0 | BF30: 0 | BG30: 0 | BH30: 0 | BI30: 0 | BJ30: 0 | BK30: 0 | BL30: 0 | BM30: 0 | BN30: 0 | BO30: 0 | BP30: 0 | BQ30: 0 | BR30: 0 | BS30: 0 | BT30: 0 | BU30: 0 | BV30: 0 | BW30: 0 | BX30: 0 | BY30: 0 | BZ30: 0 | CA30: 0 | CB30: 0 | CC30: 0 | CD30: 0 | CE30: 0 | CF30: 0 | CG30: 0 | CH30: 0 | CI30: 0
A31: 31 | G31: 0 | H31: Капзатраты разовые амортизируемые | I31: Градостроительное планирование | M31: руб. | Q31: начисление | X31: 10000000 | AA31: 10000000 | AB31: 0 | AC31: 0 | AD31: 0 | AE31: 0 | AF31: 0 | AG31: 0 | AH31: 0 | AI31: 0 | AJ31: 0 | AK31: 0 | AL31: 0 | AM31: 0 | AN31: 0 | AO31: 0 | AP31: 0 | AQ31: 0 | AR31: 0 | AS31: 0 | AT31: 0 | AU31: 0 | AV31: 0 | AW31: 0 | AX31: 0 | AY31: 0 | AZ31: 0 | BA31: 0 | BB31: 0 | BC31: 0 | BD31: 0 | BE31: 0 | BF31: 0 | BG31: 0 | BH31: 0 | BI31: 0 | BJ31: 0 | BK31: 0 | BL31: 0 | BM31: 0 | BN31: 0 | BO31: 0 | BP31: 0 | BQ31: 0 | BR31: 0 | BS31: 0 | BT31: 0 | BU31: 0 | BV31: 0 | BW31: 0 | BX31: 0 | BY31: 0 | BZ31: 0 | CA31: 0 | CB31: 0 | CC31: 0 | CD31: 0 | CE31: 0 | CF31: 0 | CG31: 0 | CH31: 0 | CI31: 0
A32: 32 | G32: 0 | H32: Капзатраты разовые амортизируемые | I32: Разовые капзатраты - 3 | M32: руб. | Q32: начисление | X32: 0 | AA32: 0 | AB32: 0 | AC32: 0 | AD32: 0 | AE32: 0 | AF32: 0 | AG32: 0 | AH32: 0 | AI32: 0 | AJ32: 0 | AK32: 0 | AL32: 0 | AM32: 0 | AN32: 0 | AO32: 0 | AP32: 0 | AQ32: 0 | AR32: 0 | AS32: 0 | AT32: 0 | AU32: 0 | AV32: 0 | AW32: 0 | AX32: 0 | AY32: 0 | AZ32: 0 | BA32: 0 | BB32: 0 | BC32: 0 | BD32: 0 | BE32: 0 | BF32: 0 | BG32: 0 | BH32: 0 | BI32: 0 | BJ32: 0 | BK32: 0 | BL32: 0 | BM32: 0 | BN32: 0 | BO32: 0 | BP32: 0 | BQ32: 0 | BR32: 0 | BS32: 0 | BT32: 0 | BU32: 0 | BV32: 0 | BW32: 0 | BX32: 0 | BY32: 0 | BZ32: 0 | CA32: 0 | CB32: 0 | CC32: 0 | CD32: 0 | CE32: 0 | CF32: 0 | CG32: 0 | CH32: 0 | CI32: 0
A33: 33 | G33: 0 | H33: Капзатраты разовые амортизируемые | I33: Разовые капзатраты - 4 | M33: руб. | Q33: начисление | X33: 0 | AA33: 0 | AB33: 0 | AC33: 0 | AD33: 0 | AE33: 0 | AF33: 0 | AG33: 0 | AH33: 0 | AI33: 0 | AJ33: 0 | AK33: 0 | AL33: 0 | AM33: 0 | AN33: 0 | AO33: 0 | AP33: 0 | AQ33: 0 | AR33: 0 | AS33: 0 | AT33: 0 | AU33: 0 | AV33: 0 | AW33: 0 | AX33: 0 | AY33: 0 | AZ33: 0 | BA33: 0 | BB33: 0 | BC33: 0 | BD33: 0 | BE33: 0 | BF33: 0 | BG33: 0 | BH33: 0 | BI33: 0 | BJ33: 0 | BK33: 0 | BL33: 0 | BM33: 0 | BN33: 0 | BO33: 0 | BP33: 0 | BQ33: 0 | BR33: 0 | BS33: 0 | BT33: 0 | BU33: 0 | BV33: 0 | BW33: 0 | BX33: 0 | BY33: 0 | BZ33: 0 | CA33: 0 | CB33: 0 | CC33: 0 | CD33: 0 | CE33: 0 | CF33: 0 | CG33: 0 | CH33: 0 | CI33: 0
A34: 34 | G34: 0 | H34: Капзатраты разовые амортизируемые | I34: Разовые капзатраты - 5 | M34: руб. | Q34: начисление | X34: 0 | AA34: 0 | AB34: 0 | AC34: 0 | AD34: 0 | AE34: 0 | AF34: 0 | AG34: 0 | AH34: 0 | AI34: 0 | AJ34: 0 | AK34: 0 | AL34: 0 | AM34: 0 | AN34: 0 | AO34: 0 | AP34: 0 | AQ34: 0 | AR34: 0 | AS34: 0 | AT34: 0 | AU34: 0 | AV34: 0 | AW34: 0 | AX34: 0 | AY34: 0 | AZ34: 0 | BA34: 0 | BB34: 0 | BC34: 0 | BD34: 0 | BE34: 0 | BF34: 0 | BG34: 0 | BH34: 0 | BI34: 0 | BJ34: 0 | BK34: 0 | BL34: 0 | BM34: 0 | BN34: 0 | BO34: 0 | BP34: 0 | BQ34: 0 | BR34: 0 | BS34: 0 | BT34: 0 | BU34: 0 | BV34: 0 | BW34: 0 | BX34: 0 | BY34: 0 | BZ34: 0 | CA34: 0 | CB34: 0 | CC34: 0 | CD34: 0 | CE34: 0 | CF34: 0 | CG34: 0 | CH34: 0 | CI34: 0
A35: 35 | G35: 0 | H35: Капзатраты разовые амортизируемые | I35: Разовые капзатраты - 6 | M35: руб. | Q35: начисление | X35: 0 | AA35: 0 | AB35: 0 | AC35: 0 | AD35: 0 | AE35: 0 | AF35: 0 | AG35: 0 | AH35: 0 | AI35: 0 | AJ35: 0 | AK35: 0 | AL35: 0 | AM35: 0 | AN35: 0 | AO35: 0 | AP35: 0 | AQ35: 0 | AR35: 0 | AS35: 0 | AT35: 0 | AU35: 0 | AV35: 0 | AW35: 0 | AX35: 0 | AY35: 0 | AZ35: 0 | BA35: 0 | BB35: 0 | BC35: 0 | BD35: 0 | BE35: 0 | BF35: 0 | BG35: 0 | BH35: 0 | BI35: 0 | BJ35: 0 | BK35: 0 | BL35: 0 | BM35: 0 | BN35: 0 | BO35: 0 | BP35: 0 | BQ35: 0 | BR35: 0 | BS35: 0 | BT35: 0 | BU35: 0 | BV35: 0 | BW35: 0 | BX35: 0 | BY35: 0 | BZ35: 0 | CA35: 0 | CB35: 0 | CC35: 0 | CD35: 0 | CE35: 0 | CF35: 0 | CG35: 0 | CH35: 0 | CI35: 0
A36: 36 | G36: 0 | H36: Капзатраты разовые амортизируемые | I36: Разовые капзатраты - 7 | M36: руб. | Q36: начисление | X36: 0 | AA36: 0 | AB36: 0 | AC36: 0 | AD36: 0 | AE36: 0 | AF36: 0 | AG36: 0 | AH36: 0 | AI36: 0 | AJ36: 0 | AK36: 0 | AL36: 0 | AM36: 0 | AN36: 0 | AO36: 0 | AP36: 0 | AQ36: 0 | AR36: 0 | AS36: 0 | AT36: 0 | AU36: 0 | AV36: 0 | AW36: 0 | AX36: 0 | AY36: 0 | AZ36: 0 | BA36: 0 | BB36: 0 | BC36: 0 | BD36: 0 | BE36: 0 | BF36: 0 | BG36: 0 | BH36: 0 | BI36: 0 | BJ36: 0 | BK36: 0 | BL36: 0 | BM36: 0 | BN36: 0 | BO36: 0 | BP36: 0 | BQ36: 0 | BR36: 0 | BS36: 0 | BT36: 0 | BU36: 0 | BV36: 0 | BW36: 0 | BX36: 0 | BY36: 0 | BZ36: 0 | CA36: 0 | CB36: 0 | CC36: 0 | CD36: 0 | CE36: 0 | CF36: 0 | CG36: 0 | CH36: 0 | CI36: 0
A37: 37 | G37: 0 | H37: Капзатраты разовые амортизируемые | I37: Разовые капзатраты - 8 | M37: руб. | Q37: начисление | X37: 0 | AA37: 0 | AB37: 0 | AC37: 0 | AD37: 0 | AE37: 0 | AF37: 0 | AG37: 0 | AH37: 0 | AI37: 0 | AJ37: 0 | AK37: 0 | AL37: 0 | AM37: 0 | AN37: 0 | AO37: 0 | AP37: 0 | AQ37: 0 | AR37: 0 | AS37: 0 | AT37: 0 | AU37: 0 | AV37: 0 | AW37: 0 | AX37: 0 | AY37: 0 | AZ37: 0 | BA37: 0 | BB37: 0 | BC37: 0 | BD37: 0 | BE37: 0 | BF37: 0 | BG37: 0 | BH37: 0 | BI37: 0 | BJ37: 0 | BK37: 0 | BL37: 0 | BM37: 0 | BN37: 0 | BO37: 0 | BP37: 0 | BQ37: 0 | BR37: 0 | BS37: 0 | BT37: 0 | BU37: 0 | BV37: 0 | BW37: 0 | BX37: 0 | BY37: 0 | BZ37: 0 | CA37: 0 | CB37: 0 | CC37: 0 | CD37: 0 | CE37: 0 | CF37: 0 | CG37: 0 | CH37: 0 | CI37: 0
A38: 38 | G38: 0 | H38: Капзатраты разовые амортизируемые | I38: Разовые капзатраты - 9 | M38: руб. | Q38: начисление | X38: 0 | AA38: 0 | AB38: 0 | AC38: 0 | AD38: 0 | AE38: 0 | AF38: 0 | AG38: 0 | AH38: 0 | AI38: 0 | AJ38: 0 | AK38: 0 | AL38: 0 | AM38: 0 | AN38: 0 | AO38: 0 | AP38: 0 | AQ38: 0 | AR38: 0 | AS38: 0 | AT38: 0 | AU38: 0 | AV38: 0 | AW38: 0 | AX38: 0 | AY38: 0 | AZ38: 0 | BA38: 0 | BB38: 0 | BC38: 0 | BD38: 0 | BE38: 0 | BF38: 0 | BG38: 0 | BH38: 0 | BI38: 0 | BJ38: 0 | BK38: 0 | BL38: 0 | BM38: 0 | BN38: 0 | BO38: 0 | BP38: 0 | BQ38: 0 | BR38: 0 | BS38: 0 | BT38: 0 | BU38: 0 | BV38: 0 | BW38: 0 | BX38: 0 | BY38: 0 | BZ38: 0 | CA38: 0 | CB38: 0 | CC38: 0 | CD38: 0 | CE38: 0 | CF38: 0 | CG38: 0 | CH38: 0 | CI38: 0
A39: 39 | G39: 0 | H39: Капзатраты разовые амортизируемые | I39: Разовые капзатраты - 10 | M39: руб. | Q39: начисление | X39: 0 | AA39: 0 | AB39: 0 | AC39: 0 | AD39: 0 | AE39: 0 | AF39: 0 | AG39: 0 | AH39: 0 | AI39: 0 | AJ39: 0 | AK39: 0 | AL39: 0 | AM39: 0 | AN39: 0 | AO39: 0 | AP39: 0 | AQ39: 0 | AR39: 0 | AS39: 0 | AT39: 0 | AU39: 0 | AV39: 0 | AW39: 0 | AX39: 0 | AY39: 0 | AZ39: 0 | BA39: 0 | BB39: 0 | BC39: 0 | BD39: 0 | BE39: 0 | BF39: 0 | BG39: 0 | BH39: 0 | BI39: 0 | BJ39: 0 | BK39: 0 | BL39: 0 | BM39: 0 | BN39: 0 | BO39: 0 | BP39: 0 | BQ39: 0 | BR39: 0 | BS39: 0 | BT39: 0 | BU39: 0 | BV39: 0 | BW39: 0 | BX39: 0 | BY39: 0 | BZ39: 0 | CA39: 0 | CB39: 0 | CC39: 0 | CD39: 0 | CE39: 0 | CF39: 0 | CG39: 0 | CH39: 0 | CI39: 0
A40: 40 | L40: пустая строка
A41: 41
A42: 42 | G42: 0 | H42: Капзатраты разовые амортизируемые | M42: руб. | Q42: оплата | X42: 11000000 | AA42: 11000000 | AB42: 0 | AC42: 0 | AD42: 0 | AE42: 0 | AF42: 0 | AG42: 0 | AH42: 0 | AI42: 0 | AJ42: 0 | AK42: 0 | AL42: 0 | AM42: 0 | AN42: 0 | AO42: 0 | AP42: 0 | AQ42: 0 | AR42: 0 | AS42: 0 | AT42: 0 | AU42: 0 | AV42: 0 | AW42: 0 | AX42: 0 | AY42: 0 | AZ42: 0 | BA42: 0 | BB42: 0 | BC42: 0 | BD42: 0 | BE42: 0 | BF42: 0 | BG42: 0 | BH42: 0 | BI42: 0 | BJ42: 0 | BK42: 0 | BL42: 0 | BM42: 0 | BN42: 0 | BO42: 0 | BP42: 0 | BQ42: 0 | BR42: 0 | BS42: 0 | BT42: 0 | BU42: 0 | BV42: 0 | BW42: 0 | BX42: 0 | BY42: 0 | BZ42: 0 | CA42: 0 | CB42: 0 | CC42: 0 | CD42: 0 | CE42: 0 | CF42: 0 | CG42: 0 | CH42: 0 | CI42: 0
A43: 43 | G43: 0 | H43: Капзатраты разовые амортизируемые | I43: Задаем через указание % предоплаты и сроков
A44: 44 | G44: 0 | H44: Капзатраты разовые амортизируемые | I44: Задаем через указание % предоплаты и сроков | J44: Размер предоплаты | M44: % | P44: * | S44: 0
A45: 45 | G45: 0 | H45: Капзатраты разовые амортизируемые | I45: Задаем через указание % предоплаты и сроков | J45: Период оборачиваемости предоплаты (срок) | M45: кол-во дней | P45: * | S45: 0
A46: 46 | G46: 0 | H46: Капзатраты разовые амортизируемые | I46: Задаем через указание % предоплаты и сроков | J46: расчет в количестве периодов | M46: кол-во периодов | Q46: 0 | S46: 0 | T46: 0
A47: 47 | G47: 0 | H47: Капзатраты разовые амортизируемые | I47: Задаем через указание % предоплаты и сроков | J47: Размер доплаты | M47: % | Q47: 1 | S47: 0 | T47: 0
A48: 48 | G48: 0 | H48: Капзатраты разовые амортизируемые | I48: Задаем через указание % предоплаты и сроков | J48: Период оборачиваемости доплат (срок) | M48: кол-во дней | P48: * | S48: 0
A49: 49 | G49: 0 | H49: Капзатраты разовые амортизируемые | I49: Задаем через указание % предоплаты и сроков | J49: расчет в количестве периодов | M49: кол-во периодов | Q49: 0 | S49: 0 | T49: 0
A50: 50
A51: 51 | G51: 0 | H51: Ввод в эксплуатацию | M51: руб. | Q51: списание | T51: 0 | X51: 11000000 | AA51: 11000000 | AB51: 0 | AC51: 0 | AD51: 0 | AE51: 0 | AF51: 0 | AG51: 0 | AH51: 0 | AI51: 0 | AJ51: 0 | AK51: 0 | AL51: 0 | AM51: 0 | AN51: 0 | AO51: 0 | AP51: 0 | AQ51: 0 | AR51: 0 | AS51: 0 | AT51: 0 | AU51: 0 | AV51: 0 | AW51: 0 | AX51: 0 | AY51: 0 | AZ51: 0 | BA51: 0 | BB51: 0 | BC51: 0 | BD51: 0 | BE51: 0 | BF51: 0 | BG51: 0 | BH51: 0 | BI51: 0 | BJ51: 0 | BK51: 0 | BL51: 0 | BM51: 0 | BN51: 0 | BO51: 0 | BP51: 0 | BQ51: 0 | BR51: 0 | BS51: 0 | BT51: 0 | BU51: 0 | BV51: 0 | BW51: 0 | BX51: 0 | BY51: 0 | BZ51: 0 | CA51: 0 | CB51: 0 | CC51: 0 | CD51: 0 | CE51: 0 | CF51: 0 | CG51: 0 | CH51: 0 | CI51: 0
A52: 52 | G52: 0 | H52: Ввод в эксплуатацию | I52: Юридические расходы | M52: руб. | P52: * | Q52: в последний период данной статьи | R52: ^ | S52: 0 | T52: 0 | X52: 1000000 | AA52: 1000000 | AB52: 0 | AC52: 0 | AD52: 0 | AE52: 0 | AF52: 0 | AG52: 0 | AH52: 0 | AI52: 0 | AJ52: 0 | AK52: 0 | AL52: 0 | AM52: 0 | AN52: 0 | AO52: 0 | AP52: 0 | AQ52: 0 | AR52: 0 | AS52: 0 | AT52: 0 | AU52: 0 | AV52: 0 | AW52: 0 | AX52: 0 | AY52: 0 | AZ52: 0 | BA52: 0 | BB52: 0 | BC52: 0 | BD52: 0 | BE52: 0 | BF52: 0 | BG52: 0 | BH52: 0 | BI52: 0 | BJ52: 0 | BK52: 0 | BL52: 0 | BM52: 0 | BN52: 0 | BO52: 0 | BP52: 0 | BQ52: 0 | BR52: 0 | BS52: 0 | BT52: 0 | BU52: 0 | BV52: 0 | BW52: 0 | BX52: 0 | BY52: 0 | BZ52: 0 | CA52: 0 | CB52: 0 | CC52: 0 | CD52: 0 | CE52: 0 | CF52: 0 | CG52: 0 | CH52: 0 | CI52: 0
A53: 53 | G53: 0 | H53: Ввод в эксплуатацию | I53: Градостроительное планирование | M53: руб. | P53: * | Q53: в последний период данной статьи | R53: ^ | S53: 0 | T53: 0 | X53: 10000000 | AA53: 10000000 | AB53: 0 | AC53: 0 | AD53: 0 | AE53: 0 | AF53: 0 | AG53: 0 | AH53: 0 | AI53: 0 | AJ53: 0 | AK53: 0 | AL53: 0 | AM53: 0 | AN53: 0 | AO53: 0 | AP53: 0 | AQ53: 0 | AR53: 0 | AS53: 0 | AT53: 0 | AU53: 0 | AV53: 0 | AW53: 0 | AX53: 0 | AY53: 0 | AZ53: 0 | BA53: 0 | BB53: 0 | BC53: 0 | BD53: 0 | BE53: 0 | BF53: 0 | BG53: 0 | BH53: 0 | BI53: 0 | BJ53: 0 | BK53: 0 | BL53: 0 | BM53: 0 | BN53: 0 | BO53: 0 | BP53: 0 | BQ53: 0 | BR53: 0 | BS53: 0 | BT53: 0 | BU53: 0 | BV53: 0 | BW53: 0 | BX53: 0 | BY53: 0 | BZ53: 0 | CA53: 0 | CB53: 0 | CC53: 0 | CD53: 0 | CE53: 0 | CF53: 0 | CG53: 0 | CH53: 0 | CI53: 0
A54: 54 | G54: 0 | H54: Ввод в эксплуатацию | I54: Разовые капзатраты - 3 | M54: руб. | P54: * | Q54: в последний период данной статьи | R54: ^ | S54: 0 | T54: 0 | X54: 0 | AA54: 0 | AB54: 0 | AC54: 0 | AD54: 0 | AE54: 0 | AF54: 0 | AG54: 0 | AH54: 0 | AI54: 0 | AJ54: 0 | AK54: 0 | AL54: 0 | AM54: 0 | AN54: 0 | AO54: 0 | AP54: 0 | AQ54: 0 | AR54: 0 | AS54: 0 | AT54: 0 | AU54: 0 | AV54: 0 | AW54: 0 | AX54: 0 | AY54: 0 | AZ54: 0 | BA54: 0 | BB54: 0 | BC54: 0 | BD54: 0 | BE54: 0 | BF54: 0 | BG54: 0 | BH54: 0 | BI54: 0 | BJ54: 0 | BK54: 0 | BL54: 0 | BM54: 0 | BN54: 0 | BO54: 0 | BP54: 0 | BQ54: 0 | BR54: 0 | BS54: 0 | BT54: 0 | BU54: 0 | BV54: 0 | BW54: 0 | BX54: 0 | BY54: 0 | BZ54: 0 | CA54: 0 | CB54: 0 | CC54: 0 | CD54: 0 | CE54: 0 | CF54: 0 | CG54: 0 | CH54: 0 | CI54: 0
A55: 55 | G55: 0 | H55: Ввод в эксплуатацию | I55: Разовые капзатраты - 4 | M55: руб. | P55: * | Q55: в последний период данной статьи | R55: ^ | S55: 0 | T55: 0 | X55: 0 | AA55: 0 | AB55: 0 | AC55: 0 | AD55: 0 | AE55: 0 | AF55: 0 | AG55: 0 | AH55: 0 | AI55: 0 | AJ55: 0 | AK55: 0 | AL55: 0 | AM55: 0 | AN55: 0 | AO55: 0 | AP55: 0 | AQ55: 0 | AR55: 0 | AS55: 0 | AT55: 0 | AU55: 0 | AV55: 0 | AW55: 0 | AX55: 0 | AY55: 0 | AZ55: 0 | BA55: 0 | BB55: 0 | BC55: 0 | BD55: 0 | BE55: 0 | BF55: 0 | BG55: 0 | BH55: 0 | BI55: 0 | BJ55: 0 | BK55: 0 | BL55: 0 | BM55: 0 | BN55: 0 | BO55: 0 | BP55: 0 | BQ55: 0 | BR55: 0 | BS55: 0 | BT55: 0 | BU55: 0 | BV55: 0 | BW55: 0 | BX55: 0 | BY55: 0 | BZ55: 0 | CA55: 0 | CB55: 0 | CC55: 0 | CD55: 0 | CE55: 0 | CF55: 0 | CG55: 0 | CH55: 0 | CI55: 0
A56: 56 | G56: 0 | H56: Ввод в эксплуатацию | I56: Разовые капзатраты - 5 | M56: руб. | P56: * | Q56: в последний период данной статьи | R56: ^ | S56: 0 | T56: 0 | X56: 0 | AA56: 0 | AB56: 0 | AC56: 0 | AD56: 0 | AE56: 0 | AF56: 0 | AG56: 0 | AH56: 0 | AI56: 0 | AJ56: 0 | AK56: 0 | AL56: 0 | AM56: 0 | AN56: 0 | AO56: 0 | AP56: 0 | AQ56: 0 | AR56: 0 | AS56: 0 | AT56: 0 | AU56: 0 | AV56: 0 | AW56: 0 | AX56: 0 | AY56: 0 | AZ56: 0 | BA56: 0 | BB56: 0 | BC56: 0 | BD56: 0 | BE56: 0 | BF56: 0 | BG56: 0 | BH56: 0 | BI56: 0 | BJ56: 0 | BK56: 0 | BL56: 0 | BM56: 0 | BN56: 0 | BO56: 0 | BP56: 0 | BQ56: 0 | BR56: 0 | BS56: 0 | BT56: 0 | BU56: 0 | BV56: 0 | BW56: 0 | BX56: 0 | BY56: 0 | BZ56: 0 | CA56: 0 | CB56: 0 | CC56: 0 | CD56: 0 | CE56: 0 | CF56: 0 | CG56: 0 | CH56: 0 | CI56: 0
A57: 57 | G57: 0 | H57: Ввод в эксплуатацию | I57: Разовые капзатраты - 6 | M57: руб. | P57: * | Q57: в последний период данной статьи | R57: ^ | S57: 0 | T57: 0 | X57: 0 | AA57: 0 | AB57: 0 | AC57: 0 | AD57: 0 | AE57: 0 | AF57: 0 | AG57: 0 | AH57: 0 | AI57: 0 | AJ57: 0 | AK57: 0 | AL57: 0 | AM57: 0 | AN57: 0 | AO57: 0 | AP57: 0 | AQ57: 0 | AR57: 0 | AS57: 0 | AT57: 0 | AU57: 0 | AV57: 0 | AW57: 0 | AX57: 0 | AY57: 0 | AZ57: 0 | BA57: 0 | BB57: 0 | BC57: 0 | BD57: 0 | BE57: 0 | BF57: 0 | BG57: 0 | BH57: 0 | BI57: 0 | BJ57: 0 | BK57: 0 | BL57: 0 | BM57: 0 | BN57: 0 | BO57: 0 | BP57: 0 | BQ57: 0 | BR57: 0 | BS57: 0 | BT57: 0 | BU57: 0 | BV57: 0 | BW57: 0 | BX57: 0 | BY57: 0 | BZ57: 0 | CA57: 0 | CB57: 0 | CC57: 0 | CD57: 0 | CE57: 0 | CF57: 0 | CG57: 0 | CH57: 0 | CI57: 0
A58: 58 | G58: 0 | H58: Ввод в эксплуатацию | I58: Разовые капзатраты - 7 | M58: руб. | P58: * | Q58: в последний период данной статьи | R58: ^ | S58: 0 | T58: 0 | X58: 0 | AA58: 0 | AB58: 0 | AC58: 0 | AD58: 0 | AE58: 0 | AF58: 0 | AG58: 0 | AH58: 0 | AI58: 0 | AJ58: 0 | AK58: 0 | AL58: 0 | AM58: 0 | AN58: 0 | AO58: 0 | AP58: 0 | AQ58: 0 | AR58: 0 | AS58: 0 | AT58: 0 | AU58: 0 | AV58: 0 | AW58: 0 | AX58: 0 | AY58: 0 | AZ58: 0 | BA58: 0 | BB58: 0 | BC58: 0 | BD58: 0 | BE58: 0 | BF58: 0 | BG58: 0 | BH58: 0 | BI58: 0 | BJ58: 0 | BK58: 0 | BL58: 0 | BM58: 0 | BN58: 0 | BO58: 0 | BP58: 0 | BQ58: 0 | BR58: 0 | BS58: 0 | BT58: 0 | BU58: 0 | BV58: 0 | BW58: 0 | BX58: 0 | BY58: 0 | BZ58: 0 | CA58: 0 | CB58: 0 | CC58: 0 | CD58: 0 | CE58: 0 | CF58: 0 | CG58: 0 | CH58: 0 | CI58: 0
A59: 59 | G59: 0 | H59: Ввод в эксплуатацию | I59: Разовые капзатраты - 8 | M59: руб. | P59: * | Q59: в последний период данной статьи | R59: ^ | S59: 0 | T59: 0 | X59: 0 | AA59: 0 | AB59: 0 | AC59: 0 | AD59: 0 | AE59: 0 | AF59: 0 | AG59: 0 | AH59: 0 | AI59: 0 | AJ59: 0 | AK59: 0 | AL59: 0 | AM59: 0 | AN59: 0 | AO59: 0 | AP59: 0 | AQ59: 0 | AR59: 0 | AS59: 0 | AT59: 0 | AU59: 0 | AV59: 0 | AW59: 0 | AX59: 0 | AY59: 0 | AZ59: 0 | BA59: 0 | BB59: 0 | BC59: 0 | BD59: 0 | BE59: 0 | BF59: 0 | BG59: 0 | BH59: 0 | BI59: 0 | BJ59: 0 | BK59: 0 | BL59: 0 | BM59: 0 | BN59: 0 | BO59: 0 | BP59: 0 | BQ59: 0 | BR59: 0 | BS59: 0 | BT59: 0 | BU59: 0 | BV59: 0 | BW59: 0 | BX59: 0 | BY59: 0 | BZ59: 0 | CA59: 0 | CB59: 0 | CC59: 0 | CD59: 0 | CE59: 0 | CF59: 0 | CG59: 0 | CH59: 0 | CI59: 0
A60: 60 | G60: 0 | H60: Ввод в эксплуатацию | I60: Разовые капзатраты - 9 | M60: руб. | P60: * | Q60: в последний период данной статьи | R60: ^ | S60: 0 | T60: 0 | X60: 0 | AA60: 0 | AB60: 0 | AC60: 0 | AD60: 0 | AE60: 0 | AF60: 0 | AG60: 0 | AH60: 0 | AI60: 0 | AJ60: 0 | AK60: 0 | AL60: 0 | AM60: 0 | AN60: 0 | AO60: 0 | AP60: 0 | AQ60: 0 | AR60: 0 | AS60: 0 | AT60: 0 | AU60: 0 | AV60: 0 | AW60: 0 | AX60: 0 | AY60: 0 | AZ60: 0 | BA60: 0 | BB60: 0 | BC60: 0 | BD60: 0 | BE60: 0 | BF60: 0 | BG60: 0 | BH60: 0 | BI60: 0 | BJ60: 0 | BK60: 0 | BL60: 0 | BM60: 0 | BN60: 0 | BO60: 0 | BP60: 0 | BQ60: 0 | BR60: 0 | BS60: 0 | BT60: 0 | BU60: 0 | BV60: 0 | BW60: 0 | BX60: 0 | BY60: 0 | BZ60: 0 | CA60: 0 | CB60: 0 | CC60: 0 | CD60: 0 | CE60: 0 | CF60: 0 | CG60: 0 | CH60: 0 | CI60: 0
A61: 61 | G61: 0 | H61: Ввод в эксплуатацию | I61: Разовые капзатраты - 10 | M61: руб. | P61: * | Q61: в последний период данной статьи | R61: ^ | S61: 0 | T61: 0 | X61: 0 | AA61: 0 | AB61: 0 | AC61: 0 | AD61: 0 | AE61: 0 | AF61: 0 | AG61: 0 | AH61: 0 | AI61: 0 | AJ61: 0 | AK61: 0 | AL61: 0 | AM61: 0 | AN61: 0 | AO61: 0 | AP61: 0 | AQ61: 0 | AR61: 0 | AS61: 0 | AT61: 0 | AU61: 0 | AV61: 0 | AW61: 0 | AX61: 0 | AY61: 0 | AZ61: 0 | BA61: 0 | BB61: 0 | BC61: 0 | BD61: 0 | BE61: 0 | BF61: 0 | BG61: 0 | BH61: 0 | BI61: 0 | BJ61: 0 | BK61: 0 | BL61: 0 | BM61: 0 | BN61: 0 | BO61: 0 | BP61: 0 | BQ61: 0 | BR61: 0 | BS61: 0 | BT61: 0 | BU61: 0 | BV61: 0 | BW61: 0 | BX61: 0 | BY61: 0 | BZ61: 0 | CA61: 0 | CB61: 0 | CC61: 0 | CD61: 0 | CE61: 0 | CF61: 0 | CG61: 0 | CH61: 0 | CI61: 0
A62: 62 | L62: пустая строка
A63: 63
A64: 64 | G64: 0 | H64: Параметры амортизации разовых капзатрат | Q64: процесс
A65: 65 | G65: 0 | H65: Параметры амортизации разовых капзатрат | I65: Юридические расходы | M65: кол-во лет // % | P65: * | Q65: 20 | S65: 0 | T65: 0 | X65: 0.7375 | AA65: 0 | AB65: 0.0125 | AC65: 0.0125 | AD65: 0.0125 | AE65: 0.0125 | AF65: 0.0125 | AG65: 0.0125 | AH65: 0.0125 | AI65: 0.0125 | AJ65: 0.0125 | AK65: 0.0125 | AL65: 0.0125 | AM65: 0.0125 | AN65: 0.0125 | AO65: 0.0125 | AP65: 0.0125 | AQ65: 0.0125 | AR65: 0.0125 | AS65: 0.0125 | AT65: 0.0125 | AU65: 0.0125 | AV65: 0.0125 | AW65: 0.0125 | AX65: 0.0125 | AY65: 0.0125 | AZ65: 0.0125 | BA65: 0.0125 | BB65: 0.0125 | BC65: 0.0125 | BD65: 0.0125 | BE65: 0.0125 | BF65: 0.0125 | BG65: 0.0125 | BH65: 0.0125 | BI65: 0.0125 | BJ65: 0.0125 | BK65: 0.0125 | BL65: 0.0125 | BM65: 0.0125 | BN65: 0.0125 | BO65: 0.0125 | BP65: 0.0125 | BQ65: 0.0125 | BR65: 0.0125 | BS65: 0.0125 | BT65: 0.0125 | BU65: 0.0125 | BV65: 0.0125 | BW65: 0.0125 | BX65: 0.0125 | BY65: 0.0125 | BZ65: 0.0125 | CA65: 0.0125 | CB65: 0.0125 | CC65: 0.0125 | CD65: 0.0125 | CE65: 0.0125 | CF65: 0.0125 | CG65: 0.0125 | CH65: 0.0125 | CI65: 0
A66: 66 | G66: 0 | H66: Параметры амортизации разовых капзатрат | I66: Градостроительное планирование | M66: кол-во лет // % | P66: * | Q66: 20 | S66: 0 | T66: 0 | X66: 0.7375 | AA66: 0 | AB66: 0.0125 | AC66: 0.0125 | AD66: 0.0125 | AE66: 0.0125 | AF66: 0.0125 | AG66: 0.0125 | AH66: 0.0125 | AI66: 0.0125 | AJ66: 0.0125 | AK66: 0.0125 | AL66: 0.0125 | AM66: 0.0125 | AN66: 0.0125 | AO66: 0.0125 | AP66: 0.0125 | AQ66: 0.0125 | AR66: 0.0125 | AS66: 0.0125 | AT66: 0.0125 | AU66: 0.0125 | AV66: 0.0125 | AW66: 0.0125 | AX66: 0.0125 | AY66: 0.0125 | AZ66: 0.0125 | BA66: 0.0125 | BB66: 0.0125 | BC66: 0.0125 | BD66: 0.0125 | BE66: 0.0125 | BF66: 0.0125 | BG66: 0.0125 | BH66: 0.0125 | BI66: 0.0125 | BJ66: 0.0125 | BK66: 0.0125 | BL66: 0.0125 | BM66: 0.0125 | BN66: 0.0125 | BO66: 0.0125 | BP66: 0.0125 | BQ66: 0.0125 | BR66: 0.0125 | BS66: 0.0125 | BT66: 0.0125 | BU66: 0.0125 | BV66: 0.0125 | BW66: 0.0125 | BX66: 0.0125 | BY66: 0.0125 | BZ66: 0.0125 | CA66: 0.0125 | CB66: 0.0125 | CC66: 0.0125 | CD66: 0.0125 | CE66: 0.0125 | CF66: 0.0125 | CG66: 0.0125 | CH66: 0.0125 | CI66: 0
A67: 67 | G67: 0 | H67: Параметры амортизации разовых капзатрат | I67: Разовые капзатраты - 3 | M67: кол-во лет // % | P67: * | Q67: 20 | S67: 0 | T67: 0 | X67: 0.7375 | AA67: 0 | AB67: 0.0125 | AC67: 0.0125 | AD67: 0.0125 | AE67: 0.0125 | AF67: 0.0125 | AG67: 0.0125 | AH67: 0.0125 | AI67: 0.0125 | AJ67: 0.0125 | AK67: 0.0125 | AL67: 0.0125 | AM67: 0.0125 | AN67: 0.0125 | AO67: 0.0125 | AP67: 0.0125 | AQ67: 0.0125 | AR67: 0.0125 | AS67: 0.0125 | AT67: 0.0125 | AU67: 0.0125 | AV67: 0.0125 | AW67: 0.0125 | AX67: 0.0125 | AY67: 0.0125 | AZ67: 0.0125 | BA67: 0.0125 | BB67: 0.0125 | BC67: 0.0125 | BD67: 0.0125 | BE67: 0.0125 | BF67: 0.0125 | BG67: 0.0125 | BH67: 0.0125 | BI67: 0.0125 | BJ67: 0.0125 | BK67: 0.0125 | BL67: 0.0125 | BM67: 0.0125 | BN67: 0.0125 | BO67: 0.0125 | BP67: 0.0125 | BQ67: 0.0125 | BR67: 0.0125 | BS67: 0.0125 | BT67: 0.0125 | BU67: 0.0125 | BV67: 0.0125 | BW67: 0.0125 | BX67: 0.0125 | BY67: 0.0125 | BZ67: 0.0125 | CA67: 0.0125 | CB67: 0.0125 | CC67: 0.0125 | CD67: 0.0125 | CE67: 0.0125 | CF67: 0.0125 | CG67: 0.0125 | CH67: 0.0125 | CI67: 0
A68: 68 | G68: 0 | H68: Параметры амортизации разовых капзатрат | I68: Разовые капзатраты - 4 | M68: кол-во лет // % | P68: * | Q68: 20 | S68: 0 | T68: 0 | X68: 0.7375 | AA68: 0 | AB68: 0.0125 | AC68: 0.0125 | AD68: 0.0125 | AE68: 0.0125 | AF68: 0.0125 | AG68: 0.0125 | AH68: 0.0125 | AI68: 0.0125 | AJ68: 0.0125 | AK68: 0.0125 | AL68: 0.0125 | AM68: 0.0125 | AN68: 0.0125 | AO68: 0.0125 | AP68: 0.0125 | AQ68: 0.0125 | AR68: 0.0125 | AS68: 0.0125 | AT68: 0.0125 | AU68: 0.0125 | AV68: 0.0125 | AW68: 0.0125 | AX68: 0.0125 | AY68: 0.0125 | AZ68: 0.0125 | BA68: 0.0125 | BB68: 0.0125 | BC68: 0.0125 | BD68: 0.0125 | BE68: 0.0125 | BF68: 0.0125 | BG68: 0.0125 | BH68: 0.0125 | BI68: 0.0125 | BJ68: 0.0125 | BK68: 0.0125 | BL68: 0.0125 | BM68: 0.0125 | BN68: 0.0125 | BO68: 0.0125 | BP68: 0.0125 | BQ68: 0.0125 | BR68: 0.0125 | BS68: 0.0125 | BT68: 0.0125 | BU68: 0.0125 | BV68: 0.0125 | BW68: 0.0125 | BX68: 0.0125 | BY68: 0.0125 | BZ68: 0.0125 | CA68: 0.0125 | CB68: 0.0125 | CC68: 0.0125 | CD68: 0.0125 | CE68: 0.0125 | CF68: 0.0125 | CG68: 0.0125 | CH68: 0.0125 | CI68: 0
A69: 69 | G69: 0 | H69: Параметры амортизации разовых капзатрат | I69: Разовые капзатраты - 5 | M69: кол-во лет // % | P69: * | Q69: 20 | S69: 0 | T69: 0 | X69: 0.7375 | AA69: 0 | AB69: 0.0125 | AC69: 0.0125 | AD69: 0.0125 | AE69: 0.0125 | AF69: 0.0125 | AG69: 0.0125 | AH69: 0.0125 | AI69: 0.0125 | AJ69: 0.0125 | AK69: 0.0125 | AL69: 0.0125 | AM69: 0.0125 | AN69: 0.0125 | AO69: 0.0125 | AP69: 0.0125 | AQ69: 0.0125 | AR69: 0.0125 | AS69: 0.0125 | AT69: 0.0125 | AU69: 0.0125 | AV69: 0.0125 | AW69: 0.0125 | AX69: 0.0125 | AY69: 0.0125 | AZ69: 0.0125 | BA69: 0.0125 | BB69: 0.0125 | BC69: 0.0125 | BD69: 0.0125 | BE69: 0.0125 | BF69: 0.0125 | BG69: 0.0125 | BH69: 0.0125 | BI69: 0.0125 | BJ69: 0.0125 | BK69: 0.0125 | BL69: 0.0125 | BM69: 0.0125 | BN69: 0.0125 | BO69: 0.0125 | BP69: 0.0125 | BQ69: 0.0125 | BR69: 0.0125 | BS69: 0.0125 | BT69: 0.0125 | BU69: 0.0125 | BV69: 0.0125 | BW69: 0.0125 | BX69: 0.0125 | BY69: 0.0125 | BZ69: 0.0125 | CA69: 0.0125 | CB69: 0.0125 | CC69: 0.0125 | CD69: 0.0125 | CE69: 0.0125 | CF69: 0.0125 | CG69: 0.0125 | CH69: 0.0125 | CI69: 0
A70: 70 | G70: 0 | H70: Параметры амортизации разовых капзатрат | I70: Разовые капзатраты - 6 | M70: кол-во лет // % | P70: * | Q70: 20 | S70: 0 | T70: 0 | X70: 0.7375 | AA70: 0 | AB70: 0.0125 | AC70: 0.0125 | AD70: 0.0125 | AE70: 0.0125 | AF70: 0.0125 | AG70: 0.0125 | AH70: 0.0125 | AI70: 0.0125 | AJ70: 0.0125 | AK70: 0.0125 | AL70: 0.0125 | AM70: 0.0125 | AN70: 0.0125 | AO70: 0.0125 | AP70: 0.0125 | AQ70: 0.0125 | AR70: 0.0125 | AS70: 0.0125 | AT70: 0.0125 | AU70: 0.0125 | AV70: 0.0125 | AW70: 0.0125 | AX70: 0.0125 | AY70: 0.0125 | AZ70: 0.0125 | BA70: 0.0125 | BB70: 0.0125 | BC70: 0.0125 | BD70: 0.0125 | BE70: 0.0125 | BF70: 0.0125 | BG70: 0.0125 | BH70: 0.0125 | BI70: 0.0125 | BJ70: 0.0125 | BK70: 0.0125 | BL70: 0.0125 | BM70: 0.0125 | BN70: 0.0125 | BO70: 0.0125 | BP70: 0.0125 | BQ70: 0.0125 | BR70: 0.0125 | BS70: 0.0125 | BT70: 0.0125 | BU70: 0.0125 | BV70: 0.0125 | BW70: 0.0125 | BX70: 0.0125 | BY70: 0.0125 | BZ70: 0.0125 | CA70: 0.0125 | CB70: 0.0125 | CC70: 0.0125 | CD70: 0.0125 | CE70: 0.0125 | CF70: 0.0125 | CG70: 0.0125 | CH70: 0.0125 | CI70: 0
A71: 71 | G71: 0 | H71: Параметры амортизации разовых капзатрат | I71: Разовые капзатраты - 7 | M71: кол-во лет // % | P71: * | Q71: 20 | S71: 0 | T71: 0 | X71: 0.7375 | AA71: 0 | AB71: 0.0125 | AC71: 0.0125 | AD71: 0.0125 | AE71: 0.0125 | AF71: 0.0125 | AG71: 0.0125 | AH71: 0.0125 | AI71: 0.0125 | AJ71: 0.0125 | AK71: 0.0125 | AL71: 0.0125 | AM71: 0.0125 | AN71: 0.0125 | AO71: 0.0125 | AP71: 0.0125 | AQ71: 0.0125 | AR71: 0.0125 | AS71: 0.0125 | AT71: 0.0125 | AU71: 0.0125 | AV71: 0.0125 | AW71: 0.0125 | AX71: 0.0125 | AY71: 0.0125 | AZ71: 0.0125 | BA71: 0.0125 | BB71: 0.0125 | BC71: 0.0125 | BD71: 0.0125 | BE71: 0.0125 | BF71: 0.0125 | BG71: 0.0125 | BH71: 0.0125 | BI71: 0.0125 | BJ71: 0.0125 | BK71: 0.0125 | BL71: 0.0125 | BM71: 0.0125 | BN71: 0.0125 | BO71: 0.0125 | BP71: 0.0125 | BQ71: 0.0125 | BR71: 0.0125 | BS71: 0.0125 | BT71: 0.0125 | BU71: 0.0125 | BV71: 0.0125 | BW71: 0.0125 | BX71: 0.0125 | BY71: 0.0125 | BZ71: 0.0125 | CA71: 0.0125 | CB71: 0.0125 | CC71: 0.0125 | CD71: 0.0125 | CE71: 0.0125 | CF71: 0.0125 | CG71: 0.0125 | CH71: 0.0125 | CI71: 0
A72: 72 | G72: 0 | H72: Параметры амортизации разовых капзатрат | I72: Разовые капзатраты - 8 | M72: кол-во лет // % | P72: * | Q72: 20 | S72: 0 | T72: 0 | X72: 0.7375 | AA72: 0 | AB72: 0.0125 | AC72: 0.0125 | AD72: 0.0125 | AE72: 0.0125 | AF72: 0.0125 | AG72: 0.0125 | AH72: 0.0125 | AI72: 0.0125 | AJ72: 0.0125 | AK72: 0.0125 | AL72: 0.0125 | AM72: 0.0125 | AN72: 0.0125 | AO72: 0.0125 | AP72: 0.0125 | AQ72: 0.0125 | AR72: 0.0125 | AS72: 0.0125 | AT72: 0.0125 | AU72: 0.0125 | AV72: 0.0125 | AW72: 0.0125 | AX72: 0.0125 | AY72: 0.0125 | AZ72: 0.0125 | BA72: 0.0125 | BB72: 0.0125 | BC72: 0.0125 | BD72: 0.0125 | BE72: 0.0125 | BF72: 0.0125 | BG72: 0.0125 | BH72: 0.0125 | BI72: 0.0125 | BJ72: 0.0125 | BK72: 0.0125 | BL72: 0.0125 | BM72: 0.0125 | BN72: 0.0125 | BO72: 0.0125 | BP72: 0.0125 | BQ72: 0.0125 | BR72: 0.0125 | BS72: 0.0125 | BT72: 0.0125 | BU72: 0.0125 | BV72: 0.0125 | BW72: 0.0125 | BX72: 0.0125 | BY72: 0.0125 | BZ72: 0.0125 | CA72: 0.0125 | CB72: 0.0125 | CC72: 0.0125 | CD72: 0.0125 | CE72: 0.0125 | CF72: 0.0125 | CG72: 0.0125 | CH72: 0.0125 | CI72: 0
A73: 73 | G73: 0 | H73: Параметры амортизации разовых капзатрат | I73: Разовые капзатраты - 9 | M73: кол-во лет // % | P73: * | Q73: 20 | S73: 0 | T73: 0 | X73: 0.7375 | AA73: 0 | AB73: 0.0125 | AC73: 0.0125 | AD73: 0.0125 | AE73: 0.0125 | AF73: 0.0125 | AG73: 0.0125 | AH73: 0.0125 | AI73: 0.0125 | AJ73: 0.0125 | AK73: 0.0125 | AL73: 0.0125 | AM73: 0.0125 | AN73: 0.0125 | AO73: 0.0125 | AP73: 0.0125 | AQ73: 0.0125 | AR73: 0.0125 | AS73: 0.0125 | AT73: 0.0125 | AU73: 0.0125 | AV73: 0.0125 | AW73: 0.0125 | AX73: 0.0125 | AY73: 0.0125 | AZ73: 0.0125 | BA73: 0.0125 | BB73: 0.0125 | BC73: 0.0125 | BD73: 0.0125 | BE73: 0.0125 | BF73: 0.0125 | BG73: 0.0125 | BH73: 0.0125 | BI73: 0.0125 | BJ73: 0.0125 | BK73: 0.0125 | BL73: 0.0125 | BM73: 0.0125 | BN73: 0.0125 | BO73: 0.0125 | BP73: 0.0125 | BQ73: 0.0125 | BR73: 0.0125 | BS73: 0.0125 | BT73: 0.0125 | BU73: 0.0125 | BV73: 0.0125 | BW73: 0.0125 | BX73: 0.0125 | BY73: 0.0125 | BZ73: 0.0125 | CA73: 0.0125 | CB73: 0.0125 | CC73: 0.0125 | CD73: 0.0125 | CE73: 0.0125 | CF73: 0.0125 | CG73: 0.0125 | CH73: 0.0125 | CI73: 0
A74: 74 | G74: 0 | H74: Параметры амортизации разовых капзатрат | I74: Разовые капзатраты - 10 | M74: кол-во лет // % | P74: * | Q74: 20 | S74: 0 | T74: 0 | X74: 0.7375 | AA74: 0 | AB74: 0.0125 | AC74: 0.0125 | AD74: 0.0125 | AE74: 0.0125 | AF74: 0.0125 | AG74: 0.0125 | AH74: 0.0125 | AI74: 0.0125 | AJ74: 0.0125 | AK74: 0.0125 | AL74: 0.0125 | AM74: 0.0125 | AN74: 0.0125 | AO74: 0.0125 | AP74: 0.0125 | AQ74: 0.0125 | AR74: 0.0125 | AS74: 0.0125 | AT74: 0.0125 | AU74: 0.0125 | AV74: 0.0125 | AW74: 0.0125 | AX74: 0.0125 | AY74: 0.0125 | AZ74: 0.0125 | BA74: 0.0125 | BB74: 0.0125 | BC74: 0.0125 | BD74: 0.0125 | BE74: 0.0125 | BF74: 0.0125 | BG74: 0.0125 | BH74: 0.0125 | BI74: 0.0125 | BJ74: 0.0125 | BK74: 0.0125 | BL74: 0.0125 | BM74: 0.0125 | BN74: 0.0125 | BO74: 0.0125 | BP74: 0.0125 | BQ74: 0.0125 | BR74: 0.0125 | BS74: 0.0125 | BT74: 0.0125 | BU74: 0.0125 | BV74: 0.0125 | BW74: 0.0125 | BX74: 0.0125 | BY74: 0.0125 | BZ74: 0.0125 | CA74: 0.0125 | CB74: 0.0125 | CC74: 0.0125 | CD74: 0.0125 | CE74: 0.0125 | CF74: 0.0125 | CG74: 0.0125 | CH74: 0.0125 | CI74: 0
A75: 75 | L75: пустая строка
A76: 76
A77: 77 | G77: 0 | H77: Обратное распределение амортизации
A78: 78 | G78: 0 | H78: Обратное распределение амортизации | I78: Юридические расходы | M78: % | T78: 0 | X78: 0.7375 | AA78: 0 | AB78: 0.0125 | AC78: 0.0125 | AD78: 0.0125 | AE78: 0.0125 | AF78: 0.0125 | AG78: 0.0125 | AH78: 0.0125 | AI78: 0.0125 | AJ78: 0.0125 | AK78: 0.0125 | AL78: 0.0125 | AM78: 0.0125 | AN78: 0.0125 | AO78: 0.0125 | AP78: 0.0125 | AQ78: 0.0125 | AR78: 0.0125 | AS78: 0.0125 | AT78: 0.0125 | AU78: 0.0125 | AV78: 0.0125 | AW78: 0.0125 | AX78: 0.0125 | AY78: 0.0125 | AZ78: 0.0125 | BA78: 0.0125 | BB78: 0.0125 | BC78: 0.0125 | BD78: 0.0125 | BE78: 0.0125 | BF78: 0.0125 | BG78: 0.0125 | BH78: 0.0125 | BI78: 0.0125 | BJ78: 0.0125 | BK78: 0.0125 | BL78: 0.0125 | BM78: 0.0125 | BN78: 0.0125 | BO78: 0.0125 | BP78: 0.0125 | BQ78: 0.0125 | BR78: 0.0125 | BS78: 0.0125 | BT78: 0.0125 | BU78: 0.0125 | BV78: 0.0125 | BW78: 0.0125 | BX78: 0.0125 | BY78: 0.0125 | BZ78: 0.0125 | CA78: 0.0125 | CB78: 0.0125 | CC78: 0.0125 | CD78: 0.0125 | CE78: 0.0125 | CF78: 0.0125 | CG78: 0.0125 | CH78: 0.0125 | CI78: 0
A79: 79 | G79: 0 | H79: Обратное распределение амортизации | I79: Градостроительное планирование | M79: % | T79: 0 | X79: 0.7375 | AA79: 0 | AB79: 0.0125 | AC79: 0.0125 | AD79: 0.0125 | AE79: 0.0125 | AF79: 0.0125 | AG79: 0.0125 | AH79: 0.0125 | AI79: 0.0125 | AJ79: 0.0125 | AK79: 0.0125 | AL79: 0.0125 | AM79: 0.0125 | AN79: 0.0125 | AO79: 0.0125 | AP79: 0.0125 | AQ79: 0.0125 | AR79: 0.0125 | AS79: 0.0125 | AT79: 0.0125 | AU79: 0.0125 | AV79: 0.0125 | AW79: 0.0125 | AX79: 0.0125 | AY79: 0.0125 | AZ79: 0.0125 | BA79: 0.0125 | BB79: 0.0125 | BC79: 0.0125 | BD79: 0.0125 | BE79: 0.0125 | BF79: 0.0125 | BG79: 0.0125 | BH79: 0.0125 | BI79: 0.0125 | BJ79: 0.0125 | BK79: 0.0125 | BL79: 0.0125 | BM79: 0.0125 | BN79: 0.0125 | BO79: 0.0125 | BP79: 0.0125 | BQ79: 0.0125 | BR79: 0.0125 | BS79: 0.0125 | BT79: 0.0125 | BU79: 0.0125 | BV79: 0.0125 | BW79: 0.0125 | BX79: 0.0125 | BY79: 0.0125 | BZ79: 0.0125 | CA79: 0.0125 | CB79: 0.0125 | CC79: 0.0125 | CD79: 0.0125 | CE79: 0.0125 | CF79: 0.0125 | CG79: 0.0125 | CH79: 0.0125 | CI79: 0
A80: 80 | G80: 0 | H80: Обратное распределение амортизации | I80: Разовые капзатраты - 3 | M80: % | T80: 0 | X80: 0.7375 | AA80: 0 | AB80: 0.0125 | AC80: 0.0125 | AD80: 0.0125 | AE80: 0.0125 | AF80: 0.0125 | AG80: 0.0125 | AH80: 0.0125 | AI80: 0.0125 | AJ80: 0.0125 | AK80: 0.0125 | AL80: 0.0125 | AM80: 0.0125 | AN80: 0.0125 | AO80: 0.0125 | AP80: 0.0125 | AQ80: 0.0125 | AR80: 0.0125 | AS80: 0.0125 | AT80: 0.0125 | AU80: 0.0125 | AV80: 0.0125 | AW80: 0.0125 | AX80: 0.0125 | AY80: 0.0125 | AZ80: 0.0125 | BA80: 0.0125 | BB80: 0.0125 | BC80: 0.0125 | BD80: 0.0125 | BE80: 0.0125 | BF80: 0.0125 | BG80: 0.0125 | BH80: 0.0125 | BI80: 0.0125 | BJ80: 0.0125 | BK80: 0.0125 | BL80: 0.0125 | BM80: 0.0125 | BN80: 0.0125 | BO80: 0.0125 | BP80: 0.0125 | BQ80: 0.0125 | BR80: 0.0125 | BS80: 0.0125 | BT80: 0.0125 | BU80: 0.0125 | BV80: 0.0125 | BW80: 0.0125 | BX80: 0.0125 | BY80: 0.0125 | BZ80: 0.0125 | CA80: 0.0125 | CB80: 0.0125 | CC80: 0.0125 | CD80: 0.0125 | CE80: 0.0125 | CF80: 0.0125 | CG80: 0.0125 | CH80: 0.0125 | CI80: 0
A81: 81 | G81: 0 | H81: Обратное распределение амортизации | I81: Разовые капзатраты - 4 | M81: % | T81: 0 | X81: 0.7375 | AA81: 0 | AB81: 0.0125 | AC81: 0.0125 | AD81: 0.0125 | AE81: 0.0125 | AF81: 0.0125 | AG81: 0.0125 | AH81: 0.0125 | AI81: 0.0125 | AJ81: 0.0125 | AK81: 0.0125 | AL81: 0.0125 | AM81: 0.0125 | AN81: 0.0125 | AO81: 0.0125 | AP81: 0.0125 | AQ81: 0.0125 | AR81: 0.0125 | AS81: 0.0125 | AT81: 0.0125 | AU81: 0.0125 | AV81: 0.0125 | AW81: 0.0125 | AX81: 0.0125 | AY81: 0.0125 | AZ81: 0.0125 | BA81: 0.0125 | BB81: 0.0125 | BC81: 0.0125 | BD81: 0.0125 | BE81: 0.0125 | BF81: 0.0125 | BG81: 0.0125 | BH81: 0.0125 | BI81: 0.0125 | BJ81: 0.0125 | BK81: 0.0125 | BL81: 0.0125 | BM81: 0.0125 | BN81: 0.0125 | BO81: 0.0125 | BP81: 0.0125 | BQ81: 0.0125 | BR81: 0.0125 | BS81: 0.0125 | BT81: 0.0125 | BU81: 0.0125 | BV81: 0.0125 | BW81: 0.0125 | BX81: 0.0125 | BY81: 0.0125 | BZ81: 0.0125 | CA81: 0.0125 | CB81: 0.0125 | CC81: 0.0125 | CD81: 0.0125 | CE81: 0.0125 | CF81: 0.0125 | CG81: 0.0125 | CH81: 0.0125 | CI81: 0
A82: 82 | G82: 0 | H82: Обратное распределение амортизации | I82: Разовые капзатраты - 5 | M82: % | T82: 0 | X82: 0.7375 | AA82: 0 | AB82: 0.0125 | AC82: 0.0125 | AD82: 0.0125 | AE82: 0.0125 | AF82: 0.0125 | AG82: 0.0125 | AH82: 0.0125 | AI82: 0.0125 | AJ82: 0.0125 | AK82: 0.0125 | AL82: 0.0125 | AM82: 0.0125 | AN82: 0.0125 | AO82: 0.0125 | AP82: 0.0125 | AQ82: 0.0125 | AR82: 0.0125 | AS82: 0.0125 | AT82: 0.0125 | AU82: 0.0125 | AV82: 0.0125 | AW82: 0.0125 | AX82: 0.0125 | AY82: 0.0125 | AZ82: 0.0125 | BA82: 0.0125 | BB82: 0.0125 | BC82: 0.0125 | BD82: 0.0125 | BE82: 0.0125 | BF82: 0.0125 | BG82: 0.0125 | BH82: 0.0125 | BI82: 0.0125 | BJ82: 0.0125 | BK82: 0.0125 | BL82: 0.0125 | BM82: 0.0125 | BN82: 0.0125 | BO82: 0.0125 | BP82: 0.0125 | BQ82: 0.0125 | BR82: 0.0125 | BS82: 0.0125 | BT82: 0.0125 | BU82: 0.0125 | BV82: 0.0125 | BW82: 0.0125 | BX82: 0.0125 | BY82: 0.0125 | BZ82: 0.0125 | CA82: 0.0125 | CB82: 0.0125 | CC82: 0.0125 | CD82: 0.0125 | CE82: 0.0125 | CF82: 0.0125 | CG82: 0.0125 | CH82: 0.0125 | CI82: 0
A83: 83 | G83: 0 | H83: Обратное распределение амортизации | I83: Разовые капзатраты - 6 | M83: % | T83: 0 | X83: 0.7375 | AA83: 0 | AB83: 0.0125 | AC83: 0.0125 | AD83: 0.0125 | AE83: 0.0125 | AF83: 0.0125 | AG83: 0.0125 | AH83: 0.0125 | AI83: 0.0125 | AJ83: 0.0125 | AK83: 0.0125 | AL83: 0.0125 | AM83: 0.0125 | AN83: 0.0125 | AO83: 0.0125 | AP83: 0.0125 | AQ83: 0.0125 | AR83: 0.0125 | AS83: 0.0125 | AT83: 0.0125 | AU83: 0.0125 | AV83: 0.0125 | AW83: 0.0125 | AX83: 0.0125 | AY83: 0.0125 | AZ83: 0.0125 | BA83: 0.0125 | BB83: 0.0125 | BC83: 0.0125 | BD83: 0.0125 | BE83: 0.0125 | BF83: 0.0125 | BG83: 0.0125 | BH83: 0.0125 | BI83: 0.0125 | BJ83: 0.0125 | BK83: 0.0125 | BL83: 0.0125 | BM83: 0.0125 | BN83: 0.0125 | BO83: 0.0125 | BP83: 0.0125 | BQ83: 0.0125 | BR83: 0.0125 | BS83: 0.0125 | BT83: 0.0125 | BU83: 0.0125 | BV83: 0.0125 | BW83: 0.0125 | BX83: 0.0125 | BY83: 0.0125 | BZ83: 0.0125 | CA83: 0.0125 | CB83: 0.0125 | CC83: 0.0125 | CD83: 0.0125 | CE83: 0.0125 | CF83: 0.0125 | CG83: 0.0125 | CH83: 0.0125 | CI83: 0
A84: 84 | G84: 0 | H84: Обратное распределение амортизации | I84: Разовые капзатраты - 7 | M84: % | T84: 0 | X84: 0.7375 | AA84: 0 | AB84: 0.0125 | AC84: 0.0125 | AD84: 0.0125 | AE84: 0.0125 | AF84: 0.0125 | AG84: 0.0125 | AH84: 0.0125 | AI84: 0.0125 | AJ84: 0.0125 | AK84: 0.0125 | AL84: 0.0125 | AM84: 0.0125 | AN84: 0.0125 | AO84: 0.0125 | AP84: 0.0125 | AQ84: 0.0125 | AR84: 0.0125 | AS84: 0.0125 | AT84: 0.0125 | AU84: 0.0125 | AV84: 0.0125 | AW84: 0.0125 | AX84: 0.0125 | AY84: 0.0125 | AZ84: 0.0125 | BA84: 0.0125 | BB84: 0.0125 | BC84: 0.0125 | BD84: 0.0125 | BE84: 0.0125 | BF84: 0.0125 | BG84: 0.0125 | BH84: 0.0125 | BI84: 0.0125 | BJ84: 0.0125 | BK84: 0.0125 | BL84: 0.0125 | BM84: 0.0125 | BN84: 0.0125 | BO84: 0.0125 | BP84: 0.0125 | BQ84: 0.0125 | BR84: 0.0125 | BS84: 0.0125 | BT84: 0.0125 | BU84: 0.0125 | BV84: 0.0125 | BW84: 0.0125 | BX84: 0.0125 | BY84: 0.0125 | BZ84: 0.0125 | CA84: 0.0125 | CB84: 0.0125 | CC84: 0.0125 | CD84: 0.0125 | CE84: 0.0125 | CF84: 0.0125 | CG84: 0.0125 | CH84: 0.0125 | CI84: 0
A85: 85 | G85: 0 | H85: Обратное распределение амортизации | I85: Разовые капзатраты - 8 | M85: % | T85: 0 | X85: 0.7375 | AA85: 0 | AB85: 0.0125 | AC85: 0.0125 | AD85: 0.0125 | AE85: 0.0125 | AF85: 0.0125 | AG85: 0.0125 | AH85: 0.0125 | AI85: 0.0125 | AJ85: 0.0125 | AK85: 0.0125 | AL85: 0.0125 | AM85: 0.0125 | AN85: 0.0125 | AO85: 0.0125 | AP85: 0.0125 | AQ85: 0.0125 | AR85: 0.0125 | AS85: 0.0125 | AT85: 0.0125 | AU85: 0.0125 | AV85: 0.0125 | AW85: 0.0125 | AX85: 0.0125 | AY85: 0.0125 | AZ85: 0.0125 | BA85: 0.0125 | BB85: 0.0125 | BC85: 0.0125 | BD85: 0.0125 | BE85: 0.0125 | BF85: 0.0125 | BG85: 0.0125 | BH85: 0.0125 | BI85: 0.0125 | BJ85: 0.0125 | BK85: 0.0125 | BL85: 0.0125 | BM85: 0.0125 | BN85: 0.0125 | BO85: 0.0125 | BP85: 0.0125 | BQ85: 0.0125 | BR85: 0.0125 | BS85: 0.0125 | BT85: 0.0125 | BU85: 0.0125 | BV85: 0.0125 | BW85: 0.0125 | BX85: 0.0125 | BY85: 0.0125 | BZ85: 0.0125 | CA85: 0.0125 | CB85: 0.0125 | CC85: 0.0125 | CD85: 0.0125 | CE85: 0.0125 | CF85: 0.0125 | CG85: 0.0125 | CH85: 0.0125 | CI85: 0
A86: 86 | G86: 0 | H86: Обратное распределение амортизации | I86: Разовые капзатраты - 9 | M86: % | T86: 0 | X86: 0.7375 | AA86: 0 | AB86: 0.0125 | AC86: 0.0125 | AD86: 0.0125 | AE86: 0.0125 | AF86: 0.0125 | AG86: 0.0125 | AH86: 0.0125 | AI86: 0.0125 | AJ86: 0.0125 | AK86: 0.0125 | AL86: 0.0125 | AM86: 0.0125 | AN86: 0.0125 | AO86: 0.0125 | AP86: 0.0125 | AQ86: 0.0125 | AR86: 0.0125 | AS86: 0.0125 | AT86: 0.0125 | AU86: 0.0125 | AV86: 0.0125 | AW86: 0.0125 | AX86: 0.0125 | AY86: 0.0125 | AZ86: 0.0125 | BA86: 0.0125 | BB86: 0.0125 | BC86: 0.0125 | BD86: 0.0125 | BE86: 0.0125 | BF86: 0.0125 | BG86: 0.0125 | BH86: 0.0125 | BI86: 0.0125 | BJ86: 0.0125 | BK86: 0.0125 | BL86: 0.0125 | BM86: 0.0125 | BN86: 0.0125 | BO86: 0.0125 | BP86: 0.0125 | BQ86: 0.0125 | BR86: 0.0125 | BS86: 0.0125 | BT86: 0.0125 | BU86: 0.0125 | BV86: 0.0125 | BW86: 0.0125 | BX86: 0.0125 | BY86: 0.0125 | BZ86: 0.0125 | CA86: 0.0125 | CB86: 0.0125 | CC86: 0.0125 | CD86: 0.0125 | CE86: 0.0125 | CF86: 0.0125 | CG86: 0.0125 | CH86: 0.0125 | CI86: 0
A87: 87 | G87: 0 | H87: Обратное распределение амортизации | I87: Разовые капзатраты - 10 | M87: % | T87: 0 | X87: 0.7375 | AA87: 0 | AB87: 0.0125 | AC87: 0.0125 | AD87: 0.0125 | AE87: 0.0125 | AF87: 0.0125 | AG87: 0.0125 | AH87: 0.0125 | AI87: 0.0125 | AJ87: 0.0125 | AK87: 0.0125 | AL87: 0.0125 | AM87: 0.0125 | AN87: 0.0125 | AO87: 0.0125 | AP87: 0.0125 | AQ87: 0.0125 | AR87: 0.0125 | AS87: 0.0125 | AT87: 0.0125 | AU87: 0.0125 | AV87: 0.0125 | AW87: 0.0125 | AX87: 0.0125 | AY87: 0.0125 | AZ87: 0.0125 | BA87: 0.0125 | BB87: 0.0125 | BC87: 0.0125 | BD87: 0.0125 | BE87: 0.0125 | BF87: 0.0125 | BG87: 0.0125 | BH87: 0.0125 | BI87: 0.0125 | BJ87: 0.0125 | BK87: 0.0125 | BL87: 0.0125 | BM87: 0.0125 | BN87: 0.0125 | BO87: 0.0125 | BP87: 0.0125 | BQ87: 0.0125 | BR87: 0.0125 | BS87: 0.0125 | BT87: 0.0125 | BU87: 0.0125 | BV87: 0.0125 | BW87: 0.0125 | BX87: 0.0125 | BY87: 0.0125 | BZ87: 0.0125 | CA87: 0.0125 | CB87: 0.0125 | CC87: 0.0125 | CD87: 0.0125 | CE87: 0.0125 | CF87: 0.0125 | CG87: 0.0125 | CH87: 0.0125 | CI87: 0
A88: 88 | L88: пустая строка
A89: 89
A90: 90 | G90: 0 | H90: Амортизация | M90: руб. | Q90: учет | X90: 8112500 | AA90: 0 | AB90: 137500 | AC90: 137500 | AD90: 137500 | AE90: 137500 | AF90: 137500 | AG90: 137500 | AH90: 137500 | AI90: 137500 | AJ90: 137500 | AK90: 137500 | AL90: 137500 | AM90: 137500 | AN90: 137500 | AO90: 137500 | AP90: 137500 | AQ90: 137500 | AR90: 137500 | AS90: 137500 | AT90: 137500 | AU90: 137500 | AV90: 137500 | AW90: 137500 | AX90: 137500 | AY90: 137500 | AZ90: 137500 | BA90: 137500 | BB90: 137500 | BC90: 137500 | BD90: 137500 | BE90: 137500 | BF90: 137500 | BG90: 137500 | BH90: 137500 | BI90: 137500 | BJ90: 137500 | BK90: 137500 | BL90: 137500 | BM90: 137500 | BN90: 137500 | BO90: 137500 | BP90: 137500 | BQ90: 137500 | BR90: 137500 | BS90: 137500 | BT90: 137500 | BU90: 137500 | BV90: 137500 | BW90: 137500 | BX90: 137500 | BY90: 137500 | BZ90: 137500 | CA90: 137500 | CB90: 137500 | CC90: 137500 | CD90: 137500 | CE90: 137500 | CF90: 137500 | CG90: 137500 | CH90: 137500 | CI90: 0
A91: 91 | G91: 0 | H91: Амортизация | I91: Юридические расходы | M91: руб. | Q91: учет | X91: 737500 | AA91: 0 | AB91: 12500 | AC91: 12500 | AD91: 12500 | AE91: 12500 | AF91: 12500 | AG91: 12500 | AH91: 12500 | AI91: 12500 | AJ91: 12500 | AK91: 12500 | AL91: 12500 | AM91: 12500 | AN91: 12500 | AO91: 12500 | AP91: 12500 | AQ91: 12500 | AR91: 12500 | AS91: 12500 | AT91: 12500 | AU91: 12500 | AV91: 12500 | AW91: 12500 | AX91: 12500 | AY91: 12500 | AZ91: 12500 | BA91: 12500 | BB91: 12500 | BC91: 12500 | BD91: 12500 | BE91: 12500 | BF91: 12500 | BG91: 12500 | BH91: 12500 | BI91: 12500 | BJ91: 12500 | BK91: 12500 | BL91: 12500 | BM91: 12500 | BN91: 12500 | BO91: 12500 | BP91: 12500 | BQ91: 12500 | BR91: 12500 | BS91: 12500 | BT91: 12500 | BU91: 12500 | BV91: 12500 | BW91: 12500 | BX91: 12500 | BY91: 12500 | BZ91: 12500 | CA91: 12500 | CB91: 12500 | CC91: 12500 | CD91: 12500 | CE91: 12500 | CF91: 12500 | CG91: 12500 | CH91: 12500 | CI91: 0
A92: 92 | G92: 0 | H92: Амортизация | I92: Градостроительное планирование | M92: руб. | Q92: учет | X92: 7375000 | AA92: 0 | AB92: 125000 | AC92: 125000 | AD92: 125000 | AE92: 125000 | AF92: 125000 | AG92: 125000 | AH92: 125000 | AI92: 125000 | AJ92: 125000 | AK92: 125000 | AL92: 125000 | AM92: 125000 | AN92: 125000 | AO92: 125000 | AP92: 125000 | AQ92: 125000 | AR92: 125000 | AS92: 125000 | AT92: 125000 | AU92: 125000 | AV92: 125000 | AW92: 125000 | AX92: 125000 | AY92: 125000 | AZ92: 125000 | BA92: 125000 | BB92: 125000 | BC92: 125000 | BD92: 125000 | BE92: 125000 | BF92: 125000 | BG92: 125000 | BH92: 125000 | BI92: 125000 | BJ92: 125000 | BK92: 125000 | BL92: 125000 | BM92: 125000 | BN92: 125000 | BO92: 125000 | BP92: 125000 | BQ92: 125000 | BR92: 125000 | BS92: 125000 | BT92: 125000 | BU92: 125000 | BV92: 125000 | BW92: 125000 | BX92: 125000 | BY92: 125000 | BZ92: 125000 | CA92: 125000 | CB92: 125000 | CC92: 125000 | CD92: 125000 | CE92: 125000 | CF92: 125000 | CG92: 125000 | CH92: 125000 | CI92: 0
A93: 93 | G93: 0 | H93: Амортизация | I93: Разовые капзатраты - 3 | M93: руб. | Q93: учет | X93: 0 | AA93: 0 | AB93: 0 | AC93: 0 | AD93: 0 | AE93: 0 | AF93: 0 | AG93: 0 | AH93: 0 | AI93: 0 | AJ93: 0 | AK93: 0 | AL93: 0 | AM93: 0 | AN93: 0 | AO93: 0 | AP93: 0 | AQ93: 0 | AR93: 0 | AS93: 0 | AT93: 0 | AU93: 0 | AV93: 0 | AW93: 0 | AX93: 0 | AY93: 0 | AZ93: 0 | BA93: 0 | BB93: 0 | BC93: 0 | BD93: 0 | BE93: 0 | BF93: 0 | BG93: 0 | BH93: 0 | BI93: 0 | BJ93: 0 | BK93: 0 | BL93: 0 | BM93: 0 | BN93: 0 | BO93: 0 | BP93: 0 | BQ93: 0 | BR93: 0 | BS93: 0 | BT93: 0 | BU93: 0 | BV93: 0 | BW93: 0 | BX93: 0 | BY93: 0 | BZ93: 0 | CA93: 0 | CB93: 0 | CC93: 0 | CD93: 0 | CE93: 0 | CF93: 0 | CG93: 0 | CH93: 0 | CI93: 0
A94: 94 | G94: 0 | H94: Амортизация | I94: Разовые капзатраты - 4 | M94: руб. | Q94: учет | X94: 0 | AA94: 0 | AB94: 0 | AC94: 0 | AD94: 0 | AE94: 0 | AF94: 0 | AG94: 0 | AH94: 0 | AI94: 0 | AJ94: 0 | AK94: 0 | AL94: 0 | AM94: 0 | AN94: 0 | AO94: 0 | AP94: 0 | AQ94: 0 | AR94: 0 | AS94: 0 | AT94: 0 | AU94: 0 | AV94: 0 | AW94: 0 | AX94: 0 | AY94: 0 | AZ94: 0 | BA94: 0 | BB94: 0 | BC94: 0 | BD94: 0 | BE94: 0 | BF94: 0 | BG94: 0 | BH94: 0 | BI94: 0 | BJ94: 0 | BK94: 0 | BL94: 0 | BM94: 0 | BN94: 0 | BO94: 0 | BP94: 0 | BQ94: 0 | BR94: 0 | BS94: 0 | BT94: 0 | BU94: 0 | BV94: 0 | BW94: 0 | BX94: 0 | BY94: 0 | BZ94: 0 | CA94: 0 | CB94: 0 | CC94: 0 | CD94: 0 | CE94: 0 | CF94: 0 | CG94: 0 | CH94: 0 | CI94: 0
A95: 95 | G95: 0 | H95: Амортизация | I95: Разовые капзатраты - 5 | M95: руб. | Q95: учет | X95: 0 | AA95: 0 | AB95: 0 | AC95: 0 | AD95: 0 | AE95: 0 | AF95: 0 | AG95: 0 | AH95: 0 | AI95: 0 | AJ95: 0 | AK95: 0 | AL95: 0 | AM95: 0 | AN95: 0 | AO95: 0 | AP95: 0 | AQ95: 0 | AR95: 0 | AS95: 0 | AT95: 0 | AU95: 0 | AV95: 0 | AW95: 0 | AX95: 0 | AY95: 0 | AZ95: 0 | BA95: 0 | BB95: 0 | BC95: 0 | BD95: 0 | BE95: 0 | BF95: 0 | BG95: 0 | BH95: 0 | BI95: 0 | BJ95: 0 | BK95: 0 | BL95: 0 | BM95: 0 | BN95: 0 | BO95: 0 | BP95: 0 | BQ95: 0 | BR95: 0 | BS95: 0 | BT95: 0 | BU95: 0 | BV95: 0 | BW95: 0 | BX95: 0 | BY95: 0 | BZ95: 0 | CA95: 0 | CB95: 0 | CC95: 0 | CD95: 0 | CE95: 0 | CF95: 0 | CG95: 0 | CH95: 0 | CI95: 0
A96: 96 | G96: 0 | H96: Амортизация | I96: Разовые капзатраты - 6 | M96: руб. | Q96: учет | X96: 0 | AA96: 0 | AB96: 0 | AC96: 0 | AD96: 0 | AE96: 0 | AF96: 0 | AG96: 0 | AH96: 0 | AI96: 0 | AJ96: 0 | AK96: 0 | AL96: 0 | AM96: 0 | AN96: 0 | AO96: 0 | AP96: 0 | AQ96: 0 | AR96: 0 | AS96: 0 | AT96: 0 | AU96: 0 | AV96: 0 | AW96: 0 | AX96: 0 | AY96: 0 | AZ96: 0 | BA96: 0 | BB96: 0 | BC96: 0 | BD96: 0 | BE96: 0 | BF96: 0 | BG96: 0 | BH96: 0 | BI96: 0 | BJ96: 0 | BK96: 0 | BL96: 0 | BM96: 0 | BN96: 0 | BO96: 0 | BP96: 0 | BQ96: 0 | BR96: 0 | BS96: 0 | BT96: 0 | BU96: 0 | BV96: 0 | BW96: 0 | BX96: 0 | BY96: 0 | BZ96: 0 | CA96: 0 | CB96: 0 | CC96: 0 | CD96: 0 | CE96: 0 | CF96: 0 | CG96: 0 | CH96: 0 | CI96: 0
A97: 97 | G97: 0 | H97: Амортизация | I97: Разовые капзатраты - 7 | M97: руб. | Q97: учет | X97: 0 | AA97: 0 | AB97: 0 | AC97: 0 | AD97: 0 | AE97: 0 | AF97: 0 | AG97: 0 | AH97: 0 | AI97: 0 | AJ97: 0 | AK97: 0 | AL97: 0 | AM97: 0 | AN97: 0 | AO97: 0 | AP97: 0 | AQ97: 0 | AR97: 0 | AS97: 0 | AT97: 0 | AU97: 0 | AV97: 0 | AW97: 0 | AX97: 0 | AY97: 0 | AZ97: 0 | BA97: 0 | BB97: 0 | BC97: 0 | BD97: 0 | BE97: 0 | BF97: 0 | BG97: 0 | BH97: 0 | BI97: 0 | BJ97: 0 | BK97: 0 | BL97: 0 | BM97: 0 | BN97: 0 | BO97: 0 | BP97: 0 | BQ97: 0 | BR97: 0 | BS97: 0 | BT97: 0 | BU97: 0 | BV97: 0 | BW97: 0 | BX97: 0 | BY97: 0 | BZ97: 0 | CA97: 0 | CB97: 0 | CC97: 0 | CD97: 0 | CE97: 0 | CF97: 0 | CG97: 0 | CH97: 0 | CI97: 0
A98: 98 | G98: 0 | H98: Амортизация | I98: Разовые капзатраты - 8 | M98: руб. | Q98: учет | X98: 0 | AA98: 0 | AB98: 0 | AC98: 0 | AD98: 0 | AE98: 0 | AF98: 0 | AG98: 0 | AH98: 0 | AI98: 0 | AJ98: 0 | AK98: 0 | AL98: 0 | AM98: 0 | AN98: 0 | AO98: 0 | AP98: 0 | AQ98: 0 | AR98: 0 | AS98: 0 | AT98: 0 | AU98: 0 | AV98: 0 | AW98: 0 | AX98: 0 | AY98: 0 | AZ98: 0 | BA98: 0 | BB98: 0 | BC98: 0 | BD98: 0 | BE98: 0 | BF98: 0 | BG98: 0 | BH98: 0 | BI98: 0 | BJ98: 0 | BK98: 0 | BL98: 0 | BM98: 0 | BN98: 0 | BO98: 0 | BP98: 0 | BQ98: 0 | BR98: 0 | BS98: 0 | BT98: 0 | BU98: 0 | BV98: 0 | BW98: 0 | BX98: 0 | BY98: 0 | BZ98: 0 | CA98: 0 | CB98: 0 | CC98: 0 | CD98: 0 | CE98: 0 | CF98: 0 | CG98: 0 | CH98: 0 | CI98: 0
A99: 99 | G99: 0 | H99: Амортизация | I99: Разовые капзатраты - 9 | M99: руб. | Q99: учет | X99: 0 | AA99: 0 | AB99: 0 | AC99: 0 | AD99: 0 | AE99: 0 | AF99: 0 | AG99: 0 | AH99: 0 | AI99: 0 | AJ99: 0 | AK99: 0 | AL99: 0 | AM99: 0 | AN99: 0 | AO99: 0 | AP99: 0 | AQ99: 0 | AR99: 0 | AS99: 0 | AT99: 0 | AU99: 0 | AV99: 0 | AW99: 0 | AX99: 0 | AY99: 0 | AZ99: 0 | BA99: 0 | BB99: 0 | BC99: 0 | BD99: 0 | BE99: 0 | BF99: 0 | BG99: 0 | BH99: 0 | BI99: 0 | BJ99: 0 | BK99: 0 | BL99: 0 | BM99: 0 | BN99: 0 | BO99: 0 | BP99: 0 | BQ99: 0 | BR99: 0 | BS99: 0 | BT99: 0 | BU99: 0 | BV99: 0 | BW99: 0 | BX99: 0 | BY99: 0 | BZ99: 0 | CA99: 0 | CB99: 0 | CC99: 0 | CD99: 0 | CE99: 0 | CF99: 0 | CG99: 0 | CH99: 0 | CI99: 0
A100: 100 | G100: 0 | H100: Амортизация | I100: Разовые капзатраты - 10 | M100: руб. | Q100: учет | X100: 0 | AA100: 0 | AB100: 0 | AC100: 0 | AD100: 0 | AE100: 0 | AF100: 0 | AG100: 0 | AH100: 0 | AI100: 0 | AJ100: 0 | AK100: 0 | AL100: 0 | AM100: 0 | AN100: 0 | AO100: 0 | AP100: 0 | AQ100: 0 | AR100: 0 | AS100: 0 | AT100: 0 | AU100: 0 | AV100: 0 | AW100: 0 | AX100: 0 | AY100: 0 | AZ100: 0 | BA100: 0 | BB100: 0 | BC100: 0 | BD100: 0 | BE100: 0 | BF100: 0 | BG100: 0 | BH100: 0 | BI100: 0 | BJ100: 0 | BK100: 0 | BL100: 0 | BM100: 0 | BN100: 0 | BO100: 0 | BP100: 0 | BQ100: 0 | BR100: 0 | BS100: 0 | BT100: 0 | BU100: 0 | BV100: 0 | BW100: 0 | BX100: 0 | BY100: 0 | BZ100: 0 | CA100: 0 | CB100: 0 | CC100: 0 | CD100: 0 | CE100: 0 | CF100: 0 | CG100: 0 | CH100: 0 | CI100: 0
A101: 101 | L101: пустая строка
A102: 102
A103: 103 | G103: 0 | H103: Внеоборотные активы | M103: руб. | T103: 0 | X103: 2887500 | AA103: 11000000 | AB103: 10862500 | AC103: 10725000 | AD103: 10587500 | AE103: 10450000 | AF103: 10312500 | AG103: 10175000 | AH103: 10037500 | AI103: 9900000 | AJ103: 9762500 | AK103: 9625000 | AL103: 9487500 | AM103: 9350000 | AN103: 9212500 | AO103: 9075000 | AP103: 8937500 | AQ103: 8800000 | AR103: 8662500 | AS103: 8525000 | AT103: 8387500 | AU103: 8250000 | AV103: 8112500 | AW103: 7975000 | AX103: 7837500 | AY103: 7700000 | AZ103: 7562500 | BA103: 7425000 | BB103: 7287500 | BC103: 7150000 | BD103: 7012500 | BE103: 6875000 | BF103: 6737500 | BG103: 6600000 | BH103: 6462500 | BI103: 6325000 | BJ103: 6187500 | BK103: 6050000 | BL103: 5912500 | BM103: 5775000 | BN103: 5637500 | BO103: 5500000 | BP103: 5362500 | BQ103: 5225000 | BR103: 5087500 | BS103: 4950000 | BT103: 4812500 | BU103: 4675000 | BV103: 4537500 | BW103: 4400000 | BX103: 4262500 | BY103: 4125000 | BZ103: 3987500 | CA103: 3850000 | CB103: 3712500 | CC103: 3575000 | CD103: 3437500 | CE103: 3300000 | CF103: 3162500 | CG103: 3025000 | CH103: 2887500 | CI103: 0
A104: 104 | G104: 0 | H104: Внеоборотные активы | I104: Юридические расходы | M104: руб. | T104: 0 | X104: 262500 | AA104: 1000000 | AB104: 987500 | AC104: 975000 | AD104: 962500 | AE104: 950000 | AF104: 937500 | AG104: 925000 | AH104: 912500 | AI104: 900000 | AJ104: 887500 | AK104: 875000 | AL104: 862500 | AM104: 850000 | AN104: 837500 | AO104: 825000 | AP104: 812500 | AQ104: 800000 | AR104: 787500 | AS104: 775000 | AT104: 762500 | AU104: 750000 | AV104: 737500 | AW104: 725000 | AX104: 712500 | AY104: 700000 | AZ104: 687500 | BA104: 675000 | BB104: 662500 | BC104: 650000 | BD104: 637500 | BE104: 625000 | BF104: 612500 | BG104: 600000 | BH104: 587500 | BI104: 575000 | BJ104: 562500 | BK104: 550000 | BL104: 537500 | BM104: 525000 | BN104: 512500 | BO104: 500000 | BP104: 487500 | BQ104: 475000 | BR104: 462500 | BS104: 450000 | BT104: 437500 | BU104: 425000 | BV104: 412500 | BW104: 400000 | BX104: 387500 | BY104: 375000 | BZ104: 362500 | CA104: 350000 | CB104: 337500 | CC104: 325000 | CD104: 312500 | CE104: 300000 | CF104: 287500 | CG104: 275000 | CH104: 262500 | CI104: 0
A105: 105 | G105: 0 | H105: Внеоборотные активы | I105: Градостроительное планирование | M105: руб. | T105: 0 | X105: 2625000 | AA105: 10000000 | AB105: 9875000 | AC105: 9750000 | AD105: 9625000 | AE105: 9500000 | AF105: 9375000 | AG105: 9250000 | AH105: 9125000 | AI105: 9000000 | AJ105: 8875000 | AK105: 8750000 | AL105: 8625000 | AM105: 8500000 | AN105: 8375000 | AO105: 8250000 | AP105: 8125000 | AQ105: 8000000 | AR105: 7875000 | AS105: 7750000 | AT105: 7625000 | AU105: 7500000 | AV105: 7375000 | AW105: 7250000 | AX105: 7125000 | AY105: 7000000 | AZ105: 6875000 | BA105: 6750000 | BB105: 6625000 | BC105: 6500000 | BD105: 6375000 | BE105: 6250000 | BF105: 6125000 | BG105: 6000000 | BH105: 5875000 | BI105: 5750000 | BJ105: 5625000 | BK105: 5500000 | BL105: 5375000 | BM105: 5250000 | BN105: 5125000 | BO105: 5000000 | BP105: 4875000 | BQ105: 4750000 | BR105: 4625000 | BS105: 4500000 | BT105: 4375000 | BU105: 4250000 | BV105: 4125000 | BW105: 4000000 | BX105: 3875000 | BY105: 3750000 | BZ105: 3625000 | CA105: 3500000 | CB105: 3375000 | CC105: 3250000 | CD105: 3125000 | CE105: 3000000 | CF105: 2875000 | CG105: 2750000 | CH105: 2625000 | CI105: 0
A106: 106 | G106: 0 | H106: Внеоборотные активы | I106: Разовые капзатраты - 3 | M106: руб. | T106: 0 | X106: 0 | AA106: 0 | AB106: 0 | AC106: 0 | AD106: 0 | AE106: 0 | AF106: 0 | AG106: 0 | AH106: 0 | AI106: 0 | AJ106: 0 | AK106: 0 | AL106: 0 | AM106: 0 | AN106: 0 | AO106: 0 | AP106: 0 | AQ106: 0 | AR106: 0 | AS106: 0 | AT106: 0 | AU106: 0 | AV106: 0 | AW106: 0 | AX106: 0 | AY106: 0 | AZ106: 0 | BA106: 0 | BB106: 0 | BC106: 0 | BD106: 0 | BE106: 0 | BF106: 0 | BG106: 0 | BH106: 0 | BI106: 0 | BJ106: 0 | BK106: 0 | BL106: 0 | BM106: 0 | BN106: 0 | BO106: 0 | BP106: 0 | BQ106: 0 | BR106: 0 | BS106: 0 | BT106: 0 | BU106: 0 | BV106: 0 | BW106: 0 | BX106: 0 | BY106: 0 | BZ106: 0 | CA106: 0 | CB106: 0 | CC106: 0 | CD106: 0 | CE106: 0 | CF106: 0 | CG106: 0 | CH106: 0 | CI106: 0
A107: 107 | G107: 0 | H107: Внеоборотные активы | I107: Разовые капзатраты - 4 | M107: руб. | T107: 0 | X107: 0 | AA107: 0 | AB107: 0 | AC107: 0 | AD107: 0 | AE107: 0 | AF107: 0 | AG107: 0 | AH107: 0 | AI107: 0 | AJ107: 0 | AK107: 0 | AL107: 0 | AM107: 0 | AN107: 0 | AO107: 0 | AP107: 0 | AQ107: 0 | AR107: 0 | AS107: 0 | AT107: 0 | AU107: 0 | AV107: 0 | AW107: 0 | AX107: 0 | AY107: 0 | AZ107: 0 | BA107: 0 | BB107: 0 | BC107: 0 | BD107: 0 | BE107: 0 | BF107: 0 | BG107: 0 | BH107: 0 | BI107: 0 | BJ107: 0 | BK107: 0 | BL107: 0 | BM107: 0 | BN107: 0 | BO107: 0 | BP107: 0 | BQ107: 0 | BR107: 0 | BS107: 0 | BT107: 0 | BU107: 0 | BV107: 0 | BW107: 0 | BX107: 0 | BY107: 0 | BZ107: 0 | CA107: 0 | CB107: 0 | CC107: 0 | CD107: 0 | CE107: 0 | CF107: 0 | CG107: 0 | CH107: 0 | CI107: 0
A108: 108 | G108: 0 | H108: Внеоборотные активы | I108: Разовые капзатраты - 5 | M108: руб. | T108: 0 | X108: 0 | AA108: 0 | AB108: 0 | AC108: 0 | AD108: 0 | AE108: 0 | AF108: 0 | AG108: 0 | AH108: 0 | AI108: 0 | AJ108: 0 | AK108: 0 | AL108: 0 | AM108: 0 | AN108: 0 | AO108: 0 | AP108: 0 | AQ108: 0 | AR108: 0 | AS108: 0 | AT108: 0 | AU108: 0 | AV108: 0 | AW108: 0 | AX108: 0 | AY108: 0 | AZ108: 0 | BA108: 0 | BB108: 0 | BC108: 0 | BD108: 0 | BE108: 0 | BF108: 0 | BG108: 0 | BH108: 0 | BI108: 0 | BJ108: 0 | BK108: 0 | BL108: 0 | BM108: 0 | BN108: 0 | BO108: 0 | BP108: 0 | BQ108: 0 | BR108: 0 | BS108: 0 | BT108: 0 | BU108: 0 | BV108: 0 | BW108: 0 | BX108: 0 | BY108: 0 | BZ108: 0 | CA108: 0 | CB108: 0 | CC108: 0 | CD108: 0 | CE108: 0 | CF108: 0 | CG108: 0 | CH108: 0 | CI108: 0
A109: 109 | G109: 0 | H109: Внеоборотные активы | I109: Разовые капзатраты - 6 | M109: руб. | T109: 0 | X109: 0 | AA109: 0 | AB109: 0 | AC109: 0 | AD109: 0 | AE109: 0 | AF109: 0 | AG109: 0 | AH109: 0 | AI109: 0 | AJ109: 0 | AK109: 0 | AL109: 0 | AM109: 0 | AN109: 0 | AO109: 0 | AP109: 0 | AQ109: 0 | AR109: 0 | AS109: 0 | AT109: 0 | AU109: 0 | AV109: 0 | AW109: 0 | AX109: 0 | AY109: 0 | AZ109: 0 | BA109: 0 | BB109: 0 | BC109: 0 | BD109: 0 | BE109: 0 | BF109: 0 | BG109: 0 | BH109: 0 | BI109: 0 | BJ109: 0 | BK109: 0 | BL109: 0 | BM109: 0 | BN109: 0 | BO109: 0 | BP109: 0 | BQ109: 0 | BR109: 0 | BS109: 0 | BT109: 0 | BU109: 0 | BV109: 0 | BW109: 0 | BX109: 0 | BY109: 0 | BZ109: 0 | CA109: 0 | CB109: 0 | CC109: 0 | CD109: 0 | CE109: 0 | CF109: 0 | CG109: 0 | CH109: 0 | CI109: 0
A110: 110 | G110: 0 | H110: Внеоборотные активы | I110: Разовые капзатраты - 7 | M110: руб. | T110: 0 | X110: 0 | AA110: 0 | AB110: 0 | AC110: 0 | AD110: 0 | AE110: 0 | AF110: 0 | AG110: 0 | AH110: 0 | AI110: 0 | AJ110: 0 | AK110: 0 | AL110: 0 | AM110: 0 | AN110: 0 | AO110: 0 | AP110: 0 | AQ110: 0 | AR110: 0 | AS110: 0 | AT110: 0 | AU110: 0 | AV110: 0 | AW110: 0 | AX110: 0 | AY110: 0 | AZ110: 0 | BA110: 0 | BB110: 0 | BC110: 0 | BD110: 0 | BE110: 0 | BF110: 0 | BG110: 0 | BH110: 0 | BI110: 0 | BJ110: 0 | BK110: 0 | BL110: 0 | BM110: 0 | BN110: 0 | BO110: 0 | BP110: 0 | BQ110: 0 | BR110: 0 | BS110: 0 | BT110: 0 | BU110: 0 | BV110: 0 | BW110: 0 | BX110: 0 | BY110: 0 | BZ110: 0 | CA110: 0 | CB110: 0 | CC110: 0 | CD110: 0 | CE110: 0 | CF110: 0 | CG110: 0 | CH110: 0 | CI110: 0
A111: 111 | G111: 0 | H111: Внеоборотные активы | I111: Разовые капзатраты - 8 | M111: руб. | T111: 0 | X111: 0 | AA111: 0 | AB111: 0 | AC111: 0 | AD111: 0 | AE111: 0 | AF111: 0 | AG111: 0 | AH111: 0 | AI111: 0 | AJ111: 0 | AK111: 0 | AL111: 0 | AM111: 0 | AN111: 0 | AO111: 0 | AP111: 0 | AQ111: 0 | AR111: 0 | AS111: 0 | AT111: 0 | AU111: 0 | AV111: 0 | AW111: 0 | AX111: 0 | AY111: 0 | AZ111: 0 | BA111: 0 | BB111: 0 | BC111: 0 | BD111: 0 | BE111: 0 | BF111: 0 | BG111: 0 | BH111: 0 | BI111: 0 | BJ111: 0 | BK111: 0 | BL111: 0 | BM111: 0 | BN111: 0 | BO111: 0 | BP111: 0 | BQ111: 0 | BR111: 0 | BS111: 0 | BT111: 0 | BU111: 0 | BV111: 0 | BW111: 0 | BX111: 0 | BY111: 0 | BZ111: 0 | CA111: 0 | CB111: 0 | CC111: 0 | CD111: 0 | CE111: 0 | CF111: 0 | CG111: 0 | CH111: 0 | CI111: 0
A112: 112 | G112: 0 | H112: Внеоборотные активы | I112: Разовые капзатраты - 9 | M112: руб. | T112: 0 | X112: 0 | AA112: 0 | AB112: 0 | AC112: 0 | AD112: 0 | AE112: 0 | AF112: 0 | AG112: 0 | AH112: 0 | AI112: 0 | AJ112: 0 | AK112: 0 | AL112: 0 | AM112: 0 | AN112: 0 | AO112: 0 | AP112: 0 | AQ112: 0 | AR112: 0 | AS112: 0 | AT112: 0 | AU112: 0 | AV112: 0 | AW112: 0 | AX112: 0 | AY112: 0 | AZ112: 0 | BA112: 0 | BB112: 0 | BC112: 0 | BD112: 0 | BE112: 0 | BF112: 0 | BG112: 0 | BH112: 0 | BI112: 0 | BJ112: 0 | BK112: 0 | BL112: 0 | BM112: 0 | BN112: 0 | BO112: 0 | BP112: 0 | BQ112: 0 | BR112: 0 | BS112: 0 | BT112: 0 | BU112: 0 | BV112: 0 | BW112: 0 | BX112: 0 | BY112: 0 | BZ112: 0 | CA112: 0 | CB112: 0 | CC112: 0 | CD112: 0 | CE112: 0 | CF112: 0 | CG112: 0 | CH112: 0 | CI112: 0
